Workbook

Sheet Cover
E5: Energy Crop Analysis & Planning (ENCAP)
E9: by:
E10: Karen R. Lindsay and Nathanial Cahill
E11: Dr. M. Popp and Dr. C. West
E15: Department of Agricultural Economics and Agribusiness
E19: ©Copyright Reserved.
B21: Acknowledgement: This work was an interdisciplinary effort with experimental data and expert opinion provided by Dr. Charles P. West, Dr. Amanda Ashworth, Dr. Alexandre Caldeira Rocateli, Rodney Farris, Dr. Gopal Kakani, Dr. Felix Fritschi, Dr. Steven Green , Dr. Emily Heaton, Dr. Wink Alison, Michael Maw, and Lucia Agosta-Gamboa.
B24: Disclaimer: The information provided within represents estimates that are a result of a set of complex calculations that are described in more detail in the user manual. Changes in parameter values and its implications on returns are estimates and the user should use their own reasonable judgment to reflect whether the direction of change in returns is appropriate before acting on the results. As such, this software is provided ‘as is’ and without warranties as to performance of merchantability. Further, statements may have been made to you about this software. Any such statements do not constitute warranties and shall not be relied on by the user in deciding whether to use the program or act on its results. This program is provided without any expressed or implied warranties whatsoever. Because the diversity of conditions and hardware under which this program may be used, no warranty of merchantability or warranty of fitness for a particular purpose is offered. The user is advised to test the program thoroughly before relying on it. The user assumes the entire risk of using the program. The University of Arkansas will not be liable for any claim or damage brought against the user by any third party, nor will the University of Arkansas be liable for any consequential, indirect or special damages suffered by the user as a result of the software.

Sheet Main Menu
A2: Energy Crop Analysis & Planning (ENCAP)
A6: Main Menu
A8: Enter farm name: | D8: Circle C | N8: A spreadsheet format was chosen to allow producers to vary prices and equipment used for operation-specific comparisons to a flexible benchmark. The benchmark default values are a result of a collection of expert opinion and results of experimental trials across a range of weather and soil conditions.
B10: Sheet | C10: Description
C12: Enter prices for inputs of fuel, labor, application costs, seed, weed and pest control, fertilizer, and interest rates. Shows fertilizer recommendations for trial data. | N12: Drop-down lists are provided for selecting among options. The user should select options most compatible with their operation in terms of specified fertilizer and machinery used for a particular piece of equipment. This information is summarized in the enterprise budget tabs which allow the user to select among different options for the operation and aid in benchmarking.
C15: Specify the size, purchase price, salvage value, annual use and useful life hours, fuel consumption for tractors and implements, assign tractors to implements, and allocate acres across multiple implements and/or crop enterprise. Specify the price of custom operations or use the average benchmark prices. Provides key performance statistics.
N17: Each worksheet has dedicated links near the top to aid navigation of ENCAP. These links will look like the command buttons in the left column of this sheet. Information entered will not change as a result of moving to other sheets. Cells requiring user input are highlighted in light yellow throughout this spreadsheet. Other cells contain formulas and cannot be modified. Each sheet contains a command button to print with automated settings.
C20: Calculate the cost for pasture or cropland switchgrass production. Specify field operations, application amounts, percentage of yield loss with harvest, and stand life.
N22: Comment boxes have also been added to help the user better understand the contents of input cells or calculations throughout the spreadsheet. The user may hover the cursor over the red triangle at the top right corner of a cell or heading to read a comment.
C24: Calculate the cost for dryland or irrigated energy sorghum production. Specify field operations, application amounts, percentage of yield loss with harvest, and stand life.
N26: Enterprise budgets feature estimated costs for switchgrass on cropland or pasture, irrigated and dryland energy sorghum, and miscanthus for comparison against benchmark values and provide helpful information to the following intended audience for this tool:
C27: Calculate the cost for miscanthus production. Specify field operations, application amounts, percentage of yield loss with harvest, and stand life.
N29: 1) Entrants are provided with an approximation of capital requirements and annual costs, and
N30: 2) Producers and researchers are provided with a tool performance evaluation and sensitivity analyses
C31: =CONCATENATE("Compare production costs for ",D8," to the benchmark on a per acre basis.") -> Compare production costs for Circle C to the benchmark on a per acre basis.
N32: The main purpose for these enterprise budgets is to provide benchmark estimates of the input requirements and costs of producing different forages for renewable energy in the South Central US. Economic analyses provide a critical guide to investment, continued growth, and prosperity of biomass production for renewable energy. Please use Excel®'s Save and SaveAs options.
C34: Compare weather patterns for estimates of switchgrass production performance from several experimental trials.
C38: Calculate switchgrass optimal harvest date to maximize partial returns by calculating appropriate urea and litter application rates to meet nitrogen needs in the spring and estimate the cost of replacing nutrients that are removed in the biomass harvested. | N38: Please do not use the copy button when modifying information across a range of cells. Special formatting was applied throughout this spreadsheet to allow for at least some error chekcing and is voided if using copy and paste.
A43: Disclaimer: The information provided within represents estimates that are a result of a set of complex calculations that are described in more detail in the user manual. Changes in parameter values and its implications on returns are estimates and the user should use their own reasonable judgment to reflect whether the direction of change in returns is appropriate before acting on the results. As such, this software is provided ‘as is’ and without warranties as to performance of merchantability. Further, statements may have been made to you about this software. Any such statements do not constitute warranties and shall not be relied on by the user in deciding whether to use the program or act on its results. This program is provided without any expressed or implied warranties whatsoever. Because the diversity of conditions and hardware under which this program may be used, no warranty of merchantability or warranty of fitness for a particular purpose is offered. The user is advised to test the program thoroughly before relying on it. The user assumes the entire risk of using the program. The University of Arkansas will not be liable for any claim or damage brought against the user by any third party, nor will the University of Arkansas be liable for any consequential, indirect or special damages suffered by the user as a result of the software.

Sheet Inputs
A4: =CONCATENATE("Variable Input Prices for ",'Main Menu'!D8) -> Variable Input Prices for Circle C
A5: The cells highlighted in yellow are for the producer to enter their own values for their farm. Cells highlighted in light blue are drop-downs for the producer to choose different havest date, location, and year. The "Benchmark" prices, highlighted in light green, are the updated prices for 2014 and are used to calculate the costs for the "Benchmark" farm. Cells highlighted in sky blue with bold and italicized font are used to highlight amounts that are different from the 'Benchmark' data. In the 'Custom Fertilizer' section, specific blends of fertilizer are converted to their Urea, Triple Super Phosphate and potash equivalents in terms of cost. This helps track nutrient replacement, particularly in switchgrass where nutrient use trials were used to calculate profit-maximinzing fertilizer recommendations and harvest dates.
B6: Click "Defaults" to accept the average benchmark prices:
E8: Benchmark | G8: Producer | N8: Benchmark | P8: Producer | T8: Use Custom Fertilzer for Pricing | U8: FALSE
B9: Fuel | E9: $/gallon | G9: $/gallon | I9: Item Value | N9: $/ton | P9: $/ton | T9: Fertilizer Equivalent | U9: N | V9: P2O5 | W9: K2O | X9: Amount (lbs) | Y9: $/ton | Z9: Cost
B11: Diesel | E11: 2.48 | G11: 2.48 | I11: Switchgrass | N11: 50 | P11: 50 | T11: =I35 -> Urea, 46-0-0 | U11: 46 | V11: 0 | W11: 0 | X11: =SUM(X19,X27,X35) -> 83.15217391 | Y11: =IFERROR((Z19+Z27+Z35)/(X19+X27+X35)*2000,0) -> 582.4787582 | Z11: =+X11*Y11/2000 -> 24.2171875
B13: Labor | E13: $/hr | G13: $/hr | I13: Energy Sorghum | N13: 50 | P13: 50 | T13: =I37 -> Triple Super Phosphate, 0-45-0 | U13: 0 | V13: 45 | W13: 0 | X13: =SUM(X21,X29,X37) -> 109.4444444 | Y13: =IFERROR((Z21+Z29+Z37)/(X21+X29+X37)*2000,0) -> 430.9549492 | Z13: =+X13*Y13/2000 -> 23.5828125
B15: Operator Labor | E15: 9.25 | G15: 9.25 | I15: Miscanthus | N15: 50 | P15: 50 | T15: =I39 -> Potash Fertilizer, 0-0-60 | U15: 0 | V15: 0 | W15: 60 | X15: =SUM(X23,X31,X39) -> 5.416666667 | Y15: =IFERROR((Z23+Z31+Z39)/(X23+X31+X39)*2000,0) -> 600 | Z15: =+X15*Y15/2000 -> 1.625
B17: Hired Labor | E17: 8 | G17: 8 | I17: Interest Rates | T17: =I51 -> Ammonium Nitrate | U17: N | V17: P2O5 | W17: K2O | X17: Amount (lbs) | Y17: $/ton | Z17: Cost
B19: Labor Multiplier by Operation | E19: Labor Multiplier | G19: Labor Multiplier | I19: Discount Factor | N19: 0.06 | P19: 0.06 | T19: =I35 -> Urea, 46-0-0 | U19: 46 | V19: 0 | W19: 0 | X19: =IFERROR((N51*J51/100)/(U19/100),0) -> 36.95652174 | Y19: =IFERROR(Z19/X19*2000,0) -> 757.6470588 | Z19: =IFERROR(+J51/SUM(J51:L51)*R51,0) -> 14
B21: Field Preparation | E21: 1.5 | G21: 1.5 | I21: Operating Interest | N21: 0.0775 | P21: 0.0775 | T21: =I37 -> Triple Super Phosphate, 0-45-0 | U21: 0 | V21: 45 | W21: 0 | X21: =IFERROR((N51*K51/100)/(V21/100),0) -> 0 | Y21: =IFERROR(Z21/X21*2000,0) -> 0 | Z21: =IFERROR(+K51/SUM(J51:L51)*R51,0) -> 0
B23: Planting | E23: 1.5 | G23: 1.5 | I23: Application Costs | N23: $/acre | P23: $/acre | T23: =I39 -> Potash Fertilizer, 0-0-60 | U23: 0 | V23: 0 | W23: 60 | X23: =IFERROR((N51*L51/100)/(W23/100),0) -> 0 | Y23: =IFERROR(Z23/X23*2000,0) -> 0 | Z23: =IFERROR(+L51/SUM(J51:L51)*R51,0) -> 0
B25: Veggie Planting | E25: 3 | G25: 3 | I25: Custom Fertilizer | N25: 6 | P25: 6 | T25: =I53 -> DAP | U25: N | V25: P2O5 | W25: K2O | X25: Amt (lbs) | Y25: $/ton | Z25: Cost
B27: Fertlizer | E27: 1.5 | G27: 1.5 | I27: Custom Air Herbicide | N27: 7 | P27: 7 | T27: =T19 -> Urea, 46-0-0 | U27: =U19 -> 46 | V27: =V19 -> 0 | W27: =W19 -> 0 | X27: =IFERROR((N53*J53/100)/(U27/100),0) -> 39.13043478 | Y27: =IFERROR(Z27/X27*2000,0) -> 439.15625 | Z27: =IFERROR(J53/SUM(J53:L53)*R53,0) -> 8.5921875
B29: Post-Plant Field Work | E29: 1.5 | G29: 1.5 | I29: Custom Ground Herbicide | N29: 6 | P29: 6 | T29: =T21 -> Triple Super Phosphate, 0-45-0 | U29: =U21 -> 0 | V29: =V21 -> 45 | W29: =W21 -> 0 | X29: =IFERROR((N53*K53/100)/(V29/100),0) -> 102.2222222 | Y29: =IFERROR(Z29/X29*2000,0) -> 429.609375 | Z29: =IFERROR(K53/SUM(J53:L53)*R53,0) -> 21.9578125
B31: Harvest | E31: 1.5 | G31: 1.5 | I31: Custom Air Insecticide | N31: 7 | P31: 7 | T31: =T23 -> Potash Fertilizer, 0-0-60 | U31: =U23 -> 0 | V31: =V23 -> 0 | W31: =W23 -> 60 | X31: =IFERROR((N53*L53/100)/(W31/100),0) -> 0 | Y31: =IFERROR(Z31/X31*2000,0) -> 0 | Z31: =IFERROR(L53/SUM(J53:L53)*R53,0) -> 0
B33: Seed | E33: $/lb | G33: $/lb | I33: Fertilizer, N-P2O5-K2O | L33: Amount | N33: $/ton | P33: $/ton | R33: $/lb | T33: =I55 -> Custom Blend | U33: N | V33: P2O5 | W33: K2O | X33: Amt (lbs) | Y33: $/ton | Z33: Cost
B35: Switchgrass | E35: 10 | G35: 10 | I35: Urea, 46-0-0 | L35: =+X11 -> 83.15217391 | N35: 571 | P35: 571 | R35: =P35/2000 -> 0.2855 | T35: =T19 -> Urea, 46-0-0 | U35: =U19 -> 46 | V35: =V19 -> 0 | W35: =W19 -> 0 | X35: =IFERROR((N55*J55/100)/(U35/100),0) -> 7.065217391 | Y35: =IFERROR(Z35/X35*2000,0) -> 460 | Z35: =IFERROR(J55/SUM(J55:L55)*R55,0) -> 1.625
B37: Energy Sorghum | E37: =4.8*2.20462 -> 10.582176 | G37: 10.582176 | I37: Triple Super Phosphate, 0-45-0 | L37: =+X13 -> 109.4444444 | N37: 621 | P37: 621 | R37: =P37/2000 -> 0.3105 | T37: =T21 -> Triple Super Phosphate, 0-45-0 | U37: =U21 -> 0 | V37: =V21 -> 45 | W37: =W21 -> 0 | X37: =IFERROR((N55*K55/100)/(V37/100),0) -> 7.222222222 | Y37: =IFERROR(Z37/X37*2000,0) -> 450 | Z37: =IFERROR(K55/SUM(J55:L55)*R55,0) -> 1.625
B39: Miscanthus (per plug) | E39: 0.25 | G39: 0.25 | I39: Potash Fertilizer, 0-0-60 | L39: =+X15 -> 5.416666667 | N39: 601 | P39: 601 | R39: =P39/2000 -> 0.3005 | T39: =T23 -> Potash Fertilizer, 0-0-60 | U39: =U23 -> 0 | V39: =V23 -> 0 | W39: =W23 -> 60 | X39: =IFERROR((N55*L55/100)/(W39/100),0) -> 5.416666667 | Y39: =IFERROR(Z39/X39*2000,0) -> 600 | Z39: =IFERROR(L55/SUM(J55:L55)*R55,0) -> 1.625
B41: Weed & Pest Control | C41: Unit | E41: $/unit | G41: $/unit | I41: Poultry Litter | N41: 22.5 | P41: 22.5 | R41: =P41/2000 -> 0.01125
B43: Glyphosate | C43: pt | E43: =ROUND(38/8,2) -> 4.75 | G43: 4.75 | I43: Lime | N43: 56.6 | P43: 56.6 | R43: =P43/2000 -> 0.0283
B45: Quinclorac | C45: lb a.i. | E45: 55 | G45: 55 | I45: Please check the box to convert custom blend fertilizers specified below to urea, phosphate and potash price equivalents:
B47: Ally (Cimarron) | C47: oz a.i. | E47: 29.5 | G47: 29.5
B49: Atrazine | C49: lb a.i. | E49: 3.94 | G49: 3.94 | I49: Custom Fertilizer | J49: N | K49: P2O5 | L49: K2O | N49: Amount (lbs/acre) | P49: $/ton | R49: Cost
B51: Dual II Magnum | C51: pt | E51: =ROUND(109/8,2) -> 13.63 | G51: 13.63 | I51: Ammonium Nitrate | J51: 34 | K51: 0 | L51: 0 | N51: 50 | P51: 560 | R51: =+N51/2000*P51 -> 14
B53: Paraquat | C53: pt | E53: =ROUND(33/8,2) -> 4.13 | G53: 4.13 | I53: DAP | J53: 18 | K53: 46 | L53: 0 | N53: 100 | P53: 611 | Q53: 50 | R53: =+N53/2000*P53 -> 30.55
B55: Grazon P+D | C55: pt | E55: =ROUND(35/8,2) -> 4.38 | G55: 4.38 | I55: Custom Blend | J55: 13 | K55: 13 | L55: 13 | N55: 25 | P55: 390 | R55: =+N55/2000*P55 -> 4.875
B57: Baythroid XL 1 EC | C57: oz | E57: 1.53 | G57: 1.53 | I57: Harvest Conditions | P57: User Defined | R57: Alternate Date
B59: Enter Your Own | C59: Enter Your Own | I59: Post-Harvest Storage Loss Rate | N59: 0.1 | P59: 0.1 | T59: Error Checking for Location/Year selection and if data is In/Out of Sample
B61: Enter Your Own | C61: Enter Your Own | I61: Harvest Date | N61: =Benchmark!N44 -> 2013-11-12 | P61: =User!N44 -> 2013-11-12 | R61: 2014-02-24 | U61: Loc/Year | V61: DAY | W61: YIELD | X61: NR | Y61: PR | Z61: KR | AA61: MOIST | AB61: PL
I63: Harvest Location | N63: Fayetteville | U63: =VLOOKUP(N63,T65:U80,2,0) -> TRUE | V63: =VLOOKUP(N63,T65:V80,3,0) -> TRUE | W63: =VLOOKUP(N63,T65:W79,4,0) -> TRUE | X63: =VLOOKUP(N63,T65:X79,5,0) -> TRUE | Y63: =IF(I73=I37,VLOOKUP(N63,T65:Z79,7,0),0) -> 0 | Z63: =VLOOKUP(N63,T65:Z79,6,0) -> TRUE | AA63: =VLOOKUP(N63,T65:AA79,8,0) -> TRUE | AB63: =IF(I73=I41,VLOOKUP(N63,T65:AB79,9,0),0) -> TRUE
B65: Please do not use copy and paste when modifying information across a range of cells. Special formatting was applied to allow for at least some error checking and is voided if using copy and paste. | I65: Harvest Year | N65: 2012 | T65: Fayetteville | U65: =IF(N65=2013,FALSE,IF(N65=2014,FALSE,TRUE)) -> TRUE | V65: =IF(N65=2013,FALSE,IF(N65=2014,FALSE,TRUE)) -> TRUE | W65: =IF(N65=2013,FALSE,IF(N65=2014,FALSE,TRUE)) -> TRUE | X65: =IF(N65=2013,FALSE,IF(N65=2014,FALSE,TRUE)) -> TRUE | Y65: =IF(N65=2013,FALSE,IF(N65=2014,FALSE,TRUE)) -> TRUE | Z65: =IF(N65=2013,FALSE,IF(N65=2014,FALSE,TRUE)) -> TRUE | AA65: =IF(N65=2013,FALSE,IF(N65=2014,FALSE,TRUE)) -> TRUE | AB65: =IF(N65=2013,FALSE,IF(N65=2014,FALSE,TRUE)) -> TRUE
I67: Please check to use poultry litter on switchgrass: | T67: Jonesboro | U67: =IF(N65=2009,FALSE,IF(N65=2013,FALSE,IF(N65=2014,FALSE,TRUE))) -> TRUE | V67: =IF(N65=2009,FALSE,IF(N65=2013,FALSE,IF(N65=2014,FALSE,TRUE))) -> TRUE | W67: =IF(N65=2009,FALSE,IF(N65=2013,FALSE,IF(N65=2014,FALSE,TRUE))) -> TRUE | X67: =IF(N65=2009,FALSE,IF(N65=2013,FALSE,IF(N65=2014,FALSE,TRUE))) -> TRUE | Y67: FALSE | Z67: FALSE | AA67: FALSE | AB67: FALSE
I69: Fertilizer (Litter is limited to phosphate needs) | N69: Fertilizer Needs (lbs/acre), Yield (dt/acre) & Moisture (%) | T69: Pine_Tree | U69: =IF(N65=2009,FALSE,IF(N65=2011,FALSE,TRUE)) -> TRUE | V69: FALSE | W69: =IF(N65=2009,FALSE,IF(N65=2011,FALSE,IF(N65=2013,FALSE,TRUE))) -> TRUE | X69: =IF(N65=2009,FALSE,IF(N65=2011,FALSE,IF(N65=2013,FALSE,IF(N65=2014,FALSE,TRUE)))) -> TRUE | Y69: =IF(N65=2009,FALSE,IF(N65=2011,FALSE,IF(N65=2014,FALSE,TRUE))) -> TRUE | Z69: =IF(N65=2009,FALSE,IF(N65=2011,FALSE,IF(N65=2014,FALSE,TRUE))) -> TRUE | AA69: =IF(N65=2009,FALSE,IF(N65=2011,FALSE,TRUE)) -> TRUE | AB69: FALSE
I71: Urea, 46-0-0 | N71: =IFERROR(Benchmark!Q51,"nd") -> 108.0012173 | P71: =IFERROR(User!AA44,"nd") -> 108.0012173 | R71: =IFERROR(User!AA46,"nd") -> 140.5556304 | T71: Winnsboro | U71: =IF(N65=2009,FALSE,IF(N65=2010,FALSE,IF(N65=2011,FALSE,IF(N65=2014,FALSE,TRUE)))) -> TRUE | V71: =IF(N65=2009,FALSE,IF(N65=2010,FALSE,IF(N65=2011,FALSE,IF(N65=2014,FALSE,TRUE)))) -> TRUE | W71: =IF(N65=2009,FALSE,IF(N65=2010,FALSE,IF(N65=2011,FALSE,IF(N65=2014,FALSE,TRUE)))) -> TRUE | X71: =IF(N65=2009,FALSE,IF(N65=2010,FALSE,IF(N65=2011,FALSE,IF(N65=2014,FALSE,TRUE)))) -> TRUE | Y71: =IF(N65=2009,FALSE,IF(N65=2010,FALSE,IF(N65=2011,FALSE,IF(N65=2014,FALSE,TRUE)))) -> TRUE | Z71: =IF(N65=2009,FALSE,IF(N65=2010,FALSE,IF(N65=2011,FALSE,IF(N65=2014,FALSE,TRUE)))) -> TRUE | AA71: =IF(N65=2009,FALSE,IF(N65=2010,FALSE,IF(N65=2011,FALSE,IF(N65=2014,FALSE,TRUE)))) -> TRUE | AB71: FALSE
I73: =IF(User!Z2=TRUE,Inputs!I41,Inputs!I37) -> Poultry Litter | N73: =IF(User!Z2,IFERROR(ROUND(Benchmark!Q52,2),"nd"),IFERROR(ROUND(Benchmark!Q52,0),"nd")) -> 0.45 | P73: =IF(User!Z2,IFERROR(ROUND(User!AC44,2),"nd"),IFERROR(ROUND(User!AC44,0),"nd")) -> 0.45 | R73: =IF(User!Z2,IFERROR(ROUND(User!AC46,2),"nd"),IFERROR(ROUND(User!AC46,0),"nd")) -> 0.2 | T73: New_Franklin | U73: =IF(N65=2009,FALSE,IF(N65=2010,FALSE,IF(N65=2014,FALSE,TRUE))) -> TRUE | V73: =IF(N65=2009,FALSE,IF(N65=2010,FALSE,IF(N65=2014,FALSE,TRUE))) -> TRUE | W73: =IF(N65=2009,FALSE,IF(N65=2010,FALSE,IF(N65=2014,FALSE,TRUE))) -> TRUE | X73: =IF(N65=2009,FALSE,IF(N65=2010,FALSE,IF(N65=2014,FALSE,TRUE))) -> TRUE | Y73: =IF(N65=2009,FALSE,IF(N65=2010,FALSE,IF(N65=2014,FALSE,TRUE))) -> TRUE | Z73: =IF(N65=2009,FALSE,IF(N65=2010,FALSE,IF(N65=2014,FALSE,TRUE))) -> TRUE | AA73: =IF(N65=2009,FALSE,IF(N65=2010,FALSE,IF(N65=2014,FALSE,TRUE))) -> TRUE | AB73: FALSE
I75: Potash Fertilizer, 0-0-60 | N75: =IFERROR(Benchmark!Q53,"nd") -> 107.4896451 | P75: =IFERROR(User!AB44,"nd") -> 107.4896451 | R75: =IFERROR(User!AB46,"nd") -> 39.22068899 | T75: Haskell | U75: =IF(N65=2009,FALSE,IF(N65=2012,FALSE,IF(N65=2013,FALSE,IF(N65=2014,FALSE,TRUE)))) -> FALSE | V75: FALSE | W75: =IF(N65=2009,FALSE,IF(N65=2012,FALSE,IF(N65=2013,FALSE,IF(N65=2014,FALSE,TRUE)))) -> FALSE | X75: =IF(N65=2009,FALSE,IF(N65=2011,FALSE,IF(N65=2012,FALSE,IF(N65=2013,FALSE,IF(N65=2014,FALSE,TRUE))))) -> FALSE | Y75: =IF(N65=2009,FALSE,IF(N65=2011,FALSE,IF(N65=2012,FALSE,IF(N65=2013,FALSE,IF(N65=2014,FALSE,TRUE))))) -> FALSE | Z75: =IF(N65=2009,FALSE,IF(N65=2011,FALSE,IF(N65=2012,FALSE,IF(N65=2013,FALSE,IF(N65=2014,FALSE,TRUE))))) -> FALSE | AA75: =IF(N65=2009,FALSE,IF(N65=2012,FALSE,IF(N65=2013,FALSE,IF(N65=2014,FALSE,TRUE)))) -> FALSE | AB75: =IF(N65=2009,FALSE,IF(N65=2012,FALSE,IF(N65=2013,FALSE,IF(N65=2014,FALSE,TRUE)))) -> FALSE
I77: Expected Yield | N77: =IFERROR(Benchmark!O44,"nd") -> 6.126671253 | P77: =IFERROR(User!O44,"nd") -> 6.126671253 | R77: =IFERROR(User!O46,"nd") -> 4.482217324 | T77: Woodward | U77: =IF(N65=2009,FALSE,IF(N65=2010,FALSE,IF(N65=2014,FALSE,TRUE))) -> TRUE | V77: =IF(N65=2009,FALSE,IF(N65=2010,FALSE,IF(N65=2014,FALSE,TRUE))) -> TRUE | W77: =IF(N65=2009,FALSE,IF(N65=2010,FALSE,IF(N65=2014,FALSE,TRUE))) -> TRUE | X77: FALSE | Y77: FALSE | Z77: FALSE | AA77: FALSE | AB77: FALSE
I79: Moisture Content at Cutting (w.b.) | N79: =IFERROR(Benchmark!Y44,"nd") -> 43.08551152 | P79: =IFERROR(User!Y44,"nd") -> 43.08551152 | R79: =IFERROR(User!Y46,"nd") -> 13.6284195 | T79: Stillwater | U79: =IF(N65=2009,FALSE,IF(N65=2010,FALSE,IF(N65=2014,FALSE,TRUE))) -> TRUE | V79: =IF(N65=2009,FALSE,IF(N65=2010,FALSE,IF(N65=2014,FALSE,TRUE))) -> TRUE | W79: =IF(N65=2009,FALSE,IF(N65=2010,FALSE,IF(N65=2014,FALSE,TRUE))) -> TRUE | X79: =IF(N65=2009,FALSE,IF(N65=2010,FALSE,IF(N65=2014,FALSE,TRUE))) -> TRUE | Y79: =IF(N65=2009,FALSE,IF(N65=2010,FALSE,IF(N65=2014,FALSE,TRUE))) -> TRUE | Z79: =IF(N65=2009,FALSE,IF(N65=2010,FALSE,IF(N65=2014,FALSE,TRUE))) -> TRUE | AA79: =IF(N65=2009,FALSE,IF(N65=2010,FALSE,IF(N65=2011,FALSE,IF(N65=2014,FALSE,TRUE)))) -> TRUE | AB79: FALSE
B81: Disclaimer: The information provided within represents estimates that are a result of a set of complex calculations that are described in more detail in the user manual. Changes in parameter values and its implications on returns are estimates and the user should use their own reasonable judgment to reflect whether the direction of change in returns is appropriate before acting on the results. As such, this software is provided ‘as is’ and without warranties as to performance of merchantability. Further, statements may have been made to you about this software. Any such statements do not constitute warranties and shall not be relied on by the user in deciding whether to use the program or act on its results. This program is provided without any expressed or implied warranties whatsoever. Because the diversity of conditions and hardware under which this program may be used, no warranty of merchantability or warranty of fitness for a particular purpose is offered. The user is advised to test the program thoroughly before relying on it. The user assumes the entire risk of using the program. The University of Arkansas will not be liable for any claim or damage brought against the user by any third party, nor will the University of Arkansas be liable for any consequential, indirect or special damages suffered by the user as a result of the software.

Sheet Benchmark (hidden)
A1: Dependent Variable: YIELD | G1: 2009 | H1: -0.09016436063 | J1: =User!$AH$2 -> Fayetteville | K1: 0 | O1: n | P1: =Inputs!N35/0.46/2000 -> 0.6206521739 | R1: pL | S1: =IF(AND(Z2,Inputs!N37/2000/0.45/(2*$AD$1/(2*$AD$1+5*$AD$2))>(S3/2000-AD5*U3*P1-AD7*S2)/AD6),(S3/2000-AD5*U3*P1-AD7*S2)/AD6,Inputs!N37/2000/0.45/(2*$AD$1/(2*$AD$1+5*$AD$2))) -> -0.6226952078 | T1: i | U1: =Inputs!N21 -> 0.0775 | V1: =+((1+U1)^(1/365.25)-1) -> 0.0002043837665 | W1: x | X1: =(B87*S1+B41*S2-P2)^2 -> 1991.203421 | AC1: P | AD1: 30.974
A2: Method: Panel EGLS (Period random effects) | G2: 2010 | H2: 0.1665892434 | J2: =User!$AH$3 -> Jonesboro | K2: 12.38806389 | O2: s | P2: =+Inputs!N11 -> 50 | R2: k | S2: =Inputs!N39/2000/0.6/(2*$AD$3/(2*$AD$3+$AD$2)) -> 0.6033044636 | T2: c | U2: =Inputs!N59 -> 0.1 | V2: =+((1+U2)^(1/180)-1) -> 0.0005296412093 | W2: w | X2: =(B13*(B87*S1+B41*S2-P2)+(V1-V2)*P2*O45+B86*S1+B40*S2)^2 -> 21.99031006 | Z2: =+User!Z2 -> TRUE | AA2: Litter is used or not | AC2: O | AD2: 15.999
A3: Date: 07/04/15 Time: 14:08 | G3: 2011 | H3: 0.1164218508 | J3: =User!$AH$4 -> Pine_Tree | K3: 0.02469478212 | R3: litter | S3: =+Inputs!N41 -> 22.5 | T3: Neff | U3: =+B17/B15+2*B16*$P$4 -> 0.2351215985 | X3: user | AC3: K | AD3: 39.098
A4: Sample: 2009 2014 IF VARIETY=0 AND EXCEPT=0 | G4: 2012 | H4: -0.1294172992 | J4: =User!$AH$5 -> Winnsboro | K4: 7.654333357 | N4: 2013-03-01 | O4: N* | P4: =($P$1-$B$15*$P$2)/(2*$B$16*$P$2) -> 76.56202223 | S4: D* | T4: =IF((B14^2*X1)/(4*X2)>IF(G13=J7,277,360),IF(G13=J7,277,360),(B14^2*X1)/(4*X2)) -> 255.5814815 | V4: DYmax | W4: =IF(B14^2/(4*B13^2)>IF(G13=J7,277,360),IF(G13=J7,277,360),B14^2/(4*B13^2)) -> 225.467366
A5: Periods included: 6 | G5: 2013 | H5: -0.08496371344 | J5: =User!$AH$6 -> New_Franklin | K5: 15.81922954 | O5: L* | P5: =+Q44/AD6/2000 -> 0.4480243714 | Q5: in tons | S5: Profit* | T5: =+W44 -> 223.4527972 | Z5: Litter spec: | AA5: N | AB5: 3 | AC5: Elemental Spec: | AD5: =+AB5/100 -> 0.03 | AE5: N
A6: Cross-sections included: 76 | G6: 2014 | H6: 0.02153427909 | J6: =User!$AH$7 -> Haskell | K6: 1.020920121 | AA6: P2O5 | AB6: 3 | AD6: =+AB6/100*(2*$AD$1/(2*$AD$1+5*$AD$2)) -> 0.01309286122 | AE6: P
A7: Total panel (unbalanced) observations: 198 | G7: Chosen Year | J7: =User!$AH$8 -> Stillwater | K7: 12.55387357 | M7: D | N7: Harvest Date | O7: Y* | P7: NR | Q7: PR | R7: KR | S7: TR | T7: TN | U7: TP | V7: TK | W7: π* | X7: Day | Y7: Moisture | AA7: K2O | AB7: 3 | AD7: =+AB7/100*(2*$AD$3/(2*$AD$3+$AD$2)) -> 0.02490450661 | AE7: K
A8: Wallace and Hussain estimator of component variances | J8: =User!$AH$9 -> Woodward | K8: 11.8450463 | M8: 150 | N8: =+$N$4+M8 -> 2013-07-29 | O8: =+$B$11+$B$12+$B$13*M8+$B$14*M8^0.5+$P$4*$B$15+$P$4^2*$B$16 -> 5.377765069 | P8: =IF(+$B$60+$B$61+$B$62*M8+$B$63*O8<0,0,+$B$60+$B$61+$B$62*M8+$B$63*O8) -> 74.47592095 | Q8: =IF(+$B$84+$B$85+$B$86*M8+$B$87*O8<0,0,+$B$84+$B$85+$B$86*M8+$B$87*O8) -> 15.01476377 | R8: =IF(+$B$38+$B$39+M8*$B$40+O8*$B$41<0,0,+$B$38+$B$39+M8*$B$40+O8*$B$41) -> 108.051533 | S8: =+O8*$P$2 -> 268.8882535 | T8: =+$P$4*$P$1 -> 47.51838554 | U8: =+Q8*$S$1 -> -9.349621445 | V8: =+R8*$S$2 -> 65.18797214 | W8: =O8*$P$2-(M8-$W$4)*($V$1-$V$2)*$P$2*IF(M8<$W$4,O8,$O$45)-$P$4*$P$1-Q8*$S$1-R8*$S$2 -> 158.9312994 | X8: 150 | Y8: =+$B$107+$B$108+X8*$B$109+X8^0.5*$B$110 -> 66.1874626
A9: White cross-section standard errors & covariance (d.f. corrected) | G9: =+SHYNE!I20 -> 2012 | M9: 155 | N9: =+$N$4+M9 -> 2013-08-03 | O9: =+$B$11+$B$12+$B$13*M9+$B$14*M9^0.5+$P$4*$B$15+$P$4^2*$B$16 -> 5.498584438 | P9: =IF(+$B$60+$B$61+$B$62*M9+$B$63*O9<0,0,+$B$60+$B$61+$B$62*M9+$B$63*O9) -> 74.73729471 | Q9: =IF(+$B$84+$B$85+$B$86*M9+$B$87*O9<0,0,+$B$84+$B$85+$B$86*M9+$B$87*O9) -> 14.97901183 | R9: =IF(+$B$38+$B$39+M9*$B$40+O9*$B$41<0,0,+$B$38+$B$39+M9*$B$40+O9*$B$41) -> 107.4177507 | S9: =+O9*$P$2 -> 274.9292219 | T9: =+$P$4*$P$1 -> 47.51838554 | U9: =+Q9*$S$1 -> -9.327358881 | V9: =+R9*$S$2 -> 64.80560846 | W9: 165.6311993 | X9: 155 | Y9: 65.341772
A10: WARNING: estimated coefficient covariance matrix is of reduced rank | K10: Day | L10: Day^.5 | M10: 160 | N10: 2013-08-08 | O10: 5.608517607 | P10: 74.87907679 | Q10: 14.9280941 | R10: 106.6712893 | S10: 280.4258804 | T10: 47.51838554 | U10: -9.295652656 | V10: 64.35526497 | W10: 171.8765645 | X10: 160 | Y10: 64.46500897 | AD10: =(2*$AD$1/(2*$AD$1+5*$AD$2)) -> 0.4364287073
A11: C | B11: =-20.3998542675285+IF($G$9=$G$1,$H1,IF($G$9=$G$2,H2,IF($G$9=$G$3,$H$3,IF($G$9=$G$4,$H$4,IF($G$9=$G$5,$H$5,$H$6))))) -> -20.52927157 | C11: 2.894014389 | D11: -7.048981632 | E11: 4.058172943e-11 | G11: Chosen Location | J11: =User!$AH$2 -> Fayetteville | K11: 0 | L11: 0 | M11: 165 | N11: 2013-08-13 | O11: 5.708071068 | P11: 74.90683133 | Q11: 14.86271619 | R11: 105.8173913 | S11: 285.4035534 | T11: 47.51838554 | U11: -9.254942145 | V11: 63.84010448 | W11: 177.6868423 | X11: 165 | Y11: 63.55861917
A12: LOC | B12: =IF($G$13=J1,K1,IF($G$13=J2,K2,IF($G$13=J3,K3,IF($G$13=J4,K4,IF($G$13=J5,K5,IF($G$13=J6,K6,IF($G$13=J7,K7,K8))))))) -> 0 | J12: =User!$AH$3 -> Jonesboro | K12: 0.07735904449 | L12: -2.059511756 | M12: 170 | N12: 2013-08-18 | O12: 5.797713212 | P12: 74.8257039 | Q12: 14.78353062 | R12: 104.8609048 | S12: 289.8856606 | T12: 47.51838554 | U12: -9.205633674 | V12: 63.26305192 | W12: 183.0799793 | X12: 170 | Y12: 62.62393955
A13: DAY | B13: =-0.111887277790276+IF($G$13=J1,K11,IF($G$13=J2,K12,IF($G$13=J3,K13,IF($G$13=J4,K14,IF($G$13=J5,K15,IF($G$13=J6,K16,IF($G$13=J7,K17,K18))))))) -> -0.1118872778 | C13: 0.01527361349 | D13: -7.32552764 | E13: 8.520500234e-12 | G13: =+Inputs!N63 -> Fayetteville | J13: =User!$AH$4 -> Pine_Tree | K13: 0 | L13: 0 | M13: 175 | N13: 2013-08-23 | O13: 5.877878231 | P13: 74.64046437 | Q13: 14.69114229 | R13: 103.806324 | S13: 293.8939116 | T13: 47.51838554 | U13: -9.148103899 | V13: 62.62681863 | W13: 188.0725761 | X13: 175 | Y13: 61.66220939
A14: DAY^.5 | B14: =3.36010267895776+IF($G$13=J1,L11,IF($G$13=J2,L12,IF($G$13=J3,L13,IF($G$13=J4,L14,IF($G$13=J5,L15,IF($G$13=J6,L16,IF($G$13=J7,L17,L18))))))) -> 3.360102679 | C14: 0.4364624792 | D14: 7.698491484 | E14: 9.912392466e-13 | J14: =User!$AH$5 -> Winnsboro | K14: 0.04347549955 | L14: -1.360980135 | M14: 180 | N14: 2013-08-28 | O14: 5.948969511 | P14: 74.35554417 | Q14: 14.58611314 | R14: 102.6578242 | S14: 297.4484755 | T14: 47.51838554 | U14: -9.082702753 | V14: 61.93392359 | W14: 192.6800229 | X14: 180 | Y14: 60.6745801
A15: NFERT | B15: 0.02774898531 | C15: 0.004455882712 | D15: 6.227494551 | E15: 3.449465908e-09 | J15: =User!$AH$6 -> New_Franklin | K15: 0.07599709895 | L15: -2.363200432 | M15: 185 | N15: 2013-09-02 | O15: 6.011362607 | P15: 73.97506903 | Q15: 14.46896638 | R15: 101.4192927 | S15: 300.5681303 | T15: 47.51838554 | U15: -9.009756026 | V15: 61.18671198 | W15: 196.9166173 | X15: 185 | Y15: 59.66212361
A16: NFERT^2 | B16: -0.0001001537145 | C16: 4.425451236e-05 | D16: -2.263129998 | E16: 0.02486340217 | J16: =User!$AH$7 -> Haskell | K16: 0 | L16: 0 | M16: 190 | N16: 2013-09-07 | O16: 6.065407862 | P16: 73.50288767 | Q16: 14.34019007 | R16: 100.0943557 | S16: 303.2703931 | T16: 47.51838554 | U16: -8.929567637 | V16: 60.38737156 | W16: 200.7956689 | X16: 190 | Y16: 58.62583992
A17: LITTER | B17: 0.006949942606 | C17: 0.002730852576 | D17: 2.54497173 | E17: 0.01179747734 | J17: =User!$AH$8 -> Stillwater | K17: 0.07843742536 | L17: -2.027756022 | M17: 195 | N17: 2013-09-12 | O17: 6.111432715 | P17: 72.94259721 | Q17: 14.20024038 | R17: 98.68640236 | S17: 305.5716358 | T17: 47.51838554 | U17: -8.842421635 | V17: 59.53794704 | W17: 204.3295901 | X17: 195 | Y17: 57.56666361
A18: YEAR2 | B18: -0.8386584215 | C18: 0.1925201691 | D18: -4.356210704 | E18: 2.255828256e-05 | J18: =User!$AH$9 -> Woodward | K18: 0.06074739787 | L18: -1.921869071 | M18: 200 | N18: 2013-09-17 | O18: 6.149743741 | P18: 72.29756557 | Q18: 14.0495444 | R18: 97.198606 | S18: 307.4871871 | T18: 47.51838554 | U18: -8.748583971 | V18: 58.64035285 | W18: 207.5299778 | X18: 200 | Y18: 56.48546976
A19: Variable | B19: Coefficient | C19: Std. Error | D19: t-Statistic | E19: Prob. | M19: 205 | N19: 2013-09-22 | O19: 6.180628468 | P19: 71.57095142 | Q19: 13.8885027 | R19: 95.6339427 | S19: 309.0314234 | T19: 47.51838554 | U19: -8.648304073 | V19: 57.6963845 | W19: 210.4076849 | X19: 205 | Y19: 55.38307906
A20: R-squared | B20: 0.689768 | C20: Mean dependent var | E20: 2.813482 | M20: 210 | N20: 2013-09-27 | O20: 6.204356994 | P20: 70.76572196 | Q20: 13.71749154 | R20: 93.99520814 | S20: 310.2178497 | T20: 47.51838554 | U20: -8.541816247 | V20: 56.70772863 | W20: 212.9728843 | X20: 210 | Y20: 54.26026243
A21: Adjusted R-squared | B21: 0.648761 | C21: S.D. dependent var | E21: 2.061932 | M21: 215 | N21: 2013-10-02 | O21: 6.221183431 | P21: 69.88466877 | Q21: 13.53686495 | R21: 92.28503255 | S21: 311.0591716 | T21: 47.51838554 | U21: -8.429340934 | V21: 55.67597206 | W21: 215.2351264 | X21: 215 | Y21: 53.1177452
A22: S.E. of regression | B22: 1.170965 | C22: Sum squared resid | E22: 238.5815 | M22: 220 | N22: 2013-10-07 | O22: 6.231347198 | P22: 68.930422 | Q22: 13.34695646 | R22: 90.50589407 | S22: 311.5673599 | T22: 47.51838554 | U22: -8.311085825 | V22: 54.60260987 | W22: 217.2033896 | X22: 220 | Y22: 51.95621073
A23: F-statistic | B23: 16.82047 | C23: Durbin-Watson stat | E23: 1.64843 | M23: 225 | N23: 2013-10-12 | O23: 6.235074185 | P23: 67.90546322 | Q23: 13.14808076 | R23: 88.6601308 | S23: 311.7537093 | T23: 47.51838554 | U23: -8.18724688 | V23: 53.48905266 | W23: 218.8861269 | X23: 225 | Y23: 50.77630379
A24: Prob(F-statistic) | B24: 0 | M24: 230 | N24: 2013-10-17 | O24: 6.232577799 | P24: 66.81213681 | Q24: 12.94053515 | R24: 86.74995165 | S24: 311.62889 | T24: 47.51838554 | U24: -8.058009226 | V24: 52.33663304 | W24: 220.2914927 | X24: 230 | Y24: 49.5786335
M25: 235 | N25: 2013-10-22 | O25: 6.22405991 | P25: 65.65266045 | Q25: 12.72460087 | R25: 84.77744608 | S25: 311.2029955 | T25: 47.51838554 | U25: -7.923547981 | V25: 51.14661163 | W25: 221.4281616 | X25: 235 | Y25: 48.36377605
A26: Dependent Variable: POTASH | M26: 240 | N26: 2013-10-27 | O26: 6.209711703 | P26: 64.42913443 | Q26: 12.50054425 | R26: 82.744593 | S26: 310.4855851 | T26: 47.51838554 | U26: -7.784028999 | V26: 49.92018229 | W26: 222.3046649 | X26: 240 | Y26: 47.13227714
A27: Method: Panel EGLS (Period random effects) | M27: 245 | N27: 2013-11-01 | O27: 6.189714456 | P27: 63.14355019 | Q27: 12.26861784 | R27: 80.65326875 | S27: 309.4857228 | T27: 47.51838554 | U27: -7.639609536 | V27: 48.65847704 | W27: 222.9290916 | X27: 245 | Y27: 45.88465421
A28: Date: 07/03/15 Time: 10:41 | M28: 250 | N28: 2013-11-06 | O28: 6.164240244 | P28: 61.7977981 | Q28: 12.02906136 | R28: 78.50525441 | S28: 308.2120122 | T28: 47.51838554 | U28: -7.490438865 | V28: 47.3625704 | W28: 223.3091203 | X28: 250 | Y28: 44.62139839
A29: Sample: 2009 2014 IF VARIETY=0 AND EXCEPT=0 AND DAY>121 | M29: 255 | N29: 2013-11-11 | O29: 6.133452579 | P29: 60.39367442 | Q29: 11.78210261 | R29: 76.30224243 | S29: 306.6726289 | T29: 47.51838554 | U29: -7.33665883 | V29: 46.03348344 | W29: 223.4520472 | X29: 255 | Y29: 43.3429764
A30: Periods included: 5 | M30: 260 | N30: 2013-11-16 | O30: 6.097506995 | P30: 58.93288781 | Q30: 11.52795825 | R30: 74.0458427 | S30: 304.8753498 | T30: 47.51838554 | U30: -7.178404356 | V30: 44.67218741 | W30: 223.3648129 | X30: 260 | Y30: 42.04983219
A31: Cross-sections included: 49 | M31: 265 | N31: 2013-11-21 | O31: 6.056551584 | P31: 57.41706513 | Q31: 11.2668346 | R31: 71.73758805 | S31: 302.8275792 | T31: 47.51838554 | U31: -7.015803911 | V31: 43.27960708 | W31: 223.0540255 | X31: 265 | Y31: 40.74238844
A32: Total panel (unbalanced) observations: 89 | G32: 2009 | H32: -7.839189973 | J32: =User!$AH$2 -> Fayetteville | K32: 0 | M32: 270 | N32: 2013-11-26 | O32: 6.010727484 | P32: 55.84775687 | Q32: 10.99892828 | R32: 69.37893936 | S32: 300.5363742 | T32: 47.51838554 | U32: -6.848979931 | V32: 41.85662379 | W32: 222.5259831 | X32: 270 | Y32: 39.42104802
A33: Wallace and Hussain estimator of component variances | G33: 2010 | H33: -1.471367759 | J33: =User!$AH$3 -> Jonesboro | K33: nd | M33: 275 | N33: 2013-12-01 | O33: 5.960169327 | P33: 54.22644206 | Q33: 10.72442685 | R33: 66.97129015 | S33: 298.0084664 | T33: 47.51838554 | U33: -6.678049207 | V33: 40.40407828 | W33: 221.7866933 | X33: 275 | Y33: 38.08619519
A34: White cross-section standard errors & covariance (d.f. corrected) | G34: 2011 | H34: 0.7203802799 | J34: =User!$AH$4 -> Pine_Tree | K34: -47.1234149 | M34: 280 | N34: 2013-12-06 | O34: 5.905005653 | P34: 52.55453278 | Q34: 10.44350938 | R34: 64.5159709 | S34: 295.2502826 | T34: 47.51838554 | U34: -6.503123246 | V34: 38.92277322 | W34: 220.841892 | X34: 280 | Y34: 36.73819685
A35: WARNING: estimated coefficient covariance matrix is of reduced rank | G35: 2012 | H35: -6.137540287 | J35: =User!$AH$5 -> Winnsboro | K35: -30.7865988 | M35: 285 | N35: 2013-12-11 | O35: 5.845359288 | P35: 50.83337836 | Q35: 10.15634699 | R35: 62.01425293 | S35: 292.2679644 | T35: 47.51838554 | U35: -6.324308599 | V35: 37.4134756 | W35: 219.69706 | X35: 285 | Y35: 35.37740358
A36: Variable | B36: Coefficient | C36: Std. Error | D36: t-Statistic | E36: Prob. | G36: 2013 | H36: 14.72771774 | J36: =User!$AH$6 -> New_Franklin | K36: 0.1510305822 | M36: 290 | N36: 2013-12-16 | O36: 5.781347694 | P36: 49.06426919 | Q36: 9.863103307 | R36: 59.46735205 | S36: 289.0673847 | T36: 47.51838554 | U36: -6.141707163 | V36: 35.87691893 | W36: 218.3574388 | X36: 290 | Y36: 34.00415065
J37: =User!$AH$7 -> Haskell | K37: -28.61789777 | M37: 295 | N37: 2013-12-21 | O37: 5.71308329 | P37: 47.24844026 | Q37: 9.56393495 | R37: 56.87643187 | S37: 285.6541645 | T37: 47.51838554 | U37: -5.955416461 | V37: 34.31380522 | W37: 216.8280449 | X37: 295 | Y37: 32.61875895
A38: C | B38: =115.055966434332+IF($G$9=$G$1,$H32,IF($G$9=$G$2,H33,IF($G$9=$G$3,$H$34,IF($G$9=$G$4,$H$35,$H$36)))) -> 108.9184261 | C38: 11.62493994 | D38: 9.897338573 | E38: 1.349825608e-15 | J38: =User!$AH$8 -> Stillwater | K38: -13.49824715 | M38: 300 | N38: 2013-12-26 | O38: 5.640673753 | P38: 45.38707447 | Q38: 9.258991923 | R38: 54.24260691 | S38: 282.0336876 | T38: 47.51838554 | U38: -5.765529899 | V38: 32.72480687 | W38: 215.1136831 | X38: 300 | Y38: 31.22153581
A39: LOC | B39: =IF($G$13=J32,K32,IF($G$13=J33,K33,IF($G$13=J34,K34,IF($G$13=J35,K35,IF($G$13=J36,K36,IF($G$13=J37,K37,IF($G$13=J38,K38,K39))))))) -> 0 | J39: =User!$AH$9 -> Woodward | K39: nd | M39: 305 | N39: 2013-12-31 | O39: 5.564222289 | P39: 43.4813056 | Q39: 8.948418008 | R39: 51.56694543 | S39: 278.2111144 | T39: 47.51838554 | U39: -5.572137011 | V39: 31.11056835 | W39: 213.2189588 | X39: 305 | Y39: 29.81277581
A40: DAY | B40: -0.3768679932 | C40: 0.05120366547 | D40: -7.360176067 | E40: 1.349307058e-10 | M40: 310 | N40: 2014-01-05 | O40: 5.483827893 | P40: 41.53222118 | Q40: 8.632351114 | R40: 48.85047209 | S40: 274.1913947 | T40: 47.51838554 | U40: -5.375323671 | V40: 29.47170786 | W40: 211.1482894 | X40: 310 | Y40: 28.39276152
A41: YIELD | B41: 10.35063918 | C41: 2.08364634 | D41: 4.967560462 | E41: 3.70616568e-06 | M41: 315 | N41: 2014-01-10 | O41: 5.399585584 | P41: 39.54086504 | Q41: 8.310923615 | R41: 46.09417037 | S41: 269.9792792 | T41: 47.51838554 | U41: -5.175172307 | V41: 27.80881873 | W41: 208.905915 | X41: 315 | Y41: 26.96176414
M42: 320 | N42: 2014-01-15 | O42: 5.311586623 | P42: 37.50823974 | Q42: 7.984262648 | R42: 43.29898491 | S42: 265.5793311 | T42: 47.51838554 | U42: -4.971762088 | V42: 26.12247087 | W42: 206.4959079 | X42: 320 | Y42: 25.52004416
A43: R-squared | B43: 0.748506 | C43: Mean dependent var | E43: 28.46871 | M43: 325 | N43: 2014-01-20 | O43: 5.219918721 | P43: 35.43530885 | Q43: 7.652490405 | R43: 40.46582357 | S43: 260.995936 | T43: 47.51838554 | U43: -4.765169103 | V43: 24.41321198 | W43: 203.922182 | X43: 325 | Y43: 24.06785194
A44: Adjusted R-squared | B44: 0.726772 | C44: S.D. dependent var | E44: 35.64442 | L44: πmax | M44: =ROUND(T4,0) -> 256 | N44: =+$N$4+M44 -> 2013-11-12 | O44: 6.126671253 | P44: 60.10599693 | Q44: 11.73184183 | R44: 75.85518338 | S44: 306.3335626 | T44: 47.51838554 | U44: -7.305361689 | V44: 45.76377072 | W44: =O44*$P$2-(M44-$W$4)*($V$1-$V$2)*$P$2*IF(M44<$W$4,O44,$O$45)-$P$4*$P$1-Q44*$S$1-R44*$S$2 -> 223.4527972 | X44: =+M44 -> 256 | Y44: 43.08551152
A45: S.E. of regression | B45: 18.28217 | C45: Sum squared resid | E45: 27073.24 | L45: Ymax | M45: =W4 -> 225.467366 | N45: =+$N$4+M45 -> 2013-10-12T11:13:00.420 | O45: =+$B$11+$B$12+$B$13*M45+$B$14*M45^0.5+$P$4*$B$15+$P$4^2*$B$16 -> 6.235101312 | P45: 67.80612795 | Q45: 13.12904368 | R45: 88.48427631 | S45: 311.7550656 | T45: 47.51838554 | U45: -8.175392581 | V45: 53.38295885 | W45: 219.0291138 | X45: =+M45 -> 225.467366 | Y45: 50.66509719
A46: F-statistic | B46: 34.43929 | C46: Durbin-Watson stat | E46: 1.077557 | M46: =ROUND((N46-N4),0) -> 360 | N46: =+User!N46 -> 2014-02-24 | O46: 4.482217324 | P46: 19.86988645 | Q46: 5.196308837 | R46: 19.63976283 | S46: =+O46*$P$2 -> 224.1108662 | T46: 47.51838554 | U46: =+Q46*$S$1 -> -3.235716611 | V46: 11.84875658 | W46: 181.621138 | X46: =+M46 -> 360 | Y46: 13.6284195
A47: Prob(F-statistic) | B47: 0
A49: Dependent Variable: NITROGEN | N49: Fertilizer Use Calculations for Inputs page
A50: Method: Panel EGLS (Period random effects)
A51: Date: 07/03/15 Time: 10:23 | N51: =+Inputs!I71 -> Urea, 46-0-0 | Q51: =(P4-IF(User!Z2,User!P5*2000*User!AD5))/(SHYNE!B10/100) -> 108.0012173
A52: Sample: 2009 2014 IF VARIETY=0 AND EXCEPT=0 AND DAY>121 | N52: =IF(User!Z2=TRUE,Inputs!I41,Inputs!I37) -> Poultry Litter | Q52: =IF(User!Z2,P5,Q44/(2*$AD$1/(2*$AD$1+5*$AD$2))/(SHYNE!C11/100)) -> 0.4480243714
A53: Periods included: 5 | N53: =+Inputs!I75 -> Potash Fertilizer, 0-0-60 | Q53: =IF(User!Z2,R44-P5*2000*AD7,R44)/(2*$AD$3/(2*$AD$3+$AD$2))/(SHYNE!D12/100) -> 107.4896451
A54: Cross-sections included: 59
A55: Total panel (unbalanced) observations: 95 | G55: 2009 | H55: -5.338982583 | J55: =User!$AH$2 -> Fayetteville | K55: 0
A56: Wallace and Hussain estimator of component variances | G56: 2010 | H56: 2.628398442 | J56: =User!$AH$3 -> Jonesboro | K56: -35.68712728
A57: White cross-section standard errors & covariance (d.f. corrected) | G57: 2011 | H57: -0.7918750025 | J57: =User!$AH$4 -> Pine_Tree | K57: -32.8334434
A58: WARNING: estimated coefficient covariance matrix is of reduced rank | G58: 2012 | H58: -5.398578407 | J58: =User!$AH$5 -> Winnsboro | K58: 4.085102923
A59: Variable | B59: Coefficient | C59: Std. Error | D59: t-Statistic | E59: Prob. | G59: 2013 | H59: 8.90103755 | J59: =User!$AH$6 -> New_Franklin | K59: 7.549153081
A60: C | B60: =52.7734717527074+IF($G$9=$G$1,$H55,IF($G$9=$G$2,H56,IF($G$9=$G$3,$H$57,IF($G$9=$G$4,$H$58,$H$59)))) -> 47.37489335 | C60: 9.035200142 | D60: 5.840874682 | E60: 9.030323425e-08 | J60: =User!$AH$7 -> Haskell | K60: -16.05844628
A61: LOC | B61: =IF($G$13=J55,K55,IF($G$13=J56,K56,IF($G$13=J57,K57,IF($G$13=J58,K58,IF($G$13=J59,K59,IF($G$13=J60,K60,IF($G$13=J61,K61,K62))))))) -> 0 | J61: =User!$AH$8 -> Stillwater | K61: 32.07740299
A62: DAY | B62: -0.2131804111 | C62: 0.02160528256 | D62: -9.867050361 | E62: 8.474301318e-16 | J62: =User!$AH$9 -> Woodward | K62: nd
A63: YIELD | B63: 10.98562107 | C63: 1.609472219 | D63: 6.825604659 | E63: 1.168109699e-09
A65: R-squared | B65: 0.805687 | C65: Mean dependent var | E65: 26.15742
A66: Adjusted R-squared | B66: 0.787611 | C66: S.D. dependent var | E66: 34.2783
A67: S.E. of regression | B67: 15.65193 | C67: Sum squared resid | E67: 21068.52
A68: F-statistic | B68: 44.57312 | C68: Durbin-Watson stat | E68: 1.720467
A69: Prob(F-statistic) | B69: 0
A71: Dependent Variable: PHOSPHATE
A72: Method: Panel EGLS (Period random effects)
A73: Date: 07/03/15 Time: 10:27
A74: Sample: 2009 2014 IF VARIETY=0 AND EXCEPT=0 AND DAY>121
A75: Periods included: 5
A76: Cross-sections included: 49
A77: Total panel (unbalanced) observations: 89
A78: Wallace and Hussain estimator of component variances | G78: 2009 | H78: 0.1061123104 | J78: =User!$AH$2 -> Fayetteville | K78: 0
A79: White cross-section standard errors & covariance (d.f. corrected) | G79: 2010 | H79: -0.2659558452 | J79: =User!$AH$3 -> Jonesboro | K79: nd
A80: WARNING: estimated coefficient covariance matrix is of reduced rank | G80: 2011 | H80: -0.1628532078 | J80: =User!$AH$4 -> Pine_Tree | K80: -3.78900462
G81: 2012 | H81: -0.6160391005 | J81: =User!$AH$5 -> Winnsboro | K81: -2.982956065
A82: Variable | B82: Coefficient | C82: Std. Error | D82: t-Statistic | E82: Prob. | G82: 2013 | H82: 0.9387358431 | J82: =User!$AH$6 -> New_Franklin | K82: -0.7030677508
J83: =User!$AH$7 -> Haskell | K83: 3.322161298
A84: C | B84: =14.260965212735+IF($G$9=$G$1,$H78,IF($G$9=$G$2,H79,IF($G$9=$G$3,$H$80,IF($G$9=$G$4,$H$81,$H$82)))) -> 13.64492611 | C84: 2.25340927 | D84: 6.328617442 | E84: 1.287898289e-08 | J84: =User!$AH$8 -> Stillwater | K84: 3.390289898
A85: LOC | B85: =IF($G$13=J78,K78,IF($G$13=J79,K79,IF($G$13=J80,K80,IF($G$13=J81,K81,IF($G$13=J82,K82,IF($G$13=J83,K83,IF($G$13=J84,K84,K85))))))) -> 0 | J85: =User!$AH$9 -> Woodward | K85: nd
A86: DAY | B86: -0.0408135682 | C86: 0.002752031809 | D86: -14.83034028 | E86: 8.468453592e-25
A87: YIELD | B87: 1.393120151 | C87: 0.515277124 | D87: 2.703632835 | E87: 0.008355511635
A89: R-squared | B89: 0.555539 | C89: Mean dependent var | E89: 7.981373
A90: Adjusted R-squared | B90: 0.517128 | C90: S.D. dependent var | E90: 5.999264
A91: S.E. of regression | B91: 4.084974 | C91: Sum squared resid | E91: 1351.648
A92: F-statistic | B92: 14.46329 | C92: Durbin-Watson stat | E92: 1.033358
A93: Prob(F-statistic) | B93: 0
A96: Dependent Variable: MOIST
A97: Method: Panel EGLS (Period random effects)
A98: Date: 07/05/15 Time: 09:52
A99: Sample: 2009 2014 IF VARIETY=0 AND EXCEPT=0
A100: Periods included: 6 | G100: 2009 | H100: 0.8800625334 | J100: =User!$AH$2 -> Fayetteville | K100: 0
A101: Cross-sections included: 58 | G101: 2010 | H101: -0.9024560032 | J101: =User!$AH$3 -> Jonesboro | K101: -708.1426823
A102: Total panel (unbalanced) observations: 138 | G102: 2011 | H102: -0.5013436459 | J102: =User!$AH$4 -> Pine_Tree | K102: 0.4931219901
A103: Wallace and Hussain estimator of component variances | G103: 2012 | H103: -0.9077583991 | J103: =User!$AH$5 -> Winnsboro | K103: -115.1989407
A104: White cross-section standard errors & covariance (d.f. corrected) | G104: 2013 | H104: 1.171848393 | J104: =User!$AH$6 -> New_Franklin | K104: 31.56605126
A105: WARNING: estimated coefficient covariance matrix is of reduced rank | B105: Coefficient | C105: Std. Error | D105: t-Statistic | E105: Prob. | G105: 2014 | H105: 0.2596471214 | J105: =User!$AH$7 -> Haskell | K105: -2.383859771
J106: =User!$AH$8 -> Stillwater | K106: 35.76781558
A107: C | B107: =33.2535266048769+IF($G$9=$G$1,$H100,IF($G$9=$G$2,H101,IF($G$9=$G$3,$H$102,IF($G$9=$G$4,$H$103,IF($G$9=G$5,$H$104,$H$105))))) -> 32.34576821 | C107: 15.69425 | D107: 2.118835 | E107: 0.0361 | J107: =User!$AH$9 -> Woodward | K107: nd
A108: LOC | B108: =IF($G$13=J100,K100,IF($G$13=J101,K101,IF($G$13=J102,K102,IF($G$13=J103,K103,IF($G$13=J104,K104,IF($G$13=J105,K105,IF($G$13=J106,K106,K107))))))) -> 0
A109: DAY | B109: =-0.557468415437344+IF($G$13=H112,J112,IF($G$13=H113,J113,IF($G$13=H114,J114,IF($G$13=H115,J115,IF($G$13=H116,J116,IF($G$13=H117,J117,IF($G$13=H118,J118,KW119))))))) -> -0.5574684154 | C109: 0.098841 | D109: -5.640078 | E109: 0 | H109: Day 20 | J109: =(SQRT(4*B109*B110^2*(K87-B107-B108)+B110^4)+2*B109*(K87-B107-B108)+B110^2)/(2*B109^2) -> 403.6857004
A110: DAY^.5 | B110: =9.59072860385977+IF($G$13=H112,K112,IF($G$13=H113,K113,IF($G$13=H114,K114,IF($G$13=H115,K115,IF($G$13=H116,K116,IF($G$13=H117,K117,IF($G$13=H118,K118,K119))))))) -> 9.590728604 | C110: 2.513538 | D110: 3.815629 | E110: 0.0002 | H110: Day 30 | J110: =(SQRT(4*B109*B110^2*(K47-B107-B108)+B110^4)+2*B109*(K47-B107-B108)+B110^2)/(2*B109^2) -> 403.6857004
J111: day | K111: day^.5
A112: R-squared | B112: 0.818976 | C112: Mean dependent var | E112: 33.49244 | H112: =User!$AH$2 -> Fayetteville | J112: 0 | K112: 0
A113: Adjusted R-squared | B113: 0.795039 | C113: S.D. dependent var | E113: 15.62244 | H113: =User!$AH$3 -> Jonesboro | J113: -3.281844353 | K113: 96.90166029
A114: S.E. of regression | B114: 6.752176 | C114: Sum squared resid | E114: 5516.618 | H114: =User!$AH$4 -> Pine_Tree | J114: 0 | K114: 0
A115: F-statistic | B115: 34.2138 | C115: Durbin-Watson stat | E115: 2.08362 | H115: =User!$AH$5 -> Winnsboro | J115: -0.5437128969 | K115: 15.62854315
A116: Prob(F-statistic) | B116: 0 | H116: =User!$AH$6 -> New_Franklin | J116: 0.1613117386 | K116: -4.903749087
H117: =User!$AH$7 -> Haskell | J117: 0 | K117: 0
H118: =User!$AH$8 -> Stillwater | J118: 0.1905716519 | K118: -5.77388657
H119: =User!$AH$9 -> Woodward | J119: nd | K119: nd

Sheet User (hidden)
A1: Dependent Variable: YIELD | G1: 2009 | H1: -0.09016436063 | J1: =User!$AH$2 -> Fayetteville | K1: 0 | O1: n | P1: =SHYNE!I9 -> 0.6206521739 | R1: pL | S1: =IF(AND(Z2,SHYNE!I10/(2*$AD$1/(2*$AD$1+5*$AD$2))>(S3/2000-AD5*U3*P1-AD7*S2)/AD6),(S3/2000-AD5*U3*P1-AD7*S2)/AD6,SHYNE!I10/(2*$AD$1/(2*$AD$1+5*$AD$2))) -> -0.6226952078 | T1: i | U1: =Inputs!P21 -> 0.0775 | V1: =+((1+U1)^(1/365.25)-1) -> 0.0002043837665 | W1: x | X1: =(B87*S1+B41*S2-P2)^2 -> 1991.203421 | AC1: P | AD1: 30.974 | AG1: Year | AH1: Location | AW1: 2013-07-29
A2: Method: Panel EGLS (Period random effects) | G2: 2010 | H2: 0.1665892434 | J2: =User!$AH$3 -> Jonesboro | K2: 12.38806389 | O2: s | P2: =SHYNE!I16 -> 50 | R2: k | S2: =+SHYNE!I11/(2*$AD$3/(2*$AD$3+$AD$2)) -> 0.6033044636 | T2: c | U2: =Inputs!P59 -> 0.1 | V2: =+((1+U2)^(1/180)-1) -> 0.0005296412093 | W2: w | X2: =(B13*(B87*S1+B41*S2-P2)+(V1-V2)*P2*O45+B86*S1+B40*S2)^2 -> 21.99031006 | Z2: TRUE | AA2: Litter is used or not | AC2: O | AD2: 15.999 | AG2: 2009 | AH2: =Implements!AI29 -> Fayetteville | AW2: 2013-07-30
A3: Date: 07/04/15 Time: 14:08 | G3: 2011 | H3: 0.1164218508 | J3: =User!$AH$4 -> Pine_Tree | K3: 0.02469478212 | R3: litter | S3: =+Inputs!P41 -> 22.5 | T3: Neff | U3: =+B17/B15+2*B16*$P$4 -> 0.2351215985 | X3: user | AC3: K | AD3: 39.098 | AG3: 2010 | AH3: =Implements!AI30 -> Jonesboro | AW3: 2013-07-31
A4: Sample: 2009 2014 IF VARIETY=0 AND EXCEPT=0 | G4: 2012 | H4: -0.1294172992 | J4: =User!$AH$5 -> Winnsboro | K4: 7.654333357 | N4: 2013-03-01 | O4: N* | P4: =($P$1-$B$15*$P$2)/(2*$B$16*$P$2) -> 76.56202223 | S4: D* | T4: =IF((B14^2*X1)/(4*X2)>IF(G13=J7,277,360),IF(G13=J7,277,360),(B14^2*X1)/(4*X2)) -> 255.5814815 | V4: DYmax | W4: =IF(B14^2/(4*B13^2)>IF(G13=J7,277,360),IF(G13=J7,277,360),B14^2/(4*B13^2)) -> 225.467366 | AG4: 2011 | AH4: =Implements!AI31 -> Pine_Tree | AW4: 2013-08-01
A5: Periods included: 6 | G5: 2013 | H5: -0.08496371344 | J5: =User!$AH$6 -> New_Franklin | K5: 15.81922954 | O5: L* | P5: =+Q44/AD6/2000 -> 0.4480243714 | Q5: in tons | S5: Profit* | T5: =IFERROR(+W44,"nd") -> 223.4527972 | Z5: Litter spec: | AA5: N | AB5: 3 | AC5: Elemental Spec: | AD5: =+AB5/100 -> 0.03 | AE5: N | AG5: 2012 | AH5: =Implements!AI32 -> Winnsboro | AW5: 2013-08-02
A6: Cross-sections included: 76 | G6: 2014 | H6: 0.02153427909 | J6: =User!$AH$7 -> Haskell | K6: 1.020920121 | AA6: P2O5 | AB6: 3 | AD6: =+AB6/100*(2*$AD$1/(2*$AD$1+5*$AD$2)) -> 0.01309286122 | AE6: P | AG6: 2013 | AH6: =Implements!AI33 -> New_Franklin | AW6: 2013-08-03
A7: Total panel (unbalanced) observations: 198 | G7: Chosen Year | J7: =User!$AH$8 -> Stillwater | K7: 12.55387357 | M7: D | N7: Harvest Date | O7: Y* | P7: NR | Q7: PR | R7: KR | S7: TR | T7: TN | U7: TP | V7: TK | W7: π* | X7: Day | Y7: Moisture | AA7: K2O | AB7: 3 | AD7: =+AB7/100*(2*$AD$3/(2*$AD$3+$AD$2)) -> 0.02490450661 | AE7: K | AG7: 2014 | AH7: =Implements!AI34 -> Haskell | AW7: 2013-08-04
A8: Wallace and Hussain estimator of component variances | J8: =User!$AH$9 -> Woodward | K8: 11.8450463 | M8: 150 | N8: =+$N$4+M8 -> 2013-07-29 | O8: =+$B$11+$B$12+$B$13*M8+$B$14*M8^0.5+$P$4*$B$15+$P$4^2*$B$16 -> 5.377765069 | P8: =IF(+$B$60+$B$61+$B$62*M8+$B$63*O8<0,0,+$B$60+$B$61+$B$62*M8+$B$63*O8) -> 74.47592095 | Q8: =IF(+$B$84+$B$85+$B$86*M8+$B$87*O8<0,0,+$B$84+$B$85+$B$86*M8+$B$87*O8) -> 15.01476377 | R8: =IF(+$B$38+$B$39+M8*$B$40+O8*$B$41<0,0,+$B$38+$B$39+M8*$B$40+O8*$B$41) -> 108.051533 | S8: =+O8*$P$2 -> 268.8882535 | T8: =+$P$4*$P$1 -> 47.51838554 | U8: =+Q8*$S$1 -> -9.349621445 | V8: =+R8*$S$2 -> 65.18797214 | W8: =O8*$P$2-(M8-$W$4)*($V$1-$V$2)*$P$2*IF(M8<$W$4,O8,$O$45)-$P$4*$P$1-Q8*$S$1-R8*$S$2 -> 158.9312994 | X8: 150 | Y8: =+$B$107+$B$108+X8*$B$109+X8^0.5*$B$110 -> 66.1874626 | Z8: =Y8 -> 66.1874626 | AH8: =Implements!AI35 -> Stillwater | AW8: 2013-08-05
A9: White cross-section standard errors & covariance (d.f. corrected) | G9: =SHYNE!I20 -> 2012 | M9: 155 | N9: =+$N$4+M9 -> 2013-08-03 | O9: =+$B$11+$B$12+$B$13*M9+$B$14*M9^0.5+$P$4*$B$15+$P$4^2*$B$16 -> 5.498584438 | P9: =IF(+$B$60+$B$61+$B$62*M9+$B$63*O9<0,0,+$B$60+$B$61+$B$62*M9+$B$63*O9) -> 74.73729471 | Q9: =IF(+$B$84+$B$85+$B$86*M9+$B$87*O9<0,0,+$B$84+$B$85+$B$86*M9+$B$87*O9) -> 14.97901183 | R9: =IF(+$B$38+$B$39+M9*$B$40+O9*$B$41<0,0,+$B$38+$B$39+M9*$B$40+O9*$B$41) -> 107.4177507 | S9: =+O9*$P$2 -> 274.9292219 | T9: =+$P$4*$P$1 -> 47.51838554 | U9: =+Q9*$S$1 -> -9.327358881 | V9: =+R9*$S$2 -> 64.80560846 | W9: 165.6311993 | X9: 155 | Y9: =+$B$107+$B$108+X9*$B$109+X9^0.5*$B$110 -> 65.341772 | Z9: =Y9 -> 65.341772 | AH9: =Implements!AI36 -> Woodward | AW9: 2013-08-06
A10: WARNING: estimated coefficient covariance matrix is of reduced rank | K10: Day | L10: Day^.5 | M10: 160 | N10: 2013-08-08 | O10: 5.608517607 | P10: 74.87907679 | Q10: 14.9280941 | R10: 106.6712893 | S10: 280.4258804 | T10: 47.51838554 | U10: -9.295652656 | V10: 64.35526497 | W10: 171.8765645 | X10: 160 | Y10: 64.46500897 | Z10: 64.46500897 | AW10: 2013-08-07
A11: C | B11: =-20.3998542675285+IF($G$9=$G$1,$H1,IF($G$9=$G$2,H2,IF($G$9=$G$3,$H$3,IF($G$9=$G$4,$H$4,IF($G$9=$G$5,$H$5,$H$6))))) -> -20.52927157 | C11: 2.894014389 | D11: -7.048981632 | E11: 4.058172943e-11 | G11: Chosen Location | J11: =User!$AH$2 -> Fayetteville | K11: 0 | L11: 0 | M11: 165 | N11: 2013-08-13 | O11: 5.708071068 | P11: 74.90683133 | Q11: 14.86271619 | R11: 105.8173913 | S11: 285.4035534 | T11: 47.51838554 | U11: -9.254942145 | V11: 63.84010448 | W11: 177.6868423 | X11: 165 | Y11: 63.55861917 | Z11: 63.55861917 | AW11: 2013-08-08
A12: LOC | B12: =IF($G$13=J1,K1,IF($G$13=J2,K2,IF($G$13=J3,K3,IF($G$13=J4,K4,IF($G$13=J5,K5,IF($G$13=J6,K6,IF($G$13=J7,K7,K8))))))) -> 0 | J12: =User!$AH$3 -> Jonesboro | K12: 0.07735904449 | L12: -2.059511756 | M12: 170 | N12: 2013-08-18 | O12: 5.797713212 | P12: 74.8257039 | Q12: 14.78353062 | R12: 104.8609048 | S12: 289.8856606 | T12: 47.51838554 | U12: -9.205633674 | V12: 63.26305192 | W12: 183.0799793 | X12: 170 | Y12: 62.62393955 | Z12: 62.62393955 | AC12: how much P in one lb of P2O5? | AW12: 2013-08-09
A13: DAY | B13: =-0.111887277790276+IF($G$13=J1,K11,IF($G$13=J2,K12,IF($G$13=J3,K13,IF($G$13=J4,K14,IF($G$13=J5,K15,IF($G$13=J6,K16,IF($G$13=J7,K17,K18))))))) -> -0.1118872778 | C13: 0.01527361349 | D13: -7.32552764 | E13: 8.520500234e-12 | G13: =Inputs!N63 -> Fayetteville | J13: =User!$AH$4 -> Pine_Tree | K13: 0 | L13: 0 | M13: 175 | N13: 2013-08-23 | O13: 5.877878231 | P13: 74.64046437 | Q13: 14.69114229 | R13: 103.806324 | S13: 293.8939116 | T13: 47.51838554 | U13: -9.148103899 | V13: 62.62681863 | W13: 188.0725761 | X13: 175 | Y13: 61.66220939 | Z13: 61.66220939 | AW13: 2013-08-10
A14: DAY^.5 | B14: =3.36010267895776+IF($G$13=J1,L11,IF($G$13=J2,L12,IF($G$13=J3,L13,IF($G$13=J4,L14,IF($G$13=J5,L15,IF($G$13=J6,L16,IF($G$13=J7,L17,L18))))))) -> 3.360102679 | C14: 0.4364624792 | D14: 7.698491484 | E14: 9.912392466e-13 | J14: =User!$AH$5 -> Winnsboro | K14: 0.04347549955 | L14: -1.360980135 | M14: 180 | N14: 2013-08-28 | O14: 5.948969511 | P14: 74.35554417 | Q14: 14.58611314 | R14: 102.6578242 | S14: 297.4484755 | T14: 47.51838554 | U14: -9.082702753 | V14: 61.93392359 | W14: 192.6800229 | X14: 180 | Y14: 60.6745801 | Z14: 60.6745801 | AC14: =0.45*(2*AD1/(2*AD1+5*AD2)) -> 0.1963929183 | AD14: fraction of P in a lb of 0-45-0 | AW14: 2013-08-11
A15: NFERT | B15: 0.02774898531 | C15: 0.004753261655 | D15: 5.837882978 | E15: 2.533292622e-08 | J15: =User!$AH$6 -> New_Franklin | K15: 0.07599709895 | L15: -2.363200432 | M15: 185 | N15: 2013-09-02 | O15: 6.011362607 | P15: 73.97506903 | Q15: 14.46896638 | R15: 101.4192927 | S15: 300.5681303 | T15: 47.51838554 | U15: -9.009756026 | V15: 61.18671198 | W15: 196.9166173 | X15: 185 | Y15: 59.66212361 | Z15: 59.66212361 | AW15: 2013-08-12
A16: NFERT^2 | B16: -0.0001001537145 | C16: 4.720799228e-05 | D16: -2.121541494 | E16: 0.03529212483 | J16: =User!$AH$7 -> Haskell | K16: 0 | L16: 0 | M16: 190 | N16: 2013-09-07 | O16: 6.065407862 | P16: 73.50288767 | Q16: 14.34019007 | R16: 100.0943557 | S16: 303.2703931 | T16: 47.51838554 | U16: -8.929567637 | V16: 60.38737156 | W16: 200.7956689 | X16: 190 | Y16: 58.62583992 | Z16: 58.62583992 | AC16: how much K in one lb of potash fertilizer? | AW16: 2013-08-13
A17: LITTER | B17: 0.006949942606 | C17: 0.00291310559 | D17: 2.385750324 | E17: 0.01811839984 | J17: =User!$AH$8 -> Stillwater | K17: 0.07843742536 | L17: -2.027756022 | M17: 195 | N17: 2013-09-12 | O17: 6.111432715 | P17: 72.94259721 | Q17: 14.20024038 | R17: 98.68640236 | S17: 305.5716358 | T17: 47.51838554 | U17: -8.842421635 | V17: 59.53794704 | W17: 204.3295901 | X17: 195 | Y17: 57.56666361 | Z17: 57.56666361 | AW17: 2013-08-14
A18: YEAR2 | B18: -0.8386584215 | C18: 0.2053686771 | D18: -4.083672513 | E18: 6.750444511e-05 | J18: =User!$AH$9 -> Woodward | K18: 0.06074739787 | L18: -1.921869071 | M18: 200 | N18: 2013-09-17 | O18: 6.149743741 | P18: 72.29756557 | Q18: 14.0495444 | R18: 97.198606 | S18: 307.4871871 | T18: 47.51838554 | U18: -8.748583971 | V18: 58.64035285 | W18: 207.5299778 | X18: 200 | Y18: 56.48546976 | Z18: 56.48546976 | AC18: =0.6*(2*AD3/(2*AD3+AD2)) -> 0.4980901322 | AD18: fraction of K in a lb of 0-0-60 | AW18: 2013-08-15
A19: Variable | B19: Coefficient | C19: Std. Error | D19: t-Statistic | E19: Prob. | M19: 205 | N19: 2013-09-22 | O19: 6.180628468 | P19: 71.57095142 | Q19: 13.8885027 | R19: 95.6339427 | S19: 309.0314234 | T19: 47.51838554 | U19: -8.648304073 | V19: 57.6963845 | W19: 210.4076849 | X19: 205 | Y19: 55.38307906 | Z19: 55.38307906 | AW19: 2013-08-16
A20: R-squared | B20: 0.689768 | C20: Mean dependent var | E20: 2.813482 | M20: 210 | N20: 2013-09-27 | O20: 6.204356994 | P20: 70.76572196 | Q20: 13.71749154 | R20: 93.99520814 | S20: 310.2178497 | T20: 47.51838554 | U20: -8.541816247 | V20: 56.70772863 | W20: 212.9728843 | X20: 210 | Y20: 54.26026243 | Z20: 54.26026243 | AW20: 2013-08-17
A21: Adjusted R-squared | B21: 0.648761 | C21: S.D. dependent var | E21: 2.061932 | M21: 215 | N21: 2013-10-02 | O21: 6.221183431 | P21: 69.88466877 | Q21: 13.53686495 | R21: 92.28503255 | S21: 311.0591716 | T21: 47.51838554 | U21: -8.429340934 | V21: 55.67597206 | W21: 215.2351264 | X21: 215 | Y21: 53.1177452 | Z21: 53.1177452 | AW21: 2013-08-18
A22: S.E. of regression | B22: 1.170965 | C22: Sum squared resid | E22: 238.5815 | M22: 220 | N22: 2013-10-07 | O22: 6.231347198 | P22: 68.930422 | Q22: 13.34695646 | R22: 90.50589407 | S22: 311.5673599 | T22: 47.51838554 | U22: -8.311085825 | V22: 54.60260987 | W22: 217.2033896 | X22: 220 | Y22: 51.95621073 | Z22: 51.95621073 | AW22: 2013-08-19
A23: F-statistic | B23: 16.82047 | C23: Durbin-Watson stat | E23: 1.64843 | M23: 225 | N23: 2013-10-12 | O23: 6.235074185 | P23: 67.90546322 | Q23: 13.14808076 | R23: 88.6601308 | S23: 311.7537093 | T23: 47.51838554 | U23: -8.18724688 | V23: 53.48905266 | W23: 218.8861269 | X23: 225 | Y23: 50.77630379 | Z23: 50.77630379 | AW23: 2013-08-20
A24: Prob(F-statistic) | B24: 0 | M24: 230 | N24: 2013-10-17 | O24: 6.232577799 | P24: 66.81213681 | Q24: 12.94053515 | R24: 86.74995165 | S24: 311.62889 | T24: 47.51838554 | U24: -8.058009226 | V24: 52.33663304 | W24: 220.2914927 | X24: 230 | Y24: 49.5786335 | Z24: 49.5786335 | AW24: 2013-08-21
M25: 235 | N25: 2013-10-22 | O25: 6.22405991 | P25: 65.65266045 | Q25: 12.72460087 | R25: 84.77744608 | S25: 311.2029955 | T25: 47.51838554 | U25: -7.923547981 | V25: 51.14661163 | W25: 221.4281616 | X25: 235 | Y25: 48.36377605 | Z25: 48.36377605 | AW25: 2013-08-22
A26: Dependent Variable: POTASH | M26: 240 | N26: 2013-10-27 | O26: 6.209711703 | P26: 64.42913443 | Q26: 12.50054425 | R26: 82.744593 | S26: 310.4855851 | T26: 47.51838554 | U26: -7.784028999 | V26: 49.92018229 | W26: 222.3046649 | X26: 240 | Y26: 47.13227714 | Z26: 47.13227714 | AW26: 2013-08-23
A27: Method: Panel EGLS (Period random effects) | M27: 245 | N27: 2013-11-01 | O27: 6.189714456 | P27: 63.14355019 | Q27: 12.26861784 | R27: 80.65326875 | S27: 309.4857228 | T27: 47.51838554 | U27: -7.639609536 | V27: 48.65847704 | W27: 222.9290916 | X27: 245 | Y27: 45.88465421 | Z27: 45.88465421 | AW27: 2013-08-24
A28: Date: 07/03/15 Time: 10:41 | M28: 250 | N28: 2013-11-06 | O28: 6.164240244 | P28: 61.7977981 | Q28: 12.02906136 | R28: 78.50525441 | S28: 308.2120122 | T28: 47.51838554 | U28: -7.490438865 | V28: 47.3625704 | W28: 223.3091203 | X28: 250 | Y28: 44.62139839 | Z28: 44.62139839 | AW28: 2013-08-25
A29: Sample: 2009 2014 IF VARIETY=0 AND EXCEPT=0 AND DAY>121 | M29: 255 | N29: 2013-11-11 | O29: 6.133452579 | P29: 60.39367442 | Q29: 11.78210261 | R29: 76.30224243 | S29: 306.6726289 | T29: 47.51838554 | U29: -7.33665883 | V29: 46.03348344 | W29: 223.4520472 | X29: 255 | Y29: 43.3429764 | Z29: 43.3429764 | AW29: 2013-08-26
A30: Periods included: 5 | M30: 260 | N30: 2013-11-16 | O30: 6.097506995 | P30: 58.93288781 | Q30: 11.52795825 | R30: 74.0458427 | S30: 304.8753498 | T30: 47.51838554 | U30: -7.178404356 | V30: 44.67218741 | W30: 223.3648129 | X30: 260 | Y30: 42.04983219 | Z30: 42.04983219 | AW30: 2013-08-27
A31: Cross-sections included: 49 | M31: 265 | N31: 2013-11-21 | O31: 6.056551584 | P31: 57.41706513 | Q31: 11.2668346 | R31: 71.73758805 | S31: 302.8275792 | T31: 47.51838554 | U31: -7.015803911 | V31: 43.27960708 | W31: 223.0540255 | X31: 265 | Y31: 40.74238844 | Z31: 40.74238844 | AW31: 2013-08-28
A32: Total panel (unbalanced) observations: 89 | G32: 2009 | H32: -7.839189973 | J32: =User!$AH$2 -> Fayetteville | K32: 0 | M32: 270 | N32: 2013-11-26 | O32: 6.010727484 | P32: 55.84775687 | Q32: 10.99892828 | R32: 69.37893936 | S32: 300.5363742 | T32: 47.51838554 | U32: -6.848979931 | V32: 41.85662379 | W32: 222.5259831 | X32: 270 | Y32: 39.42104802 | Z32: 39.42104802 | AW32: 2013-08-29
A33: Wallace and Hussain estimator of component variances | G33: 2010 | H33: -1.471367759 | J33: =User!$AH$3 -> Jonesboro | K33: nd | M33: 275 | N33: 2013-12-01 | O33: 5.960169327 | P33: 54.22644206 | Q33: 10.72442685 | R33: 66.97129015 | S33: 298.0084664 | T33: 47.51838554 | U33: -6.678049207 | V33: 40.40407828 | W33: 221.7866933 | X33: 275 | Y33: 38.08619519 | Z33: 38.08619519 | AW33: 2013-08-30
A34: White cross-section standard errors & covariance (d.f. corrected) | G34: 2011 | H34: 0.7203802799 | J34: =User!$AH$4 -> Pine_Tree | K34: -47.1234149 | M34: 280 | N34: 2013-12-06 | O34: 5.905005653 | P34: 52.55453278 | Q34: 10.44350938 | R34: 64.5159709 | S34: 295.2502826 | T34: 47.51838554 | U34: -6.503123246 | V34: 38.92277322 | W34: 220.841892 | X34: 280 | Y34: 36.73819685 | Z34: 36.73819685 | AW34: 2013-08-31
A35: WARNING: estimated coefficient covariance matrix is of reduced rank | G35: 2012 | H35: -6.137540287 | J35: =User!$AH$5 -> Winnsboro | K35: -30.7865988 | M35: 285 | N35: 2013-12-11 | O35: 5.845359288 | P35: 50.83337836 | Q35: 10.15634699 | R35: 62.01425293 | S35: 292.2679644 | T35: 47.51838554 | U35: -6.324308599 | V35: 37.4134756 | W35: =O35*$P$2-(M35-$W$4)*($V$1-$V$2)*$P$2*IF(M35<$W$4,O35,$O$45)-$P$4*$P$1-Q35*$S$1-R35*$S$2 -> 219.69706 | X35: 285 | Y35: 35.37740358 | Z35: 35.37740358 | AW35: 2013-09-01
A36: Variable | B36: Coefficient | C36: Std. Error | D36: t-Statistic | E36: Prob. | G36: 2013 | H36: 14.72771774 | J36: =User!$AH$6 -> New_Franklin | K36: 0.1510305822 | M36: 290 | N36: 2013-12-16 | O36: 5.781347694 | P36: 49.06426919 | Q36: 9.863103307 | R36: 59.46735205 | S36: 289.0673847 | T36: 47.51838554 | U36: -6.141707163 | V36: 35.87691893 | W36: 218.3574388 | X36: 290 | Y36: 34.00415065 | Z36: 34.00415065 | AW36: 2013-09-02
J37: =User!$AH$7 -> Haskell | K37: -28.61789777 | M37: 295 | N37: 2013-12-21 | O37: 5.71308329 | P37: 47.24844026 | Q37: 9.56393495 | R37: 56.87643187 | S37: 285.6541645 | T37: 47.51838554 | U37: -5.955416461 | V37: 34.31380522 | W37: 216.8280449 | X37: 295 | Y37: 32.61875895 | Z37: 32.61875895 | AW37: 2013-09-03
A38: C | B38: =115.055966434332+IF($G$9=$G$1,$H32,IF($G$9=$G$2,H33,IF($G$9=$G$3,$H$34,IF($G$9=$G$4,$H$35,$H$36)))) -> 108.9184261 | C38: 11.62493994 | D38: 9.897338573 | E38: 1.349825608e-15 | J38: =User!$AH$8 -> Stillwater | K38: -13.49824715 | M38: 300 | N38: 2013-12-26 | O38: 5.640673753 | P38: 45.38707447 | Q38: 9.258991923 | R38: 54.24260691 | S38: 282.0336876 | T38: 47.51838554 | U38: -5.765529899 | V38: 32.72480687 | W38: 215.1136831 | X38: 300 | Y38: 31.22153581 | Z38: 31.22153581 | AW38: 2013-09-04
A39: LOC | B39: =IF($G$13=J32,K32,IF($G$13=J33,K33,IF($G$13=J34,K34,IF($G$13=J35,K35,IF($G$13=J36,K36,IF($G$13=J37,K37,IF($G$13=J38,K38,K39))))))) -> 0 | J39: =User!$AH$9 -> Woodward | K39: nd | M39: 305 | N39: 2013-12-31 | O39: 5.564222289 | P39: 43.4813056 | Q39: 8.948418008 | R39: 51.56694543 | S39: 278.2111144 | T39: 47.51838554 | U39: -5.572137011 | V39: 31.11056835 | W39: 213.2189588 | X39: 305 | Y39: 29.81277581 | Z39: 29.81277581 | AW39: 2013-09-05
A40: DAY | B40: -0.3768679932 | C40: 0.05120366547 | D40: -7.360176067 | E40: 1.349307058e-10 | M40: 310 | N40: 2014-01-05 | O40: 5.483827893 | P40: 41.53222118 | Q40: 8.632351114 | R40: 48.85047209 | S40: 274.1913947 | T40: 47.51838554 | U40: -5.375323671 | V40: 29.47170786 | W40: 211.1482894 | X40: 310 | Y40: 28.39276152 | Z40: 28.39276152 | AW40: 2013-09-06
A41: YIELD | B41: 10.35063918 | C41: 2.08364634 | D41: 4.967560462 | E41: 3.70616568e-06 | M41: 315 | N41: 2014-01-10 | O41: 5.399585584 | P41: 39.54086504 | Q41: 8.310923615 | R41: 46.09417037 | S41: 269.9792792 | T41: 47.51838554 | U41: -5.175172307 | V41: 27.80881873 | W41: 208.905915 | X41: 315 | Y41: 26.96176414 | Z41: 26.96176414 | AW41: 2013-09-07
M42: 320 | N42: 2014-01-15 | O42: 5.311586623 | P42: 37.50823974 | Q42: 7.984262648 | R42: 43.29898491 | S42: 265.5793311 | T42: 47.51838554 | U42: -4.971762088 | V42: 26.12247087 | W42: 206.4959079 | X42: 320 | Y42: 25.52004416 | Z42: 25.52004416 | AW42: 2013-09-08
A43: R-squared | B43: 0.748506 | C43: Mean dependent var | E43: 28.46871 | M43: 325 | N43: 2014-01-20 | O43: 5.219918721 | P43: 35.43530885 | Q43: 7.652490405 | R43: 40.46582357 | S43: 260.995936 | T43: 47.51838554 | U43: -4.765169103 | V43: 24.41321198 | W43: 203.922182 | X43: 325 | Y43: =+$B$107+$B$108+X43*$B$109+X43^0.5*$B$110 -> 24.06785194 | Z43: 24.06785194 | AA43: N* adj. for litter | AB43: K* adj. for litter | AC43: P* or L* adj. for litter | AW43: 2013-09-09
A44: Adjusted R-squared | B44: 0.726772 | C44: S.D. dependent var | E44: 35.64442 | L44: πmax | M44: =ROUND(T4,0) -> 256 | N44: =+$N$4+M44 -> 2013-11-12 | O44: 6.126671253 | P44: 60.10599693 | Q44: 11.73184183 | R44: 75.85518338 | S44: 306.3335626 | T44: 47.51838554 | U44: -7.305361689 | V44: 45.76377072 | W44: =O44*$P$2-(M44-$W$4)*($V$1-$V$2)*$P$2*IF(M44<$W$4,O44,$O$45)-$P$4*$P$1-Q44*$S$1-R44*$S$2 -> 223.4527972 | X44: =+M44 -> 256 | Y44: 43.08551152 | Z44: 43.08551152 | AA44: =IF($Z$2,P4-P5*2000*AD5,P4)/(SHYNE!B10/100) -> 108.0012173 | AB44: =IF($Z$2,R44-P5*2000*AD7,R44)/(2*$AD$3/(2*$AD$3+$AD$2))/(SHYNE!D12/100) -> 107.4896451 | AC44: =IF($Z$2,Q44/AD6/2000,Q44/(2*$AD$1/(2*$AD$1+5*$AD$2))/(SHYNE!C11/100)) -> 0.4480243714 | AW44: 2013-09-10
A45: S.E. of regression | B45: 18.28217 | C45: Sum squared resid | E45: 27073.24 | L45: Ymax | M45: =W4 -> 225.467366 | N45: =+$N$4+M45 -> 2013-10-12T11:13:00.420 | O45: 6.235101312 | P45: 67.80612795 | Q45: 13.12904368 | R45: 88.48427631 | S45: 311.7550656 | T45: 47.51838554 | U45: -8.175392581 | V45: 53.38295885 | W45: 219.0291138 | X45: =+M45 -> 225.467366 | Y45: 50.66509719 | Z45: 50.66509719 | AW45: 2013-09-11
A46: F-statistic | B46: 34.43929 | C46: Durbin-Watson stat | E46: 1.077557 | M46: =ROUND((N46-N4),0) -> 360 | N46: =+Inputs!R61 -> 2014-02-24 | O46: 4.482217324 | P46: 19.86988645 | Q46: 5.196308837 | R46: 19.63976283 | S46: =+O46*$P$2 -> 224.1108662 | T46: 47.51838554 | U46: =+Q46*$S$1 -> -3.235716611 | V46: 11.84875658 | W46: 181.621138 | X46: =+M46 -> 360 | Y46: 13.6284195 | Z46: 13.6284195 | AA46: =IF($Z$2,P4-Q46/AD6/2000*2000*AD5,P4)/(SHYNE!B10/100) -> 140.5556304 | AB46: =IF($Z$2,R46-Q46/AD7/2000,R46)/(2*$AD$3/(2*$AD$3+$AD$2))/(SHYNE!D12/100) -> 39.22068899 | AC46: =IF($Z$2,Q46/AD6/2000,Q46/(2*$AD$1/(2*$AD$1+5*$AD$2))/(SHYNE!C11/100)) -> 0.1984405376 | AW46: 2013-09-12
A47: Prob(F-statistic) | B47: 0 | J47: Moist Target | K47: 30 | L47: πmoist | M47: =+ROUNDUP(J110,0) -> 305 | N47: =+N4+M47 -> 2013-12-31 | O47: 5.564222289 | P47: 43.4813056 | Q47: 8.948418008 | R47: 51.56694543 | S47: =+O47*$P$2 -> 278.2111144 | T47: 47.51838554 | U47: =+Q47*$S$1 -> -5.572137011 | V47: 31.11056835 | W47: 213.2189588 | AW47: 2013-09-13
N48: Alt Harvest Date Conditions -- uses the alternativesprice() macro to calculate sa for different harvest dates below. This is done automatically when the user switches to the SHYNE page or by pushing the OK button | AW48: 2013-09-14
A49: Dependent Variable: NITROGEN | N49: Da | O49: =+$M$44-60 -> 196 | Q49: Profit a | R49: =O52*O51-(O49-$W$4)*($V$1-$V$2)*O51*IF(O49<$W$4,O52,$O$45)-O50*$P$1-O54*$S$1-O55*$S$2 -> 223.4494563 | U49: Da' | V49: =+O49 -> 196 | Z49: Dmax | AA49: Ymax | AB49: D* | AC49: Y* | AD49: π* | AE49: HC | AF49: MC* | AG49: D30 | AH49: Y30 | AI49: π30 | AJ49: HC30 | AK49: AD | AL49: D20 | AM49: Y20 | AN49: π20 | AO49: HC20 | AW49: 2013-09-15
A50: Method: Panel EGLS (Period random effects) | N50: Na | O50: =($P$1-$B$15*O51)/(2*$B$16*O51) -> 80.15272102 | U50: Na' | V50: =+$P$4 -> 76.56202223 | Z50: =+N45 -> 2013-10-12T11:13:00.420 | AA50: =+O45 -> 6.235101312 | AB50: =+N44 -> 2013-11-12 | AC50: =+O44 -> 6.126671253 | AD50: =+W44-AE50 -> 124.4527972 | AE50: 99 | AF50: =+Y44 -> 43.08551152 | AG50: =+N47 -> 2013-12-31 | AH50: =+O47 -> 5.564222289 | AI50: =+W47-AJ50-AK50 -> 153.650193 | AJ50: =+Switchgrass!L103 -> 49.83137681 | AK50: =+O47/0.7*0.1*490/2000*P2 -> 9.737389006 | AL50: =+N87 -> 2014-02-03 | AM50: =+O87 -> 4.944435722 | AN50: =+W87-AO50 -> 161.1665881 | AO50: =+Switchgrass!L90 -> 34.70967623 | AW50: 2013-09-16
A51: Date: 07/03/15 Time: 10:23 | N51: sa | O51: 53.07532048 | Q51: Profit al | R51: =V52*V51-(V49-$W$4)*($V$1-$V$2)*V51*IF(V49<$W$4,V52,$O$45)-V50*$P$1-V54*$S$1-V55*$S$2 -> 223.45 | U51: sa' | V51: 53.04468898 | AW51: 2013-09-17
A52: Sample: 2009 2014 IF VARIETY=0 AND EXCEPT=0 AND DAY>121 | N52: Ya | O52: =+$B$11+$B$12+$B$13*O49+$B$14*O49^0.5+O50*$B$15+O50^2*$B$16 -> 6.162982769 | U52: Ya' | V52: =+$B$11+$B$12+$B$13*V49+$B$14*V49^0.5+V50*$B$15+V50^2*$B$16 -> 6.119702562 | X52: Table 9 | AW52: 2013-09-18
A53: Periods included: 5 | N53: Nra | O53: =+$B$60+$B$61+$B$62*O49+$B$63*O52 -> 73.29572615 | U53: Nra' | V53: =+$B$60+$B$61+$B$62*V49+$B$63*V52 -> 72.8202662 | AW53: 2013-09-19
A54: Cross-sections included: 59 | N54: Pra | O54: =+$B$84+$B$85+$B$86*O49+$B$87*O52 -> 14.23124223 | Q54: <-- changes N | U54: Pra' | V54: =+$B$84+$B$85+$B$86*V49+$B$87*V52 -> 14.1709477 | Z54: Dmax | AA54: Ymax | AB54: D* | AC54: Y* | AD54: π* | AE54: HC | AF54: MC* | AG54: D30 | AH54: Y30 | AI54: π30 | AJ54: HC30 | AK54: AD | AL54: D20 | AM54: Y20 | AN54: π20 | AO54: HC20 | AW54: 2013-09-20
A55: Total panel (unbalanced) observations: 95 | G55: 2009 | H55: -5.338982583 | J55: =User!$AH$2 -> Fayetteville | K55: 0 | N55: Kra | O55: =+$B$38+$B$39+O49*$B$40+O52*$B$41 -> 98.84311037 | R55: no change in N --> | U55: Kra' | V55: =+$B$38+$B$39+V49*$B$40+V52*$B$41 -> 98.39513257 | X55: FAY (AR) | Y55: ˈ09 | Z55: 2013-10-12T11:13:00.420 | AA55: 6.274354251 | AB55: 2013-11-25 | AC55: 6.059528185 | AD55: 170.3503977 | AE55: 29.48432976 | AF55: 42.69036842 | AG55: 2014-01-02 | AH55: 5.571785214 | AI55: 156.4410934 | AJ55: 28.34530526 | AK55: 9.750624124 | AL55: 2014-01-28 | AM55: 5.105080959 | AN55: 159.4153094 | AO55: 25.97104385 | AW55: 2013-09-21
A56: Wallace and Hussain estimator of component variances | G56: 2010 | H56: 2.628398442 | J56: =User!$AH$3 -> Jonesboro | K56: -35.68712728 | N56: Neff | O56: =+$B$17/$B$15+O50*2*$B$16 -> 0.2344023548 | U56: Neff' | V56: =+$B$17/$B$15+V50*2*$B$16 -> 0.2351215985 | Y56: ˈ10 | Z56: 2013-10-12T11:13:00.420 | AA56: 6.531107855 | AB56: 2013-11-26 | AC56: 6.306734027 | AD56: 177.0133717 | AE56: 30.41985783 | AF56: 40.23281527 | AG56: 2013-12-27 | AH56: 5.92171013 | AI56: 163.2872467 | AJ56: 30.12547592 | AK56: 10.36299273 | AL56: 2014-01-23 | AM56: 5.459198654 | AN56: 167.5333953 | AO56: 27.77254441 | AW56: 2013-09-22
A57: White cross-section standard errors & covariance (d.f. corrected) | G57: 2011 | H57: -0.7918750025 | J57: =User!$AH$4 -> Pine_Tree | K57: -32.8334434 | N57: Moist | O57: =+$B$107+$B$108+O49*$B$109+O49^0.5*$B$110 -> 57.35215923 | U57: Moist | V57: =+$B$107+$B$108+V49*$B$109+V49^0.5*$B$110 -> 57.35215923 | Y57: ˈ11 | Z57: 2013-10-12T11:13:00.420 | AA57: 6.480940462 | AB57: 2013-11-26 | AC57: 6.256566634 | AD57: 173.5972876 | AE57: 30.22971193 | AF57: 41.05697434 | AG57: 2013-12-29 | AH57: 5.841120628 | AI57: 159.7371964 | AJ57: 29.71549349 | AK57: 10.2219611 | AL57: 2014-01-25 | AM57: 5.370505377 | AN57: 163.5247762 | AO57: 27.32133571 | AW57: 2013-09-23
A58: WARNING: estimated coefficient covariance matrix is of reduced rank | G58: 2012 | H58: -5.398578407 | J58: =User!$AH$5 -> Winnsboro | K58: 4.085102923 | N58: Da | O58: =+$M$44-30 -> 226 | Q58: Profit a | R58: =O61*O60-(O58-$W$4)*($V$1-$V$2)*O60*IF(O58<$W$4,O61,$O$45)-O59*$P$1-O63*$S$1-O64*$S$2 -> 223.4497291 | U58: Da' | V58: =+O58 -> 226 | Y58: ˈ12 | Z58: 2013-10-12T11:13:00.420 | AA58: 6.235101312 | AB58: 2013-11-25 | AC58: 6.020275247 | AD58: 168.9548771 | AE58: 29.33610713 | AF58: 40.77475896 | AG58: 2013-12-28 | AH58: 5.610572563 | AI58: 155.8842217 | AJ58: 28.54262788 | AK58: 9.818501985 | AL58: 2014-01-23 | AM58: 5.163192112 | AN58: 159.6143717 | AO58: 26.26667233 | AW58: 2013-09-24
A59: Variable | B59: Coefficient | C59: Std. Error | D59: t-Statistic | E59: Prob. | G59: 2013 | H59: 8.90103755 | J59: =User!$AH$6 -> New_Franklin | K59: 7.549153081 | N59: Na | O59: =($P$1-$B$15*O60)/(2*$B$16*O60) -> 77.40751713 | U59: Na' | V59: =+$P$4 -> 76.56202223 | X59: PT (AR) | Y59: ˈ10 | Z59: 2013-10-12T11:13:00.420 | AA59: 6.555802637 | AB59: 2013-11-26 | AC59: 6.331428809 | AD59: 212.3839777 | AE59: 30.51351238 | AF59: 39.06561314 | AG59: 2013-12-24 | AH59: 5.990829606 | AI59: 198.9418131 | AJ59: 30.47710696 | AK59: 10.48395181 | AL59: 2014-01-20 | AM59: 5.540620046 | AN59: 203.7683606 | AO59: 28.18675891 | AW59: 2013-09-25
A60: C | B60: =52.7734717527074+IF($G$9=$G$1,$H55,IF($G$9=$G$2,H56,IF($G$9=$G$3,$H$57,IF($G$9=$G$4,$H$58,$H$59)))) -> 47.37489335 | C60: 9.035200142 | D60: 5.840874682 | E60: 9.030323425e-08 | J60: =User!$AH$7 -> Haskell | K60: -16.05844628 | N60: sa | O60: 50.69161742 | Q60: Profit al | R60: =V61*V60-(V58-$W$4)*($V$1-$V$2)*V60*IF(V58<$W$4,V61,$O$45)-V59*$P$1-V63*$S$1-V64*$S$2 -> 223.45 | U60: sa' | V60: 50.68325515 | Y60: ˈ12 | Z60: 2013-10-12T11:13:00.420 | AA60: 6.259796094 | AB60: 2013-11-25 | AC60: 6.044970029 | AD60: 204.3254966 | AE60: 29.4293466 | AF60: 39.60755684 | AG60: 2013-12-25 | AH60: 5.680177037 | AI60: 191.5704684 | AJ60: 28.89672625 | AK60: 9.940309814 | AL60: 2014-01-20 | AM60: 5.244613503 | AN60: 192.0014329 | AO60: 26.68088682 | AW60: 2013-09-26
A61: LOC | B61: =IF($G$13=J55,K55,IF($G$13=J56,K56,IF($G$13=J57,K57,IF($G$13=J58,K58,IF($G$13=J59,K59,IF($G$13=J60,K60,IF($G$13=J61,K61,K62))))))) -> 0 | J61: =User!$AH$8 -> Stillwater | K61: 32.07740299 | N61: Ya | O61: =+$B$11+$B$12+$B$13*O58+$B$14*O58^0.5+O59*$B$15+O59^2*$B$16 -> 6.245489726 | U61: Ya' | V61: =+$B$11+$B$12+$B$13*V58+$B$14*V58^0.5+V59*$B$15+V59^2*$B$16 -> 6.235066158 | Y61: ˈ13 | Z61: 2013-10-12T11:13:00.420 | AA61: 6.30424968 | AB61: 2013-11-25 | AC61: 6.089423615 | AD61: 190.9899876 | AE61: 29.5972767 | AF61: 41.68276682 | AG61: 2013-12-30 | AH61: 5.648979493 | AI61: 177.4664538 | AJ61: 28.73801519 | AK61: 9.885714113 | AL61: 2014-01-26 | AM61: 5.174341142 | AN61: 180.6934974 | AO61: 26.32339072 | AW61: 2013-09-27
A62: DAY | B62: -0.2131804111 | C62: 0.02160528256 | D62: -9.867050361 | E62: 8.474301318e-16 | J62: =User!$AH$9 -> Woodward | K62: nd | N62: Nra | O62: =+$B$60+$B$61+$B$62*O58+$B$63*O61 -> 67.806704 | U62: Nra' | V62: =+$B$60+$B$61+$B$62*V58+$B$63*V61 -> 67.69219462 | Y62: ˈ14 | Z62: 2013-10-12T11:13:00.420 | AA62: 6.410747673 | AB62: 2013-11-25 | AC62: 6.195921607 | AD62: 195.0879046 | AE62: 30.00005383 | AF62: 40.85746572 | AG62: 2013-12-28 | AH62: 5.786218923 | AI62: 181.5745152 | AJ62: 29.43619242 | AK62: 10.12588312 | AL62: 2014-01-24 | AM62: 5.319645913 | AN62: 185.3825981 | AO62: 27.0625987 | AW62: 2013-09-28
A63: YIELD | B63: 10.98562107 | C63: 1.609472219 | D63: 6.825604659 | E63: 1.168109699e-09 | N63: Pra | O63: =+$B$84+$B$85+$B$86*O58+$B$87*O61 -> 13.12177729 | Q63: <-- changes N | U63: Pra' | V63: =+$B$84+$B$85+$B$86*V58+$B$87*V61 -> 13.10725601 | X63: HA (OK) | Y63: ˈ10 | Z63: 2013-10-12T11:13:00.420 | AA63: 7.552027976 | AB63: 2013-11-28 | AC63: 7.307991642 | AD63: 228.3711085 | AE63: 34.24897085 | AF63: 35.61840334 | AG63: 2013-12-16 | AH63: 7.098274358 | AI63: 212.8375324 | AJ63: 36.11100316 | AK63: 12.42198013 | AL63: 2014-01-12 | AM63: 6.681758473 | AN63: 221.2682077 | AO63: 33.99206471 | AW63: 2013-09-29
N64: Kra | O64: =+$B$38+$B$39+O58*$B$40+O61*$B$41 -> 88.39107032 | R64: no change in N --> | U64: Kra' | V64: =+$B$38+$B$39+V58*$B$40+V61*$B$41 -> 88.28317972 | Y64: ˈ11 | Z64: 2013-10-12T11:13:00.420 | AA64: 7.501860584 | AB64: 2013-11-28 | AC64: 7.257824249 | AD64: 224.9567686 | AE64: 34.05544904 | AF64: 36.44256242 | AG64: 2013-12-18 | AH64: 7.021305408 | AI64: 209.4553524 | AJ64: 35.71943954 | AK64: 12.28728446 | AL64: 2014-01-15 | AM64: 6.578345894 | AN64: 217.1789162 | AO64: 33.4659746 | AW64: 2013-09-30
A65: R-squared | B65: 0.805687 | C65: Mean dependent var | E65: 26.15742 | N65: Neff | O65: =+$B$17/$B$15+O59*2*$B$16 -> 0.2349522396 | U65: Neff' | V65: =+$B$17/$B$15+V59*2*$B$16 -> 0.2351215985 | X65: SW | Y65: ˈ11 | Z65: 2014-02-24 | AA65: 6.716942831 | AB65: 2013-12-03 | AC65: 6.716942831 | AD65: 191.1094831 | AE65: 31.9804939 | AF65: 30.41450687 | AG65: 2013-12-05 | AH65: 6.729952097 | AI65: 178.4181529 | AJ65: 34.23723982 | AK65: 11.77741617 | AL65: 2014-01-13 | AM65: 6.929975519 | AN65: 213.1335991 | AO65: 35.25481761 | AW65: 2013-10-01
A66: Adjusted R-squared | B66: 0.787611 | C66: S.D. dependent var | E66: 34.2783 | M66: 0 | N66: Moist | O66: =+$B$107+$B$108+O58*$B$109+O58^0.5*$B$110 -> 50.5381719 | U66: Moist | V66: =+$B$107+$B$108+V58*$B$109+V58^0.5*$B$110 -> 50.5381719 | X66: (OK) | Y66: ˈ12 | Z66: 2014-02-24 | AA66: 6.471103681 | AB66: 2013-12-03 | AC66: 6.471103681 | AD66: 186.6846328 | AE66: 31.04392929 | AF66: 30.00809212 | AG66: 2013-12-04 | AH66: 6.477644244 | AI66: 174.1079198 | AJ66: 32.95367578 | AK66: 11.33587743 | AL66: 2014-01-12 | AM66: 6.680199661 | AN66: 208.3182339 | AO66: 33.98413458 | AW66: 2013-10-02
A67: S.E. of regression | B67: 15.65193 | C67: Sum squared resid | E67: 21068.52 | N67: Da | O67: =+$M$44+30 -> 286 | Q67: Profit a | R67: =O70*O69-(O67-$W$4)*($V$1-$V$2)*O69*IF(O67<$W$4,O70,$O$45)-O68*$P$1-O72*$S$1-O73*$S$2 -> 223.4497388 | U67: Da' | V67: =+O67 -> 286 | Y67: ˈ13 | Z67: 2014-02-24 | AA67: 6.515557266 | AB67: 2013-12-03 | AC67: 6.515557266 | AD67: 173.316515 | AE67: 31.2129965 | AF67: 32.08769891 | AG67: 2013-12-12 | AH67: 6.571867348 | AI67: 165.5162647 | AJ67: 33.43301634 | AK67: 11.50076786 | AL67: 2014-01-20 | AM67: 6.754517556 | AN67: 199.1938091 | AO67: 34.36221151 | AW67: 2013-10-03
A68: F-statistic | B68: 44.57312 | C68: Durbin-Watson stat | E68: 1.720467 | N68: Na | O68: =($P$1-$B$15*O69)/(2*$B$16*O69) -> 77.39492964 | U68: Na' | V68: =+$P$4 -> 76.56202223 | X68: WB | Y68: ˈ12 | Z68: 2013-09-30T11:31:07.296 | AA68: 3.267047555 | AB68: 2013-12-03 | AC68: 2.984472458 | AD68: 78.63480539 | AE68: 18.09547433 | AF68: 31.75420733 | AG68: 2013-12-09 | AH68: 2.9324182 | AI68: 76.58762008 | AJ68: 14.91807129 | AK68: 5.13173185 | AL68: 2014-01-05 | AM68: 2.653038116 | AN68: 74.06816167 | AO68: 13.49678287 | AW68: 2013-10-04
A69: Prob(F-statistic) | B69: 0 | N69: sa | O69: 50.68118053 | Q69: Profit al | R69: =V70*V69-(V67-$W$4)*($V$1-$V$2)*V69*IF(V67<$W$4,V70,$O$45)-V68*$P$1-V72*$S$1-V73*$S$2 -> 223.45 | U69: sa' | V69: 50.67254384 | X69: (LA) | Y69: ˈ13 | Z69: 2013-09-30T11:31:07.296 | AA69: 3.311501141 | AB69: 2013-12-03 | AC69: 3.028926043 | AD69: 65.32379807 | AE69: 18.25335251 | AF69: 33.82941731 | AG69: 2013-12-15 | AH69: 2.921037777 | AI69: 63.27106149 | AJ69: 14.86017574 | AK69: 5.111816109 | AL69: 2014-01-11 | AM69: 2.626016186 | AN69: 66.95992738 | AO69: 13.35931439 | AW69: 2013-10-05
N70: Ya | O70: =+$B$11+$B$12+$B$13*O67+$B$14*O67^0.5+O68*$B$15+O68^2*$B$16 -> 5.843171955 | U70: Ya' | V70: =+$B$11+$B$12+$B$13*V67+$B$14*V67^0.5+V68*$B$15+V68^2*$B$16 -> 5.832902519 | X70: NF | Y70: ˈ11 | Z70: 2013-09-09T21:11:29.725 | AA70: 3.995844948 | AB70: 2014-01-28 | AC70: 3.313569548 | AD70: 86.06559304 | AE70: 19.29280055 | AF70: 16.59101992 | AG70: 2013-12-18 | AH70: 3.628381041 | AI70: 78.99945709 | AJ70: 18.45863834 | AK70: 6.349666822 | AL70: 2014-01-18 | AM70: 3.39723975 | AN70: 87.98360692 | AO70: 17.28275482 | AW70: 2013-10-06
A71: Dependent Variable: PHOSPHATE | N71: Nra | O71: =+$B$60+$B$61+$B$62*O67+$B$63*O70 -> 50.59616874 | U71: Nra' | V71: =+$B$60+$B$61+$B$62*V67+$B$63*V70 -> 50.48335261 | X71: (MO) | Y71: ˈ12 | Z71: 2013-09-09T21:11:29.725 | AA71: 3.750005797 | AB71: 2014-01-26 | AC71: 3.084798575 | AD71: 80.9830805 | AE71: 18.45717732 | AF71: 16.68321837 | AG71: 2013-12-16 | AH71: 3.395882718 | AI71: 74.68001851 | AJ71: 17.2758512 | AK71: 5.942794756 | AL71: 2014-01-17 | AM71: 3.159534716 | AN71: 83.29636986 | AO71: 16.07347961 | AW71: 2013-10-07
A72: Method: Panel EGLS (Period random effects) | N72: Pra | O72: =+$B$84+$B$85+$B$86*O67+$B$87*O70 -> 10.1124862 | Q72: <-- changes N | U72: Pra' | V72: =+$B$84+$B$85+$B$86*V67+$B$87*V70 -> 10.09817965 | Y72: ˈ13 | Z72: 2013-09-09T21:11:29.725 | AA72: 3.794459383 | AB72: 2014-01-26 | AC72: 3.12925216 | AD72: 67.7216408 | AE72: 18.61941721 | AF72: 18.75842835 | AG72: 2013-12-23 | AH72: 3.392773749 | AI72: 62.07128681 | AJ72: 17.26003496 | AK72: 5.937354061 | AL72: 2014-01-23 | AM72: 3.154543558 | AN72: 70.2830947 | AO72: 16.04808812 | AW72: 2013-10-08
A73: Date: 07/03/15 Time: 10:27 | N73: Kra | O73: =+$B$38+$B$39+O67*$B$40+O70*$B$41 -> 61.61474465 | R73: no change in N --> | U73: Kra' | V73: =+$B$38+$B$39+V67*$B$40+V70*$B$41 -> 61.50844942 | AW73: 2013-10-09
A74: Sample: 2009 2014 IF VARIETY=0 AND EXCEPT=0 AND DAY>121 | N74: Neff | O74: =+$B$17/$B$15+O68*2*$B$16 -> 0.2349547609 | U74: Neff' | V74: =+$B$17/$B$15+V68*2*$B$16 -> 0.2351215985 | X74: Table 10 | Z74: =+SHYNE!N19*100 -> 0.4905273553 | AA74: =+SHYNE!N20*100 -> 0.09574401295 | AB74: =+SHYNE!N21*100 -> 0.6190570723 | AC74: =+P47/($O47*20) -> 0.3907222191 | AD74: =+Q47/($O47*20) -> 0.080410321 | AE74: =+R47/($O47*20) -> 0.4633796311 | AF74: =+P87/($O87*20) -> 0.2975509533 | AG74: =+Q87/($O87*20) -> 0.06772582262 | AH74: =+R87/($O87*20) -> 0.3270165532 | AW74: 2013-10-10
A75: Periods included: 5 | N75: Moist | O75: =+$B$107+$B$108+O67*$B$109+O67^0.5*$B$110 -> 35.1037393 | U75: Moist | V75: =+$B$107+$B$108+V67*$B$109+V67^0.5*$B$110 -> 35.1037393 | Z75: N* | AA75: P* | AB75: K* | AC75: N30 | AD75: P30 | AE75: K30 | AF75: N20 | AG75: P20 | AH75: K20 | AW75: 2013-10-11
A76: Cross-sections included: 49 | N76: Da | O76: =+$M$44+60 -> 316 | Q76: Profit a | R76: =O79*O78-(O76-$W$4)*($V$1-$V$2)*O78*IF(O76<$W$4,O79,$O$45)-O77*$P$1-O81*$S$1-O82*$S$2 -> 223.4494474 | U76: Da' | V76: =+O76 -> 316 | X76: FAY (AR) | Y76: ˈ09 | Z76: 0.4675004174 | AA76: 0.09761385819 | AB76: 0.56571464 | AC76: 0.3876461706 | AD76: 0.08614365035 | AE76: 0.4414190334 | AF76: 0.3185835593 | AG76: 0.07725783914 | AH76: 0.3384920433 | AW76: 2013-10-12
A77: Total panel (unbalanced) observations: 89 | N77: Na | O77: =($P$1-$B$15*O78)/(2*$B$16*O78) -> 79.76469037 | U77: Na' | V77: =+$P$4 -> 76.56202223 | Y77: ˈ10 | Z77: 0.5321815471 | AA77: 0.0932446506 | AB77: 0.6113225045 | AC77: 0.4752700556 | AD77: 0.08409546257 | AE77: 0.5187759637 | AF77: 0.4162825537 | AG77: 0.07522604665 | AH77: 0.425686033 | AW77: 2013-10-13
A78: Wallace and Hussain estimator of component variances | G78: 2009 | H78: 0.1061123104 | J78: =User!$AH$2 -> Fayetteville | K78: 0 | N78: sa | O78: 52.72487297 | Q78: Profit al | R78: =V79*V78-(V76-$W$4)*($V$1-$V$2)*V78*IF(V76<$W$4,V79,$O$45)-V77*$P$1-V81*$S$1-V82*$S$2 -> 223.45 | U78: sa' | V78: 52.6972896 | Y78: ˈ11 | Z78: 0.5047109678 | AA78: 0.09425774819 | AB78: 0.629590132 | AC78: 0.4413217372 | AD78: 0.08447851295 | AE78: 0.5311025121 | AF78: 0.3782735077 | AG78: 0.0755179745 | AH78: 0.4375572596 | AW78: 2013-10-14
A79: White cross-section standard errors & covariance (d.f. corrected) | G79: 2010 | H79: -0.2659558452 | J79: =User!$AH$3 -> Jonesboro | K79: nd | N79: Ya | O79: =+$B$11+$B$12+$B$13*O76+$B$14*O76^0.5+O77*$B$15+O77^2*$B$16 -> 5.421011041 | U79: Ya' | V79: =+$B$11+$B$12+$B$13*V76+$B$14*V76^0.5+V77*$B$15+V77^2*$B$16 -> 5.382283467 | Y79: ˈ12 | Z79: 0.4664722383 | AA79: 0.09179848575 | AB79: 0.5801614539 | AC79: 0.3977315406 | AD79: 0.08141263758 | AE79: 0.4739026523 | AF79: 0.3309250348 | AG79: 0.07215519544 | AH79: 0.3752335967 | AW79: 2013-10-15
A80: WARNING: estimated coefficient covariance matrix is of reduced rank | G80: 2011 | H80: -0.1628532078 | J80: =User!$AH$4 -> Pine_Tree | K80: -3.78900462 | N80: Nra | O80: =+$B$60+$B$61+$B$62*O76+$B$63*O79 -> 39.56305658 | U80: Nra' | V80: =+$B$60+$B$61+$B$62*V76+$B$63*V79 -> 39.13761013 | X80: PT (AR) | Y80: ˈ10 | Z80: 0.2729588738 | AA80: 0.06323045425 | AB80: 0.2388178214 | AC80: 0.2074307725 | AD80: 0.05332739613 | AE80: 0.1349014952 | AF80: 0.1277108465 | AG80: 0.04205616411 | AH80: 0.01198462342 | AW80: 2013-10-16
G81: 2012 | H81: -0.6160391005 | J81: =User!$AH$5 -> Winnsboro | K81: -2.982956065 | N81: Pra | O81: =+$B$84+$B$85+$B$86*O76+$B$87*O79 -> 8.299958282 | Q81: <-- changes N | U81: Pra' | V81: =+$B$84+$B$85+$B$86*V76+$B$87*V79 -> 8.246006119 | Y81: ˈ12 | Z81: 0.1952339663 | AA81: 0.0603678858 | AB81: 0.1901318333 | AC81: 0.1162004239 | AD81: 0.04899348785 | AE81: 0.06958360803 | AF81: 0.02739146518 | AG81: 0.03716087545 | AH81: 0 | AW81: 2013-10-17
A82: Variable | B82: Coefficient | C82: Std. Error | D82: t-Statistic | E82: Prob. | G82: 2013 | H82: 0.9387358431 | J82: =User!$AH$6 -> New_Franklin | K82: -0.7030677508 | N82: Kra | O82: =+$B$38+$B$39+O76*$B$40+O79*$B$41 -> 45.93906956 | R82: no change in N --> | U82: Kra' | V82: =+$B$38+$B$39+V76*$B$40+V79*$B$41 -> 45.53821441 | Y82: ˈ13 | Z82: 0.3152320986 | AA82: 0.07320188167 | AB82: 0.3638456489 | AC82: 0.2309423244 | AD82: 0.06083469481 | AE82: 0.2351128007 | AF82: 0.1461219942 | AG82: 0.04937714905 | AH82: 0.1108807996 | AW82: 2013-10-18
J83: =User!$AH$7 -> Haskell | K83: 3.322161298 | N83: Neff | O83: =+$B$17/$B$15+O77*2*$B$16 -> 0.2344800803 | U83: Neff' | V83: =+$B$17/$B$15+V77*2*$B$16 -> 0.2351215985 | Y83: ˈ14 | Z83: 0.3192550262 | AA83: 0.07314093375 | AB83: 0.366487271 | AC83: 0.2421770647 | AD83: 0.06174927976 | AE83: 0.2483245102 | AF83: 0.1611415984 | AG83: 0.05069828429 | AH83: 0.1290728287 | AW83: 2013-10-19
A84: C | B84: =14.260965212735+IF($G$9=$G$1,$H78,IF($G$9=$G$2,H79,IF($G$9=$G$3,$H$80,IF($G$9=$G$4,$H$81,$H$82)))) -> 13.64492611 | C84: 2.25340927 | D84: 6.328617442 | E84: 1.287898289e-08 | J84: =User!$AH$8 -> Stillwater | K84: 3.390289898 | N84: Moist | O84: =+$B$107+$B$108+O76*$B$109+O76^0.5*$B$110 -> 26.6742698 | U84: Moist | V84: =+$B$107+$B$108+V76*$B$109+V76^0.5*$B$110 -> 26.6742698 | X84: HA (OK) | Y84: ˈ10 | Z84: 0.4217381608 | AA84: 0.1121839716 | AB84: 0.3975168158 | AC84: 0.3909404897 | AD84: 0.1082656443 | AE84: 0.3461873763 | AF84: 0.3379986008 | AG84: 0.1024263446 | AH84: 0.2593629972 | AW84: 2013-10-20
A85: LOC | B85: =IF($G$13=J78,K78,IF($G$13=J79,K79,IF($G$13=J80,K80,IF($G$13=J81,K81,IF($G$13=J82,K82,IF($G$13=J83,K83,IF($G$13=J84,K84,K85))))))) -> 0 | J85: =User!$AH$9 -> Woodward | K85: nd | Y85: ˈ11 | Z85: 0.3972938976 | AA85: 0.1131882187 | AB85: 0.411786458 | AC85: 0.3618121427 | AD85: 0.1088418218 | AE85: 0.3545494097 | AF85: 0.3038197965 | AG85: 0.1027945165 | AH85: 0.2633699748 | AW85: 2013-10-21
A86: DAY | B86: -0.0408135682 | C86: 0.002752031809 | D86: -14.83034028 | E86: 8.468453592e-25 | X86: SW | Y86: ˈ11 | Z86: 0.7354373639 | AA86: 0.1156817343 | AB86: 0.5017931427 | AC86: 0.7319098799 | AD86: 0.1149863181 | AE86: 0.4962237051 | AF86: 0.666652529 | AG86: 0.1021935483 | AH86: 0.3907932551 | AW86: 2013-10-22
A87: YIELD | B87: 1.393120151 | C87: 0.515277124 | D87: 2.703632835 | E87: 0.008355511635 | J87: Moist Target | K87: 20 | L87: πmoist | M87: =ROUNDUP(J109,0) -> 339 | N87: =N4+M87 -> 2014-02-03 | O87: =$B$11+$B$12+$B$13*M87+$B$14*M87^0.5+$P$4*$B$15+$P$4^2*$B$16 -> 4.944435722 | P87: =IF($B$60+$B$61+$B$62*M87+$B$63*O87<0,0,$B$60+$B$61+$B$62*M87+$B$63*O87) -> 29.42443125 | Q87: =IF($B$84+$B$85+$B$86*M87+$B$87*O87<0,0,$B$84+$B$85+$B$86*M87+$B$87*O87) -> 6.697319533 | R87: =IF($B$38+$B$39+M87*$B$40+O87*$B$41<0,0,$B$38+$B$39+M87*$B$40+O87*$B$41) -> 32.33824654 | S87: =O87*$P$2 -> 247.2217861 | T87: =$P$4*$P$1 -> 47.51838554 | U87: =Q87*$S$1 -> -4.170388778 | V87: =R87*$S$2 -> 19.50980848 | W87: =O87*$P$2-(M87-$W$4)*($V$1-$V$2)*$P$2*IF(M87<$W$4,O87,$O$45)-$P$4*$P$1-Q87*$S$1-R87*$S$2 -> 195.8762643 | X87: (OK) | Y87: ˈ12 | Z87: 0.7069150793 | AA87: 0.1139286533 | AB87: 0.448206419 | AC87: 0.7051104053 | AD87: 0.1135689166 | AE87: 0.4453674283 | AF87: 0.6381564363 | AG87: 0.1003236156 | AH87: 0.3375450118 | AW87: 2013-10-23
Y88: ˈ13 | Z88: 0.8155739969 | AA88: 0.1255578458 | AB88: 0.6087981577 | AC88: 0.7986950557 | AD88: 0.1222842035 | AE88: 0.5822106149 | AF88: 0.7304063412 | AG88: 0.1090783737 | AH88: 0.4716614676 | AW88: 2013-10-24
A89: R-squared | B89: 0.555539 | C89: Mean dependent var | E89: 7.981373 | X89: WB | Y89: ˈ12 | Z89: 0.4221065244 | AA89: 0.05887707839 | AB89: 0.07757804511 | AC89: 0.3980396641 | AD89: 0.05451032074 | AE89: 0.03121294199 | AF89: 0.2736361039 | AG89: 0.03214738521 | AH89: 0 | AW89: 2013-10-25
A90: Adjusted R-squared | B90: 0.517128 | C90: S.D. dependent var | E90: 5.999264 | X90: (LA) | Y90: ˈ13 | Z90: 0.6600239088 | AA90: 0.08470072285 | AB90: 0.4284682336 | AC90: 0.6203255547 | AD90: 0.0768730279 | AE90: 0.3477675564 | AF90: 0.5187138835 | AG90: 0.05670211634 | AH90: 0.1349524345 | AW90: 2013-10-26
A91: S.E. of regression | B91: 4.084974 | C91: Sum squared resid | E91: 1351.648 | X91: NF | Y91: ˈ11 | Z91: 0.3763809999 | AA91: 0.06670037386 | AB91: 0.3731308184 | AC91: 0.5118272944 | AD91: 0.09001608445 | AE91: 0.5985863357 | AF91: 0.4120148665 | AG91: 0.07278003973 | AH91: 0.4321540501 | AW91: 2013-10-27
A92: F-statistic | B92: 14.46329 | C92: Durbin-Watson stat | E92: 1.033358 | X92: (MO) | Y92: ˈ12 | Z92: 0.2958014624 | AA92: 0.06045876665 | AB92: 0.2634821621 | AC92: 0.4477128701 | AD92: 0.08593930818 | AE92: 0.5142594475 | AF92: 0.3321597499 | AG92: 0.06648923433 | AH92: 0.3231673106 | AW92: 2013-10-28
A93: Prob(F-statistic) | B93: 0 | Y93: ˈ13 | Z93: 0.5278853078 | AA93: 0.08543201698 | AB93: 0.6004816341 | AC93: 0.6363643774 | AD93: 0.1046569202 | AE93: 0.7828741553 | AF93: 0.5381936739 | AG93: 0.08724623758 | AH93: 0.6177368359 | AW93: 2013-10-29
AW94: 2013-10-30
AW95: 2013-10-31
A96: Dependent Variable: MOIST | AW96: 2013-11-01
A97: Method: Panel EGLS (Period random effects) | AW97: 2013-11-02
A98: Date: 07/05/15 Time: 09:52 | AW98: 2013-11-03
A99: Sample: 2009 2014 IF VARIETY=0 AND EXCEPT=0 | AW99: 2013-11-04
A100: Periods included: 6 | G100: 2009 | H100: 0.8800625334 | J100: =User!$AH$2 -> Fayetteville | K100: 0 | AW100: 2013-11-05
A101: Cross-sections included: 58 | G101: 2010 | H101: -0.9024560032 | J101: =User!$AH$3 -> Jonesboro | K101: -708.1426823 | AW101: 2013-11-06
A102: Total panel (unbalanced) observations: 138 | G102: 2011 | H102: -0.5013436459 | J102: =User!$AH$4 -> Pine_Tree | K102: 0.4931219901 | AW102: 2013-11-07
A103: Wallace and Hussain estimator of component variances | G103: 2012 | H103: -0.9077583991 | J103: =User!$AH$5 -> Winnsboro | K103: -115.1989407 | AW103: 2013-11-08
A104: White cross-section standard errors & covariance (d.f. corrected) | G104: 2013 | H104: 1.171848393 | J104: =User!$AH$6 -> New_Franklin | K104: 31.56605126 | AW104: 2013-11-09
A105: WARNING: estimated coefficient covariance matrix is of reduced rank | B105: Coefficient | C105: Std. Error | D105: t-Statistic | E105: Prob. | G105: 2014 | H105: 0.2596471214 | J105: =User!$AH$7 -> Haskell | K105: -2.383859771 | AW105: 2013-11-10
J106: =User!$AH$8 -> Stillwater | K106: 35.76781558 | AW106: 2013-11-11
A107: C | B107: =33.2535266048769+IF($G$9=$G$1,$H100,IF($G$9=$G$2,H101,IF($G$9=$G$3,$H$102,IF($G$9=$G$4,$H$103,IF($G$9=G$5,$H$104,$H$105))))) -> 32.34576821 | C107: 15.69425 | D107: 2.118835 | E107: 0.0361 | J107: =User!$AH$9 -> Woodward | K107: nd | AW107: 2013-11-12
A108: LOC | B108: =IF($G$13=J100,K100,IF($G$13=J101,K101,IF($G$13=J102,K102,IF($G$13=J103,K103,IF($G$13=J104,K104,IF($G$13=J105,K105,IF($G$13=J106,K106,K107))))))) -> 0 | AW108: 2013-11-13
A109: DAY | B109: =-0.557468415437344+IF($G$13=H112,J112,IF($G$13=H113,J113,IF($G$13=H114,J114,IF($G$13=H115,J115,IF($G$13=H116,J116,IF($G$13=H117,J117,IF($G$13=H118,J118,KW119))))))) -> -0.5574684154 | C109: 0.098841 | D109: -5.640078 | E109: 0 | H109: Day 20 | J109: =(SQRT(4*B109*B110^2*(K87-B107-B108)+B110^4)+2*B109*(K87-B107-B108)+B110^2)/(2*B109^2) -> 338.8249623 | AW109: 2013-11-14
A110: DAY^.5 | B110: =9.59072860385977+IF($G$13=H112,K112,IF($G$13=H113,K113,IF($G$13=H114,K114,IF($G$13=H115,K115,IF($G$13=H116,K116,IF($G$13=H117,K117,IF($G$13=H118,K118,K119))))))) -> 9.590728604 | C110: 2.513538 | D110: 3.815629 | E110: 0.0002 | H110: Day 30 | J110: =(SQRT(4*B109*B110^2*(K47-B107-B108)+B110^4)+2*B109*(K47-B107-B108)+B110^2)/(2*B109^2) -> 304.3378161 | AW110: 2013-11-15
J111: day | K111: day^.5 | AW111: 2013-11-16
A112: R-squared | B112: 0.818976 | C112: Mean dependent var | E112: 33.49244 | H112: =User!$AH$2 -> Fayetteville | J112: 0 | K112: 0 | AW112: 2013-11-17
A113: Adjusted R-squared | B113: 0.795039 | C113: S.D. dependent var | E113: 15.62244 | H113: =User!$AH$3 -> Jonesboro | J113: -3.281844353 | K113: 96.90166029 | AW113: 2013-11-18
A114: S.E. of regression | B114: 6.752176 | C114: Sum squared resid | E114: 5516.618 | H114: =User!$AH$4 -> Pine_Tree | J114: 0 | K114: 0 | AW114: 2013-11-19
A115: F-statistic | B115: 34.2138 | C115: Durbin-Watson stat | E115: 2.08362 | H115: =User!$AH$5 -> Winnsboro | J115: -0.5437128969 | K115: 15.62854315 | AW115: 2013-11-20
A116: Prob(F-statistic) | B116: 0 | H116: =User!$AH$6 -> New_Franklin | J116: 0.1613117386 | K116: -4.903749087 | AW116: 2013-11-21
H117: =User!$AH$7 -> Haskell | J117: 0 | K117: 0 | AW117: 2013-11-22
H118: =User!$AH$8 -> Stillwater | J118: 0.1905716519 | K118: -5.77388657 | AW118: 2013-11-23
H119: =User!$AH$9 -> Woodward | J119: nd | K119: nd | AW119: 2013-11-24
AW120: 2013-11-25
AW121: 2013-11-26
AW122: 2013-11-27
AW123: 2013-11-28
AW124: 2013-11-29
AW125: 2013-11-30
AW126: 2013-12-01
AW127: 2013-12-02
AW128: 2013-12-03
AW129: 2013-12-04
AW130: 2013-12-05
AW131: 2013-12-06
AW132: 2013-12-07
AW133: 2013-12-08
AW134: 2013-12-09
AW135: 2013-12-10
AW136: 2013-12-11
AW137: 2013-12-12
AW138: 2013-12-13
AW139: 2013-12-14
AW140: 2013-12-15
AW141: 2013-12-16
AW142: 2013-12-17
AW143: 2013-12-18
AW144: 2013-12-19
AW145: 2013-12-20
AW146: 2013-12-21
AW147: 2013-12-22
AW148: 2013-12-23
AW149: 2013-12-24
AW150: 2013-12-25
AW151: 2013-12-26
AW152: 2013-12-27
AW153: 2013-12-28
AW154: 2013-12-29
AW155: 2013-12-30
AW156: 2013-12-31
AW157: 2014-01-01
AW158: 2014-01-02
AW159: 2014-01-03
AW160: 2014-01-04
AW161: 2014-01-05
AW162: 2014-01-06
AW163: 2014-01-07
AW164: 2014-01-08
AW165: 2014-01-09
AW166: 2014-01-10
AW167: 2014-01-11
AW168: 2014-01-12
AW169: 2014-01-13
AW170: 2014-01-14
AW171: 2014-01-15
AW172: 2014-01-16
AW173: 2014-01-17
AW174: 2014-01-18
AW175: 2014-01-19
AW176: 2014-01-20
AW177: 2014-01-21
AW178: 2014-01-22
AW179: 2014-01-23
AW180: 2014-01-24
AW181: 2014-01-25
AW182: 2014-01-26
AW183: 2014-01-27
AW184: 2014-01-28
AW185: 2014-01-29
AW186: 2014-01-30
AW187: 2014-01-31
AW188: 2014-02-01
AW189: 2014-02-02
AW190: 2014-02-03
AW191: 2014-02-04
AW192: 2014-02-05
AW193: 2014-02-06
AW194: 2014-02-07
AW195: 2014-02-08
AW196: 2014-02-09
AW197: 2014-02-10
AW198: 2014-02-11
AW199: 2014-02-12
AW200: 2014-02-13
... 15 more rows

Sheet Machinery
A5: =CONCATENATE(" Machinery Selection for ", 'Main Menu'!D8) -> Machinery Selection for Circle C
A6: The equipment buttons for tractors, tillage, planting, fertilizer application and harvesting equipment, found on the left-hand column of this sheet, allow the producer to choose the quantity, size, purchase price and salvage value for their operation's equipment. The user may specify annual use hours and fuel use as well as cost allocation across crop enterprise. The user may also specify which tractor to use to power an implement. Cells highlighted in yellow are for the producer to input expected acres for each enterprise. For tractors, "MFWD" stands for mechanical front wheel drive and "2 WD" denotes two wheel drive, followed by the horse power rating which affects default fuel use. When the tractor selection in highlighted in green/red the tractor hp is low/high for the equipment size selected. John Deere equipment is used as an example, but not endorsed by this research.
D11: Switchgrass | E11: Miscanthus | F11: E. Sorghum | G11: Total Acres
C12: Enter Expected Acres: | D12: 50 | E12: 50 | F12: 50 | G12: =F12+E12+D12 -> 150
B15: Tractor Name | C15: Tractor Size | D15: Prorated Annual Use Hours | G15: Acre-Based Use Hours | H15: Specified Use Hours | J15: Weighted Average Operating Cost $ per Hour | K15: Capital Recovery $ per Hour
D16: Switchgrass | E16: Miscanthus | F16: E. Sorghum
B18: =Implements!C100 -> JD 5075E | C18: =Implements!D100 -> MFWD 75 | D18: =Implements!C247 -> 31.57521136 | E18: =Implements!D247 -> 38.2270069 | F18: =Implements!E247 -> 21.54788511 | G18: =Implements!F247 -> 91.35010337 | H18: =IF(G18=0,0,Implements!H247) -> 600 | J18: =Implements!I247 -> 15.51888188 | K18: =Implements!J247 -> 11.68557719
B19: =IF(Implements!E100<2,"No Tractor",Implements!C101) -> JD 6130D | C19: =IF(B19="No Tractor"," ",Implements!D101) -> MFWD 130 | D19: =IF(B19="No Tractor"," ",Implements!C248) -> 3.714514652 | E19: =IF(B19="No Tractor"," ",Implements!D248) -> 4.172625781 | F19: =IF(B19="No Tractor"," ",Implements!E248) -> 28.94742512 | G19: =IF(B19="No Tractor"," ",Implements!F248) -> 36.83456556 | H19: =IF(G19=0,0,IF(B19="No Tractor"," ",Implements!H248)) -> 600 | J19: =IF(K19=0,0,IF(B19="No Tractor"," ",Implements!I248)) -> 10.69650598 | K19: =IF(B19="No Tractor"," ",Implements!J248) -> 13.97411399
B20: =IF(Implements!E100<3,"No Tractor",Implements!C102) -> JD 6150M | C20: =IF(B20="No Tractor"," ",Implements!D102) -> MFWD 150 | D20: =IF(B20="No Tractor"," ",Implements!C249) -> 0 | E20: =IF(B20="No Tractor"," ",Implements!D249) -> 0 | F20: =IF(B20="No Tractor"," ",Implements!E249) -> 22.28372118 | G20: =IF(B20="No Tractor"," ",Implements!F249) -> 22.28372118 | H20: =IF(G20=0,0,IF(B20="No Tractor"," ",Implements!H249)) -> 600 | J20: =IF(K20=0,0,IF(B20="No Tractor"," ",Implements!I249)) -> 12.32751749 | K20: =IF(B20="No Tractor"," ",Implements!J249) -> 17.74672545
B21: =IF(Implements!E100<4,"No Tractor",Implements!C103) -> JD 6190R | C21: =IF(B21="No Tractor"," ",Implements!D103) -> MFWD 190 | D21: =IF(B21="No Tractor"," ",Implements!C250) -> 4.945707051 | E21: =IF(B21="No Tractor"," ",Implements!D250) -> 4.691340701 | F21: =IF(B21="No Tractor"," ",Implements!E250) -> 25.15464519 | G21: =IF(B21="No Tractor"," ",Implements!F250) -> 34.79169294 | H21: =IF(G21=0,0,IF(B21="No Tractor"," ",Implements!H250)) -> 600 | J21: =IF(K21=0,0,IF(B21="No Tractor"," ",Implements!I250)) -> 31.33046169 | K21: =IF(B21="No Tractor"," ",Implements!J250) -> 41.45039397
B24: Tillage & Planting Implement/Operation | C24: Tractor Selection | D24: Prorated Annual Use Hours | G24: Acre-Based Use Hours | H24: Specified Use Hours | J24: Fuel Cost $ per Hour | K24: Capital Recovery $ per Hour | L24: Total Cost $ per Hour | M24: Acres per Hour | N24: Total Cost $ per Acre | AC24: Tractor Match Error Checking: If ≥ Req'd HP, True | AD24: Tractor Match Error Checking: If ≤ Req'd HP, True
D25: Switchgrass | E25: Miscanthus | F25: E. Sorghum | Q25: Switchgrass | R25: Miscanthus | S25: Sorghum | T25: Switchgrass | U25: Miscanthus | V25: Sorghum
B27: =CONCATENATE("Disk 1 — ",Implements!F104," ft") -> Disk 1 — 14 ft | C27: =IF(Implements!C104=1,B18,IF(Implements!C104=2,B19,IF(Implements!C104=3,B20,IF(Implements!C104=4,B21,FALSE)))) -> JD 6130D | D27: =IF(C27="No Tractor"," ",Implements!D204) -> 0.7703081232 | E27: =IF(C27="No Tractor"," ",Implements!G204) -> 0.5135387488 | F27: =IF(C27="No Tractor"," ",Implements!J204) -> 7.703081232 | G27: =IF(C27="No Tractor"," ",Implements!K204) -> 8.986928105 | H27: =IF(C27="No Tractor"," ",Implements!M204) -> 200 | J27: =IF(C27="No Tractor"," ",Implements!BR138) -> 11.4576 | K27: =IF(C27="No Tractor"," ",Implements!BT138) -> 13.1720462 | L27: =IF(C27="No Tractor"," ",SUM(Implements!BQ138:BT138)) -> 32.17471623 | M27: =IF(C27="No Tractor"," ",Implements!AG138) -> 6.490909091 | N27: =IF(C27="No Tractor"," ",L27/M27) -> 4.956889055 | Q27: =IFERROR(IF($AD$15=TRUE,(H27*T27),D27),0) -> 0.7703081232 | R27: =IFERROR(IF($AD$15=TRUE,(H27*U27),E27),0) -> 0.5135387488 | S27: =IFERROR(IF($AD$15=TRUE,(H27*V27),F27),0) -> 7.703081232 | T27: =IFERROR(D27/G27,0) -> 0.08571428571 | U27: =IFERROR(E27/G27,0) -> 0.05714285714 | V27: =IFERROR(F27/G27,0) -> 0.8571428571 | AC27: =Implements!AI104 -> TRUE | AD27: =Implements!AJ104 -> TRUE
B28: =CONCATENATE("Disk 2 — ",Implements!F105," ft") -> Disk 2 — 24 ft | C28: =IF(Implements!C105=1,B18,IF(Implements!C105=2,B19,IF(Implements!C105=3,B20,IF(Implements!C105=4,B21,FALSE)))) -> JD 6190R | D28: =IF(C28="No Tractor"," ",Implements!D205) -> 0.4493464052 | E28: =IF(C28="No Tractor"," ",Implements!G205) -> 0.2995642702 | F28: =IF(C28="No Tractor"," ",Implements!J205) -> 4.493464052 | G28: =IF(C28="No Tractor"," ",Implements!K205) -> 5.242374728 | H28: =IF(C28="No Tractor"," ",Implements!M205) -> 200 | J28: =IF(C28="No Tractor"," ",Implements!BR139) -> 20.7328 | K28: =IF(C28="No Tractor"," ",Implements!BT139) -> 22.44886342 | L28: =IF(C28="No Tractor"," ",SUM(Implements!BQ139:BT139)) -> 54.57795427 | M28: =IF(C28="No Tractor"," ",Implements!AG139) -> 11.12727273 | N28: =IF(C28="No Tractor"," ",L28/M28) -> 4.904881512 | Q28: =IFERROR(IF($AD$15=TRUE,(H28*T28),D28),0) -> 0.4493464052 | R28: =IFERROR(IF($AD$15=TRUE,(H28*U28),E28),0) -> 0.2995642702 | S28: =IFERROR(IF($AD$15=TRUE,(H28*V28),F28),0) -> 4.493464052 | T28: =IFERROR(D28/G28,0) -> 0.08571428571 | U28: =IFERROR(E28/G28,0) -> 0.05714285714 | V28: =IFERROR(F28/G28,0) -> 0.8571428571 | AC28: =Implements!AI105 -> TRUE | AD28: =Implements!AJ105 -> TRUE
B30: =CONCATENATE(Implements!B106," 1 — ",Implements!F106," ft") -> No-Till Grain Drill 1 — 12 ft | C30: =IF(Implements!C106=1,B18,IF(Implements!C106=2,B19,IF(Implements!C106=3,B20,IF(Implements!C106=4,B21,FALSE)))) -> JD 6130D | D30: =IF(C30="No Tractor"," ",Implements!D206) -> 0.9821428571 | E30: =IF(C30="No Tractor"," ","N/A") -> N/A | F30: =IF(C30="No Tractor"," ","N/A") -> N/A | G30: =IF(C30="No Tractor"," ",Implements!K206) -> 0.9821428571 | H30: =IF(C30="No Tractor"," ",Implements!M206) -> 150 | J30: =IF(C30="No Tractor"," ",Implements!BR140) -> 14.1856 | K30: =IF(C30="No Tractor"," ",Implements!BT140) -> 21.70758372 | L30: =IF(C30="No Tractor"," ",SUM(Implements!BQ140:BT140)) -> 51.060148 | M30: =IF(C30="No Tractor"," ",Implements!AG140) -> 5.090909091 | N30: =IF(C30="No Tractor"," ",L30/M30) -> 10.02967193 | Q30: =IFERROR(IF($AD$15=TRUE,(H30*T30),D30),0) -> 0.9821428571 | R30: =IFERROR(IF($AD$15=TRUE,(H30*U30),E30),0) -> N/A | S30: =IFERROR(IF($AD$15=TRUE,(H30*V30),F30),0) -> N/A | T30: =IFERROR(D30/G30,0) -> 1 | U30: =IFERROR(E30/G30,0) -> 0 | V30: =IFERROR(F30/G30,0) -> 0 | AC30: =Implements!AI106 -> TRUE | AD30: =Implements!AJ106 -> TRUE
B31: =CONCATENATE(Implements!B107," 2 — ",Implements!F107," ft") -> Grain Drill 2 — 12 ft | C31: =IF(Implements!C107=1,B18,IF(Implements!C107=2,B19,IF(Implements!C107=3,B20,IF(Implements!C107=4,B21,FALSE)))) -> JD 6130D | D31: =IF(C31="No Tractor"," ",Implements!D207) -> 0.9821428571 | E31: =IF(C31="No Tractor"," ","N/A") -> N/A | F31: =IF(C31="No Tractor"," ","N/A") -> N/A | G31: =IF(C31="No Tractor"," ",Implements!K207) -> 0.9821428571 | H31: =IF(C31="No Tractor"," ",Implements!M207) -> 150 | J31: =IF(C31="No Tractor"," ",Implements!BR141) -> 16.368 | K31: =IF(C31="No Tractor"," ",Implements!BT141) -> 14.9431509 | L31: =IF(C31="No Tractor"," ",SUM(Implements!BQ141:BT141)) -> 42.78811519 | M31: =IF(C31="No Tractor"," ",Implements!AG141) -> 5.090909091 | N31: =IF(C31="No Tractor"," ",L31/M31) -> 8.404808341 | Q31: =IFERROR(IF($AD$15=TRUE,(H31*T31),D31),0) -> 0.9821428571 | R31: =IFERROR(IF($AD$15=TRUE,(H31*U31),E31),0) -> N/A | S31: =IFERROR(IF($AD$15=TRUE,(H31*V31),F31),0) -> N/A | T31: =IFERROR(D31/G31,0) -> 1 | U31: =IFERROR(E31/G31,0) -> 0 | V31: =IFERROR(F31/G31,0) -> 0 | AC31: =Implements!AI107 -> TRUE | AD31: =Implements!AJ107 -> TRUE
B33: =CONCATENATE("Veggie Planter 1 — ",Implements!F108) -> Veggie Planter 1 — 4 Row | C33: =IF(Implements!C108=1,B18,IF(Implements!C108=2,B19,IF(Implements!C108=3,B20,IF(Implements!C108=4,B21,FALSE)))) -> JD 5075E | D33: =IF(C33="No Tractor"," ","N/A") -> N/A | E33: =IF(C33="No Tractor"," ",Implements!G208) -> 2.291666667 | F33: =IF(C33="No Tractor"," ","N/A") -> N/A | G33: =IF(C33="No Tractor"," ",Implements!K208) -> 2.291666667 | H33: =IF(C33="No Tractor"," ",Implements!M208) -> 150 | J33: =IF(C33="No Tractor"," ",Implements!BR142) -> 8.184 | K33: =IF(C33="No Tractor"," ",Implements!BT142) -> 8.630854938 | L33: =IF(C33="No Tractor"," ",SUM(Implements!BQ142:BT142)) -> 24.48032994 | M33: =IF(C33="No Tractor"," ",Implements!AG142) -> 1.454545455 | N33: =IF(C33="No Tractor"," ",L33/M33) -> 16.83022683 | Q33: =IFERROR(IF($AD$15=TRUE,(H33*T33),D33),0) -> N/A | R33: =IFERROR(IF($AD$15=TRUE,(H33*U33),E33),0) -> 2.291666667 | S33: =IFERROR(IF($AD$15=TRUE,(H33*V33),F33),0) -> N/A | T33: =IFERROR(D33/G33,0) -> 0 | U33: =IFERROR(E33/G33,0) -> 1 | V33: =IFERROR(F33/G33,0) -> 0 | AC33: =Implements!AI108 -> TRUE | AD33: =Implements!AJ108 -> TRUE
B34: =CONCATENATE("Veggie Planter 2 — ",Implements!F109) -> Veggie Planter 2 — 8 Row | C34: =IF(Implements!C109=1,B18,IF(Implements!C109=2,B19,IF(Implements!C109=3,B20,IF(Implements!C109=4,B21,FALSE)))) -> JD 6190R | D34: =IF(C34="No Tractor"," ","N/A") -> N/A | E34: =IF(C34="No Tractor"," ",Implements!G209) -> 1.227678571 | F34: =IF(C34="No Tractor"," ","N/A") -> N/A | G34: =IF(C34="No Tractor"," ",Implements!K209) -> 1.227678571 | H34: =IF(C34="No Tractor"," ",Implements!M209) -> 150 | J34: =IF(C34="No Tractor"," ",Implements!BR143) -> 20.7328 | K34: =IF(C34="No Tractor"," ",Implements!BT143) -> 17.59668581 | L34: =IF(C34="No Tractor"," ",SUM(Implements!BQ143:BT143)) -> 46.04889385 | M34: =IF(C34="No Tractor"," ",Implements!AG143) -> 2.715151515 | N34: =IF(C34="No Tractor"," ",L34/M34) -> 16.95997206 | Q34: =IFERROR(IF($AD$15=TRUE,(H34*T34),D34),0) -> N/A | R34: =IFERROR(IF($AD$15=TRUE,(H34*U34),E34),0) -> 1.227678571 | S34: =IFERROR(IF($AD$15=TRUE,(H34*V34),F34),0) -> N/A | T34: =IFERROR(D34/G34,0) -> 0 | U34: =IFERROR(E34/G34,0) -> 1 | V34: =IFERROR(F34/G34,0) -> 0 | AC34: =Implements!AI109 -> TRUE | AD34: =Implements!AJ109 -> TRUE
B36: =CONCATENATE("Cultipacker 1 — ",Implements!F110," ft") -> Cultipacker 1 — 12 ft | C36: =IF(Implements!C110=1,B18,IF(Implements!C110=2,B19,IF(Implements!C110=3,B20,IF(Implements!C110=4,B21,FALSE)))) -> JD 6130D | D36: =IF(C36="No Tractor"," ",Implements!D210) -> 0.6221719457 | E36: =IF(C36="No Tractor"," ",Implements!G210) -> 0.4147812971 | F36: =IF(C36="No Tractor"," ","N/A") -> N/A | G36: =IF(C36="No Tractor"," ",Implements!K210) -> 1.036953243 | H36: =IF(C36="No Tractor"," ",Implements!M210) -> 300 | J36: =IF(C36="No Tractor"," ",Implements!BR144) -> 14.1856 | K36: =IF(C36="No Tractor"," ",Implements!BT144) -> 7.94953267 | L36: =IF(C36="No Tractor"," ",SUM(Implements!BQ144:BT144)) -> 26.54915077 | M36: =IF(C36="No Tractor"," ",Implements!AG144) -> 8.036363636 | N36: =IF(C36="No Tractor"," ",L36/M36) -> 3.303627358 | Q36: =IFERROR(IF($AD$15=TRUE,(H36*T36),D36),0) -> 0.6221719457 | R36: =IFERROR(IF($AD$15=TRUE,(H36*U36),E36),0) -> 0.4147812971 | S36: =IFERROR(IF($AD$15=TRUE,(H36*V36),F36),0) -> N/A | T36: =IFERROR(D36/G36,0) -> 0.6 | U36: =IFERROR(E36/G36,0) -> 0.4 | V36: =IFERROR(F36/G36,0) -> 0 | AC36: =Implements!AI110 -> TRUE | AD36: =Implements!AJ110 -> TRUE
B37: =CONCATENATE("Cultipacker 2 — ",Implements!F111," ft") -> Cultipacker 2 — 20 ft | C37: =IF(Implements!C111=1,B18,IF(Implements!C111=2,B19,IF(Implements!C111=3,B20,IF(Implements!C111=4,B21,FALSE)))) -> JD 6150M | D37: =IF(C37="No Tractor"," ",Implements!D211) -> 0.3733031674 | E37: =IF(C37="No Tractor"," ",Implements!G211) -> 0.2488687783 | F37: =IF(C37="No Tractor"," ","N/A") -> N/A | G37: =IF(C37="No Tractor"," ",Implements!K211) -> 0.6221719457 | H37: =IF(C37="No Tractor"," ",Implements!M211) -> 300 | J37: =IF(C37="No Tractor"," ",Implements!BR145) -> 16.368 | K37: =IF(C37="No Tractor"," ",Implements!BT145) -> 12.64869181 | L37: =IF(C37="No Tractor"," ",SUM(Implements!BQ145:BT145)) -> 34.90230267 | M37: =IF(C37="No Tractor"," ",Implements!AG145) -> 13.39393939 | N37: =IF(C37="No Tractor"," ",L37/M37) -> 2.605828028 | Q37: =IFERROR(IF($AD$15=TRUE,(H37*T37),D37),0) -> 0.3733031674 | R37: =IFERROR(IF($AD$15=TRUE,(H37*U37),E37),0) -> 0.2488687783 | S37: =IFERROR(IF($AD$15=TRUE,(H37*V37),F37),0) -> N/A | T37: =IFERROR(D37/G37,0) -> 0.6 | U37: =IFERROR(E37/G37,0) -> 0.4 | V37: =IFERROR(F37/G37,0) -> 0 | AC37: =Implements!AI111 -> TRUE | AD37: =Implements!AJ111 -> TRUE
B39: =CONCATENATE("Field Cultivator 1 — ",Implements!F112," ft") -> Field Cultivator 1 — 12 ft | C39: =IF(Implements!C112=1,B18,IF(Implements!C112=2,B19,IF(Implements!C112=3,B20,IF(Implements!C112=4,B21,FALSE)))) -> JD 6150M | D39: =IF(C39="No Tractor"," ","N/A") -> N/A | E39: =IF(C39="No Tractor"," ","N/A") -> N/A | F39: =IF(C39="No Tractor"," ",Implements!J212) -> 5.777310924 | G39: =IF(C39="No Tractor"," ",Implements!K212) -> 5.777310924 | H39: =IF(C39="No Tractor"," ",Implements!M212) -> 100 | J39: =IF(C39="No Tractor"," ",Implements!BR146) -> 16.368 | K39: =IF(C39="No Tractor"," ",Implements!BT146) -> 13.6375444 | L39: =IF(C39="No Tractor"," ",SUM(Implements!BQ146:BT146)) -> 36.66184693 | M39: =IF(C39="No Tractor"," ",Implements!AG146) -> 8.654545455 | N39: =IF(C39="No Tractor"," ",L39/M39) -> 4.236137775 | Q39: =IFERROR(IF($AD$15=TRUE,(H39*T39),D39),0) -> N/A | R39: =IFERROR(IF($AD$15=TRUE,(H39*U39),E39),0) -> N/A | S39: =IFERROR(IF($AD$15=TRUE,(H39*V39),F39),0) -> 5.777310924 | T39: =IFERROR(D39/G39,0) -> 0 | U39: =IFERROR(E39/G39,0) -> 0 | V39: =IFERROR(F39/G39,0) -> 1 | AC39: =Implements!AI112 -> TRUE | AD39: =Implements!AJ112 -> TRUE
B40: =CONCATENATE("Field Cultivator 2 — ",Implements!F113," ft") -> Field Cultivator 2 — 24 ft | C40: =IF(Implements!C113=1,B18,IF(Implements!C113=2,B19,IF(Implements!C113=3,B20,IF(Implements!C113=4,B21,FALSE)))) -> JD 6190R | D40: =IF(C40="No Tractor"," ","N/A") -> N/A | E40: =IF(C40="No Tractor"," ","N/A") -> N/A | F40: =IF(C40="No Tractor"," ",Implements!J213) -> 2.888655462 | G40: =IF(C40="No Tractor"," ",Implements!K213) -> 2.888655462 | H40: =IF(C40="No Tractor"," ",Implements!M213) -> 100 | J40: =IF(C40="No Tractor"," ",Implements!BR147) -> 20.7328 | K40: =IF(C40="No Tractor"," ",Implements!BT147) -> 23.60205343 | L40: =IF(C40="No Tractor"," ",SUM(Implements!BQ147:BT147)) -> 54.63690469 | M40: =IF(C40="No Tractor"," ",Implements!AG147) -> 17.30909091 | N40: =IF(C40="No Tractor"," ",L40/M40) -> 3.156543863 | Q40: =IFERROR(IF($AD$15=TRUE,(H40*T40),D40),0) -> N/A | R40: =IFERROR(IF($AD$15=TRUE,(H40*U40),E40),0) -> N/A | S40: =IFERROR(IF($AD$15=TRUE,(H40*V40),F40),0) -> 2.888655462 | T40: =IFERROR(D40/G40,0) -> 0 | U40: =IFERROR(E40/G40,0) -> 0 | V40: =IFERROR(F40/G40,0) -> 1 | AC40: =Implements!AI113 -> TRUE | AD40: =Implements!AJ113 -> TRUE
B42: =CONCATENATE("Chisel Plow 1 — ",Implements!F114," ft") -> Chisel Plow 1 — 10 ft | C42: =IF(Implements!C114=1,B18,IF(Implements!C114=2,B19,IF(Implements!C114=3,B20,IF(Implements!C114=4,B21,FALSE)))) -> JD 6190R | D42: =IF(C42="No Tractor"," ","N/A") -> N/A | E42: =IF(C42="No Tractor"," ","N/A") -> N/A | F42: =IF(C42="No Tractor"," ",Implements!J214) -> 9.705882353 | G42: =IF(C42="No Tractor"," ",Implements!K214) -> 11.32352941 | H42: =IF(C42="No Tractor"," ",Implements!M214) -> 150 | J42: =IF(C42="No Tractor"," ",Implements!BR148) -> 20.7328 | K42: =IF(C42="No Tractor"," ",Implements!BT148) -> 12.27308684 | L42: =IF(C42="No Tractor"," ",SUM(Implements!BQ148:BT148)) -> 40.10147507 | M42: =IF(C42="No Tractor"," ",Implements!AG148) -> 5.151515152 | N42: =IF(C42="No Tractor"," ",L42/M42) -> 7.784403985 | Q42: =IFERROR(IF($AD$15=TRUE,(H42*T42),D42),0) -> N/A | R42: =IFERROR(IF($AD$15=TRUE,(H42*U42),E42),0) -> N/A | S42: =IFERROR(IF($AD$15=TRUE,(H42*V42),F42),0) -> 9.705882353 | T42: =IFERROR(D42/G42,0) -> 0 | U42: =IFERROR(E42/G42,0) -> 0 | V42: =IFERROR(F42/G42,0) -> 0.8571428571 | AC42: =Implements!AI114 -> TRUE | AD42: =Implements!AJ114 -> TRUE
B43: =CONCATENATE("Chisel Plow 2 — ",Implements!F115," ft") -> Chisel Plow 2 — 16 ft | C43: =IF(Implements!C115=1,B18,IF(Implements!C115=2,B19,IF(Implements!C115=3,B20,IF(Implements!C115=4,B21,FALSE)))) -> JD 6130D | D43: =IF(C43="No Tractor"," ","N/A") -> N/A | E43: =IF(C43="No Tractor"," ","N/A") -> N/A | F43: =IF(C43="No Tractor"," ",Implements!J215) -> 6.066176471 | G43: =IF(C43="No Tractor"," ",Implements!K215) -> 7.077205882 | H43: =IF(C43="No Tractor"," ",Implements!M215) -> 150 | J43: =IF(C43="No Tractor"," ",Implements!BR149) -> 14.1856 | K43: =IF(C43="No Tractor"," ",Implements!BT149) -> 14.15138786 | L43: =IF(C43="No Tractor"," ",SUM(Implements!BQ149:BT149)) -> 36.52798051 | M43: =IF(C43="No Tractor"," ",Implements!AG149) -> 8.242424242 | N43: =IF(C43="No Tractor"," ",L43/M43) -> 4.431703517 | Q43: =IFERROR(IF($AD$15=TRUE,(H43*T43),D43),0) -> N/A | R43: =IFERROR(IF($AD$15=TRUE,(H43*U43),E43),0) -> N/A | S43: =IFERROR(IF($AD$15=TRUE,(H43*V43),F43),0) -> 6.066176471 | T43: =IFERROR(D43/G43,0) -> 0 | U43: =IFERROR(E43/G43,0) -> 0 | V43: =IFERROR(F43/G43,0) -> 0.8571428571 | AC43: =Implements!AI115 -> TRUE | AD43: =Implements!AJ115 -> TRUE
B45: =CONCATENATE("Row Conditioner 1 — ",Implements!F116," ft") -> Row Conditioner 1 — 13 ft | C45: =IF(Implements!C116=1,B18,IF(Implements!C116=2,B19,IF(Implements!C116=3,B20,IF(Implements!C116=4,B21,FALSE)))) -> JD 6130D | D45: =IF(C45="No Tractor"," ","N/A") -> N/A | E45: =IF(C45="No Tractor"," ","N/A") -> N/A | F45: =IF(C45="No Tractor"," ",Implements!J216) -> 8.814102564 | G45: =IF(C45="No Tractor"," ",Implements!K216) -> 8.814102564 | H45: =IF(C45="No Tractor"," ",Implements!M216) -> 100 | J45: =IF(C45="No Tractor"," ",Implements!BR150) -> 14.1856 | K45: =IF(C45="No Tractor"," ",Implements!BT150) -> 10.01127629 | L45: =IF(C45="No Tractor"," ",SUM(Implements!BQ150:BT150)) -> 29.13373526 | M45: =IF(C45="No Tractor"," ",Implements!AG150) -> 5.672727273 | N45: =IF(C45="No Tractor"," ",L45/M45) -> 5.135754614 | Q45: =IFERROR(IF($AD$15=TRUE,(H45*T45),D45),0) -> N/A | R45: =IFERROR(IF($AD$15=TRUE,(H45*U45),E45),0) -> N/A | S45: =IFERROR(IF($AD$15=TRUE,(H45*V45),F45),0) -> 8.814102564 | T45: =IFERROR(D45/G45,0) -> 0 | U45: =IFERROR(E45/G45,0) -> 0 | V45: =IFERROR(F45/G45,0) -> 1 | AC45: =Implements!AI116 -> TRUE | AD45: =Implements!AJ116 -> TRUE
B46: =CONCATENATE("Row Conditioner 2 — ",Implements!F117," ft") -> Row Conditioner 2 — 21 ft | C46: =IF(Implements!C117=1,B18,IF(Implements!C117=2,B19,IF(Implements!C117=3,B20,IF(Implements!C117=4,B21,FALSE)))) -> JD 6190R | D46: =IF(C46="No Tractor"," ","N/A") -> N/A | E46: =IF(C46="No Tractor"," ","N/A") -> N/A | F46: =IF(C46="No Tractor"," ",Implements!J217) -> 5.456349206 | G46: =IF(C46="No Tractor"," ",Implements!K217) -> 5.456349206 | H46: =IF(C46="No Tractor"," ",Implements!M217) -> 100 | J46: =IF(C46="No Tractor"," ",Implements!BR151) -> 20.7328 | K46: =IF(C46="No Tractor"," ",Implements!BT151) -> 15.33391939 | L46: =IF(C46="No Tractor"," ",SUM(Implements!BQ151:BT151)) -> 42.001144 | M46: =IF(C46="No Tractor"," ",Implements!AG151) -> 9.163636364 | N46: =IF(C46="No Tractor"," ",L46/M46) -> 4.583458174 | Q46: =IFERROR(IF($AD$15=TRUE,(H46*T46),D46),0) -> N/A | R46: =IFERROR(IF($AD$15=TRUE,(H46*U46),E46),0) -> N/A | S46: =IFERROR(IF($AD$15=TRUE,(H46*V46),F46),0) -> 5.456349206 | T46: =IFERROR(D46/G46,0) -> 0 | U46: =IFERROR(E46/G46,0) -> 0 | V46: =IFERROR(F46/G46,0) -> 1 | AC46: =Implements!AI117 -> TRUE | AD46: =Implements!AJ117 -> TRUE
B48: =CONCATENATE("Disk Bedder 1 — ",Implements!F118) -> Disk Bedder 1 — 4R-38 | C48: =IF(Implements!C118=1,B18,IF(Implements!C118=2,B19,IF(Implements!C118=3,B20,IF(Implements!C118=4,B21,FALSE)))) -> JD 6150M | D48: =IF(C48="No Tractor"," ","N/A") -> N/A | E48: =IF(C48="No Tractor"," ","N/A") -> N/A | F48: =IF(C48="No Tractor"," ",Implements!J218) -> 7.381889764 | G48: =IF(C48="No Tractor"," ",Implements!K218) -> 7.381889764 | H48: =IF(C48="No Tractor"," ",Implements!M218) -> 160 | J48: =IF(C48="No Tractor"," ",Implements!BR152) -> 16.368 | K48: =IF(C48="No Tractor"," ",Implements!BT152) -> 11.36287642 | L48: =IF(C48="No Tractor"," ",SUM(Implements!BQ152:BT152)) -> 33.45352603 | M48: =IF(C48="No Tractor"," ",Implements!AG152) -> 6.773333333 | N48: =IF(C48="No Tractor"," ",L48/M48) -> 4.939004827 | Q48: =IFERROR(IF($AD$15=TRUE,(H48*T48),D48),0) -> N/A | R48: =IFERROR(IF($AD$15=TRUE,(H48*U48),E48),0) -> N/A | S48: =IFERROR(IF($AD$15=TRUE,(H48*V48),F48),0) -> 7.381889764 | T48: =IFERROR(D48/G48,0) -> 0 | U48: =IFERROR(E48/G48,0) -> 0 | V48: =IFERROR(F48/G48,0) -> 1 | AC48: =Implements!AI118 -> TRUE | AD48: =Implements!AJ118 -> TRUE
B49: =CONCATENATE("Disk Bedder 2 — ",Implements!F119) -> Disk Bedder 2 — 6R-30 | C49: =IF(Implements!C119=1,B18,IF(Implements!C119=2,B19,IF(Implements!C119=3,B20,IF(Implements!C119=4,B21,FALSE)))) -> JD 6190R | D49: =IF(C49="No Tractor"," ","N/A") -> N/A | E49: =IF(C49="No Tractor"," ","N/A") -> N/A | F49: =IF(C49="No Tractor"," ",Implements!J219) -> 6.25 | G49: =IF(C49="No Tractor"," ",Implements!K219) -> 6.25 | H49: =IF(C49="No Tractor"," ",Implements!M219) -> 160 | J49: =IF(C49="No Tractor"," ",Implements!BR153) -> 20.7328 | K49: =IF(C49="No Tractor"," ",Implements!BT153) -> 14.43750716 | L49: =IF(C49="No Tractor"," ",SUM(Implements!BQ153:BT153)) -> 41.78155716 | M49: =IF(C49="No Tractor"," ",Implements!AG153) -> 8 | N49: =IF(C49="No Tractor"," ",L49/M49) -> 5.222694645 | Q49: =IFERROR(IF($AD$15=TRUE,(H49*T49),D49),0) -> N/A | R49: =IFERROR(IF($AD$15=TRUE,(H49*U49),E49),0) -> N/A | S49: =IFERROR(IF($AD$15=TRUE,(H49*V49),F49),0) -> 6.25 | T49: =IFERROR(D49/G49,0) -> 0 | U49: =IFERROR(E49/G49,0) -> 0 | V49: =IFERROR(F49/G49,0) -> 1 | AC49: =Implements!AI119 -> TRUE | AD49: =Implements!AJ119 -> TRUE
B51: =CONCATENATE("Para-Till 1 — ",Implements!F120) -> Para-Till 1 — 2 Shank | C51: =IF(Implements!C120=1,B18,IF(Implements!C120=2,B19,IF(Implements!C120=3,B20,IF(Implements!C120=4,B21,FALSE)))) -> JD 5075E | D51: =IF(C51="No Tractor"," ","N/A") -> N/A | E51: =IF(C51="No Tractor"," ",Implements!G220) -> 0 | F51: =IF(C51="No Tractor"," ","N/A") -> N/A | G51: =IF(C51="No Tractor"," ",Implements!K220) -> 0 | H51: =IF(C51="No Tractor"," ",Implements!M220) -> 100 | J51: =IF(C51="No Tractor"," ",Implements!BR154) -> 8.184 | K51: =IF(C51="No Tractor"," ",Implements!BT154) -> 3.613236684 | L51: =IF(C51="No Tractor"," ",SUM(Implements!BQ154:BT154)) -> 17.02362051 | M51: =IF(C51="No Tractor"," ",Implements!AG154) -> 2.472727273 | N51: =IF(C51="No Tractor"," ",L51/M51) -> 6.884552411 | Q51: =IFERROR(IF($AD$15=TRUE,(H51*T51),D51),0) -> N/A | R51: =IFERROR(IF($AD$15=TRUE,(H51*U51),E51),0) -> 0 | S51: =IFERROR(IF($AD$15=TRUE,(H51*V51),F51),0) -> N/A | T51: =IFERROR(D51/G51,0) -> 0 | U51: =IFERROR(E51/G51,0) -> 0 | V51: =IFERROR(F51/G51,0) -> 0 | AC51: =Implements!AI120 -> TRUE | AD51: =Implements!AJ120 -> TRUE
B52: =CONCATENATE("Para-Till 2 — ",Implements!F121) -> Para-Till 2 — 3 Shank | C52: =IF(Implements!C121=1,B18,IF(Implements!C121=2,B19,IF(Implements!C121=3,B20,IF(Implements!C121=4,B21,FALSE)))) -> JD 6190R | D52: =IF(C52="No Tractor"," ","N/A") -> N/A | E52: =IF(C52="No Tractor"," ",Implements!G221) -> 0 | F52: =IF(C52="No Tractor"," ","N/A") -> N/A | G52: =IF(C52="No Tractor"," ",Implements!K221) -> 0 | H52: =IF(C52="No Tractor"," ",Implements!M221) -> 100 | J52: =IF(C52="No Tractor"," ",Implements!BR155) -> 20.7328 | K52: =IF(C52="No Tractor"," ",Implements!BT155) -> 11.83328043 | L52: =IF(C52="No Tractor"," ",SUM(Implements!BQ155:BT155)) -> 40.34610249 | M52: =IF(C52="No Tractor"," ",Implements!AG155) -> 3.090909091 | N52: =IF(C52="No Tractor"," ",L52/M52) -> 13.05315081 | Q52: =IFERROR(IF($AD$15=TRUE,(H52*T52),D52),0) -> N/A | R52: =IFERROR(IF($AD$15=TRUE,(H52*U52),E52),0) -> 0 | S52: =IFERROR(IF($AD$15=TRUE,(H52*V52),F52),0) -> N/A | T52: =IFERROR(D52/G52,0) -> 0 | U52: =IFERROR(E52/G52,0) -> 0 | V52: =IFERROR(F52/G52,0) -> 0 | AC52: =Implements!AI121 -> TRUE | AD52: =Implements!AJ121 -> TRUE
B54: =CONCATENATE("Row Planter 1 — ",Implements!F122) -> Row Planter 1 — 4R-30 | C54: =IF(Implements!C122=1,B18,IF(Implements!C122=2,B19,IF(Implements!C122=3,B20,IF(Implements!C122=4,B21,FALSE)))) -> JD 6130D | D54: =IF(C54="No Tractor"," ","N/A") -> N/A | E54: =IF(C54="No Tractor"," ","N/A") -> N/A | F54: =IF(C54="No Tractor"," ",Implements!J222) -> 11.53846154 | G54: =IF(C54="No Tractor"," ",Implements!K222) -> 11.53846154 | H54: =IF(C54="No Tractor"," ",Implements!M222) -> 150 | J54: =IF(C54="No Tractor"," ",Implements!BR156) -> 14.1856 | K54: =IF(C54="No Tractor"," ",Implements!BT156) -> 8.145679976 | L54: =IF(C54="No Tractor"," ",SUM(Implements!BQ156:BT156)) -> 28.39089536 | M54: =IF(C54="No Tractor"," ",Implements!AG156) -> 4.333333333 | N54: =IF(C54="No Tractor"," ",L54/M54) -> 6.551745083 | Q54: =IFERROR(IF($AD$15=TRUE,(H54*T54),D54),0) -> N/A | R54: =IFERROR(IF($AD$15=TRUE,(H54*U54),E54),0) -> N/A | S54: =IFERROR(IF($AD$15=TRUE,(H54*V54),F54),0) -> 11.53846154 | T54: =IFERROR(D54/G54,0) -> 0 | U54: =IFERROR(E54/G54,0) -> 0 | V54: =IFERROR(F54/G54,0) -> 1 | AC54: =Implements!AI122 -> TRUE | AD54: =Implements!AJ122 -> TRUE
B55: =CONCATENATE("Row Planter 2 — ",Implements!F123) -> Row Planter 2 — 6R-30 | C55: =IF(Implements!C123=1,B18,IF(Implements!C123=2,B19,IF(Implements!C123=3,B20,IF(Implements!C123=4,B21,FALSE)))) -> JD 6150M | D55: =IF(C55="No Tractor"," ","N/A") -> N/A | E55: =IF(C55="No Tractor"," ","N/A") -> N/A | F55: =IF(C55="No Tractor"," ",Implements!J223) -> 7.692307692 | G55: =IF(C55="No Tractor"," ",Implements!K223) -> 7.692307692 | H55: =IF(C55="No Tractor"," ",Implements!M223) -> 150 | J55: =IF(C55="No Tractor"," ",Implements!BR157) -> 16.368 | K55: =IF(C55="No Tractor"," ",Implements!BT157) -> 16.18884051 | L55: =IF(C55="No Tractor"," ",SUM(Implements!BQ157:BT157)) -> 44.34241743 | M55: =IF(C55="No Tractor"," ",Implements!AG157) -> 6.5 | N55: =IF(C55="No Tractor"," ",L55/M55) -> 6.821910374 | Q55: =IFERROR(IF($AD$15=TRUE,(H55*T55),D55),0) -> N/A | R55: =IFERROR(IF($AD$15=TRUE,(H55*U55),E55),0) -> N/A | S55: =IFERROR(IF($AD$15=TRUE,(H55*V55),F55),0) -> 7.692307692 | T55: =IFERROR(D55/G55,0) -> 0 | U55: =IFERROR(E55/G55,0) -> 0 | V55: =IFERROR(F55/G55,0) -> 1 | AC55: =Implements!AI123 -> TRUE | AD55: =Implements!AJ123 -> TRUE
B57: =CONCATENATE("Fertilizer/Lime Application — ",Implements!F134," ft") -> Fertilizer/Lime Application — 40 ft | C57: =IF(Implements!C134=1,B18,IF(Implements!C134=2,B19,IF(Implements!C134=3,B20,IF(Implements!C134=4,B21,FALSE)))) -> JD 5075E | D57: =IF(C57="No Tractor"," ",Implements!D224) -> 0.2104591837 | E57: =IF(C57="No Tractor"," ",Implements!G224) -> 0.1403061224 | F57: =IF(C57="No Tractor"," ",Implements!J224) -> 2.104591837 | G57: =IF(C57="No Tractor"," ",Implements!K224) -> 2.455357143 | H57: =IF(C57="No Tractor"," ",Implements!M224) -> 800 | J57: =IF(C57="No Tractor"," ",Implements!BR158) -> 8.184 | K57: =IF(C57="No Tractor"," ",Implements!BT158) -> 9.925493534 | L57: =IF(C57="No Tractor"," ",SUM(Implements!BQ158:BR158)) -> 8.57334949 | M57: =IF(C57="No Tractor"," ",Implements!AG158) -> 23.75757576 | N57: =IF(C57="No Tractor"," ",L57/M57) -> 0.360868027 | Q57: =IFERROR(IF($AD$15=TRUE,(H57*T57),D57),0) -> 0.2104591837 | R57: =IFERROR(IF($AD$15=TRUE,(H57*U57),E57),0) -> 0.1403061224 | S57: =IFERROR(IF($AD$15=TRUE,(H57*V57),F57),0) -> 2.104591837 | T57: =IFERROR(D57/G57,0) -> 0.08571428571 | U57: =IFERROR(E57/G57,0) -> 0.05714285714 | V57: =IFERROR(F57/G57,0) -> 0.8571428571 | AC57: =Implements!AI134 -> FALSE | AD57: =Implements!AJ134 -> TRUE
B60: Harvesting Implement/Operation | C60: Tractor Selection | D60: Prorated Annual Use Hours | G60: Acre-Based Use Hours | H60: Specified Use Hours | J60: Fuel Cost $ per Hour | K60: Capital Recovery $ per Hour | L60: Total Cost $ per Hour | M60: Acres per Hour | N60: Total Cost $ per Acre
D61: Switchgrass | E61: Miscanthus | F61: E. Sorghum | Q61: Switchgrass | R61: Miscanthus | S61: Sorghum | T61: Switchgrass | U61: Miscanthus | V61: Sorghum
B63: =CONCATENATE(Implements!B124," (Yr 2) — ",Implements!F124," ft") -> Disk Mower Conditioner (Yr 2) — 9 ft | C63: =IF(Implements!C124=1,B18,IF(Implements!C124=2,B19,IF(Implements!C124=3,B20,IF(Implements!C124=4,B21,IF(Implements!C124=0,"N/A"))))) -> JD 5075E | D63: =IF(C63="No Tractor"," ",Implements!E225) -> 6.163962635 | E63: =IF(C63="No Tractor"," ",Implements!H225) -> 8.824408716 | F63: =IF(C63="No Tractor"," ",Implements!J225) -> 12.06140351 | G63: =IF(C63="No Tractor"," ",Implements!K225) -> 27.04977486 | H63: =IF(C63="No Tractor"," ",Implements!M225) -> 200 | J63: =IF(C63="No Tractor"," ",Implements!$BZ179) -> 4.092 | K63: =IF(C63="No Tractor"," ",Implements!$CB179) -> 8.858047913 | L63: =IF(C63="No Tractor"," ",Implements!CC179) -> 31.16314791 | M63: =IF(C63="No Tractor"," ",Implements!$AQ179) -> 8.218181818 | N63: =IF(C63="No Tractor"," ",L63/M63) -> 3.791975963 | Q63: =IFERROR(IF($AD$15=TRUE,(H63*T63),D63),0) -> 6.163962635 | R63: =IFERROR(IF($AD$15=TRUE,(H63*U63),E63),0) -> 8.824408716 | S63: =IFERROR(IF($AD$15=TRUE,(H63*V63),F63),0) -> 12.06140351 | T63: =IFERROR(D63/G63,0) -> 0.2278748221 | U63: =IFERROR(E63/G63,0) -> 0.3262285458 | V63: =IFERROR(F63/G63,0) -> 0.4458966321 | AC63: =IF(C63="N/A",TRUE,Implements!AI124) -> FALSE | AD63: =IF(C63="N/A",TRUE,Implements!AJ124) -> FALSE
B64: =CONCATENATE(Implements!B124," (Yr 3+)") -> Disk Mower Conditioner (Yr 3+)
B65: =CONCATENATE(Implements!B125," (Yr 2) — ",Implements!F125," ft") -> SP Mower Conditioner — 235 hp (Yr 2) — 13 ft | C65: =IF(Implements!C125=1,B18,IF(Implements!C125=2,B19,IF(Implements!C125=3,B20,IF(Implements!C125=4,B21,IF(C112=0,"N/A"))))) -> N/A | D65: =IF(C65="No Tractor"," ",Implements!E227) -> 4.267358747 | E65: =IF(C65="No Tractor"," ",Implements!H227) -> 6.109206034 | F65: =IF(C65="No Tractor"," ",Implements!J227) -> 8.350202429 | G65: =IF(C65="No Tractor"," ",Implements!K227) -> 18.72676721 | H65: =IF(C65="No Tractor"," ",Implements!M227) -> 600 | J65: =IF(C65="No Tractor"," ",Implements!$BZ181) -> 12.8216 | K65: =IF(C65="No Tractor"," ",Implements!$CB181) -> 12.00223323 | L65: =IF(C65="No Tractor"," ",Implements!CC181) -> 42.57199723 | M65: =IF(C65="No Tractor"," ",Implements!$AQ181) -> 11.87070707 | N65: =IF(C65="No Tractor"," ",L65/M65) -> 3.586306778 | Q65: =IFERROR(IF($AD$15=TRUE,(H65*T65),D65),0) -> 4.267358747 | R65: =IFERROR(IF($AD$15=TRUE,(H65*U65),E65),0) -> 6.109206034 | S65: =IFERROR(IF($AD$15=TRUE,(H65*V65),F65),0) -> 8.350202429 | T65: =IFERROR(D65/G65,0) -> 0.2278748221 | U65: =IFERROR(E65/G65,0) -> 0.3262285458 | V65: =IFERROR(F65/G65,0) -> 0.4458966321 | AC65: =IF(C65="N/A",TRUE,Implements!AI125) -> TRUE | AD65: =IF(C65="N/A",TRUE,Implements!AJ125) -> TRUE
B66: =CONCATENATE(Implements!B125," (Yr 3+)") -> SP Mower Conditioner — 235 hp (Yr 3+)
B68: =CONCATENATE("Hay Rake 1 (Yr 2) — ",Implements!F126," ft") -> Hay Rake 1 (Yr 2) — 17 ft | C68: =IF(Implements!C126=1,B18,IF(Implements!C126=2,B19,IF(Implements!C126=3,B20,IF(Implements!C126=4,B21,FALSE)))) -> JD 5075E | D68: =IF(C68="No Tractor"," ",Implements!E229) -> 0 | E68: =IF(C68="No Tractor"," ",Implements!H229) -> 0 | F68: =IF(C68="No Tractor"," ",Implements!J229) -> 0 | G68: =IF(C68="No Tractor"," ",Implements!K229) -> 0 | H68: =IF(C68="No Tractor"," ",Implements!M229) -> 200 | J68: =IF(C68="No Tractor"," ",Implements!BZ183) -> 8.184 | K68: =IF(C68="No Tractor"," ",Implements!CB183) -> 8.298442133 | L68: =IF(C68="No Tractor"," ",Implements!CC183) -> 33.26456213 | M68: =IF(C68="No Tractor"," ",Implements!AQ183) -> 9.890909091 | N68: =IF(C68="No Tractor"," ",L68/M68) -> 3.363145069 | Q68: =IFERROR(IF($AD$15=TRUE,(H68*T68),D68),0) -> 0 | R68: =IFERROR(IF($AD$15=TRUE,(H68*U68),E68),0) -> 0 | S68: =IFERROR(IF($AD$15=TRUE,(H68*V68),F68),0) -> 0 | T68: =IFERROR(D68/G68,0) -> 0 | U68: =IFERROR(E68/G68,0) -> 0 | V68: =IFERROR(F68/G68,0) -> 0 | AC68: =Implements!AI126 -> TRUE | AD68: =Implements!AJ126 -> TRUE
B69: =CONCATENATE("Hay Rake 1 (Yr 3+)") -> Hay Rake 1 (Yr 3+)
B70: =CONCATENATE("Hay Rake 2 (Yr 2) — ",Implements!F127," ft") -> Hay Rake 2 (Yr 2) — 17 ft | C70: =IF(Implements!C127=1,B18,IF(Implements!C127=2,B19,IF(Implements!C127=3,B20,IF(Implements!C127=4,B21,FALSE)))) -> JD 5075E | D70: =IF(C70="No Tractor"," ",Implements!E231) -> 0 | E70: =IF(C70="No Tractor"," ",Implements!H231) -> 0 | F70: =IF(C70="No Tractor"," ",Implements!J231) -> 0 | G70: =IF(C70="No Tractor"," ",Implements!K231) -> 0 | H70: =IF(C70="No Tractor"," ",Implements!M231) -> 200 | J70: =IF(C70="No Tractor"," ",Implements!BZ185) -> 0 | K70: =IF(C70="No Tractor"," ",Implements!CB185) -> 0 | L70: =IF(C70="No Tractor"," ",Implements!CC185) -> 0 | M70: =IF(C70="No Tractor"," ",Implements!AQ185) -> 0 | N70: =IF(C70="No Tractor"," ",L70/M70) ->  | Q70: =IFERROR(IF($AD$15=TRUE,(H70*T70),D70),0) -> 0 | R70: =IFERROR(IF($AD$15=TRUE,(H70*U70),E70),0) -> 0 | S70: =IFERROR(IF($AD$15=TRUE,(H70*V70),F70),0) -> 0 | T70: =IFERROR(D70/G70,0) -> 0 | U70: =IFERROR(E70/G70,0) -> 0 | V70: =IFERROR(F70/G70,0) -> 0 | AC70: =Implements!AI127 -> TRUE | AD70: =Implements!AJ127 -> TRUE
B71: =CONCATENATE("Hay Rake 2 (Yr 3+)") -> Hay Rake 2 (Yr 3+)
B73: =CONCATENATE("Baler 1 (Yr 2) — ",Implements!F128) -> Baler 1 (Yr 2) — 1250 lbs — 5 x 6 ft | C73: =IF(Implements!C128=1,B18,IF(Implements!C128=2,B19,IF(Implements!C128=3,B20,IF(Implements!C128=4,B21,FALSE)))) -> JD 5075E | D73: =IF(C73="No Tractor"," ",Implements!E233) -> 14.49477352 | E73: =IF(C73="No Tractor"," ",Implements!H233) -> 25.08710801 | F73: =IF(C73="No Tractor"," ",Implements!J233) -> 0 | G73: =IF(C73="No Tractor"," ",Implements!K233) -> 39.58188153 | H73: =IF(C73="No Tractor"," ",Implements!M233) -> 200 | J73: =IF(C73="No Tractor"," ",Implements!BZ187) -> 4.092 | K73: =IF(C73="No Tractor"," ",Implements!CB187) -> 13.31549895 | L73: =IF(C73="No Tractor"," ",Implements!CC187) -> 41.21709895 | M73: =IF(C73="No Tractor"," ",CONCATENATE(ROUND(MIN(Implements!AQ187:AS187),1)," - ",ROUND(MAX(Implements!AQ187:AS187),1))) -> 1.5 - 4.5 | N73: =IF(C73="No Tractor"," ",CONCATENATE("$",ROUND(MIN(Implements!CF187:CH187),2)," – ",ROUND(MAX(Implements!CF187:CH187),2))) -> $9.19 – 27.57 | Q73: =IFERROR(IF($AD$15=TRUE,(H73*T73),D73),0) -> 14.49477352 | R73: =IFERROR(IF($AD$15=TRUE,(H73*U73),E73),0) -> 25.08710801 | S73: =IFERROR(IF($AD$15=TRUE,(H73*V73),F73),0) -> 0 | T73: =IFERROR(D73/G73,0) -> 0.3661971831 | U73: =IFERROR(E73/G73,0) -> 0.6338028169 | V73: =IFERROR(F73/G73,0) -> 0 | AC73: =Implements!AI128 -> TRUE | AD73: =Implements!AJ128 -> TRUE
B74: =CONCATENATE("Baler 1 (Yr 3+)") -> Baler 1 (Yr 3+) | M74: =IF(C73="No Tractor"," ",CONCATENATE(ROUND(MIN(Implements!AQ188:AS188),1)," - ",ROUND(MAX(Implements!AQ188:AS188),1))) -> 1.8 - 3 | N74: =IF(C73="No Tractor"," ",CONCATENATE("$",ROUND(MIN(Implements!CF188:CH188),2)," – ",ROUND(MAX(Implements!CF188:CH188),2))) -> $13.79 – 22.98 | Y74: Bale Hauler 1 | Z74: Bale Hauler 2
B75: =CONCATENATE("Baler 2 (Yr 2) — ",Implements!F129) -> Baler 2 (Yr 2) — 2100 lbs — 3 x 4 x 9.5 ft | C75: =IF(Implements!C129=1,B18,IF(Implements!C129=2,B19,IF(Implements!C129=3,B20,IF(Implements!C129=4,B21,FALSE)))) -> JD 6190R | D75: =IF(C75="No Tractor"," ",Implements!E233) -> 14.49477352 | E75: =IF(C75="No Tractor"," ",Implements!H233) -> 25.08710801 | F75: =IF(C75="No Tractor"," ",Implements!J233) -> 0 | G75: =IF(C75="No Tractor"," ",Implements!K233) -> 39.58188153 | H75: =IF(C75="No Tractor"," ",Implements!M235) -> 200 | J75: =IF(C75="No Tractor"," ",Implements!BZ189) -> 10.3664 | K75: =IF(C75="No Tractor"," ",Implements!CB189) -> 42.48068247 | L75: =IF(C75="No Tractor"," ",Implements!CC189) -> 87.38546997 | M75: =IF(C75="No Tractor"," ",CONCATENATE(ROUND(MIN(Implements!AQ189:AS189),1)," - ",ROUND(MAX(Implements!AQ189:AS189),1))) -> 5.7 - 17.2 | N75: =IF(C75="No Tractor"," ",CONCATENATE("$",ROUND(MIN(Implements!CF189:CH189),2)," – ",ROUND(MAX(Implements!CF189:CH189),2))) -> $5.07 – 15.22 | Q75: =IFERROR(IF($AD$15=TRUE,(H75*T75),D75),0) -> 14.49477352 | R75: =IFERROR(IF($AD$15=TRUE,(H75*U75),E75),0) -> 25.08710801 | S75: =IFERROR(IF($AD$15=TRUE,(H75*V75),F75),0) -> 0 | T75: =IFERROR(D75/G75,0) -> 0.3661971831 | U75: =IFERROR(E75/G75,0) -> 0.6338028169 | V75: =IFERROR(F75/G75,0) -> 0 | AC75: =Implements!AI129 -> TRUE | AD75: =Implements!AJ129 -> TRUE
B76: =CONCATENATE("Baler 2 (Yr 3+)") -> Baler 2 (Yr 3+) | M76: =IF(C75="No Tractor"," ",CONCATENATE(ROUND(MIN(Implements!AQ190:AS190),1)," - ",ROUND(MAX(Implements!AQ190:AS190),1))) -> 6.9 - 11.5 | N76: =IF(C75="No Tractor"," ",CONCATENATE("$",ROUND(MIN(Implements!CF190:CH190),2)," – ",ROUND(MAX(Implements!CF190:CH190),2))) -> $7.61 – 12.69
B78: =CONCATENATE("Bale Hauler 1 (Yr 2) — ",Implements!F132) -> Bale Hauler 1 (Yr 2) — 14 — 5 x 6 ft (Lrg Rd) | C78: =IF(Implements!C132=1,B18,IF(Implements!C132=2,B19,IF(Implements!C132=3,B20,IF(Implements!C132=4,B21,FALSE)))) -> JD 5075E | D78: =IF(C78="No Tractor"," ",Implements!E237) -> 12.07897793 | E78: =IF(C78="No Tractor"," ",Implements!H237) -> 20.90592334 | F78: =IF(C78="No Tractor"," ",Implements!J237) -> 0 | G78: =IF(C78="No Tractor"," ",Implements!K237) -> 32.98490128 | H78: =IF(C78="No Tractor"," ",Implements!M237) -> 200 | J78: =IF(C78="No Tractor"," ",Implements!BZ191) -> 4.092 | K78: =IF(C78="No Tractor"," ",Implements!CB191) -> 9.19813752 | L78: =IF(C78="No Tractor"," ",Implements!CC191) -> 29.86988752 | M78: =IF(C78="No Tractor"," ",CONCATENATE(ROUND(MIN(Implements!AQ191:AS191),1)," - ",ROUND(MAX(Implements!AQ191:AS191),1))) -> 1.8 - 5.4 | N78: =IF(C78="No Tractor"," ",CONCATENATE("$",ROUND(MIN(Implements!CF191:CH191),2)," – ",ROUND(MAX(Implements!CF191:CH191),2))) -> $5.55 – 16.65 | Q78: =IFERROR(IF($AD$15=TRUE,(H78*T78),D78),0) -> 12.07897793 | R78: =IFERROR(IF($AD$15=TRUE,(H78*U78),E78),0) -> 20.90592334 | S78: =IFERROR(IF($AD$15=TRUE,(H78*V78),F78),0) -> 0 | T78: =IFERROR(D78/G78,0) -> 0.3661971831 | U78: =IFERROR(E78/G78,0) -> 0.6338028169 | V78: =IFERROR(F78/G78,0) -> 0 | X78: Baler 1 | Y78: =IF(AND(Implements!F128=Implements!C164,Implements!F132=Implements!J164),TRUE,IF(AND(Implements!F128=Implements!C165,Implements!F132=Implements!J165),TRUE,IF(AND(Implements!F128=Implements!C166,Implements!F132=Implements!J166),TRUE,FALSE))) -> TRUE | Z78: =IF(AND(Implements!F128=Implements!C164,Implements!F133=Implements!J164),TRUE,IF(AND(Implements!F128=Implements!C165,Implements!F133=Implements!J165),TRUE,IF(AND(Implements!F128=Implements!C166,Implements!F133=Implements!J166),TRUE,FALSE))) -> FALSE | AA78: =IF(OR(Y78=TRUE,Z78=TRUE),"TRUE","FALSE") -> TRUE | AC78: =Implements!AI132 -> TRUE | AD78: =Implements!AJ132 -> TRUE
B79: =CONCATENATE("Bale Hauler 1 (Yr 3+)") -> Bale Hauler 1 (Yr 3+) | M79: =IF(C78="No Tractor"," ",CONCATENATE(ROUND(MIN(Implements!AQ192:AS192),1)," - ",ROUND(MAX(Implements!AQ192:AS192),1))) -> 2.2 - 3.6 | N79: =IF(C78="No Tractor"," ",CONCATENATE("$",ROUND(MIN(Implements!CF192:CH192),2)," – ",ROUND(MAX(Implements!CF192:CH192),2))) -> $8.33 – 13.88
B80: =CONCATENATE("Bale Hauler 2 (Yr 2) — ",Implements!F133) -> Bale Hauler 2 (Yr 2) — 16 — 3 x 4 x 9 ft (Lrg Sq) | C80: =IF(Implements!C133=1,B18,IF(Implements!C133=2,B19,IF(Implements!C133=3,B20,IF(Implements!C133=4,B21,FALSE)))) -> JD 5075E | D80: =IF(C80="No Tractor"," ",Implements!E239) -> 6.29113434 | E80: =IF(C80="No Tractor"," ",Implements!H239) -> 10.88850174 | F80: =IF(C80="No Tractor"," ",Implements!J239) -> 0 | G80: =IF(C80="No Tractor"," ",Implements!K239) -> 17.17963608 | H80: =IF(C80="No Tractor"," ",Implements!M239) -> 200 | J80: =IF(C80="No Tractor"," ",Implements!BZ193) -> 4.092 | K80: =IF(C80="No Tractor"," ",Implements!CB193) -> 12.85644397 | L80: =IF(C80="No Tractor"," ",Implements!CC193) -> 34.77094397 | M80: =IF(C80="No Tractor"," ",CONCATENATE(ROUND(MIN(Implements!AQ193:AS193),1)," - ",ROUND(MAX(Implements!AQ193:AS193),1))) -> 3.4 - 10.3 | N80: =IF(C80="No Tractor"," ",CONCATENATE("$",ROUND(MIN(Implements!CF193:CH193),2)," – ",ROUND(MAX(Implements!CF193:CH193),2))) -> $3.37 – 10.1 | Q80: =IFERROR(IF($AD$15=TRUE,(H80*T80),D80),0) -> 6.29113434 | R80: =IFERROR(IF($AD$15=TRUE,(H80*U80),E80),0) -> 10.88850174 | S80: =IFERROR(IF($AD$15=TRUE,(H80*V80),F80),0) -> 0 | T80: =IFERROR(D80/G80,0) -> 0.3661971831 | U80: =IFERROR(E80/G80,0) -> 0.6338028169 | V80: =IFERROR(F80/G80,0) -> 0 | X80: Baler 2 | Y80: =IF(AND(Implements!F129=Implements!C164,Implements!F132=Implements!J164),TRUE,IF(AND(Implements!F129=Implements!C165,Implements!F132=Implements!J165),TRUE,IF(AND(Implements!F129=Implements!C166,Implements!F132=Implements!J166),TRUE,FALSE))) -> FALSE | Z80: =IF(AND(Implements!F129=Implements!C164,Implements!F133=Implements!J164),TRUE,IF(AND(Implements!F129=Implements!C165,Implements!F133=Implements!J165),TRUE,IF(AND(Implements!F129=Implements!C166,Implements!F133=Implements!J166),TRUE,FALSE))) -> TRUE | AA80: =IF(OR(Y80=TRUE,Z80=TRUE),"TRUE","FALSE") -> TRUE | AC80: =Implements!AI133 -> FALSE | AD80: =Implements!AJ133 -> TRUE
B81: =CONCATENATE("Bale Hauler 2 (Yr 3+)") -> Bale Hauler 2 (Yr 3+) | M81: =IF(C80="No Tractor"," ",CONCATENATE(ROUND(MIN(Implements!AQ194:AS194),1)," - ",ROUND(MAX(Implements!AQ194:AS194),1))) -> 4.1 - 6.9 | N81: =IF(C80="No Tractor"," ",CONCATENATE("$",ROUND(MIN(Implements!CF194:CH194),2)," – ",ROUND(MAX(Implements!CF194:CH194),2))) -> $5.05 – 8.41
B83: =CONCATENATE("Forage Harvester 1 (Yr 2) — ",Implements!F130," hp") -> Forage Harvester 1 (Yr 2) — 375 hp | C83: N/A | D83: =Implements!E241 -> 0 | E83: =Implements!H241 -> 0 | F83: =Implements!J241 -> 15.77142857 | G83: =Implements!K241 -> 15.77142857 | H83: =Implements!M241 -> 300 | J83: =Implements!BZ195 -> 40.92 | K83: =Implements!CB195 -> 82.40429365 | L83: =Implements!CC195 -> 167.1220936 | M83: =CONCATENATE(ROUND(MIN(Implements!AQ195:AS195),1)," - ",ROUND(MAX(Implements!AQ195:AS195),1)) -> 3.2 - 9.5 | N83: =CONCATENATE("$",ROUND(MIN(Implements!CF195:CH195),2)," – ",ROUND(MAX(Implements!CF195:CH195),2)) -> $17.57 – 52.72 | Q83: =IFERROR(IF($AD$15=TRUE,(H83*T83),D83),0) -> 0 | R83: =IFERROR(IF($AD$15=TRUE,(H83*U83),E83),0) -> 0 | S83: =IFERROR(IF($AD$15=TRUE,(H83*V83),F83),0) -> 15.77142857 | T83: =IFERROR(D83/G83,0) -> 0 | U83: =IFERROR(E83/G83,0) -> 0 | V83: =IFERROR(F83/G83,0) -> 1 | Y83: =IF(OR(Y78=TRUE,Y80=TRUE),"TRUE","FALSE") -> TRUE | Z83: =IF(OR(Z78=TRUE,Z80=TRUE),"TRUE","FALSE") -> TRUE
B84: =CONCATENATE("Forage Harvester 1 (Yr 3+)") -> Forage Harvester 1 (Yr 3+) | M84: =CONCATENATE(ROUND(MIN(Implements!AQ196:AS196),1)," - ",ROUND(MAX(Implements!AQ196:AS196),1)) -> 3.8 - 6.3 | N84: =CONCATENATE("$",ROUND(MIN(Implements!CF196:CH196),2)," – ",ROUND(MAX(Implements!CF196:CH196),2)) -> $26.36 – 43.93
B85: =CONCATENATE("Forage Harvester 2 (Yr 2) — ",Implements!F131," hp") -> Forage Harvester 2 (Yr 2) — 800 hp | C85: N/A | D85: =Implements!E243 -> 0 | E85: =Implements!H243 -> 0 | F85: =Implements!J243 -> 0 | G85: =Implements!K243 -> 0 | H85: =Implements!M243 -> 300 | J85: =Implements!BZ197 -> 0 | K85: =Implements!CB197 -> 0 | L85: =Implements!CC197 -> 0 | M85: =CONCATENATE(ROUND(MIN(Implements!AQ197:AS197),1)," - ",ROUND(MAX(Implements!AQ197:AS197),1)) -> 0 - 0 | N85: =CONCATENATE("$",ROUND(MIN(Implements!CF197:CH197),2)," – ",ROUND(MAX(Implements!CF197:CH197),2)) -> $0 – 0 | Q85: =IFERROR(IF($AD$15=TRUE,(H85*T85),D85),0) -> 0 | R85: =IFERROR(IF($AD$15=TRUE,(H85*U85),E85),0) -> 0 | S85: =IFERROR(IF($AD$15=TRUE,(H85*V85),F85),0) -> 0 | T85: =IFERROR(D85/G85,0) -> 0 | U85: =IFERROR(E85/G85,0) -> 0 | V85: =IFERROR(F85/G85,0) -> 0
B86: =CONCATENATE("Forage Harvester 2 (Yr 3+)") -> Forage Harvester 2 (Yr 3+) | M86: =CONCATENATE(ROUND(MIN(Implements!AQ198:AS198),1)," - ",ROUND(MAX(Implements!AQ198:AS198),1)) -> 0 - 0 | N86: =CONCATENATE("$",ROUND(MIN(Implements!CF198:CH198),2)," – ",ROUND(MAX(Implements!CF198:CH198),2)) -> $0 – 0
B89: Custom Operations | E89: Please do not use copy and paste when modifying information across a range of cells. Special formatting was applied to allow for at least some error checking and is voided if using copy and paste.
C90: Benchmark | D90: Producer
B91: Operation
B93: Veggie Planting ($/acre) | C93: 15.35 | D93: 15.35 | E93: Disclaimer: The information provided within represents estimates that are a result of a set of complex calculations that are described in more detail in the user manual. Changes in parameter values and its implications on returns are estimates and the user should use their own reasonable judgment to reflect whether the direction of change in returns is appropriate before acting on the results. As such, this software is provided ‘as is’ and without warranties as to performance of merchantability. Further, statements may have been made to you about this software. Any such statements do not constitute warranties and shall not be relied on by the user in deciding whether to use the program or act on its results. This program is provided without any expressed or implied warranties whatsoever. Because the diversity of conditions and hardware under which this program may be used, no warranty of merchantability or warranty of fitness for a particular purpose is offered. The user is advised to test the program thoroughly before relying on it. The user assumes the entire risk of using the program. The University of Arkansas will not be liable for any claim or damage brought against the user by any third party, nor will the University of Arkansas be liable for any consequential, indirect or special damages suffered by the user as a result of the software.
B95: Para-Tilling ($/acre) | C95: 14.17 | D95: 14.17
B97: Mowing ($/acre) | C97: 9.23 | D97: 9.23
B99: Planting ($/acre) | C99: =(9.4+10.4)/2 -> 9.9 | D99: 9.9
B101: Baling ($/bale) | C101: 14.64 | D101: 14.64
B103: Bale Hauling ($/bale) | C103: 5.78 | D103: 5.78
B105: Forage Harvesting ($/acre) | C105: 44.99 | D105: 44.99

Sheet Implements (hidden)
B3: Table 1 | N3: 0 | Y3: Table 2
B4: Implement Standard Values | D4: *Note: This table contains lists (hot pink) used and standard values (light green) for machinery userforms. Do not delete without making necessary adjustments to ensure functionality. | N4: 100 | Y4: Tractor Values
B5: Implement | C5: Size/HP | D5: Suggested (list) Purchase Price | E5: Hours at Purchase (New) | F5: Estimated UL Hours | G5: Estimated UL Years | H5: Expected Operation Hours/Year | I5: Standard Use Hours | J5: RV | K5: Expected SV | L5: Labor | M5: Fuel | N5: Hrs. per Acre | O5: Repair Factor (% of list price) | P5: Field Efficiency (%) | Q5: Field Speed (mph) | R5: RF1 | S5: RF2 | T5: C1 | U5: C2 | V5: C3 | W5: Tractor Requirements | Y5: Tractors | AA5: Suggested Price | AB5: Hours at Purchase (New) | AC5: Useful Life | AD5: HP | AE5: Estimated UL Hours | AF5: Estimated UL Years | AG5: User Expected Operating Years | AH5: RV | AI5: SV | AJ5: Fuel | AK5: Standard Use Hours | AN5: RF1 | AO5: RF2 | AP5: C1 | AQ5: C2 | AR5: C3 | AS5: Repair Factor (% of list price)
B6: Disk | C6: 14 | D6: 21800 | E6: 0 | F6: 2000 | G6: =F6/I6 -> 10 | H6: =(F6-E6)/I6 -> 10 | I6: 200 | J6: =(T6-U6*G6^0.5-V6^0.5)^2 -> 0.2950113331 | K6: =D6*J6 -> 6431.247061 | L6: 0 | M6: 0 | N6: =1/((5280/43560)*$C6*P6*Q6) -> 0.1540616246 | O6: 0.6 | P6: 0.85 | Q6: 4.5 | R6: 0.18 | S6: 1.7 | T6: 0.891 | U6: 0.11 | V6: 0 | W6: 130 | Y6: 2 WD 50 | AA6: 33700 | AB6: 0 | AC6: 0.25 | AD6: 50 | AE6: 12000 | AF6: =AE6/AK6 -> 20 | AG6: =(AE6-AB6)/AK6 -> 20 | AH6: =(VLOOKUP(Y6,$AL$6:$AR$15,5,FALSE)-(VLOOKUP(Y6,$AL$6:$AR$15,6,FALSE)*AF6^0.5)-VLOOKUP(Y6,$AL$6:$AR$15,7,FALSE)^0.5)^2 -> 0.2390560898 | AI6: =AA6*(AH6) -> 8056.190226 | AJ6: =0.044*AD6 -> 2.2 | AK6: 600 | AL6: 2 WD 50 | AN6: 0.007 | AO6: 2 | AP6: 0.981 | AQ6: 0.093 | AR6: 0.0058 | AS6: 1
C7: 24 | D7: 42600 | E7: 0 | F7: 2000 | G7: 10 | H7: 10 | I7: 200 | J7: =(T7-U7*G7^0.5-V7^0.5)^2 -> 0.2950113331 | K7: =D7*J7 -> 12567.48279 | L7: 0 | M7: 0 | N7: =1/((5280/43560)*$C7*P7*Q7) -> 0.08986928105 | O7: 0.6 | P7: 0.85 | Q7: 4.5 | R7: 0.18 | S7: 1.7 | T7: 0.891 | U7: 0.11 | V7: 0 | W7: 190 | Y7: MFWD 50 | AA7: 38900 | AB7: 0 | AC7: 0.25 | AD7: 50 | AE7: 16000 | AF7: 26.66666667 | AG7: 26.66666667 | AH7: 0.1802786501 | AI7: 7012.839489 | AJ7: 2.2 | AK7: 600 | AL7: MFWD 50 | AN7: 0.003 | AO7: 2 | AP7: 0.981 | AQ7: 0.093 | AR7: 0.0058 | AS7: 0.8
C8: 32 | D8: 50800 | E8: 0 | F8: 2000 | G8: 10 | H8: 10 | I8: 200 | J8: 0.2950113331 | K8: 14986.57572 | L8: 0 | M8: 0 | N8: =1/((5280/43560)*$C8*P8*Q8) -> 0.06740196078 | O8: 0.6 | P8: 0.85 | Q8: 4.5 | R8: 0.18 | S8: 1.7 | T8: 0.891 | U8: 0.11 | V8: 0 | W8: 190 | Y8: 2 WD 75 | AA8: 43400 | AB8: 0 | AC8: 0.25 | AD8: 75 | AE8: 12000 | AF8: 20 | AG8: 20 | AH8: 0.2390560898 | AI8: 10375.0343 | AJ8: 3.3 | AK8: 600 | AL8: 2 WD 75 | AN8: 0.007 | AO8: 2 | AP8: 0.981 | AQ8: 0.093 | AR8: 0.0058 | AS8: 1
B9: Cultipacker | C9: 12 | D9: 4130 | E9: 0 | F9: 2000 | G9: 6.666666667 | H9: 6.666666667 | I9: 300 | J9: 0.368426203 | K9: 1521.600218 | L9: 0 | M9: 0 | N9: =1/((5280/43560)*$C9*P9*Q9) -> 0.1244343891 | O9: 0.4 | P9: 0.85 | Q9: 6.5 | R9: 0.16 | S9: 1.3 | T9: 0.891 | U9: 0.11 | V9: 0 | W9: 130 | Y9: MFWD 75 | AA9: 47900 | AB9: 0 | AC9: 0.25 | AD9: 75 | AE9: 16000 | AF9: 26.66666667 | AG9: 26.66666667 | AH9: 0.1802786501 | AI9: 8635.34734 | AJ9: 3.3 | AK9: 600 | AL9: MFWD 75 | AN9: 0.003 | AO9: 2 | AP9: 0.981 | AQ9: 0.093 | AR9: 0.0058 | AS9: 0.8
C10: 20 | D10: 16200 | E10: 0 | F10: 2000 | G10: 6.666666667 | H10: 6.666666667 | I10: 300 | J10: 0.368426203 | K10: 5968.504488 | L10: 0 | M10: 0 | N10: =1/((5280/43560)*$C10*P10*Q10) -> 0.07466063348 | O10: 0.4 | P10: 0.85 | Q10: 6.5 | R10: 0.16 | S10: 1.3 | T10: 0.891 | U10: 0.11 | V10: 0 | W10: 150 | Y10: 2 WD 105 | AA10: 63100 | AB10: 0 | AC10: 0.29 | AD10: 105 | AE10: 12000 | AF10: 20 | AG10: 20 | AH10: 0.2176242403 | AI10: 13732.08956 | AJ10: 4.62 | AK10: 600 | AL10: 2 WD 105 | AN10: 0.007 | AO10: 2 | AP10: 0.942 | AQ10: 0.1 | AR10: 0.0008 | AS10: 1
B11: No-Till Grain Drill | C11: 12 | D11: 42000 | E11: 0 | F11: 1500 | G11: 10 | H11: 10 | I11: 150 | J11: 0.4049315769 | K11: 17007.12623 | L11: 0 | M11: 0 | N11: =1/((5280/43560)*$C11*Q11*P11) -> 0.1964285714 | O11: 0.75 | P11: 0.7 | Q11: 5 | R11: 0.32 | S11: 2.1 | T11: 0.883 | U11: 0.078 | V11: 0 | W11: 130 | Y11: MFWD 105 | AA11: 74400 | AB11: 0 | AC11: 0.29 | AD11: 105 | AE11: 16000 | AF11: 26.66666667 | AG11: 26.66666667 | AH11: 0.1578615528 | AI11: 11744.89953 | AJ11: 4.62 | AK11: 600 | AL11: MFWD 105 | AN11: 0.003 | AO11: 2 | AP11: 0.942 | AQ11: 0.1 | AR11: 0.0008 | AS11: 0.8
B12: Disk Mower Conditioner | C12: 9 | D12: 23535 | E12: 0 | F12: 2500 | G12: 12.5 | H12: 12.5 | I12: 200 | J12: 0.2694847732 | K12: 6342.324137 | L12: 0 | M12: 0 | N12: =(((SUM((AVERAGE($M$161+$M$162)/(AH18/$E162*P12)+(AVERAGE($M$165+$M$166)/(AH18/$E162*P12)+(M163/(AH18/$E162*P12))))))/3)) -> 0.6783333333 | O12: 1 | P12: 0.8 | Q12: 5 | R12: 0.18 | S12: 1.6 | T12: 0.756 | U12: 0.067 | V12: 0 | W12: 75 | Y12: 2 WD 130 | AA12: 96300 | AB12: 0 | AC12: 0.29 | AD12: 130 | AE12: 12000 | AF12: 20 | AG12: 20 | AH12: 0.2176242403 | AI12: 20957.21434 | AJ12: 5.72 | AK12: 600 | AL12: 2 WD 130 | AN12: 0.007 | AO12: 2 | AP12: 0.942 | AQ12: 0.1 | AR12: 0.0008 | AS12: 1
C13: 12 | D13: 28156 | E13: 0 | F13: 2500 | G13: 12.5 | H13: 12.5 | I13: 200 | J13: 0.2694847732 | K13: 7587.613274 | L13: 0 | M13: 0 | N13: =(((SUM((AVERAGE($M$161+$M$162)/(AH19/$E163*P13)+(AVERAGE($M$165+$M$166)/(AH19/$E163*P13)+(M164/(AH19/$E163*P13))))))/3)) -> 0.2644230769 | O13: 1 | P13: 0.8 | Q13: 5 | R13: 0.18 | S13: 1.6 | T13: 0.756 | U13: 0.067 | V13: 0 | W13: 105 | Y13: MFWD 130 | AA13: 114000 | AB13: 0 | AC13: 0.29 | AD13: 130 | AE13: 16000 | AF13: 26.66666667 | AG13: 26.66666667 | AH13: 0.1578615528 | AI13: 17996.21702 | AJ13: 5.72 | AK13: 600 | AL13: MFWD 130 | AN13: 0.003 | AO13: 2 | AP13: 0.942 | AQ13: 0.1 | AR13: 0.0008 | AS13: 0.8
B14: Baler | C14: 1250 lbs — 5 x 6 ft | D14: 31207 | E14: 0 | F14: 1500 | G14: =F14/I14 -> 7.5 | H14: =(F14-E14)/I14 -> 7.5 | I14: 200 | J14: =(T14-U14*G14^0.5-V14^0.5)^2 -> 0.3310852848 | K14: =D14*J14 -> 10332.17848 | L14: 0 | M14: 0 | N14: =(((SUM((AVERAGE($M$161+$M$162)/(35*$I$164))+(AVERAGE($M$165+$M$166)/(35*$I$164))+($M$163/(35*$I$164))))/3)) -> 0.68757259 | O14: 0.9 | P14: 0.65 | Q14: 5 | R14: 0.43 | S14: 1.8 | T14: 0.852 | U14: 0.101 | V14: 0 | W14: 75 | Y14: MFWD 150 | AA14: 143000 | AB14: 0 | AC14: 0.4 | AD14: 150 | AE14: 16000 | AF14: 26.66666667 | AG14: 26.66666667 | AH14: 0.1010589178 | AI14: 14451.42524 | AJ14: 6.6 | AK14: 600 | AL14: MFWD 150 | AN14: 0.007 | AO14: 2 | AP14: 0.976 | AQ14: 0.119 | AR14: 0.0019 | AS14: 0.8
C15: 800 lbs — 4 x 5 ft | D15: 23213 | E15: 0 | F15: 1500 | G15: =F15/I15 -> 7.5 | H15: =(F15-E15)/I15 -> 7.5 | I15: 200 | J15: =(T15-U15*G15^0.5-V15^0.5)^2 -> 0.3310852848 | K15: =D15*J15 -> 7685.482716 | L15: 0 | M15: 0 | N15: =(((SUM((AVERAGE($M$161+$M$162)/(35*$I$164))+(AVERAGE($M$165+$M$166)/(35*$I$164))+($M$163/(35*$I$164))))/3)) -> 0.68757259 | O15: 0.9 | P15: 0.65 | Q15: 5 | R15: 0.43 | S15: 1.8 | T15: 0.852 | U15: 0.101 | V15: 0 | W15: 0 | Y15: MFWD 190 | AA15: 167000 | AB15: 0 | AC15: 0.4 | AD15: 190 | AE15: 16000 | AF15: 26.66666667 | AG15: 26.66666667 | AH15: 0.1010589178 | AI15: 16876.83927 | AJ15: 8.36 | AK15: 600 | AL15: MFWD 190 | AN15: 0.003 | AO15: 2 | AP15: 0.976 | AQ15: 0.119 | AR15: 0.0019 | AS15: 0.8
C16: 2100 lbs — 3 x 4 x 9.5 ft | D16: =152119*0.9 -> 136907.1 | E16: 0 | F16: 3000 | G16: 15 | H16: 15 | I16: 200 | J16: 0.2123630742 | K16: 29074.01263 | L16: 0 | M16: 0 | N16: =(((SUM((AVERAGE($M$161+$M$162)/(80*$I$164))+(AVERAGE($M$165+$M$166)/(80*$I$164))+($M$163/(80*$I$164))))/3)) -> 0.3008130081 | O16: 0.75 | P16: 0.65 | Q16: 5 | R16: 0.43 | S16: 1.8 | T16: 0.852 | U16: 0.101 | V16: 0 | W16: 190 | Y16: Table 3
B17: Hay Rake | C17: 8.5 | D17: 5312 | E17: 0 | F17: 2500 | G17: 12.5 | H17: 12.5 | I17: 200 | J17: 0.2202109678 | K17: 1169.760661 | L17: 0 | M17: 0 | N17: =1/(VLOOKUP($C17,$C$167:$H$168,5,FALSE)) -> 0.2022058824 | O17: 0.6 | P17: 0.8 | Q17: 6 | R17: 0.17 | S17: 1.4 | T17: 0.791 | U17: 0.091 | V17: 0 | W17: 50 | Y17: Tractor | Z17: Tractor Size | AA17: Tractor Name | AB17: User Spec PP | AC17: Price | AD17: Hrs at Purchase | AE17: Tractor | AF17: PP | AG17: Useful Life | AH17: Size | AI17: Avg Price | AJ17: Est. UL Hours | AK17: Est. UL Years | AL17: Exp. Op Hrs/Yr | AM17: RV | AN17: Std. SV | AO17: Fuel | AP17: Std. Use Hrs
C18: 17 | D18: 4738 | E18: 0 | F18: 2500 | G18: 12.5 | H18: 12.5 | I18: 200 | J18: 0.2202109678 | K18: 1043.359566 | L18: 0 | M18: 0 | N18: =1/(VLOOKUP($C18,$C$167:$H$168,5,FALSE)) -> 0.1011029412 | O18: 0.6 | P18: 0.8 | Q18: 6 | R18: 0.17 | S18: 1.4 | T18: 0.791 | U18: 0.091 | V18: 0 | W18: 75 | Y18: 1 | Z18: =D100 -> MFWD 75 | AA18: =$C$100 -> JD 5075E | AB18: =H100 -> 47900 | AC18: =VLOOKUP(Z18,$Y$6:$AA$15,3,FALSE) -> 47900 | AD18: =I100 -> 0 | AE18: =Z18 -> MFWD 75 | AF18: =IF(AB18>0,AI18,AC18) -> 47900 | AG18: =VLOOKUP($Z18,$Y$6:$AC$15,5,FALSE) -> 0.25 | AH18: =VLOOKUP(Z18,$Y$6:$AK$15,6,FALSE) -> 75 | AI18: =IF(G62=TRUE,H62,AC18) -> 47900 | AJ18: =VLOOKUP(Z18,$Y$6:$AK$15,7,FALSE) -> 16000 | AK18: =AJ18/AP18 -> 26.66666667 | AL18: =(AJ18-0)/AP18 -> 26.66666667 | AM18: =(VLOOKUP(Z18,$AL$6:$AR$15,5,FALSE)-VLOOKUP(Z18,$AL$6:$AR$15,6,FALSE)*AK18^0.5-VLOOKUP(Z18,$AL$6:$AR$15,7,FALSE)^0.5)^2 -> 0.1802786501 | AN18: =AC18*AM18 -> 8635.34734 | AO18: =0.44*AH18*(1/((4.5*14*5280)/43560*0.85)) -> 5.084033613 | AP18: =VLOOKUP(Z18,$Y$6:$AK$15,13,FALSE) -> 600
B19: Grain Drill | C19: 12 | D19: 22700 | E19: 0 | F19: 1500 | G19: 10 | H19: 10 | I19: 150 | J19: 0.4049315769 | K19: 9191.946795 | L19: 0 | M19: 0 | N19: =1/((5280/43560)*$C19*Q19*P19) -> 0.1964285714 | O19: 0.75 | P19: 0.7 | Q19: 5 | R19: 0.32 | S19: 2.1 | T19: 0.883 | U19: 0.078 | V19: 0 | W19: 130 | Y19: 2 | Z19: =IF(E100<2,0,D101) -> MFWD 130 | AA19: =IF(E100<2,"No Tractor",$C$101) -> JD 6130D | AB19: =IF(E100<2,0,H101) -> 114000 | AC19: =IF(E100<2,0,VLOOKUP(Z19,$Y$6:$AA$15,3,FALSE)) -> 114000 | AD19: =IF(E100<2,0,I101) -> 0 | AE19: =IF(E100<2,0,Z19) -> MFWD 130 | AF19: =IF(E100<2,0,IF(AB19>0,AI19,AC19)) -> 114000 | AG19: =IF(E100<2,0,VLOOKUP($Z19,$Y$6:$AC$15,5,FALSE)) -> 0.29 | AH19: =IF(E100<2,0,VLOOKUP(Z19,$Y$6:$AK$15,6,FALSE)) -> 130 | AI19: =IF(E100<2,0,IF(G63=TRUE, H63,AC19)) -> 114000 | AJ19: =IF(E100<2,0,VLOOKUP(Z19,$Y$6:$AK$15,7,FALSE)) -> 16000 | AK19: =IF(E100<2,0,AJ19/AP19) -> 26.66666667 | AL19: =IF(E100<2,0,(AJ19-0)/AP19) -> 26.66666667 | AM19: =(VLOOKUP(Z19,$AL$6:$AR$15,5,FALSE)-VLOOKUP(Z19,$AL$6:$AR$15,6,FALSE)*AK19^0.5-VLOOKUP(Z19,$AL$6:$AR$15,7,FALSE)^0.5)^2 -> 0.1578615528 | AN19: =AC19*AM19 -> 17996.21702 | AO19: =IF(E100<2,0,0.44*AH19*(1/((4.5*14*5280)/43560*0.85))) -> 8.81232493 | AP19: =IF(E100<2,0,VLOOKUP(Z19,$Y$6:$AK$15,13,FALSE)) -> 600
B20: Chisel Plow | C20: 10 | D20: 6000 | E20: 0 | F20: 2000 | G20: 13.33333333 | H20: 13.33333333 | I20: 150 | J20: 0.3044549117 | K20: 1826.72947 | L20: 0 | M20: 0 | N20: =1/((5280/43560)*$C20*P20*Q20) -> 0.1941176471 | O20: 0.75 | P20: 0.85 | Q20: 5 | R20: 0.28 | S20: 1.4 | T20: 0.738 | U20: 0.051 | V20: 0 | W20: 190 | Y20: 3 | Z20: =IF(E100<3,0,D102) -> MFWD 150 | AA20: =IF(E100<3,"No Tractor",$C$102) -> JD 6150M | AB20: =IF(E100<3,0,H102) -> 143000 | AC20: =IF(E100<3,0,VLOOKUP(Z20,$Y$6:$AA$15,3,FALSE)) -> 143000 | AD20: =IF(E100<3,0,I102) -> 0 | AE20: =IF(E100<3,0,Z20) -> MFWD 150 | AF20: =IF(E100<3,0,IF(AB20>0,AI20,AC20)) -> 143000 | AG20: =IF(E100<3,0,VLOOKUP($Z20,$Y$6:$AC$15,5,FALSE)) -> 0.4 | AH20: =IF(E100<3,0,VLOOKUP(Z20,$Y$6:$AK$15,6,FALSE)) -> 150 | AI20: =IF(E100<3,0,IF(G64=TRUE, H64,AC20)) -> 143000 | AJ20: =IF(E100<3,0,VLOOKUP(Z20,$Y$6:$AK$15,7,FALSE)) -> 16000 | AK20: =IF(E100<3,0,AJ20/AP20) -> 26.66666667 | AL20: =IF(E100<3,0,(AJ20-0)/AP20) -> 26.66666667 | AM20: =(VLOOKUP(Z20,$AL$6:$AR$15,5,FALSE)-VLOOKUP(Z20,$AL$6:$AR$15,6,FALSE)*AK20^0.5-VLOOKUP(Z20,$AL$6:$AR$15,7,FALSE)^0.5)^2 -> 0.1010589178 | AN20: =AC20*AM20 -> 14451.42524 | AO20: =IF(E100<3,0,0.44*AH20*(1/((4.5*14*5280)/43560*0.85))) -> 10.16806723 | AP20: =IF(E100<3,0,VLOOKUP(Z20,$Y$6:$AK$15,13,FALSE)) -> 600
C21: 16 | D21: 22500 | E21: 0 | F21: 2000 | G21: 13.33333333 | H21: 13.33333333 | I21: 150 | J21: 0.3044549117 | K21: 6850.235514 | L21: 0 | M21: 0 | N21: =1/((5280/43560)*$C21*P21*Q21) -> 0.1213235294 | O21: 0.75 | P21: 0.85 | Q21: 5 | R21: 0.28 | S21: 1.4 | T21: 0.738 | U21: 0.051 | V21: 0 | W21: 130 | Y21: 4 | Z21: =IF(E100<4,0,D103) -> MFWD 190 | AA21: =IF(E100<4,"No Tractor",$C$103) -> JD 6190R | AB21: =IF(E100<4,0,H103) -> 167000 | AC21: =IF(E100<4,0,VLOOKUP(Z21,$Y$6:$AA$15,3,FALSE)) -> 167000 | AD21: =IF(E100<4,0,I103) -> 0 | AE21: =IF(E100<4,0,Z21) -> MFWD 190 | AF21: =IF(E100<4,0,IF(AB21>0,AI21,AC21)) -> 167000 | AG21: =IF(E100<4,0,VLOOKUP($Z21,$Y$6:$AC$15,5,FALSE)) -> 0.4 | AH21: =IF(E100<4,0,VLOOKUP(Z21,$Y$6:$AK$15,6,FALSE)) -> 190 | AI21: =IF(E100<4,0,IF(G65=TRUE, H65,AC21)) -> 167000 | AJ21: =IF(E100<4,0,VLOOKUP(Z21,$Y$6:$AK$15,7,FALSE)) -> 16000 | AK21: =IF(E100<4,0,AJ21/AP21) -> 26.66666667 | AL21: =IF(E100<4,0,(AJ21-0)/AP21) -> 26.66666667 | AM21: =(VLOOKUP(Z21,$AL$6:$AR$15,5,FALSE)-VLOOKUP(Z21,$AL$6:$AR$15,6,FALSE)*AK21^0.5-VLOOKUP(Z21,$AL$6:$AR$15,7,FALSE)^0.5)^2 -> 0.1010589178 | AN21: =AC21*AM21 -> 16876.83927 | AO21: =IF(E100<4,0,0.44*AH21*(1/((4.5*14*5280)/43560*0.85))) -> 12.87955182 | AP21: =IF(E100<4,0,VLOOKUP(Z21,$Y$6:$AK$15,13,FALSE)) -> 600
C22: 24 | D22: 37200 | E22: 0 | F22: 2000 | G22: 13.33333333 | H22: 13.33333333 | I22: 150 | J22: 0.3044549117 | K22: 11325.72272 | L22: 0 | M22: 0 | N22: =1/((5280/43560)*$C22*P22*Q22) -> 0.08088235294 | O22: 0.75 | P22: 0.85 | Q22: 5 | R22: 0.28 | S22: 1.4 | T22: 0.738 | U22: 0.051 | V22: 0 | W22: 190
B23: Field Cultivator | C23: 12 | D23: 11500 | E23: 0 | F23: 2000 | G23: 20 | H23: 20 | I23: 100 | J23: 0.1592529101 | K23: 1831.408466 | L23: 0 | M23: 0 | N23: =1/((5280/43560)*$C23*P23*Q23) -> 0.1155462185 | O23: 0.7 | P23: 0.85 | Q23: 7 | R23: 0.27 | S23: 1.4 | T23: 0.891 | U23: 0.11 | V23: 0 | W23: 150
C24: 24 | D24: 31958 | E24: 0 | F24: 2000 | G24: 20 | H24: 20 | I24: 100 | J24: 0.1592529101 | K24: 5089.404501 | L24: 0 | M24: 0 | N24: =1/((5280/43560)*$C24*P24*Q24) -> 0.05777310924 | O24: 0.7 | P24: 0.85 | Q24: 7 | R24: 0.27 | S24: 1.4 | T24: 0.891 | U24: 0.11 | V24: 0 | W24: 190
A25: 12.7 | B25: Disk Bedder | C25: 4R-38 | D25: 7820 | E25: 0 | F25: 2000 | G25: 12.5 | H25: 12.5 | I25: 160 | J25: 0.2520956438 | K25: 1971.387934 | L25: 0 | M25: 0 | N25: =1/((5280/43560)*$A25*P25*Q25) -> 0.1476377953 | O25: 0.4 | P25: 0.8 | Q25: 5.5 | R25: 0.16 | S25: 1.3 | T25: 0.891 | U25: 0.11 | V25: 0 | W25: 150
A26: 21 | C26: 6R-30 | D26: 12800 | E26: 0 | F26: 2000 | G26: 12.5 | H26: 12.5 | I26: 160 | J26: 0.2520956438 | K26: 3226.82424 | L26: 0 | M26: 0 | N26: =1/((5280/43560)*$A26*P26*Q26) -> 0.08928571429 | O26: 0.4 | P26: 0.8 | Q26: 5.5 | R26: 0.16 | S26: 1.3 | T26: 0.891 | U26: 0.11 | V26: 0 | W26: 190
A27: 27 | C27: 8R-30 | D27: 17400 | E27: 0 | F27: 2000 | G27: 12.5 | H27: 12.5 | I27: 160 | J27: 0.2520956438 | K27: 4386.464201 | L27: 0 | M27: 0 | N27: =1/((5280/43560)*$A27*P27*Q27) -> 0.06944444444 | O27: 0.4 | P27: 0.8 | Q27: 5.5 | R27: 0.16 | S27: 1.3 | T27: 0.891 | U27: 0.11 | V27: 0 | W27: 190 | Y27: The following lists are used in various worksheets (neon green) and userforms (hot pink). Do not delete without making necessary adjustments to ensure functionality.
B28: Row Conditioner | C28: 13 | D28: 7300 | E28: 0 | F28: 2000 | G28: 20 | H28: 20 | I28: 100 | J28: 0.1592529101 | K28: 1162.546244 | L28: 0 | M28: 0 | N28: =1/((5280/43560)*$C28*P28*Q28) -> 0.1762820513 | O28: 0.25 | P28: 0.8 | Q28: 4.5 | R28: 0.16 | S28: 1.3 | T28: 0.891 | U28: 0.11 | V28: 0 | W28: 130 | Y28: Fertilizer | AA28: Cost | AC28: Fert | AE28: Switchgrass | AG28: Sorghum | AI28: Location | AJ28: Fayetteville | AK28: Jonesboro | AL28: Pine_Tree | AM28: Winnsboro | AN28: New_Franklin | AO28: Haskell | AP28: Stillwater | AQ28: Woodward
C29: 21 | D29: 12000 | E29: 0 | F29: 2000 | G29: 20 | H29: 20 | I29: 100 | J29: 0.1592529101 | K29: 1911.034921 | L29: 0 | M29: 0 | N29: =1/((5280/43560)*$C29*P29*Q29) -> 0.1091269841 | O29: 0.25 | P29: 0.8 | Q29: 4.5 | R29: 0.16 | S29: 1.3 | T29: 0.891 | U29: 0.11 | V29: 0 | W29: 190 | Y29: =Inputs!I35 -> Urea, 46-0-0 | AA29: =Inputs!R35 -> 0.2855 | AC29: Custom Fertilizer Application | AE29: Pasture | AG29: Dryland | AI29: Fayetteville | AJ29: 2009 | AK29: 2010 | AL29: 2010 | AM29: 2012 | AN29: 2011 | AO29: 2010 | AP29: 2011 | AQ29: 2011
C30: 26 | D30: 12800 | E30: 0 | F30: 2000 | G30: 20 | H30: 20 | I30: 100 | J30: 0.1592529101 | K30: 2038.437249 | L30: 0 | M30: 0 | N30: =1/((5280/43560)*$C30*P30*Q30) -> 0.08814102564 | O30: 0.25 | P30: 0.8 | Q30: 4.5 | R30: 0.16 | S30: 1.3 | T30: 0.891 | U30: 0.11 | V30: 0 | W30: 190 | Y30: =Inputs!I37 -> Triple Super Phosphate, 0-45-0 | AA30: =Inputs!R37 -> 0.3105 | AC30: Fertilizer Application | AE30: Crop Land | AG30: Irrigated | AI30: Jonesboro | AJ30: 2010 | AK30: 2011 | AL30: 2012 | AM30: 2013 | AN30: 2012 | AO30: 2011 | AP30: 2012 | AQ30: 2012
A31: 6 | B31: Para-Till | C31: 2 Shank | D31: 1670 | E31: 0 | F31: 2000 | G31: 20 | H31: 20 | I31: 100 | J31: 0.1592529101 | K31: 265.9523599 | L31: 0 | M31: 0 | N31: =1/((5280/43560)*$A31*P31*Q31) -> 0.5392156863 | O31: 0.69 | P31: 0.85 | Q31: 3 | R31: 0.18 | S31: 1.7 | T31: 0.891 | U31: 0.11 | V31: 0 | W31: 75 | Y31: =Inputs!I39 -> Potash Fertilizer, 0-0-60 | AA31: =Inputs!R39 -> 0.3005 | AI31: Pine_Tree | AJ31: 2011 | AK31: 2012 | AL31: 2013 | AN31: 2013 | AP31: 2013 | AQ31: 2013
A32: 11 | C32: 3 Shank | D32: 3550 | E32: 0 | F32: 2000 | G32: 20 | H32: 20 | I32: 100 | J32: 0.1592529101 | K32: 565.3478309 | L32: 0 | M32: 0 | N32: =1/((5280/43560)*$A32*P32*Q32) -> 0.2941176471 | O32: 0.5 | P32: 0.85 | Q32: 3 | R32: 0.18 | S32: 1.7 | T32: 0.891 | U32: 0.11 | V32: 0 | W32: 190 | Y32: =Inputs!I41 -> Poultry Litter | AA32: =Inputs!R41 -> 0.01125 | AC32: Lime | AE32: Harvest | AG32: WeedControl | AI32: Winnsboro | AJ32: 2012 | AL32: 2014
A33: 6.5 | B33: Veggie Planter | C33: 1 Row | D33: 2580 | E33: 0 | F33: 1500 | G33: 10 | H33: 10 | I33: 150 | J33: 0.4049315769 | K33: 1044.723468 | L33: 0 | M33: 0 | N33: =1/((5280/43560)*$A33*P33*Q33) -> 1.586538462 | O33: 0.02 | P33: 0.8 | Q33: 1 | R33: 0.32 | S33: 2.1 | T33: 0.883 | U33: 0.078 | V33: 0 | W33: 75 | Y33: =Inputs!I43 -> Lime | AA33: =Inputs!R43 -> 0.0283 | AC33: Custom Lime Application | AE33: Forage Harvester | AG33: =Inputs!B43 -> Glyphosate | AI33: New_Franklin
A34: 15 | C34: 4 Row | D34: 16290 | E34: 0 | F34: 1500 | G34: 10 | H34: 10 | I34: 150 | J34: 0.4049315769 | K34: 6596.335387 | L34: 0 | M34: 0 | N34: =1/((5280/43560)*$A34*P34*Q34) -> 0.6875 | O34: 0.02 | P34: 0.8 | Q34: 1 | R34: 0.32 | S34: 2.1 | T34: 0.883 | U34: 0.078 | V34: 0 | W34: 75 | AC34: Lime Application | AE34: Baler | AG34: =Inputs!B45 -> Quinclorac | AI34: Haskell
A35: 28 | C35: 8 Row | D35: 20640 | E35: 0 | F35: 1500 | G35: 10 | H35: 10 | I35: 150 | J35: 0.4049315769 | K35: 8357.787747 | L35: 0 | M35: 0 | N35: =1/((5280/43560)*$A35*P35*Q35) -> 0.3683035714 | O35: 0.02 | P35: 0.8 | Q35: 1 | R35: 0.32 | S35: 2.1 | T35: 0.883 | U35: 0.078 | V35: 0 | W35: 190 | AG35: =Inputs!B47 -> Ally (Cimarron) | AI35: Stillwater
B36: Disk Mower | C36: 8 | D36: 10272 | E36: 0 | F36: 2000 | G36: 10 | H36: 10 | I36: 200 | J36: 0.0659014721 | K36: 676.9399214 | L36: 0 | M36: 0 | N36: =(((SUM((AVERAGE($M$161+$M$162)/($AH18/$E$162*P36)+(AVERAGE($M$165+$M$166)/($AH18/$E$162*P36)+(M163/($AH18/$E$162*P36))))))/3)) -> 0.6783333333 | O36: 1.5 | P36: 0.8 | Q36: 5 | R36: 0.46 | S36: 1.7 | T36: 0.0943 | U36: 0.111 | V36: 0 | W36: 0 | Y36: BaleWrap | AA36: Quantity | AC36: Planting | AE36: Baling | AG36: =Inputs!B49 -> Atrazine | AI36: Woodward
C37: 10 | D37: 11359 | E37: 0 | F37: 2000 | G37: 10 | H37: 10 | I37: 200 | J37: 0.0659014721 | K37: 748.5748215 | L37: 0 | M37: 0 | N37: =(((SUM((AVERAGE($M$161+$M$162)/($AH18/$E$162*P37)+(AVERAGE($M$165+$M$166)/($AH18/$E$162*P37)+(M163/($AH18/$E$162*P37))))))/3)) -> 0.6783333333 | O37: 1.5 | P37: 0.8 | Q37: 5 | R37: 0.46 | S37: 1.7 | T37: 0.0943 | U37: 0.111 | V37: 0 | W37: 0 | Y37: Net Wrap | AA37: 1 | AC37: Planter | AE37: Baler | AG37: =Inputs!B51 -> Dual II Magnum
B38: Bale Hauler | C38: 14 — 5 x 6 ft (Lrg Rd) | D38: =28430*0.9 -> 25587 | E38: 0 | F38: 3000 | G38: =F38/I38 -> 15 | H38: =(F38-E38)/I38 -> 15 | I38: 200 | J38: =(T39-U39*G38^0.5-V39^0.5)^2 -> 0.1126281328 | K38: =D38*J38 -> 2881.816035 | L38: 0 | M38: 0 | O38: 0.8 | P38: 0.8 | Q38: 5 | R38: 0.19 | S38: 1.3 | T38: 0.0943 | U38: 0.111 | V38: 0 | W38: 75 | Y38: Twine | AA38: 2 | AC38: Custom Planting | AE38: Custom Baling | AG38: =Inputs!B53 -> Paraquat
C39: 10 — 4 x 5 ft (Med Rd) | D39: =20380*0.9 -> 18342 | E39: 0 | F39: 3000 | G39: =F39/I39 -> 15 | H39: =(F39-E39)/I39 -> 15 | I39: 200 | J39: =(T38-U38*G39^0.5-V38^0.5)^2 -> 0.1126281328 | K39: =D39*J39 -> 2065.825213 | L39: 0 | M39: 0 | O39: 0.8 | P39: 0.8 | Q39: 5 | R39: 0.19 | S39: 1.3 | T39: 0.0943 | U39: 0.111 | V39: 0 | W39: 75 | AG39: =Inputs!B55 -> Grazon P+D
C40: 16 — 3 x 4 x 9 ft (Lrg Sq) | D40: =45000*0.9 -> 40500 | E40: 0 | F40: 3000 | G40: 15 | H40: 15 | I40: 200 | J40: 0.1126281328 | K40: 4561.43938 | L40: 0 | M40: 0 | O40: 0.8 | P40: 0.8 | Q40: 5 | R40: 0.19 | S40: 1.3 | T40: 0.0943 | U40: 0.111 | V40: 0 | W40: 105 | Y40: TractorQuantity | AA40: Mowers | AC40: Veggie | AE40: Hauling | AG40: =Inputs!B57 -> Baythroid XL 1 EC
A41: 10 | B41: Row Planter | C41: 4R-30 | D41: 2580 | E41: 0 | F41: 900 | G41: 6 | H41: 6 | I41: 150 | J41: 0.4787806869 | K41: 1235.254172 | L41: 0 | M41: 0 | N41: =1/((5280/43560)*$A41*P41*Q41) -> 0.2307692308 | O41: 0.75 | P41: 0.65 | Q41: 5.5 | R41: 0.32 | S41: 2.1 | T41: 0.883 | U41: 0.078 | V41: 0 | W41: 130 | Y41: 1 | AA41: Disk Mower | AC41: Veggie Planter | AE41: Bale Hauler | AG41: =Inputs!B59 -> Enter Your Own
A42: 15 | C42: 6R-30 | D42: 16290 | E42: 0 | F42: 900 | G42: 6 | H42: 6 | I42: 150 | J42: 0.4787806869 | K42: 7799.33739 | L42: 0 | M42: 0 | N42: =1/((5280/43560)*$A42*P42*Q42) -> 0.1538461538 | O42: 0.75 | P42: 0.65 | Q42: 5.5 | R42: 0.32 | S42: 2.1 | T42: 0.883 | U42: 0.078 | V42: 0 | W42: 150 | Y42: 2 | AA42: Disk Mower Conditioner | AC42: Custom Veggie Planting | AE42: Custom Bale Hauling | AG42: =Inputs!B61 -> Enter Your Own
A43: 18 | C43: 8R-30 | D43: 42281 | E43: 0 | F43: 900 | G43: 6 | H43: 6 | I43: 150 | J43: 0.4787806869 | K43: 20243.32622 | L43: 0 | M43: 0 | N43: =1/((5280/43560)*$A43*P43*Q43) -> 0.1282051282 | O43: 0.75 | P43: 0.65 | Q43: 5.5 | R43: 0.32 | S43: 2.1 | T43: 0.883 | U43: 0.078 | V43: 0 | W43: 190 | Y43: 3 | AA43: SP Mower Conditioner — 235 hp
B44: Forage Harvester | C44: 375 | D44: =(247481*0.9)+(24055*0.9) -> 244382.4 | E44: 0 | F44: 4000 | G44: 13.33333333 | H44: 13.33333333 | I44: 300 | J44: 0.1941488419 | K44: =D44*J44 -> 47446.55994 | L44: =N44 -> 0.7622857143 | M44: =0.044*C44 -> 16.5 | N44: =(((SUM((AVERAGE($M$161+$M$162)/($C44/$E$174*$P44)))+((AVERAGE(($M$165+$M$166)/($C44/$E$174*P44)))+(($M$163/(($C44/$E$174*P44)))/3))))) -> 0.7622857143 | O44: 0.5 | P44: 0.7 | Q44: 3.5 | R44: 0.03 | S44: 2 | T44: 1.132 | U44: 0.165 | V44: 0.0079 | W44: N/A | Y44: 4 | AC44: ChiselPlow_or_ParaTill | AE44: ForageHarvesting | AG44: Herb
C45: 485 | D45: =(312166*0.9)+(24055*0.9) -> 302598.9 | E45: 0 | F45: 4000 | G45: 13.33333333 | H45: 13.33333333 | I45: 300 | J45: 0.1941488419 | K45: 58749.22599 | L45: 0.5893961708 | M45: =0.044*C45 -> 21.34 | N45: =(((SUM((AVERAGE($M$161+$M$162)/($C45/$E$174*$P45)))+((AVERAGE(($M$165+$M$166)/($C45/$E$174*P45)))+(($M$163/(($C45/$E$174*P45)))/3))))) -> 0.5893961708 | O45: 0.5 | P45: 0.7 | Q45: 3.5 | R45: 0.03 | S45: 2 | T45: 1.132 | U45: 0.165 | V45: 0.0079 | W45: N/A | AA45: Mowing | AC45: Chisel Plow | AE45: Forage Harvester | AG45: Custom Ground Herbicide
C46: 625 | D46: =(383249*0.9)+(31478*0.9) -> 373254.3 | E46: 0 | F46: 4000 | G46: 13.33333333 | H46: 13.33333333 | I46: 300 | J46: 0.1941488419 | K46: 72466.89008 | L46: 0.4573714286 | M46: =0.044*C46 -> 27.5 | N46: =(((SUM((AVERAGE($M$161+$M$162)/($C46/$E$174*$P46)))+((AVERAGE(($M$165+$M$166)/($C46/$E$174*P46)))+(($M$163/(($C46/$E$174*P46)))/3))))) -> 0.4573714286 | O46: 0.5 | P46: 0.7 | Q46: 3.5 | R46: 0.03 | S46: 2 | T46: 1.132 | U46: 0.165 | V46: 0.0079 | W46: N/A | Y46: Plant | AA46: Mower | AC46: Para-Till | AE46: Custom Forage Harvesting | AG46: Custom Air Herbicide
C47: 800 | D47: =(495176*0.9)+(31478*0.9) -> 473988.6 | E47: 0 | F47: 4000 | G47: 13.33333333 | H47: 13.33333333 | I47: 300 | J47: 0.1941488419 | K47: 92024.33776 | L47: 0.3573214286 | M47: =0.044*C47 -> 35.2 | N47: =(((SUM((AVERAGE($M$161+$M$162)/($C47/$E$174*$P47)))+((AVERAGE(($M$165+$M$166)/($C47/$E$174*P47)))+(($M$163/(($C47/$E$174*P47)))/3))))) -> 0.3573214286 | O47: 0.5 | P47: 0.7 | Q47: 3.5 | R47: 0.03 | S47: 2 | T47: 1.132 | U47: 0.165 | V47: 0.0079 | W47: N/A | Y47: No-Till Grain Drill | AA47: Custom Mowing | AC47: Custom Para-Tilling
A48: 235 | B48: SP Mower Conditioner — 235 hp | C48: 13 | D48: =(151651*0.9)+(30093*0.9) -> 163569.6 | E48: 0 | F48: 10000 | G48: 16.66666667 | H48: 16.66666667 | I48: 600 | J48: 0.2327808185 | K48: 38075.86537 | L48: 0.2164893617 | M48: =0.044*A48 -> 10.34 | N48: =(((SUM((AVERAGE($M$161+$M$162)/(A48/$E$175*P48)+(AVERAGE($M$165+$M$166)/(A48/$E$175*P48)+(M163/(A48/$E$175*P48))))))/3)) -> 0.2164893617 | O48: 0.55 | P48: 0.8 | Q48: 5 | R48: 0.06 | S48: 2 | T48: 0.756 | U48: 0.067 | V48: 0 | W48: N/A | Y48: Grain Drill
A49: 235 | C49: 14.5 | D49: =(151651*0.9)+(32436*0.9) -> 165678.3 | E49: 0 | F49: 10000 | G49: 7.1 | H49: 16.66666667 | I49: 600 | J49: 0.3334750325 | K49: 55249.57648 | L49: 0.1462765957 | M49: =0.044*A49 -> 10.34 | N49: =(((SUM((AVERAGE($M$161+$M$162)/(A49/$E$175*P49)+(AVERAGE($M$165+$M$166)/(A49/$E$175*P49)+(M164/(A49/$E$175*P49))))))/3)) -> 0.1462765957 | O49: 0.55 | P49: 0.8 | Q49: 5 | R49: 0.06 | S49: 2 | T49: 0.756 | U49: 0.067 | V49: 0 | W49: N/A
A50: 235 | C50: 16 | D50: =(151651*0.9)+(38271*0.9) -> 170929.8 | E50: 0 | F50: 10000 | G50: 7.1 | H50: 16.66666667 | I50: 600 | J50: 0.3334750325 | K50: 57000.82061 | L50: 0.1755319149 | M50: =0.044*A50 -> 10.34 | N50: =(((SUM((AVERAGE($M$161+$M$162)/(A50/$E$175*P50)+(AVERAGE($M$165+$M$166)/(A50/$E$175*P50)+(M165/(A50/$E$175*P50))))))/3)) -> 0.1755319149 | O50: 0.55 | P50: 0.8 | Q50: 5 | R50: 0.06 | S50: 2 | T50: 0.756 | U50: 0.067 | V50: 0 | W50: N/A
B51: Spreader | C51: 40 | D51: 11300 | E51: 0 | F51: =1200 -> 1200 | G51: =F51/I51 -> 1.5 | H51: 1.5 | I51: 800 | J51: 0.6513350602 | K51: 7360.08618 | L51: 0.04209183673 | M51: 0 | N51: =1/((5280/43560)*$C51*P51*Q51) -> 0.04209183673 | O51: 0.8 | P51: 0.7 | Q51: 7 | R51: 0.63 | S51: 1.3 | T51: 0.943 | U51: 0.111 | V51: 0 | W51: 105
A52: Unhide rows below to make room for more implement/size options in table above. | L52: =63457*J48 -> 14771.5724
A60: Table 4 | B60: UserForm Saved Values
B61: UserForm | C61: Tractor Selection Tractor Name | D61: Tractor Unit Name | E61: Quantity | F61: Implement Size | G61: Use Suggested Price | H61: Purchase Price | I61: Hours at Purchase | J61: Estimated UL Hours | K61: Estimated Operation Years | L61: Calculated Operation Years | M61: RV | N61: Estimated SV | O61: Standard Use Hours | P61: Acre-Based Use Hours | Q61: User-Specified Hours | R61: User Specified Annual Use Hours | S61: Standard Fuel Use | T61: User-Specified Fuel Use | U61: User-Spec Gallons/Hour | V61: % Switchgrass | W61: % Miscanthus | X61: % Sorghum | Y61: % Acres per Implement | Z61: Standard Use Hours
B62: Tractor 1 | C62: =C100 -> JD 5075E | D62: MFWD 75 | E62: 4 | F62: 75 | G62: TRUE | H62: 47900 | I62: 0 | J62: =K100 -> 16000 | K62: =(J62-I62)/R62 -> 26.66666667 | L62: =((J62-I62)/R62) -> 26.66666667 | M62: =((VLOOKUP(D62,$AL$6:$AR$15,5,FALSE)-VLOOKUP(D62,$AL$6:$AR$15,6,FALSE)*(K62^0.5)-VLOOKUP(D62,$AL$6:$AR$15,7,FALSE)*(R62^0.5))^2) -> 0.1286510985 | N62: =L100 -> 8635.35 | O62: =M100 -> TRUE | P62: =N100 -> FALSE | Q62: =O100 -> FALSE | R62: =P100 -> 600 | U62: =0.044*F100 -> 3.3 | Z62: =VLOOKUP(D62,$Y$6:$AK$15,13,FALSE) -> 600
B63: Tractor 2 | C63: =IF(E100<2,"No Tractor",C101) -> JD 6130D | D63: =D101 -> MFWD 130 | F63: =F101 -> 130 | G63: TRUE | H63: 114000 | I63: 0 | J63: =K101 -> 16000 | K63: =(J63-I63)/R63 -> 26.66666667 | L63: 26.66666667 | M63: =((VLOOKUP(D63,$AL$6:$AR$15,5,FALSE)-VLOOKUP(D63,$AL$6:$AR$15,6,FALSE)*(K63^0.5)-VLOOKUP(D63,$AL$6:$AR$15,7,FALSE)*(R63^0.5))^2) -> 0.1648411177 | N63: =L101 -> 17996.22 | O63: =M101 -> TRUE | P63: =N101 -> FALSE | Q63: =O101 -> FALSE | R63: =P101 -> 600 | U63: =0.044*F101 -> 5.72 | Z63: =VLOOKUP(D63,$Y$6:$AK$15,13,FALSE) -> 600
B64: Tractor 3 | C64: =IF(E100<3,"No Tractor",C102) -> JD 6150M | D64: =D102 -> MFWD 150 | F64: 150 | G64: TRUE | H64: 143000 | I64: 0 | J64: 16000 | K64: 26.66666667 | L64: 26.66666667 | M64: =((VLOOKUP(D64,$AL$6:$AR$15,5,FALSE)-VLOOKUP(D64,$AL$6:$AR$15,6,FALSE)*(K64^0.5)-VLOOKUP(D64,$AL$6:$AR$15,7,FALSE)*(R64^0.5))^2) -> 0.09919119537 | N64: 14451.43 | O64: TRUE | P64: FALSE | Q64: FALSE | R64: 600 | U64: =0.044*F102 -> 6.6 | Z64: =VLOOKUP(D64,$Y$6:$AK$15,13,FALSE) -> 600
B65: Tractor 4 | C65: =IF(E100<4,"No Tractor",C103) -> JD 6190R | D65: =D103 -> MFWD 190 | F65: 190 | G65: TRUE | H65: 167000 | I65: 0 | J65: 16000 | K65: 26.66666667 | L65: 26.66666667 | M65: =((VLOOKUP(D65,$AL$6:$AR$15,5,FALSE)-VLOOKUP(D65,$AL$6:$AR$15,6,FALSE)*(K65^0.5)-VLOOKUP(D65,$AL$6:$AR$15,7,FALSE)*(R65^0.5))^2) -> 0.09919119537 | N65: 16876.84 | O65: TRUE | P65: FALSE | Q65: FALSE | R65: 600 | U65: =0.044*F103 -> 8.36 | Z65: =VLOOKUP(D65,$Y$6:$AK$15,13,FALSE) -> 600
B66: Disk | C66: =D104 -> JD 6105M | D66: =IFERROR(VLOOKUP(C66,$C$62:$F$65,4,FALSE),0) -> 0 | E66: =E104 -> 2 | F66: =F104 -> 14 | G66: =G104 -> TRUE | H66: 21800 | I66: 0 | J66: 2000 | K66: 10 | L66: 10 | M66: =(VLOOKUP($B66,$B$6:$V$51,19,FALSE)-VLOOKUP($B66,$B$6:$V$51,20,FALSE)*($K66^0.5)-VLOOKUP($B66,$B$6:$V$51,21,FALSE)*($R66^0.5))^2 -> 0.2950113331 | N66: 6431.25 | O66: TRUE | P66: FALSE | Q66: FALSE | R66: 200 | S66: =Q104 -> TRUE | T66: FALSE | U66: 4.62 | V66: 33 | W66: 33 | X66: 34 | Y66: 50
B67: Disk | C67: =D105 -> JD 6190R | D67: =IFERROR(VLOOKUP(C67,$C$62:$F$65,4,FALSE),0) -> 190 | F67: =F105 -> 24 | G67: TRUE | H67: 42600 | I67: 0 | J67: 2000 | K67: 10 | L67: 10 | M67: 0.2950113331 | N67: 12567.48 | O67: TRUE | P67: FALSE | Q67: FALSE | R67: 200 | S67: =Q105 -> TRUE | T67: =R105 -> FALSE | U67: =S105 -> 8.36 | V67: =T105 -> 33 | W67: =U105 -> 33 | X67: =V105 -> 34 | Y67: =W105 -> 50
B68: =B106 -> No-Till Grain Drill | C68: JD 6130D | D68: 130 | E68: =E106 -> 2 | F68: 12 | G68: TRUE | H68: 42000 | I68: 0 | J68: 1500 | K68: 10 | L68: 10 | M68: 0.4049315769 | N68: 17007.13 | O68: TRUE | P68: FALSE | Q68: FALSE | R68: 150 | S68: TRUE | T68: FALSE | U68: 5.72 | Y68: =W106 -> 50
B69: =B107 -> Grain Drill | C69: JD 6130D | D69: 130 | F69: 12 | G69: TRUE | H69: 22700 | I69: 0 | J69: 1500 | K69: 10 | L69: 10 | M69: 0.4049315769 | N69: 9191.95 | O69: TRUE | P69: FALSE | Q69: FALSE | R69: 150 | S69: TRUE | T69: FALSE | U69: 6.6 | Y69: 50
B70: Veggie Planter | C70: JD 5075E | D70: 75 | E70: =E108 -> 2 | F70: 4 Row | G70: TRUE | H70: 16290 | I70: 0 | J70: 1500 | K70: 10 | L70: 10 | M70: 0.4049315769 | N70: 6596.34 | O70: TRUE | P70: FALSE | Q70: FALSE | R70: 150 | S70: TRUE | T70: FALSE | U70: 3.3 | Y70: 50
B71: Veggie Planter | C71: JD 6190R | D71: 190 | F71: 8 Row | G71: TRUE | H71: 20640 | I71: 0 | J71: 1500 | K71: 10 | L71: 10 | M71: 0.4049315769 | N71: 8357.79 | O71: TRUE | P71: FALSE | Q71: FALSE | R71: 150 | S71: TRUE | T71: FALSE | U71: 8.36 | Y71: 50
B72: Cultipacker | C72: JD 6130D | D72: 130 | E72: =E110 -> 2 | F72: 12 | G72: TRUE | H72: 4130 | I72: 0 | J72: 2000 | K72: 6.666666667 | L72: 6.666666667 | M72: 0.368426203 | N72: 1521.6 | O72: TRUE | P72: FALSE | Q72: FALSE | R72: 300 | S72: TRUE | T72: FALSE | U72: 5.72 | V72: =T110 -> 50 | W72: =U110 -> 50 | Y72: 50
B73: Cultipacker | C73: JD 6150M | D73: 150 | F73: 20 | G73: TRUE | H73: 16200 | I73: 0 | J73: 2000 | K73: 6.666666667 | L73: 6.666666667 | M73: 0.368426203 | N73: 5968.5 | O73: TRUE | P73: FALSE | Q73: FALSE | R73: 300 | S73: TRUE | T73: FALSE | U73: 6.6 | V73: =T111 -> 50 | W73: =U111 -> 50 | Y73: 50
B74: Field Cultivator | C74: JD 6150M | D74: 150 | E74: =E112 -> 2 | F74: 12 | G74: TRUE | H74: 11500 | I74: 0 | J74: 2000 | K74: 20 | L74: 20 | M74: 0.1592529101 | N74: 1831.41 | O74: TRUE | P74: FALSE | Q74: FALSE | R74: 100 | S74: TRUE | T74: FALSE | U74: 6.6 | Y74: 50
B75: Field Cultivator | C75: JD 6190R | D75: 190 | F75: 24 | G75: TRUE | H75: 31958 | I75: 0 | J75: 2000 | K75: 20 | L75: 20 | M75: 0.1592529101 | N75: 5089.4 | O75: TRUE | P75: FALSE | Q75: FALSE | R75: 100 | S75: TRUE | T75: FALSE | U75: 8.36 | Y75: 50
B76: Chisel Plow | C76: JD 6190R | D76: 190 | E76: =E114 -> 2 | F76: 10 | G76: TRUE | H76: 6000 | I76: 0 | J76: 2000 | K76: 13.33333333 | L76: 13.33333333 | M76: 0.3044549117 | N76: 1826.73 | O76: TRUE | P76: FALSE | Q76: FALSE | R76: 150 | S76: TRUE | T76: FALSE | U76: 8.36 | V76: =T114 -> 50 | W76: =U114 -> 50 | Y76: 50
B77: Chisel Plow | C77: JD 6130D | D77: 130 | F77: 16 | G77: TRUE | H77: 22500 | I77: 0 | J77: 2000 | K77: 13.33333333 | L77: 13.33333333 | M77: 0.3044549117 | N77: 6850.24 | O77: TRUE | P77: FALSE | Q77: FALSE | R77: 150 | S77: TRUE | T77: FALSE | U77: 5.72 | V77: =T115 -> 50 | W77: =U115 -> 50 | Y77: 50
B78: Row Conditioner | C78: JD 6130D | D78: 130 | E78: =E116 -> 2 | F78: 13 | G78: TRUE | H78: 7300 | I78: 0 | J78: 2000 | K78: 20 | L78: 20 | M78: 0.1592529101 | N78: 1162.55 | O78: TRUE | P78: FALSE | Q78: FALSE | R78: 100 | S78: TRUE | T78: FALSE | U78: 5.72 | Y78: 50
B79: Row Conditioner | C79: JD 6190R | D79: 190 | F79: 21 | G79: TRUE | H79: 12000 | I79: 0 | J79: 2000 | K79: 20 | L79: 20 | M79: 0.1592529101 | N79: 1911.03 | O79: TRUE | P79: FALSE | Q79: FALSE | R79: 100 | S79: TRUE | T79: FALSE | U79: 8.36 | Y79: 50
B80: Disk Bedder | C80: JD 6150M | D80: 150 | E80: =E118 -> 2 | F80: 4R-38 | G80: TRUE | H80: 7820 | I80: 0 | J80: 2000 | K80: 12.5 | L80: 12.5 | M80: 0.2520956438 | N80: 1971.39 | O80: TRUE | P80: FALSE | Q80: FALSE | R80: 160 | S80: TRUE | T80: FALSE | U80: 6.6 | Y80: 50
B81: Disk Bedder | C81: JD 6190R | D81: 190 | F81: 6R-30 | G81: TRUE | H81: 12800 | I81: 0 | J81: 2000 | K81: 12.5 | L81: 12.5 | M81: 0.2520956438 | N81: 3226.82 | O81: TRUE | P81: FALSE | Q81: FALSE | R81: 160 | S81: TRUE | T81: FALSE | U81: 8.36 | Y81: 50
B82: Para-Till | C82: JD 5075E | D82: 75 | E82: =E120 -> 2 | F82: 2 Shank | G82: TRUE | H82: 1670 | I82: 0 | J82: 2000 | K82: 20 | L82: 20 | M82: 0.1592529101 | N82: 265.95 | O82: TRUE | P82: FALSE | Q82: FALSE | R82: 100 | S82: TRUE | T82: FALSE | U82: 3.3 | V82: =T120 -> 50 | W82: =U120 -> 50 | Y82: 50
B83: Para-Till | C83: JD 6190R | D83: 190 | F83: 3 Shank | G83: TRUE | H83: 3550 | I83: 0 | J83: 2000 | K83: 20 | L83: 20 | M83: 0.1592529101 | N83: 565.35 | O83: TRUE | P83: FALSE | Q83: FALSE | R83: 100 | S83: TRUE | T83: FALSE | U83: 8.36 | V83: =T121 -> 50 | W83: =U121 -> 50 | Y83: 50
B84: Row Planter | C84: JD 6130D | D84: 130 | E84: =E122 -> 2 | F84: 4R-30 | G84: TRUE | H84: 2580 | I84: 0 | J84: 900 | K84: 6 | L84: 6 | M84: 0.4787806869 | N84: 1235.25 | O84: TRUE | P84: FALSE | Q84: FALSE | R84: 150 | S84: TRUE | T84: FALSE | U84: 5.72 | Y84: 50
B85: Row Planter | C85: JD 6150M | D85: 150 | F85: 6R-30 | G85: TRUE | H85: 16290 | I85: 0 | J85: 900 | K85: 6 | L85: 6 | M85: 0.4787806869 | N85: 7799.34 | O85: TRUE | P85: FALSE | Q85: FALSE | R85: 150 | S85: TRUE | T85: FALSE | U85: 6.6 | Y85: 50
B86: =B124 -> Disk Mower Conditioner | C86: JD 5075E | D86: 75 | E86: =E124 -> 2 | F86: 9 | G86: TRUE | H86: 23535 | I86: 0 | J86: 2500 | K86: 12.5 | L86: 12.5 | M86: 0.2694847732 | N86: 6342.32 | O86: TRUE | P86: FALSE | Q86: FALSE | R86: 200 | S86: TRUE | T86: FALSE | U86: 3.3 | V86: =T124 -> 33 | W86: =U124 -> 33 | X86: =V124 -> 34 | Y86: 50
B87: =B125 -> SP Mower Conditioner — 235 hp | C87: N/A | D87: 0 | F87: 13 | G87: TRUE | H87: 163569.6 | I87: 0 | J87: 10000 | K87: 16.66666667 | L87: 16.66666667 | M87: 0.2327808185 | N87: 38075.87 | O87: TRUE | P87: FALSE | Q87: FALSE | R87: 600 | S87: TRUE | T87: FALSE | U87: 10.34 | V87: =T125 -> 33 | W87: =U125 -> 33 | X87: =V125 -> 34 | Y87: 50
B88: Hay Rake | C88: JD 5075E | D88: 75 | E88: =E126 -> 1 | F88: 17 | G88: TRUE | H88: 4738 | I88: 0 | J88: 2500 | K88: 12.5 | L88: 12.5 | M88: 0.2202109678 | N88: 1043.36 | O88: TRUE | P88: FALSE | Q88: FALSE | R88: 200 | S88: TRUE | T88: FALSE | U88: 3.3 | V88: 33 | W88: 33 | X88: 34 | Y88: 100 | AA88: 80
B89: Hay Rake | C89: JD 5075E | D89: 75 | F89: 17 | G89: TRUE | H89: 4738 | I89: 0 | J89: 2500 | K89: 12.5 | L89: 12.5 | M89: 0.2202109678 | N89: 1043.36 | O89: TRUE | P89: FALSE | Q89: FALSE | R89: 200 | S89: TRUE | T89: FALSE | U89: 3.3 | V89: 33 | W89: 33 | X89: 34 | Y89: 0 | Z89: Bale Wrap | AA89: Field Speed | AB89: Standard FS | AC89: User Spec FS
B90: Baler | C90: JD 5075E | D90: 75 | E90: =E128 -> 2 | F90: 1250 lbs — 5 x 6 ft | G90: TRUE | H90: 31207 | I90: 0 | J90: 1500 | K90: 7.5 | L90: 7.5 | M90: 0.3310852848 | N90: 10332.18 | O90: TRUE | P90: FALSE | Q90: FALSE | R90: 200 | S90: TRUE | T90: FALSE | U90: 3.3 | V90: 33 | W90: 33 | X90: 34 | Y90: 50 | Z90: =X128 -> Net Wrap | AA90: =AB128 -> 35 | AB90: =AF128 -> TRUE | AC90: =AG128 -> FALSE
B91: Baler | C91: JD 6190R | D91: 190 | F91: 2100 lbs — 3 x 4 x 9.5 ft | G91: TRUE | H91: 136907.1 | I91: 0 | J91: 3000 | K91: 15 | L91: 15 | M91: 0.2123630742 | N91: 29074.01 | O91: TRUE | P91: FALSE | Q91: FALSE | R91: 200 | S91: TRUE | T91: FALSE | U91: 8.36 | V91: 33 | W91: 33 | X91: 34 | Y91: 50 | Z91: =X129 -> Net Wrap | AA91: =AB129 -> 80 | AB91: =AF129 -> TRUE | AC91: =AG129 -> FALSE
B92: Forage Harvester | E92: =E130 -> 1 | F92: 375 | G92: TRUE | H92: 244382.4 | I92: 0 | J92: 4000 | K92: 13.33333333 | L92: 13.33333333 | M92: 0.1541922208 | N92: 47446.56 | O92: TRUE | P92: FALSE | Q92: FALSE | R92: 300 | S92: TRUE | T92: FALSE | U92: 16.5 | V92: 33 | W92: 33 | X92: 34 | Y92: 100
B93: Forage Harvester | F93: 800 | G93: TRUE | H93: 473988.6 | I93: 0 | J93: 4000 | K93: 13.33333333 | L93: 13.33333333 | M93: 0.1541922208 | N93: 92024.34 | O93: TRUE | P93: FALSE | Q93: FALSE | R93: 300 | S93: TRUE | T93: FALSE | U93: 35.2 | V93: 33 | W93: 33 | X93: 34 | Y93: 0 | AA93: Load Time | AB93: Std. Minutes | AC93: User Minutes
B94: Bale Hauler | C94: =D132 -> JD 5075E | D94: 75 | E94: =E132 -> 2 | F94: 14 — 5 x 6 ft (Lrg Rd) | G94: TRUE | H94: 25587 | I94: 0 | J94: 3000 | K94: 15 | L94: 15 | M94: 0.1126281328 | N94: 2881.82 | O94: TRUE | P94: FALSE | Q94: FALSE | R94: 200 | S94: TRUE | T94: FALSE | U94: 3.3 | V94: 33 | W94: 33 | X94: 34 | Y94: 50 | AA94: =AB132 -> 20 | AB94: =AF132 -> TRUE | AC94: =AG132 -> FALSE
B95: Bale Hauler | C95: =D133 -> JD 5075E | D95: 75 | F95: 16 — 3 x 4 x 9 ft (Lrg Sq) | G95: TRUE | H95: 40500 | I95: 0 | J95: 3000 | K95: 15 | L95: 15 | M95: 0.1126281328 | N95: 4561.44 | O95: TRUE | P95: FALSE | Q95: FALSE | R95: 200 | S95: TRUE | T95: FALSE | U95: 3.3 | V95: 33 | W95: 33 | X95: 34 | Y95: 50 | AA95: =AB133 -> 20 | AB95: =AF133 -> TRUE | AC95: =AG133 -> FALSE
B96: Spreader | C96: =D134 -> JD 5075E | D96: 75 | E96: =E134 -> 1 | F96: =F134 -> 40 | H96: =H134 -> 11300 | I96: =I134 -> 0 | J96: =K134 -> 1200 | K96: 1.5 | L96: 1.5 | M96: 0.6513350602 | N96: =L134 -> 7360.09 | P96: FALSE | R96: 800 | S96: TRUE | T96: FALSE | U96: 3.3
A98: Table 5 | B98: UserForm User provided Input Values
B99: UserForm | C99: Tractor Selection Tractor Name | D99: Tractor Unit Size/Name | E99: Quantity | F99: Implement Size | G99: Use Suggested Price | H99: Purchase Price | I99: Hours at Purchase | J99: Calculated Operating Years | K99: Estimated UL Hours | L99: Estimated SV | M99: Standard Use Hours | N99: Acre-Based Use Hours | O99: User Specified Hours | P99: User Specified Annual Use Hours | Q99: Suggested Fuel Use | R99: User Specified Fuel Use | S99: Gallons Per Hour | T99: % Switchgrass | U99: % Miscanthus | V99: % Sorghum | W99: % Acres per each Implement
B100: 1 | C100: JD 5075E | D100: MFWD 75 | E100: 4 | F100: =VLOOKUP(D100,$Y$6:$AK$15,6,FALSE) -> 75 | G100: TRUE | H100: 47900 | I100: 0 | J100: 20 | K100: 16000 | L100: 8635.35 | M100: TRUE | N100: FALSE | O100: FALSE | P100: 600 | AI100: Tractor Match Error Checking: If ≥ Req'd HP, True | AJ100: Tractor Match Error Checking: If ≤ Req'd HP, True
B101: 2 | C101: JD 6130D | D101: MFWD 130 | F101: =VLOOKUP(D101,$Y$6:$AK$15,6,FALSE) -> 130 | G101: TRUE | H101: 114000 | I101: 0 | J101: 26.67 | K101: 16000 | L101: 17996.22 | M101: TRUE | N101: FALSE | O101: FALSE | P101: 600
B102: 3 | C102: JD 6150M | D102: MFWD 150 | F102: =VLOOKUP(D102,$Y$6:$AK$15,6,FALSE) -> 150 | G102: TRUE | H102: 143000 | I102: 0 | J102: 26.67 | K102: 16000 | L102: 14451.43 | M102: TRUE | N102: FALSE | O102: FALSE | P102: 600 | AC102: Allocation Factors | AH102: User-Specified Tractor HP
B103: 4 | C103: JD 6190R | D103: MFWD 190 | F103: =VLOOKUP(D103,$Y$6:$AK$15,6,FALSE) -> 190 | G103: TRUE | H103: 167000 | I103: 0 | J103: 20 | K103: 16000 | L103: 16876.84 | M103: TRUE | N103: FALSE | O103: FALSE | P103: 600 | Y103: Switchgrass | Z103: Miscanthus | AA103: Sorghum | AC103: Switchgrass | AD103: Miscanthus | AE103: E Sorghum
B104: Disk | C104: 2 | D104: JD 6105M | E104: 2 | F104: 14 | G104: TRUE | H104: 21800 | I104: 0 | J104: 10 | K104: 2000 | L104: 6431.25 | M104: TRUE | N104: FALSE | O104: FALSE | P104: 200 | Q104: TRUE | R104: FALSE | S104: 4.62 | T104: 33 | U104: 33 | V104: 34 | W104: 50 | Y104: 33 | Z104: 33 | AA104: =$N$4-Y104-Z104 -> 34 | AC104: =$W104*T104/SUM($W104*T104+$W105*T105) -> 0.5 | AD104: =$W104*U104/SUM($W104*U104+$W105*U105) -> 0.5 | AE104: =$W104*V104/SUM($W104*V104+$W105*V105) -> 0.5 | AH104: =VLOOKUP(C104,$B$100:$F$103,5,FALSE) -> 130 | AI104: =IF($AH$104>=VLOOKUP($F$104,$C$6:$W$8,21,FALSE),TRUE,FALSE) -> TRUE | AJ104: =IF($AH$104<=VLOOKUP($F$104,$C$6:$W$8,21,FALSE),TRUE,FALSE) -> TRUE
B105: Disk | C105: 4 | D105: JD 6190R | F105: 24 | G105: TRUE | H105: 42600 | I105: 0 | J105: 10 | K105: 2000 | L105: 12567.48 | M105: TRUE | N105: FALSE | O105: FALSE | P105: 200 | Q105: TRUE | R105: FALSE | S105: 8.36 | T105: 33 | U105: 33 | V105: 34 | W105: 50 | Y105: 33 | Z105: 33 | AA105: =$N$4-Y105-Z105 -> 34 | AC105: =1-AC104 -> 0.5 | AD105: =1-AD104 -> 0.5 | AE105: =1-AE104 -> 0.5 | AH105: =VLOOKUP(C105,$B$100:$F$103,5,FALSE) -> 190 | AI105: =IF($AH$105>=VLOOKUP($F$105,$C$6:$W$8,21,FALSE),TRUE,FALSE) -> TRUE | AJ105: =IF($AH$105<=VLOOKUP($F$105,$C$6:$W$8,21,FALSE),TRUE,FALSE) -> TRUE
B106: No-Till Grain Drill | C106: 2 | D106: JD 6130D | E106: 2 | F106: 12 | G106: TRUE | H106: 42000 | I106: 0 | J106: 10 | K106: 1500 | L106: 17007.13 | M106: TRUE | N106: FALSE | O106: FALSE | P106: 150 | Q106: TRUE | R106: FALSE | S106: 5.72 | T106: 100 | U106: 0 | V106: 0 | W106: 50 | Y106: 100 | Z106: 0 | AA106: 0 | AC106: =$W106*T106/SUM($W106*T106+$W107*T107) -> 0.5 | AH106: 130 | AI106: =IF($AH$106>=VLOOKUP($B$106,$B$11:$W$19,22,FALSE),TRUE,FALSE) -> TRUE | AJ106: =IF($AH$106<=VLOOKUP($B$106,$B$11:$W$19,22,FALSE),TRUE,FALSE) -> TRUE
B107: Grain Drill | C107: 2 | D107: JD 6130D | F107: 12 | G107: TRUE | H107: 22700 | I107: 0 | J107: 10 | K107: 1500 | L107: 9191.95 | M107: TRUE | N107: FALSE | O107: FALSE | P107: 150 | Q107: TRUE | R107: FALSE | S107: 6.6 | T107: 100 | U107: 0 | V107: 0 | W107: 50 | Y107: 100 | Z107: 0 | AA107: 0 | AC107: =1-AC106 -> 0.5 | AH107: 130 | AI107: =IF($AH$107>=VLOOKUP($B$107,$B$11:$W$19,22,FALSE),TRUE,FALSE) -> TRUE | AJ107: =IF($AH$107<=VLOOKUP($B$107,$B$11:$W$19,22,FALSE),TRUE,FALSE) -> TRUE
B108: Veggie Planter | C108: 1 | D108: JD 5075E | E108: 2 | F108: 4 Row | G108: TRUE | H108: 16290 | I108: 0 | J108: 10 | K108: 1500 | L108: 6596.34 | M108: TRUE | N108: FALSE | O108: FALSE | P108: 150 | Q108: TRUE | R108: FALSE | S108: 3.3 | T108: 0 | U108: 100 | V108: 0 | W108: 50 | Y108: 0 | Z108: 100 | AA108: 0 | AD108: =$W108*U108/SUM($W108*U108+$W109*U109) -> 0.5 | AH108: 75 | AI108: =IF($AH$108>=VLOOKUP($F$108,$C$33:$W$35,21,FALSE),TRUE,FALSE) -> TRUE | AJ108: =IF($AH$108<=VLOOKUP($F$108,$C$33:$W$35,21,FALSE),TRUE,FALSE) -> TRUE
B109: Veggie Planter | C109: 4 | D109: JD 6190R | F109: 8 Row | G109: TRUE | H109: 20640 | I109: 0 | J109: 10 | K109: 1500 | L109: 8357.79 | M109: TRUE | N109: FALSE | O109: FALSE | P109: 150 | Q109: TRUE | R109: FALSE | S109: 8.36 | T109: 0 | U109: 100 | V109: 0 | W109: 50 | Y109: 0 | Z109: 100 | AA109: 0 | AD109: =1-AD108 -> 0.5 | AH109: 190 | AI109: =IF($AH$109>=VLOOKUP($F$109,$C$33:$W$35,21,FALSE),TRUE,FALSE) -> TRUE | AJ109: =IF($AH$109<=VLOOKUP($F$109,$C$33:$W$35,21,FALSE),TRUE,FALSE) -> TRUE
B110: Cultipacker | C110: 2 | D110: JD 6130D | E110: 2 | F110: 12 | G110: TRUE | H110: 4130 | I110: 0 | J110: 6.67 | K110: 2000 | L110: 1521.6 | M110: TRUE | N110: FALSE | O110: FALSE | P110: 300 | Q110: TRUE | R110: FALSE | S110: 5.72 | T110: 50 | U110: 50 | V110: 0 | W110: 50 | Y110: 50 | Z110: =$N$4-Y110 -> 50 | AA110: 0 | AC110: =$W110*T110/SUM($W110*T110+$W111*T111) -> 0.5 | AD110: =$W110*U110/SUM($W110*U110+$W111*U111) -> 0.5 | AH110: 130 | AI110: =IF($AH$110>=VLOOKUP($F$110,$C$9:$W$10,21,FALSE),TRUE,FALSE) -> TRUE | AJ110: =IF($AH$110<=VLOOKUP($F$110,$C$9:$W$10,21,FALSE),TRUE,FALSE) -> TRUE
B111: Cultipacker | C111: 3 | D111: JD 6150M | F111: 20 | G111: TRUE | H111: 16200 | I111: 0 | J111: 6.67 | K111: 2000 | L111: 5968.5 | M111: TRUE | N111: FALSE | O111: FALSE | P111: 300 | Q111: TRUE | R111: FALSE | S111: 6.6 | T111: 50 | U111: 50 | V111: 0 | W111: 50 | Y111: 50 | Z111: =$N$4-Y111 -> 50 | AA111: 0 | AC111: =1-AC110 -> 0.5 | AD111: =1-AD110 -> 0.5 | AH111: 150 | AI111: =IF($AH$111>=VLOOKUP($F$111,$C$9:$W$10,21,FALSE),TRUE,FALSE) -> TRUE | AJ111: =IF($AH$111<=VLOOKUP($F$111,$C$9:$W$10,21,FALSE),TRUE,FALSE) -> TRUE
B112: Field Cultivator | C112: 3 | D112: JD 6150M | E112: 2 | F112: 12 | G112: TRUE | H112: 11500 | I112: 0 | J112: 20 | K112: 2000 | L112: 1831.41 | M112: TRUE | N112: FALSE | O112: FALSE | P112: 100 | Q112: TRUE | R112: FALSE | S112: 6.6 | T112: 0 | U112: 0 | V112: 100 | W112: 50 | Y112: 0 | Z112: 0 | AA112: 100 | AE112: =$W112*V112/SUM($W112*V112+$W113*V113) -> 0.5 | AH112: =VLOOKUP(C112,$B$100:$F$103,5,FALSE) -> 150 | AI112: =IF($AH$112>=VLOOKUP($F$112,$C$23:$W$24,21,FALSE),TRUE,FALSE) -> TRUE | AJ112: =IF($AH$112<=VLOOKUP($F$112,$C$23:$W$24,21,FALSE),TRUE,FALSE) -> TRUE
B113: Field Cultivator | C113: 4 | D113: JD 6190R | F113: 24 | G113: TRUE | H113: 31958 | I113: 0 | J113: 20 | K113: 2000 | L113: 5089.4 | M113: TRUE | N113: FALSE | O113: FALSE | P113: 100 | Q113: TRUE | R113: FALSE | S113: 8.36 | T113: 0 | U113: 0 | V113: 100 | W113: 50 | Y113: 0 | Z113: 0 | AA113: 100 | AE113: =1-AE112 -> 0.5 | AH113: 190 | AI113: =IF($AH$113>=VLOOKUP($F$113,$C$23:$W$24,21,FALSE),TRUE,FALSE) -> TRUE | AJ113: =IF($AH$113<=VLOOKUP($F$113,$C$23:$W$24,21,FALSE),TRUE,FALSE) -> TRUE
B114: Chisel Plow | C114: 4 | D114: JD 6190R | E114: 2 | F114: 10 | G114: TRUE | H114: 6000 | I114: 0 | J114: 13.33 | K114: 2000 | L114: 1826.73 | M114: TRUE | N114: FALSE | O114: FALSE | P114: 150 | Q114: TRUE | R114: FALSE | S114: 8.36 | T114: 50 | U114: 50 | V114: 100 | W114: 50 | Y114: 50 | Z114: =$N$4-Y114 -> 50 | AA114: 100 | AC114: =$W114*T114/SUM($W114*T114+$W115*T115) -> 0.5 | AD114: =$W114*U114/SUM($W114*U114+$W115*U115) -> 0.5 | AE114: =$W114*V114/SUM($W114*V114+$W115*V115) -> 0.5 | AH114: 190 | AI114: =IF($AH$114>=VLOOKUP($F$114,$C$20:$W$22,21,FALSE),TRUE,FALSE) -> TRUE | AJ114: =IF($AH$114<=VLOOKUP($F$114,$C$20:$W$22,21,FALSE),TRUE,FALSE) -> TRUE
B115: Chisel Plow | C115: 2 | D115: JD 6130D | F115: 16 | G115: TRUE | H115: 22500 | I115: 0 | J115: 13.33 | K115: 2000 | L115: 6850.24 | M115: TRUE | N115: FALSE | O115: FALSE | P115: 150 | Q115: TRUE | R115: FALSE | S115: 5.72 | T115: 50 | U115: 50 | V115: 100 | W115: 50 | Y115: 50 | Z115: =$N$4-Y115 -> 50 | AA115: 100 | AC115: =1-AC114 -> 0.5 | AD115: =1-AD114 -> 0.5 | AE115: =1-AE114 -> 0.5 | AH115: 130 | AI115: =IF($AH$115>=VLOOKUP($F$115,$C$20:$W$22,21,FALSE),TRUE,FALSE) -> TRUE | AJ115: =IF($AH$115<=VLOOKUP($F$115,$C$20:$W$22,21,FALSE),TRUE,FALSE) -> TRUE
B116: Row Conditioner | C116: 2 | D116: JD 6130D | E116: 2 | F116: 13 | G116: TRUE | H116: 7300 | I116: 0 | J116: 20 | K116: 2000 | L116: 1162.55 | M116: TRUE | N116: FALSE | O116: FALSE | P116: 100 | Q116: TRUE | R116: FALSE | S116: 5.72 | T116: 0 | U116: 0 | V116: 100 | W116: 50 | Y116: 0 | Z116: 0 | AA116: 100 | AE116: =$W116*V116/SUM($W116*V116+$W117*V117) -> 0.5 | AH116: 130 | AI116: =IF($AH$116>=VLOOKUP($F$116,$C$28:$W$30,21,FALSE),TRUE,FALSE) -> TRUE | AJ116: =IF($AH$116<=VLOOKUP($F$116,$C$28:$W$30,21,FALSE),TRUE,FALSE) -> TRUE
B117: Row Conditioner | C117: 4 | D117: JD 6190R | F117: 21 | G117: TRUE | H117: 12000 | I117: 0 | J117: 20 | K117: 2000 | L117: 1911.03 | M117: TRUE | N117: FALSE | O117: FALSE | P117: 100 | Q117: TRUE | R117: FALSE | S117: 8.36 | T117: 0 | U117: 0 | V117: 100 | W117: 50 | Y117: 0 | Z117: 0 | AA117: 100 | AE117: =1-AE116 -> 0.5 | AH117: 190 | AI117: =IF($AH$117>=VLOOKUP($F$117,$C$28:$W$30,21,FALSE),TRUE,FALSE) -> TRUE | AJ117: =IF($AH$117<=VLOOKUP($F$117,$C$28:$W$30,21,FALSE),TRUE,FALSE) -> TRUE
B118: Disk Bedder | C118: 3 | D118: JD 6150M | E118: 2 | F118: 4R-38 | G118: TRUE | H118: 7820 | I118: 0 | J118: 12.5 | K118: 2000 | L118: 1971.39 | M118: TRUE | N118: FALSE | O118: FALSE | P118: 160 | Q118: TRUE | R118: FALSE | S118: 6.6 | T118: 0 | U118: 0 | V118: 100 | W118: 50 | Y118: 0 | Z118: 0 | AA118: 100 | AE118: =$W118*V118/SUM($W118*V118+$W119*V119) -> 0.5 | AH118: 150 | AI118: =IF($AH$118>=VLOOKUP($F$118,$C$25:$W$27,21,FALSE),TRUE,FALSE) -> TRUE | AJ118: =IF($AH$118<=VLOOKUP($F$118,$C$25:$W$27,21,FALSE),TRUE,FALSE) -> TRUE
B119: Disk Bedder | C119: 4 | D119: JD 6190R | F119: 6R-30 | G119: TRUE | H119: 12800 | I119: 0 | J119: 12.5 | K119: 2000 | L119: 3226.82 | M119: TRUE | N119: FALSE | O119: FALSE | P119: 160 | Q119: TRUE | R119: FALSE | S119: 8.36 | T119: 0 | U119: 0 | V119: 100 | W119: 50 | Y119: 0 | Z119: 0 | AA119: 100 | AE119: =1-AE118 -> 0.5 | AH119: 190 | AI119: =IF($AH$119>=VLOOKUP($F$119,$C$25:$W$27,21,FALSE),TRUE,FALSE) -> TRUE | AJ119: =IF($AH$119<=VLOOKUP($F$119,$C$25:$W$27,21,FALSE),TRUE,FALSE) -> TRUE
B120: Para-Till | C120: 1 | D120: JD 5075E | E120: 2 | F120: 2 Shank | G120: TRUE | H120: 1670 | I120: 0 | J120: 20 | K120: 2000 | L120: 265.95 | M120: TRUE | N120: FALSE | O120: FALSE | P120: 100 | Q120: TRUE | R120: FALSE | S120: 3.3 | T120: 50 | U120: 50 | V120: 0 | W120: 50 | Y120: 50 | Z120: =$N$4-Y120 -> 50 | AA120: 0 | AC120: =$W120*T120/SUM($W120*T120+$W121*T121) -> 0.5 | AD120: =$W120*U120/SUM($W120*U120+$W121*U121) -> 0.5 | AH120: 75 | AI120: =IF($AH$120>=VLOOKUP($F$120,$C$31:$W$32,21,FALSE),TRUE,FALSE) -> TRUE | AJ120: =IF($AH$120<=VLOOKUP($F$120,$C$31:$W$32,21,FALSE),TRUE,FALSE) -> TRUE
B121: Para-Till | C121: 4 | D121: JD 6190R | F121: 3 Shank | G121: TRUE | H121: 3550 | I121: 0 | J121: 20 | K121: 2000 | L121: 565.35 | M121: TRUE | N121: FALSE | O121: FALSE | P121: 100 | Q121: TRUE | R121: FALSE | S121: 8.36 | T121: 50 | U121: 50 | V121: 0 | W121: 50 | Y121: 50 | Z121: =$N$4-Y121 -> 50 | AA121: 0 | AC121: =1-AC120 -> 0.5 | AD121: =1-AD120 -> 0.5 | AH121: 190 | AI121: =IF($AH$121>=VLOOKUP($F$121,$C$31:$W$32,21,FALSE),TRUE,FALSE) -> TRUE | AJ121: =IF($AH$121<=VLOOKUP($F$121,$C$31:$W$32,21,FALSE),TRUE,FALSE) -> TRUE
B122: Row Planter | C122: 2 | D122: JD 6130D | E122: 2 | F122: 4R-30 | G122: TRUE | H122: 2580 | I122: 0 | J122: 6 | K122: 900 | L122: 1235.25 | M122: TRUE | N122: FALSE | O122: FALSE | P122: 150 | Q122: TRUE | R122: FALSE | S122: 5.72 | T122: 0 | U122: 0 | V122: 100 | W122: 50 | Y122: 0 | Z122: 0 | AA122: 100 | AE122: =$W122*V122/SUM($W122*V122+$W123*V123) -> 0.5 | AH122: 130 | AI122: =IF($AH$122>=VLOOKUP($F$122,$C$41:$W$43,21,FALSE),TRUE,FALSE) -> TRUE | AJ122: =IF($AH$122<=VLOOKUP($F$122,$C$41:$W$43,21,FALSE),TRUE,FALSE) -> TRUE
B123: Row Planter | C123: 3 | D123: JD 6150M | F123: 6R-30 | G123: TRUE | H123: 16290 | I123: 0 | J123: 6 | K123: 900 | L123: 7799.34 | M123: TRUE | N123: FALSE | O123: FALSE | P123: 150 | Q123: TRUE | R123: FALSE | S123: 6.6 | T123: 0 | U123: 0 | V123: 100 | W123: 50 | Y123: 0 | Z123: 0 | AA123: 100 | AE123: =1-AE122 -> 0.5 | AH123: 150 | AI123: =IF($AH$123>=VLOOKUP($F$123,$C$41:$W$43,21,FALSE),TRUE,FALSE) -> TRUE | AJ123: =IF($AH$123<=VLOOKUP($F$123,$C$41:$W$43,21,FALSE),TRUE,FALSE) -> TRUE
B124: Disk Mower Conditioner | C124: 1 | D124: JD 5075E | E124: 2 | F124: 9 | G124: TRUE | H124: 23535 | I124: 0 | J124: 10 | K124: 2500 | L124: 6342.32 | M124: TRUE | N124: FALSE | O124: FALSE | P124: 200 | Q124: TRUE | R124: FALSE | S124: 3.3 | T124: 33 | U124: 33 | V124: 34 | W124: 50 | Y124: 33 | Z124: 33 | AA124: =$N$4-Y124-Z124 -> 34 | AC124: =$W124*T124/SUM($W124*T124+$W125*T125) -> 0.5 | AD124: =$W124*U124/SUM($W124*U124+$W125*U125) -> 0.5 | AE124: =$W124*V124/SUM($W124*V124+$W125*V125) -> 0.5 | AH124: =IF(B124=B48,"N/A",VLOOKUP(C124,$B$100:$F$103,5,FALSE)) -> 75 | AI124: =IF(B124=B12,IF(AH124>=VLOOKUP(F124,C12:W13,21,FALSE),FALSE,TRUE),TRUE) -> FALSE | AJ124: =IF(B124=B12,IF(AH124<=VLOOKUP(F124,C12:W13,21,FALSE),FALSE,TRUE),TRUE) -> FALSE
B125: SP Mower Conditioner — 235 hp | C125: 0 | D125: N/A | F125: 13 | G125: TRUE | H125: 163569.6 | I125: 0 | J125: 10 | K125: 10000 | L125: 38075.87 | M125: TRUE | N125: FALSE | O125: FALSE | P125: 600 | Q125: TRUE | R125: FALSE | S125: 10.34 | T125: 33 | U125: 33 | V125: 34 | W125: 50 | Y125: 33 | Z125: 33 | AA125: 34 | AC125: =1-AC124 -> 0.5 | AD125: =1-AD124 -> 0.5 | AE125: =1-AE124 -> 0.5 | AH125: =IF(B125=B48,"N/A",VLOOKUP(C125,$B$100:$F$103,5,FALSE)) -> N/A | AI125: =IF(B124=B12,IF(AH124>=VLOOKUP(F124,C12:W13,21,FALSE),FALSE,TRUE),TRUE) -> FALSE | AJ125: =IF(B125=B12,IF(AH124<=VLOOKUP(F125,C12:W13,21,FALSE),FALSE,TRUE),TRUE) -> TRUE
B126: Hay Rake | C126: 1 | D126: JD 5075E | E126: 1 | F126: 17 | G126: TRUE | H126: 4738 | I126: 0 | J126: 12.5 | K126: 2500 | L126: 1043.36 | M126: TRUE | N126: FALSE | O126: FALSE | P126: 200 | Q126: TRUE | R126: FALSE | S126: 3.3 | T126: 33 | U126: 33 | V126: 34 | W126: 100 | Y126: 33 | Z126: 33 | AA126: 34 | AC126: =$W126*T126/SUM($W126*T126+$W127*T127) -> 1 | AD126: =$W126*U126/SUM($W126*U126+$W127*U127) -> 1 | AE126: =$W126*V126/SUM($W126*V126+$W127*V127) -> 1 | AH126: =VLOOKUP(C126,$B$100:$F$103,5,FALSE) -> 75 | AI126: =IF($AH$126>=VLOOKUP($F$126,$C$17:$W$18,21,FALSE),TRUE,FALSE) -> TRUE | AJ126: =IF($AH$126<=VLOOKUP($F$126,$C$17:$W$18,21,FALSE),TRUE,FALSE) -> TRUE
B127: Hay Rake | C127: 1 | D127: JD 5075E | F127: 17 | G127: TRUE | H127: 4738 | I127: 0 | J127: 12.5 | K127: 2500 | L127: 1043.36 | M127: TRUE | N127: FALSE | O127: FALSE | P127: 200 | Q127: TRUE | R127: FALSE | S127: 3.3 | T127: 33 | U127: 33 | V127: 34 | W127: 0 | X127: Bale Wrap | Y127: 33 | Z127: 33 | AA127: 34 | AB127: Field Speed | AC127: =1-AC126 -> 0 | AD127: =1-AD126 -> 0 | AE127: =1-AE126 -> 0 | AF127: Standard FS | AG127: User Spec FS | AH127: =VLOOKUP(C127,$B$100:$F$103,5,FALSE) -> 75 | AI127: =IF($AH$127>=VLOOKUP($F$127,$C$17:$W$18,21,FALSE),TRUE,FALSE) -> TRUE | AJ127: =IF($AH$127<=VLOOKUP($F$127,$C$17:$W$18,21,FALSE),TRUE,FALSE) -> TRUE | AK127: Bales
B128: Baler | C128: 1 | D128: JD 5075E | E128: 2 | F128: 1250 lbs — 5 x 6 ft | G128: TRUE | H128: 31207 | I128: 0 | J128: 7.5 | K128: 1500 | L128: 10332.18 | M128: TRUE | N128: FALSE | O128: FALSE | P128: 200 | Q128: TRUE | R128: FALSE | S128: 3.3 | T128: 33 | U128: 33 | V128: 34 | W128: 50 | X128: Net Wrap | Y128: 33 | Z128: 33 | AA128: 34 | AB128: 35 | AC128: =$W128*T128/SUM($W128*T128+$W129*T129) -> 0.5 | AD128: =$W128*U128/SUM($W128*U128+$W129*U129) -> 0.5 | AE128: =$W128*V128/SUM($W128*V128+$W129*V129) -> 0.5 | AF128: TRUE | AG128: FALSE | AH128: =VLOOKUP(C128,$B$100:$F$103,5,FALSE) -> 75 | AI128: =IF($F$128=C15,TRUE,IF($AH$128>=VLOOKUP($F$128,$C$14:$W$16,21,FALSE),TRUE,FALSE)) -> TRUE | AJ128: =IF($F$128=D15,TRUE,IF($AH$128<=VLOOKUP($F$128,$C$14:$W$16,21,FALSE),TRUE,FALSE)) -> TRUE | AK128: =VLOOKUP(F128,C164:J166,8,FALSE) -> 14 — 5 x 6 ft (Lrg Rd)
B129: Baler | C129: 4 | D129: JD 6190R | F129: 2100 lbs — 3 x 4 x 9.5 ft | G129: TRUE | H129: 136907.1 | I129: 0 | J129: 7.5 | K129: 3000 | L129: 29074.01 | M129: TRUE | N129: FALSE | O129: FALSE | P129: 200 | Q129: TRUE | R129: FALSE | S129: 8.36 | T129: 33 | U129: 33 | V129: 34 | W129: 50 | X129: Net Wrap | Y129: 33 | Z129: 33 | AA129: 34 | AB129: 80 | AC129: =1-AC128 -> 0.5 | AD129: =1-AD128 -> 0.5 | AE129: =1-AE128 -> 0.5 | AF129: TRUE | AG129: FALSE | AH129: =VLOOKUP(C129,$B$100:$F$103,5,FALSE) -> 190 | AI129: =IF($F$129=$C$15,TRUE,IF($AH$129>=VLOOKUP($F$129,$C$14:$W$16,21,FALSE),TRUE,FALSE)) -> TRUE | AJ129: =IF($F$129=$C$15,TRUE,IF($AH$129<=VLOOKUP($F$129,$C$14:$W$16,21,FALSE),TRUE,FALSE)) -> TRUE | AK129: =VLOOKUP(F129,C164:J166,8,FALSE) -> 16 — 3 x 4 x 9 ft (Lrg Sq)
B130: Forage Harvester | E130: 1 | F130: 375 | G130: TRUE | H130: 244382.4 | I130: 0 | J130: 13.33 | K130: 4000 | L130: 47446.56 | M130: TRUE | N130: FALSE | O130: FALSE | P130: 300 | Q130: TRUE | R130: FALSE | S130: 16.5 | T130: 33 | U130: 33 | V130: 34 | W130: 100 | Y130: 33 | Z130: 33 | AA130: 34 | AC130: =$W130*T130/SUM($W130*T130+$W131*T131) -> 1 | AD130: =$W130*U130/SUM($W130*U130+$W131*U131) -> 1 | AE130: =$W130*V130/SUM($W130*V130+$W131*V131) -> 1 | AK130: Max Loads per Hour
B131: Forage Harvester | F131: 800 | G131: TRUE | H131: 473988.6 | I131: 0 | J131: 13.33 | K131: 4000 | L131: 92024.34 | M131: TRUE | N131: FALSE | O131: FALSE | P131: 300 | Q131: TRUE | R131: FALSE | S131: 35.2 | T131: 33 | U131: 33 | V131: 34 | W131: 0 | Y131: 33 | Z131: 33 | AA131: 34 | AB131: Minutes per Load | AC131: =1-AC130 -> 0 | AD131: =1-AD130 -> 0 | AE131: =1-AE130 -> 0 | AF131: Std. Minutes | AG131: User Minutes
B132: Bale Hauler | C132: 1 | D132: JD 5075E | E132: 2 | F132: 14 — 5 x 6 ft (Lrg Rd) | G132: TRUE | H132: 25587 | I132: 0 | J132: 13.5 | K132: 3000 | L132: 2881.82 | M132: TRUE | N132: FALSE | O132: FALSE | P132: 200 | Q132: TRUE | R132: FALSE | S132: 3.3 | T132: 33 | U132: 33 | V132: 34 | W132: 50 | Y132: 33 | Z132: 33 | AA132: 34 | AB132: 20 | AC132: =$W132*T132/SUM($W132*T132+$W133*T133) -> 0.5 | AD132: =$W132*U132/SUM($W132*U132+$W133*U133) -> 0.5 | AE132: =$W132*V132/SUM($W132*V132+$W133*V133) -> 0.5 | AF132: TRUE | AG132: FALSE | AH132: =VLOOKUP(C132,$B$100:$F$103,5,FALSE) -> 75 | AI132: =IF($AH$132>=VLOOKUP($F$132,$C$4:$W$40,21,FALSE),TRUE,FALSE) -> TRUE | AJ132: =IF($AH$132<=VLOOKUP($F$132,$C$4:$W$40,21,FALSE),TRUE,FALSE) -> TRUE | AK132: =60/AB132 -> 3
B133: Bale Hauler | C133: 1 | D133: JD 5075E | F133: 16 — 3 x 4 x 9 ft (Lrg Sq) | G133: TRUE | H133: 40500 | I133: 0 | J133: 15 | K133: 3000 | L133: 4561.44 | M133: TRUE | N133: FALSE | O133: FALSE | P133: 200 | Q133: TRUE | R133: FALSE | S133: 3.3 | T133: 33 | U133: 33 | V133: 34 | W133: 50 | Y133: 33 | Z133: 33 | AA133: 34 | AB133: 20 | AC133: =1-AC132 -> 0.5 | AD133: =1-AD132 -> 0.5 | AE133: =1-AE132 -> 0.5 | AF133: TRUE | AG133: FALSE | AH133: =VLOOKUP(C133,$B$100:$F$103,5,FALSE) -> 75 | AI133: =IF($AH$133>=VLOOKUP($F$133,$C$4:$W$40,21,FALSE),TRUE,FALSE) -> FALSE | AJ133: =IF($AH$133<=VLOOKUP($F$133,$C$4:$W$40,21,FALSE),TRUE,FALSE) -> TRUE | AK133: =60/AB133 -> 3
B134: Spreader | C134: 1 | D134: JD 5075E | E134: 1 | F134: =C51 -> 40 | G134: TRUE | H134: =D51 -> 11300 | I134: =E51 -> 0 | J134: =H51 -> 1.5 | K134: =F51 -> 1200 | L134: 7360.09 | M134: TRUE | N134: FALSE | O134: FALSE | P134: 800 | Q134: TRUE | R134: FALSE | S134: 3.3 | AH134: =VLOOKUP(D134,$C$100:$F$103,4,FALSE) -> 75 | AI134: =IF($AH$134>=$W$51,TRUE,FALSE) -> FALSE | AJ134: =IF($AH$134<=$W$51,TRUE,FALSE) -> TRUE
A136: Table 6 | C136: UserForm Data | AD136: Implement Calculations | AO136: Tractor Calculations | AS136: (S) Standard Budget Totals | AW136: (M) Standard Budget Totals | BA136: (FS) Standard Budget Totals | BE136: (S) User Budget Totals | BI136: (M) User Budget Totals | BM136: (FS) Budget Totals | BQ136: Totals For Machinery Tab | BU136: Tractor Capital Recovery ($/hr) | BY136: Tractor Wtd. Avg. Operating Cost ($/hr) | CC136: (S) Annual Use Hours | CG136: (M) Annual Use Hours | CK136: (FS) Annual Use Hours
A137: Tillage and Planting Equipment | B137: Implement | C137: Implement Size (width) | D137: User Implement PP ($) | E137: Std. Implement PP ($) | F137: User Implement Hours at Purchase | G137: User Implement Hours @ Salvage | H137: Standard Implement Hours @ Salvage | I137: Std. Implement Salvage Value ($) | J137: User Implement Salvage Value ($) | K137: User Spec. Implement Use Hours | L137: Calculated User Implement Operation Years | M137: Standard Implement Use Hours | N137: Calculated Std. Implement Operation Years | O137: Tractor Selection | P137: User Tractor Unit Size | Q137: Tractor HP | R137: User Tractor PP ($) | S137: Std. Tractor PP ($) | T137: Tractor Hours at Purchase | U137: User Tractor Hours @ Salvage | V137: Standard Tractor Hours @ Salvage | W137: User Tractor Salvage Value ($) | X137: Std. Tractor Salvage Value ($) | Y137: User Specified Tractor Use Hours | Z137: Calculated User Tractor Operation Years | AA137: Standard Tractor Use Hours | AB137: Calculated Std. Tractor Operation Years | AC137: Fuel Use Use (gal/hr) | AD137: Implement Field Efficiency (%) | AE137: Implement Field Speed (mph) | AF137: Implement Hours/Acre | AG137: Implement Acres/Hour (APH) | AH137: (S) User Annual Use | AI137: (M) User Annual Use | AJ137: (FS) User Annual Use | AK137: Labor Hours | AL137: User Implement Capital Recovery ($/hr) | AM137: Std. Implement Capital Recovery ($/hr) | AN137: Implement R&M ($/hr) | AO137: Tractor Labor (hrs) | AP137: User Tractor Capital Recovery ($/hr) | AQ137: Standard Tractor Capital Recovery ($/hr) | AR137: Tractor R&M ($/hr) | AS137: Labor (hrs/acre) | AT137: Fuel (gal/hr) | AU137: R&M ($/hr) | AV137: Capital Recovery ($/hr) | AW137: Labor (hrs/acre) | AX137: Fuel (gal/hr) | AY137: R&M ($/hr) | AZ137: Capital Recovery ($/hr) | BA137: Labor (hrs/acre) | BB137: Fuel (gal/hr) | BC137: R&M ($/hr) | BD137: Capital Recovery ($/hr) | BE137: Labor (hrs/acre) | BF137: Fuel (gal/hr) | BG137: R&M ($/hr) | BH137: Capital Recovery ($/hr) | BI137: Labor (hrs/acre) | BJ137: Fuel (gal/hr) | BK137: R&M ($/hr) | BL137: Capital Recovery ($/hr) | BM137: Labor (hrs/acre) | BN137: Fuel (gal/hr) | BO137: R&M ($/hr) | BP137: Capital Recovery ($/hr) | BQ137: Labor Costs ($/hr) | BR137: Fuel Costs ($/hr) | BS137: R&M ($/hr) | BT137: Capital Recovery ($/hr) | BU137: =$C$100 -> JD 5075E | BV137: =IF(E100<2,0,$C$101) -> JD 6130D | BW137: =IF(E100<3,0,$C$102) -> JD 6150M | BX137: =IF(E100<4,0,$C$103) -> JD 6190R | BY137: =$C$100 -> JD 5075E | BZ137: =IF(E100<2,0,$C$101) -> JD 6130D | CA137: =IF(E100<3,0,$C$102) -> JD 6150M | CB137: =IF(E100<4,0,$C$103) -> JD 6190R | CC137: =$C$100 -> JD 5075E | CD137: =IF(E100<2,0,$C$101) -> JD 6130D | CE137: =IF(E100<3,0,$C$102) -> JD 6150M | CF137: =IF(E100<4,0,$C$103) -> JD 6190R | CG137: =$C$100 -> JD 5075E | CH137: =IF(E100<2,0,$C$101) -> JD 6130D | CI137: =IF(E100<3,0,$C$102) -> JD 6150M | CJ137: =IF(E100<4,0,$C$103) -> JD 6190R | CK137: =$C$100 -> JD 5075E | CL137: =IF(E100<2,0,$C$101) -> JD 6130D | CM137: =IF(E100<3,0,$C$102) -> JD 6150M | CN137: =IF(E100<4,0,$C$103) -> JD 6190R
B138: Disk | C138: =F104 -> 14 | D138: =H104 -> 21800 | E138: =VLOOKUP(C138,$C$6:$D$8,2,FALSE) -> 21800 | F138: =I104 -> 0 | G138: =$K104 -> 2000 | H138: =VLOOKUP(B138,$B$6:$F$51,5,FALSE) -> 2000 | I138: =IF($L$104>$D138,0,$L$104) -> 6431.25 | J138: =VLOOKUP(C138,$C$6:$K$8,9,FALSE) -> 6431.247061 | K138: =P104 -> 200 | L138: =+(G138-F138)/K138 -> 10 | M138: =I6 -> 200 | N138: =+(H138-0)/M138 -> 10 | O138: =IF(C104=1,Machinery!B18,IF(C104=2,Machinery!B19,IF(C104=3,Machinery!B20,IF(C104=4,Machinery!B21,FALSE)))) -> JD 6130D | P138: =IF(O138="No Tractor",0,VLOOKUP($O138,$C$100:$D$103,2,FALSE)) -> MFWD 130 | Q138: =IF(O138="No Tractor",0,VLOOKUP($O138,$C$100:$F$103,4,FALSE)) -> 130 | R138: =IF(O138="No Tractor",0,VLOOKUP($O138,$C$62:$H$65,6,FALSE)) -> 114000 | S138: =IF($O$138="No Tractor",0,VLOOKUP($O138,$AA$18:$AC$21,3,FALSE)) -> 114000 | T138: =IF(O138="No Tractor",0,VLOOKUP($O138,$C$100:$I$103,7,FALSE)) -> 0 | U138: =IF(O138="No Tractor",0,VLOOKUP($O138,$C$100:$K$103,9,FALSE)) -> 16000 | V138: =IF(O138="No Tractor",0,VLOOKUP(P138,$Y$6:$AE$15,7,FALSE)) -> 16000 | W138: =IF(O138="No Tractor",0,VLOOKUP($O138,$C$100:$L$103,10,FALSE)) -> 17996.22 | X138: =IF($O$138="No Tractor",0,VLOOKUP($O138,$AA$18:$AN$21,14,FALSE)) -> 17996.21702 | Y138: =IF(O138="No Tractor",0,VLOOKUP($O138,$C$62:$R$65,16,FALSE)) -> 600 | Z138: =IF(O138="No Tractor",0,(U138-T138)/Y138) -> 26.66666667 | AA138: =IF(O138="No Tractor",0,VLOOKUP($P138,$Y$6:$AK$15,13,FALSE)) -> 600 | AB138: =IF(O138="No Tractor",0,(V138-0)/AA138) -> 26.66666667 | AC138: =IF(O138="No Tractor",0,$S104) -> 4.62 | AD138: =VLOOKUP($B138,$B$6:$Q$51,15,FALSE) -> 0.85 | AE138: =VLOOKUP($B138,$B$6:$Q$51,16,FALSE) -> 4.5 | AF138: =1/((5280/43560)*AE138*C138*AD138) -> 0.1540616246 | AG138: =1/AF138 -> 6.490909091 | AH138: =IF(Switchgrass!J11=0,0,(Machinery!D12)*(AF138)*(1/Switchgrass!$H$114)) -> 0.7703081232 | AI138: =IF(Miscanthus!J20=0,0,(Machinery!E12)*AF138*(1/Miscanthus!$H$82)) -> 0.5135387488 | AJ138: =IF('Energy Sorghum'!J11=0,0,Machinery!F12*AF138) -> 7.703081232 | AK138: =AF138 -> 0.1540616246 | AL138: =((($D138-$I138)*(Inputs!$P$19/(1-((1+Inputs!$P$19)^(-$L138))))+(($I138*Inputs!$P$19)))/K138) -> 12.36997841 | AM138: =((($E138-$J138)*(Inputs!$P$19/(1-((1+Inputs!$P$19)^(-$N138))))+(($J138*Inputs!$P$19)))/M138) -> 12.36997953 | AN138: =O6*$D138/($G138-$F138) -> 6.54 | AO138: =IF(O138="No Tractor",0,AF138) -> 0.1540616246 | AP138: =IF(O138="No Tractor",0,((($R138-$W138)*(Inputs!$P$19/(1-((1+Inputs!$P$19)^(-$Z138))))+(($W138*Inputs!$P$19)))/(Y138))) -> 13.97411399 | AQ138: =IF(O138="No Tractor",0,((($S138-$X138)*(Inputs!$P$19/(1-((1+Inputs!$P$19)^(-$AB138))))+(($X138*Inputs!$P$19)))/(AA138))) -> 13.97411407 | AR138: =IF(O138="No Tractor",0,(VLOOKUP($P138,$AL$6:$AS$15,8,FALSE)*$R138)/($U138-$T138)) -> 5.7 | AS138: =AK138*W104/100 -> 0.07703081232 | AT138: =AC138*W104/100 -> 2.31 | AU138: =(AN138+AR138)*W104/100 -> 6.12 | AV138: =(AM138+AQ138)*W104/100 -> 13.1720468 | AW138: =AK138*W104/100 -> 0.07703081232 | AX138: =AC138*W104/100 -> 2.31 | AY138: =(AN138+AR138)*W104/100 -> 6.12 | AZ138: =(AM138+AQ138)*W104/100 -> 13.1720468 | BA138: =AK138*W104/100 -> 0.07703081232 | BB138: =AC138*W104/100 -> 2.31 | BC138: =(AN138+AR138)*W104/100 -> 6.12 | BD138: =(AM138+AQ138)*W104/100 -> 13.1720468 | BE138: =$AK138*W104/100 -> 0.07703081232 | BF138: =$AC138*W104/100 -> 2.31 | BG138: =($AN138+$AR138)*W104/100 -> 6.12 | BH138: =($AL138+$AP138)*W104/100 -> 13.1720462 | BI138: =$AK138*W104/100 -> 0.07703081232 | BJ138: =$AC138*W104/100 -> 2.31 | BK138: =($AN138+$AR138)*W104/100 -> 6.12 | BL138: =($AL138+$AP138)*W104/100 -> 13.1720462 | BM138: =$AK138*W104/100 -> 0.07703081232 | BN138: =$AC138*W104/100 -> 2.31 | BO138: =($AN138+$AR138)*W104/100 -> 6.12 | BP138: =($AL138+$AP138)*W104/100 -> 13.1720462 | BQ138: =AK138*Inputs!$G$15 -> 1.425070028 | BR138: =AC138*Inputs!$G$11 -> 11.4576 | BS138: =BG138 -> 6.12 | BT138: 13.1720462 | BU138: =IF($O138=BU$137,$AP138,0) -> 0 | BV138: 13.97411399 | BW138: 0 | BX138: 0 | BY138: =IF($O138=BY$137,SUM(($AO138*Inputs!$G$15)+$AR138+($AC138*Inputs!$G$11)),0) -> 0 | BZ138: =IF($O138=BZ$137,SUM(($AO138*Inputs!$G$15)+$AR138+($AC138*Inputs!$G$11)),0) -> 18.58267003 | CA138: =IF($O138=CA$137,SUM(($AO138*Inputs!$G$15)+$AR138+($AC138*Inputs!$G$11)),0) -> 0 | CB138: =IF($O138=CB$137,SUM(($AO138*Inputs!$G$15)+$AR138+($AC138*Inputs!$G$11)),0) -> 0 | CC138: =IF($O138=$CC$137,$AH138,0) -> 0 | CD138: =IF($O138=$CD$137,$AH138,0) -> 0.7703081232 | CE138: =IF($O138=CE137,$AH138,0) -> 0 | CF138: =IF($O138=$CF$137,$AH138,0) -> 0 | CG138: =IF($O138=$CG$137,$AI138,0) -> 0 | CH138: =IF($O138=$CH$137,$AI138,0) -> 0.5135387488 | CI138: =IF($O138=$CI$137,$AI138,0) -> 0 | CJ138: =IF($O138=$CJ$137,$AI138,0) -> 0 | CK138: =IF($O138=$CK$137,$AJ138,0) -> 0 | CL138: =IF($O138=$CL$137,$AJ138,0) -> 7.703081232 | CM138: =IF($O138=$CM$137,$AJ138,0) -> 0 | CN138: =IF($O138=$CN$137,$AJ138,0) -> 0
B139: Disk | C139: =IF(E104=2,F105,0) -> 24 | D139: =IF($E104=2,$H105,0) -> 42600 | E139: =IF(E104=2,VLOOKUP(C139,$C$6:$D$8,2,FALSE),0) -> 42600 | F139: =IF(E104=2,I105,0) -> 0 | G139: =IF($E104=2,$K105,0) -> 2000 | H139: =IF(E104=2,VLOOKUP(B139,$B$6:$F$51,5,FALSE),0) -> 2000 | I139: =IF($E$104=2,IF($L$105>$D139,0,$L$105),0) -> 12567.48 | J139: =IF(E104=2,VLOOKUP(C139,$C$6:$K$8,9,FALSE),0) -> 12567.48279 | K139: =IF(E104=2,P105,0) -> 200 | L139: =IF($E$104=2,+(G139-F139)/K139,0) -> 10 | M139: =IF(E104=2,I6,0) -> 200 | N139: =IF(E104=2,(H139-0)/M139) -> 10 | O139: =IF(E104=2,IF(C105=1,Machinery!B18,IF(C105=2,Machinery!B19,IF(C105=3,Machinery!B20,IF(C105=4,Machinery!B21,FALSE)))),0) -> JD 6190R | P139: =IF(O139="No Tractor",0,IF($E$104=2,VLOOKUP($O139,$C$100:$D$103,2,FALSE),0)) -> MFWD 190 | Q139: =IF(O139="No Tractor",0,IF($E$104=2,VLOOKUP($O139,$C$100:$F$103,4,FALSE),0)) -> 190 | R139: =IF(O139="No Tractor",0,IF($E$104=2,VLOOKUP($O139,$C$62:$H$65,6,FALSE),0)) -> 167000 | S139: =IF($E$104=2,IF($O$139="No Tractor",0,VLOOKUP($O139,$AA$18:$AC$21,3,FALSE)),0) -> 167000 | T139: =IF(O139="No Tractor",0,IF($E$104=2,VLOOKUP($O139,$C$100:$I$103,7,FALSE),0)) -> 0 | U139: =IF(O139="No Tractor",0,IF($E$104=2,VLOOKUP($O139,$C$100:$K$103,9,FALSE),0)) -> 16000 | V139: =IF(O139="No Tractor",0,IF(E104=2,VLOOKUP(P139,$Y$6:$AE$15,7,FALSE),0)) -> 16000 | W139: =IF(O139="No Tractor",0,IF($E104=2,VLOOKUP($O139,$C$100:$L$103,10,FALSE),0)) -> 16876.84 | X139: =IF($E$104=2,IF($O$139="No Tractor",0,VLOOKUP($O139,$AA$18:$AN$21,14,FALSE)),0) -> 16876.83927 | Y139: =IF(O139="No Tractor",0,IF($E104=2,VLOOKUP($O139,$C$62:$R$65,16,FALSE),0)) -> 600 | Z139: =IF(O139="No Tractor",0,IF($E104=2,(U139-T139)/Y139,0)) -> 26.66666667 | AA139: =IF(O139="No Tractor",0,IF(E104=2,VLOOKUP($P139,$Y$6:$AK$15,13,FALSE),0)) -> 600 | AB139: =IF(O139="No Tractor",0,IF(E104=2,(V139-0)/AA139,0)) -> 26.66666667 | AC139: =IF(O139="No Tractor",0,IF($E104=2,$S105,0)) -> 8.36 | AD139: =IF(E104=2,VLOOKUP($B139,$B$6:$Q$51,15,FALSE),0) -> 0.85 | AE139: =IF(E104=2,VLOOKUP($B139,$B$6:$Q$51,16,FALSE),0) -> 4.5 | AF139: =IF(E104=2,1/((5280/43560)*AE139*C139*AD139),0) -> 0.08986928105 | AG139: =IF($E$104=2,1/AF139,0) -> 11.12727273 | AH139: =IF(Switchgrass!J11=0,0,IF(E104=2,((Machinery!D12)*(AF139)*(1/Switchgrass!$H$114)),0)) -> 0.4493464052 | AI139: =IF(Miscanthus!J20=0,0,IF(E104=2,(Machinery!E12)*AF139*(1/Miscanthus!$H$82),0)) -> 0.2995642702 | AJ139: =IF('Energy Sorghum'!J11=0,0,IF(E104=2,(Machinery!F12)*AF139,0)) -> 4.493464052 | AK139: 0.08986928105 | AL139: =IF($E$104=2,((($D139-$I139)*(Inputs!$P$19/(1-((1+Inputs!$P$19)^(-$L139))))+(($I139*Inputs!$P$19)))/K139),0) -> 24.17252986 | AM139: =IF($E$104=2,((($E139-$J139)*(Inputs!$P$19/(1-((1+Inputs!$P$19)^(-$N139))))+(($J139*Inputs!$P$19)))/M139),0) -> 24.17252881 | AN139: =IF($E$104=2,O6*$D139/($G139-$F139),0) -> 12.78 | AO139: =IF(O139="No Tractor",0,IF(E104=2,AF139,0)) -> 0.08986928105 | AP139: =IF(O139="No Tractor",0,IF($E104=2,((($R139-$W139)*(Inputs!$P$19/(1-((1+Inputs!$P$19)^(-$Z139))))+(($W139*Inputs!$P$19)))/(Y139)),0)) -> 20.72519699 | AQ139: =IF(O139="No Tractor",0,IF($E104=2,((($S139-$X139)*(Inputs!$P$19/(1-((1+Inputs!$P$19)^(-$AB139))))+(($X139*Inputs!$P$19)))/(AA139)),0)) -> 20.72519701 | AR139: =IF(O139="No Tractor",0,IF(E104=2,(VLOOKUP($P139,$AL$6:$AS$15,8,FALSE)*$R139)/($U139-$T139),0)) -> 8.35 | AS139: =AK139*W105/100 -> 0.04493464052 | AT139: =AC139*W105/100 -> 4.18 | AU139: =(AN139+AR139)*W105/100 -> 10.565 | AV139: =(AM139+AQ139)*W105/100 -> 22.44886291 | AW139: =AK139*W105/100 -> 0.04493464052 | AX139: =AC139*W105/100 -> 4.18 | AY139: =(AN139+AR139)*W105/100 -> 10.565 | AZ139: =(AM139+AQ139)*W105/100 -> 22.44886291 | BA139: =AK139*W105/100 -> 0.04493464052 | BB139: =AC139*W105/100 -> 4.18 | BC139: =(AN139+AR139)*W105/100 -> 10.565 | BD139: =(AM139+AQ139)*W105/100 -> 22.44886291 | BE139: =$AK139*W105/100 -> 0.04493464052 | BF139: =$AC139*W105/100 -> 4.18 | BG139: =($AN139+$AR139)*W105/100 -> 10.565 | BH139: =($AL139+$AP139)*W105/100 -> 22.44886342 | BI139: =$AK139*W105/100 -> 0.04493464052 | BJ139: =$AC139*W105/100 -> 4.18 | BK139: =($AN139+$AR139)*W105/100 -> 10.565 | BL139: =($AL139+$AP139)*W105/100 -> 22.44886342 | BM139: =$AK139*W105/100 -> 0.04493464052 | BN139: =$AC139*W105/100 -> 4.18 | BO139: =($AN139+$AR139)*W105/100 -> 10.565 | BP139: =($AL139+$AP139)*W105/100 -> 22.44886342 | BQ139: =AK139*Inputs!$G$15 -> 0.8312908497 | BR139: =AC139*Inputs!$G$11 -> 20.7328 | BS139: 10.565 | BT139: 22.44886342 | BU139: 0 | BV139: 0 | BW139: 0 | BX139: 20.72519699 | BY139: =IF($O139=BY$137,SUM(($AO139*Inputs!$G$15)+$AR139+($AC139*Inputs!$G$11)),0) -> 0 | BZ139: =IF($O139=BZ$137,SUM(($AO139*Inputs!$G$15)+$AR139+($AC139*Inputs!$G$11)),0) -> 0 | CA139: =IF($O139=CA$137,SUM(($AO139*Inputs!$G$15)+$AR139+($AC139*Inputs!$G$11)),0) -> 0 | CB139: =IF($O139=CB$137,SUM(($AO139*Inputs!$G$15)+$AR139+($AC139*Inputs!$G$11)),0) -> 29.91409085 | CC139: =IF($O139=$CC$137,$AH139,0) -> 0 | CD139: =IF($O139=$CD$137,$AH139,0) -> 0 | CE139: =IF($O139=CE137,$AH139,0) -> 0 | CF139: =IF($O139=$CF$137,$AH139,0) -> 0.4493464052 | CG139: =IF($O139=$CG$137,$AI139,0) -> 0 | CH139: =IF($O139=$CH$137,$AI139,0) -> 0 | CI139: =IF($O139=$CI$137,$AI139,0) -> 0 | CJ139: =IF($O139=$CJ$137,$AI139,0) -> 0.2995642702 | CK139: =IF($O139=$CK$137,$AJ139,0) -> 0 | CL139: =IF($O139=$CL$137,$AJ139,0) -> 0 | CM139: =IF($O139=$CM$137,$AJ139,0) -> 0 | CN139: =IF($O139=$CN$137,$AJ139,0) -> 4.493464052
B140: =B106 -> No-Till Grain Drill | C140: =F106 -> 12 | D140: =$H106 -> 42000 | E140: =IF(B140=B11,D11,IF(B140=B19,D19,FALSE)) -> 42000 | F140: =I106 -> 0 | G140: =$K106 -> 1500 | H140: =VLOOKUP(B140,$B$6:$F$51,5,FALSE) -> 1500 | I140: =IF(L106>D140,0,L106) -> 17007.13 | J140: =IF(B140=B11,K11,IF(B140=B19,K19,FALSE)) -> 17007.12623 | K140: =P106 -> 150 | L140: =+(G140-F140)/K140 -> 10 | M140: =VLOOKUP(B140,B11:I19,8,FALSE) -> 150 | N140: =+(H140-0)/M140 -> 10 | O140: =IF(C106=1,Machinery!B18,IF(C106=2,Machinery!B19,IF(C106=3,Machinery!B20,IF(C106=4,Machinery!B21,FALSE)))) -> JD 6130D | P140: =IF(O140="No Tractor",0,VLOOKUP($O140,$C$100:$D$103,2,FALSE)) -> MFWD 130 | Q140: =IF(O140="No Tractor",0,VLOOKUP($O140,$C$100:$F$103,4,FALSE)) -> 130 | R140: =IF(O140="No Tractor",0,VLOOKUP($O140,$C$62:$H$65,6,FALSE)) -> 114000 | S140: =IF($O$140="No Tractor",0,VLOOKUP($O140,$AA$18:$AC$21,3,FALSE)) -> 114000 | T140: =IF(O140="No Tractor",0,VLOOKUP($O140,$C$100:$I$103,7,FALSE)) -> 0 | U140: =IF(O140="No Tractor",0,VLOOKUP($O140,$C$100:$K$103,9,FALSE)) -> 16000 | V140: =IF(O140="No Tractor",0,VLOOKUP(P140,$Y$6:$AE$15,7,FALSE)) -> 16000 | W140: =IF(O140="No Tractor",0,VLOOKUP($O140,$C$100:$L$103,10,FALSE)) -> 17996.22 | X140: =IF($O$140="No Tractor",0,VLOOKUP($O140,$AA$18:$AN$21,14,FALSE)) -> 17996.21702 | Y140: =IF(O140="No Tractor",0,VLOOKUP($O140,$C$62:$R$65,16,FALSE)) -> 600 | Z140: =IF(O140="No Tractor",0,(U140-T140)/Y140) -> 26.66666667 | AA140: =IF(O140="No Tractor",0,VLOOKUP($P140,$Y$6:$AK$15,13,FALSE)) -> 600 | AB140: =IF(O140="No Tractor",0,(V140-0)/AA140) -> 26.66666667 | AC140: =IF(O140="No Tractor",0,$S106) -> 5.72 | AD140: =VLOOKUP($B140,$B$6:$Q$51,15,FALSE) -> 0.7 | AE140: =VLOOKUP($B140,$B$6:$Q$51,16,FALSE) -> 5 | AF140: =1/((5280/43560)*AE140*C140*AD140) -> 0.1964285714 | AG140: =1/AF140 -> 5.090909091 | AH140: =IF(Switchgrass!T5="Pasture",IF(Switchgrass!J24=0,0,(Machinery!D12)*(AF140)*(1/Switchgrass!$H$114)),IF(Switchgrass!J26=0,0,(Machinery!D12)*(AF140)*(1/Switchgrass!$H$114))) -> 0.9821428571 | AK140: 0.1964285714 | AL140: =((($D140-$I140)*(Inputs!$P$19/(1-((1+Inputs!$P$19)^(-$L140))))+(($I140*Inputs!$P$19)))/K140) -> 29.44105345 | AM140: =((($E140-$J140)*(Inputs!$P$19/(1-((1+Inputs!$P$19)^(-$N140))))+(($J140*Inputs!$P$19)))/M140) -> 29.44105535 | AN140: =VLOOKUP(B140,B11:O19,14)*$D140/($G140-$F140) -> 21 | AO140: =IF(O140="No Tractor",0,AF140) -> 0.1964285714 | AP140: =IF(O140="No Tractor",0,((($R140-$W140)*(Inputs!$P$19/(1-((1+Inputs!$P$19)^(-$Z140))))+($W140*Inputs!$P$19))/(Y140))) -> 13.97411399 | AQ140: =IF(O140="No Tractor",0,((($S140-$X140)*(Inputs!$P$19/(1-((1+Inputs!$P$19)^(-$AB140))))+(($X140*Inputs!$P$19)))/(AA140))) -> 13.97411407 | AR140: =IF(O140="No Tractor",0,(VLOOKUP($P140,$AL$6:$AS$15,8,FALSE)*$R140)/($U140-$T140)) -> 5.7 | AS140: =AK140*W106/100 -> 0.09821428571 | AT140: =AC140*W106/100 -> 2.86 | AU140: =(AN140+AR140)*W106/100 -> 13.35 | AV140: =(AM140+AQ140)*W106/100 -> 21.70758471 | BE140: =$AK140*W106/100 -> 0.09821428571 | BF140: =$AC140*W106/100 -> 2.86 | BG140: =($AN140+$AR140)*W106/100 -> 13.35 | BH140: =($AL140+$AP140)*W106/100 -> 21.70758372 | BQ140: =AK140*Inputs!$G$15 -> 1.816964286 | BR140: =AC140*Inputs!$G$11 -> 14.1856 | BS140: 13.35 | BT140: 21.70758372 | BU140: 0 | BV140: 13.97411399 | BW140: 0 | BX140: 0 | BY140: =IF($O140=BY$137,SUM(($AO140*Inputs!$G$15)+$AR140+($AC140*Inputs!$G$11)),0) -> 0 | BZ140: =IF($O140=BZ$137,SUM(($AO140*Inputs!$G$15)+$AR140+($AC140*Inputs!$G$11)),0) -> 21.70256429 | CA140: =IF($O140=CA$137,SUM(($AO140*Inputs!$G$15)+$AR140+($AC140*Inputs!$G$11)),0) -> 0 | CB140: =IF($O140=CB$137,SUM(($AO140*Inputs!$G$15)+$AR140+($AC140*Inputs!$G$11)),0) -> 0 | CC140: =IF($O140=$CC$137,$AH140,0) -> 0 | CD140: =IF($O140=$CD$137,$AH140,0) -> 0.9821428571 | CE140: =IF($O140=CE137,$AH140,0) -> 0 | CF140: =IF($O140=$CF$137,$AH140,0) -> 0
B141: =IF(E106=2,B107,0) -> Grain Drill | C141: =IF(E106=2,F107,0) -> 12 | D141: =IF($E106=2,$H107,0) -> 22700 | E141: =IF(E106=2,IF(B141=B11,D11,IF(B141=B19,D19,FALSE)),0) -> 22700 | F141: =IF(E106=2,I107,0) -> 0 | G141: =IF($E106=2,$K107,0) -> 1500 | H141: =IF(E106=2,VLOOKUP(B141,$B$6:$F$51,5,FALSE),0) -> 1500 | I141: =IF(E106=2,IF(L107>D141,0,L107),0) -> 9191.95 | J141: =IF(E106=2,IF(B141=B11,K11,IF(B141=B19,K19,FALSE)),0) -> 9191.946795 | K141: =IF(E106=2,P107,0) -> 150 | L141: =IF($E$106=2,+(G141-F141)/K141,0) -> 10 | M141: =IF(E106=2,VLOOKUP(B141,B11:I19,8,FALSE),0) -> 150 | N141: =IF(E106=2,(H141-0)/M141) -> 10 | O141: =IF(E106=2,IF(C107=1,Machinery!B18,IF(C107=2,Machinery!B19,IF(C107=3,Machinery!B20,IF(C107=4,Machinery!B21,FALSE)))),0) -> JD 6130D | P141: =IF(O141="No Tractor",0,IF($E$106=2,VLOOKUP($O141,$C$100:$D$103,2,FALSE),0)) -> MFWD 130 | Q141: =IF(O141="No Tractor",0,IF($E$106=2,VLOOKUP($O141,$C$100:$F$103,4,FALSE),0)) -> 130 | R141: =IF(O141="No Tractor",0,IF($E$106=2,VLOOKUP($O141,$C$62:$H$65,6,FALSE),0)) -> 114000 | S141: =IF($O$141="No Tractor",0,IF($E$106=2,VLOOKUP($O141,$AA$18:$AC$21,3,FALSE),0)) -> 114000 | T141: =IF(O141="No Tractor",0,IF($E$106=2,VLOOKUP($O141,$C$100:$I$103,7,FALSE),0)) -> 0 | U141: =IF(O141="No Tractor",0,IF($E$106=2,VLOOKUP($O141,$C$100:$K$103,9,FALSE),0)) -> 16000 | V141: =IF(O141="No Tractor",0,IF(E106=2,VLOOKUP(P141,$Y$6:$AE$15,7,FALSE),0)) -> 16000 | W141: =IF(O141="No Tractor",0,IF($E106=2,VLOOKUP($O141,$C$100:$L$103,10,FALSE),0)) -> 17996.22 | X141: =IF($O$141="No Tractor",0,IF($E$106=2,VLOOKUP($O141,$AA$18:$AN$21,14,FALSE),0)) -> 17996.21702 | Y141: =IF(O141="No Tractor",0,IF($E106=2,VLOOKUP($O141,$C$62:$R$65,16,FALSE),0)) -> 600 | Z141: =IF(O141="No Tractor",0,IF($E106=2,(U141-T141)/Y141,0)) -> 26.66666667 | AA141: =IF(O141="No Tractor",0,IF(E106=2,VLOOKUP($P141,$Y$6:$AK$15,13,FALSE),0)) -> 600 | AB141: =IF(O141="No Tractor",0,IF(E106=2,(V141-0)/AA141,0)) -> 26.66666667 | AC141: =IF(O141="No Tractor",0,IF($E106=2,$S107,0)) -> 6.6 | AD141: =IF(E106=2,VLOOKUP($B141,$B$6:$Q$51,15,FALSE),0) -> 0.7 | AE141: =IF(E106=2,VLOOKUP($B141,$B$6:$Q$51,16,FALSE),0) -> 5 | AF141: =IF(E106=2,1/((5280/43560)*AE141*C141*AD141),0) -> 0.1964285714 | AG141: =IF($E$106=2,1/AF141,0) -> 5.090909091 | AH141: =IF(E106=2,IF(Switchgrass!T5="Pasture",IF(Switchgrass!J24=0,0,(Machinery!D12)*(AF141)*(1/Switchgrass!$H$114)),IF(Switchgrass!J26=0,0,(Machinery!D12)*(AF141)*(1/Switchgrass!$H$114))),0) -> 0.9821428571 | AK141: 0.1964285714 | AL141: =IF($E$106=2,((($D141-$I141)*(Inputs!$P$19/(1-((1+Inputs!$P$19)^(-$L141))))+(($I141*Inputs!$P$19)))/K141),0) -> 15.91218782 | AM141: =IF($E$106=2,((($E141-$J141)*(Inputs!$P$19/(1-((1+Inputs!$P$19)^(-$N141))))+(($J141*Inputs!$P$19)))/M141),0) -> 15.91218944 | AN141: =IF($E$106=2,VLOOKUP(B141,B11:O19,14)*$D141/($G141-$F141),0) -> 13.62 | AO141: =IF(O141="No Tractor",0,IF(E106=2,AF141,0)) -> 0.1964285714 | AP141: =IF(O141="No Tractor",0,IF($E106=2,((($R141-$W141)*(Inputs!$P$19/(1-((1+Inputs!$P$19)^(-$Z141))))+(($W141*Inputs!$P$19)))/(Y141)),0)) -> 13.97411399 | AQ141: =IF(O141="No Tractor",0,IF($E106=2,((($S141-$X141)*(Inputs!$P$19/(1-((1+Inputs!$P$19)^(-$AB141))))+(($X141*Inputs!$P$19)))/(AA141)),0)) -> 13.97411407 | AR141: =IF(O141="No Tractor",0,IF(E106=2,(VLOOKUP($P141,$AL$6:$AS$15,8,FALSE)*$R141)/($U141-$T141),0)) -> 5.7 | AS141: =AK141*W107/100 -> 0.09821428571 | AT141: =AC141*W107/100 -> 3.3 | AU141: =(AN141+AR141)*W107/100 -> 9.66 | AV141: =(AM141+AQ141)*W107/100 -> 14.94315175 | BE141: =AK141*W107/100 -> 0.09821428571 | BF141: =$AC141*W107/100 -> 3.3 | BG141: =($AN141+$AR141)*W107/100 -> 9.66 | BH141: =($AL141+$AP141)*W107/100 -> 14.9431509 | BQ141: =AK141*Inputs!$G$15 -> 1.816964286 | BR141: =AC141*Inputs!$G$11 -> 16.368 | BS141: 9.66 | BT141: 14.9431509 | BU141: 0 | BV141: 13.97411399 | BW141: 0 | BX141: 0 | BY141: =IF($O141=BY$137,SUM(($AO141*Inputs!$G$15)+$AR141+($AC141*Inputs!$G$11)),0) -> 0 | BZ141: =IF($O141=BZ$137,SUM(($AO141*Inputs!$G$15)+$AR141+($AC141*Inputs!$G$11)),0) -> 23.88496429 | CA141: =IF($O141=CA$137,SUM(($AO141*Inputs!$G$15)+$AR141+($AC141*Inputs!$G$11)),0) -> 0 | CB141: =IF($O141=CB$137,SUM(($AO141*Inputs!$G$15)+$AR141+($AC141*Inputs!$G$11)),0) -> 0 | CC141: =IF($O141=$CC$137,$AH141,0) -> 0 | CD141: =IF($O141=$CD$137,$AH141,0) -> 0.9821428571 | CE141: =IF($O141=CE137,$AH141,0) -> 0 | CF141: =IF($O141=$CF$137,$AH141,0) -> 0
A142: =F108 -> 4 Row | B142: Veggie Planter | C142: =IF(A142="1 Row",6.5,IF(A142="4 Row",15,IF(A142="8 Row",28,0))) -> 15 | D142: =$H108 -> 16290 | E142: =VLOOKUP(A142,$C$33:$D$35,2,FALSE) -> 16290 | F142: =I108 -> 0 | G142: =$K108 -> 1500 | H142: =VLOOKUP(B142,$B$6:$F$51,5,FALSE) -> 1500 | I142: =IF(L108>D142,0,L108) -> 6596.34 | J142: =VLOOKUP(A142,$C$33:$K$35,9,FALSE) -> 6596.335387 | K142: =P108 -> 150 | L142: =+(G142-F142)/K142 -> 10 | M142: =I33 -> 150 | N142: =+(H142-0)/M142 -> 10 | O142: =IF(C108=1,Machinery!B18,IF(C108=2,Machinery!B19,IF(C108=3,Machinery!B20,IF(C108=4,Machinery!B21,FALSE)))) -> JD 5075E | P142: =IF(O142="No Tractor",0,VLOOKUP($O142,$C$100:$D$103,2,FALSE)) -> MFWD 75 | Q142: =IF(O142="No Tractor",0,VLOOKUP($O142,$C$100:$F$103,4,FALSE)) -> 75 | R142: =IF(O142="No Tractor",0,VLOOKUP($O142,$C$62:$H$65,6,FALSE)) -> 47900 | S142: =IF($O$142="No Tractor",0,VLOOKUP($O142,$AA$18:$AC$21,3,FALSE)) -> 47900 | T142: =IF(O142="No Tractor",0,VLOOKUP($O142,$C$100:$I$103,7,FALSE)) -> 0 | U142: =IF(O142="No Tractor",0,VLOOKUP($O142,$C$100:$K$103,9,FALSE)) -> 16000 | V142: =IF(O142="No Tractor",0,VLOOKUP(P142,$Y$6:$AE$15,7,FALSE)) -> 16000 | W142: =IF(O142="No Tractor",0,VLOOKUP($O142,$C$100:$L$103,10,FALSE)) -> 8635.35 | X142: =IF($O$142="No Tractor",0,VLOOKUP($O142,$AA$18:$AN$21,14,FALSE)) -> 8635.34734 | Y142: =IF(O142="No Tractor",0,VLOOKUP($O142,$C$62:$R$65,16,FALSE)) -> 600 | Z142: =IF(O142="No Tractor",0,(U142-T142)/Y142) -> 26.66666667 | AA142: =IF(O142="No Tractor",0,VLOOKUP($P142,$Y$6:$AK$15,13,FALSE)) -> 600 | AB142: =IF(O142="No Tractor",0,(V142-0)/AA142) -> 26.66666667 | AC142: =IF(O142="No Tractor",0,$S108) -> 3.3 | AD142: =VLOOKUP($B142,$B$6:$Q$51,15,FALSE) -> 0.8 | AE142: =VLOOKUP($B142,$B$6:$Q$51,16,FALSE) -> 1 | AF142: =1/((5280/43560)*AE142*C142*AD142) -> 0.6875 | AG142: =1/AF142 -> 1.454545455 | AI142: =IF(Miscanthus!J28=0,0,IF(Miscanthus!C28="Veggie Planter",(Machinery!E12)*AF142*(1/Miscanthus!$H$82),0)) -> 2.291666667 | AK142: 0.6875 | AL142: =((($D142-$I142)*(Inputs!$P$19/(1-((1+Inputs!$P$19)^(-$L142))))+(($I142*Inputs!$P$19)))/K142) -> 11.41892128 | AM142: =((($E142-$J142)*(Inputs!$P$19/(1-((1+Inputs!$P$19)^(-$N142))))+(($J142*Inputs!$P$19)))/($M142)) -> 11.41892361 | AN142: =O33*$D142/($G142-$F142) -> 0.2172 | AO142: =IF(O142="No Tractor",0,AF142) -> 0.6875 | AP142: =IF(O142="No Tractor",0,((($R142-$W142)*(Inputs!$P$19/(1-((1+Inputs!$P$19)^(-$Z142))))+(($W142*Inputs!$P$19)))/(Y142))) -> 5.842788596 | AQ142: =IF(O142="No Tractor",0,((($S142-$X142)*(Inputs!$P$19/(1-((1+Inputs!$P$19)^(-$AB142))))+(($X142*Inputs!$P$19)))/(AA142))) -> 5.842788667 | AR142: =IF(O142="No Tractor",0,(VLOOKUP($P142,$AL$6:$AS$15,8,FALSE)*$R142)/($U142-$T142)) -> 2.395 | AW142: =AK142*W108/100 -> 0.34375 | AX142: =AC142*W108/100 -> 1.65 | AY142: =(AN142+AR142)*W108/100 -> 1.3061 | AZ142: =(AM142+AQ142)*W108/100 -> 8.63085614 | BI142: =$AK142*W108/100 -> 0.34375 | BJ142: =$AC142*W108/100 -> 1.65 | BK142: =($AN142+$AR142)*W108/100 -> 1.3061 | BL142: =($AL142+$AP142)*W108/100 -> 8.630854938 | BQ142: =AK142*Inputs!$G$15 -> 6.359375 | BR142: =AC142*Inputs!$G$11 -> 8.184 | BS142: =BK142 -> 1.3061 | BT142: 8.630854938 | BU142: 5.842788596 | BV142: 0 | BW142: 0 | BX142: 0 | BY142: =IF($O142=BY$137,SUM(($AO142*Inputs!$G$15)+$AR142+($AC142*Inputs!$G$11)),0) -> 16.938375 | BZ142: =IF($O142=BZ$137,SUM(($AO142*Inputs!$G$15)+$AR142+($AC142*Inputs!$G$11)),0) -> 0 | CA142: =IF($O142=CA$137,SUM(($AO142*Inputs!$G$15)+$AR142+($AC142*Inputs!$G$11)),0) -> 0 | CB142: =IF($O142=CB$137,SUM(($AO142*Inputs!$G$15)+$AR142+($AC142*Inputs!$G$11)),0) -> 0
A143: =F109 -> 8 Row | B143: Veggie Planter | C143: =IF(E108=2,IF(A143="1 Row",6.5,IF(A143="4 Row",15,IF(A143="8 Row",28,0))),0) -> 28 | D143: =IF($E108=2,$H109,0) -> 20640 | E143: =IF(E108=2,VLOOKUP(A143,$C$33:$D$35,2,FALSE),0) -> 20640 | F143: =IF(E108=2,I109,0) -> 0 | G143: =IF($E108=2,$K109,0) -> 1500 | H143: =IF(E108=2,VLOOKUP(B143,$B$6:$F$51,5,FALSE),0) -> 1500 | I143: =IF(E108=2,IF(L109>D143,0,L109),0) -> 8357.79 | J143: =IF(E108=2,VLOOKUP(A143,$C$33:$K$35,9,FALSE),0) -> 8357.787747 | K143: =IF(E108=2,P109,0) -> 150 | L143: =IF($E$108=2,(G143-F143)/K143,0) -> 10 | M143: =IF(E108=2,I33,0) -> 150 | N143: =IF(E108=2,(H143-0)/M143) -> 10 | O143: =IF(E108=2,IF(C109=1,Machinery!B18,IF(C109=2,Machinery!B19,IF(C109=3,Machinery!B20,IF(C109=4,Machinery!B21,FALSE)))),0) -> JD 6190R | P143: =IF(O143="No Tractor",0,IF($E$108=2,VLOOKUP($O143,$C$100:$D$103,2,FALSE),0)) -> MFWD 190 | Q143: =IF(O143="No Tractor",0,IF($E$108=2,VLOOKUP($O143,$C$100:$F$103,4,FALSE),0)) -> 190 | R143: =IF(O143="No Tractor",0,IF($E$108=2,VLOOKUP($O143,$C$62:$H$65,6,FALSE),0)) -> 167000 | S143: =IF($O$143="No Tractor",0,IF($E$108=2,VLOOKUP($O143,$AA$18:$AC$21,3,FALSE),0)) -> 167000 | T143: =IF(O143="No Tractor",0,IF($E$108=2,VLOOKUP($O143,$C$100:$I$103,7,FALSE),0)) -> 0 | U143: =IF(O143="No Tractor",0,IF($E$108=2,VLOOKUP($O143,$C$100:$K$103,9,FALSE),0)) -> 16000 | V143: =IF(O143="No Tractor",0,IF(E108=2,VLOOKUP(P143,$Y$6:$AE$15,7,FALSE),0)) -> 16000 | W143: =IF(O143="No Tractor",0,IF($E108=2,VLOOKUP($O143,$C$100:$L$103,10,FALSE),0)) -> 16876.84 | X143: =IF($O$143="No Tractor",0,IF($E$108=2,VLOOKUP($O143,$AA$18:$AN$21,14,FALSE),0)) -> 16876.83927 | Y143: =IF(O143="No Tractor",0,IF($E108=2,VLOOKUP($O143,$C$62:$R$65,16,FALSE),0)) -> 600 | Z143: =IF(O143="No Tractor",0,IF($E108=2,(U143-T143)/Y143,0)) -> 26.66666667 | AA143: =IF(O143="No Tractor",0,IF(E108=2,VLOOKUP($P143,$Y$6:$AK$15,13,FALSE),0)) -> 600 | AB143: =IF(O143="No Tractor",0,IF(E108=2,(V143-0)/AA143,0)) -> 26.66666667 | AC143: =IF(O143="No Tractor",0,IF($E108=2,$S109,0)) -> 8.36 | AD143: =IF(E108=2,VLOOKUP($B143,$B$6:$Q$51,15,FALSE),0) -> 0.8 | AE143: =IF(E108=2,VLOOKUP($B143,$B$6:$Q$51,16,FALSE),0) -> 1 | AF143: =IF(E108=2,1/((5280/43560)*AE143*C143*AD143),0) -> 0.3683035714 | AG143: =IF($E$108=2,1/AF143,0) -> 2.715151515 | AI143: =IF(Miscanthus!J28=0,0,IF(Miscanthus!C28="Veggie Planter",IF(E108=2,(Machinery!E12)*AF143*(1/Miscanthus!$H$82),0),0)) -> 1.227678571 | AK143: 0.3683035714 | AL143: =IF($E$108=2,((($D143-$I143)*(Inputs!$P$19/(1-((1+Inputs!$P$19)^(-$L143))))+(($I143*Inputs!$P$19)))/K143),0) -> 14.46817463 | AM143: =IF($E$108=2,((($E143-$J143)*(Inputs!$P$19/(1-((1+Inputs!$P$19)^(-$N143))))+(($J143*Inputs!$P$19)))/($M143)),0) -> 14.46817577 | AN143: =IF($E$108=2,O33*$D143/($G143-$F143),0) -> 0.2752 | AO143: =IF(O143="No Tractor",0,IF(E108=2,AF143,0)) -> 0.3683035714 | AP143: =IF(O143="No Tractor",0,IF($E108=2,((($R143-$W143)*(Inputs!$P$19/(1-((1+Inputs!$P$19)^(-$Z143))))+(($W143*Inputs!$P$19)))/(Y143)),0)) -> 20.72519699 | AQ143: =IF(O143="No Tractor",0,IF($E108=2,((($S143-$X143)*(Inputs!$P$19/(1-((1+Inputs!$P$19)^(-$AB143))))+(($X143*Inputs!$P$19)))/(AA143)),0)) -> 20.72519701 | AR143: =IF(O143="No Tractor",0,IF(E108=2,(VLOOKUP($P143,$AL$6:$AS$15,8,FALSE)*$R143)/($U143-$T143),0)) -> 8.35 | AW143: =AK143*W109/100 -> 0.1841517857 | AX143: =AC143*W109/100 -> 4.18 | AY143: =(AN143+AR143)*W109/100 -> 4.3126 | AZ143: =(AM143+AQ143)*W109/100 -> 17.59668639 | BI143: =$AK143*W109/100 -> 0.1841517857 | BJ143: =$AC143*W109/100 -> 4.18 | BK143: =($AN143+$AR143)*W109/100 -> 4.3126 | BL143: =($AL143+$AP143)*W109/100 -> 17.59668581 | BQ143: =AK143*Inputs!$G$15 -> 3.406808036 | BR143: =AC143*Inputs!$G$11 -> 20.7328 | BS143: 4.3126 | BT143: 17.59668581 | BU143: 0 | BV143: 0 | BW143: 0 | BX143: 20.72519699 | BY143: =IF($O143=BY$137,SUM(($AO143*Inputs!$G$15)+$AR143+($AC143*Inputs!$G$11)),0) -> 0 | BZ143: =IF($O143=BZ$137,SUM(($AO143*Inputs!$G$15)+$AR143+($AC143*Inputs!$G$11)),0) -> 0 | CA143: =IF($O143=CA$137,SUM(($AO143*Inputs!$G$15)+$AR143+($AC143*Inputs!$G$11)),0) -> 0 | CB143: =IF($O143=CB$137,SUM(($AO143*Inputs!$G$15)+$AR143+($AC143*Inputs!$G$11)),0) -> 32.48960804
B144: Cultipacker | C144: =F110 -> 12 | D144: =$H110 -> 4130 | E144: =VLOOKUP(C144,$C$9:$D$10,2,FALSE) -> 4130 | F144: =I110 -> 0 | G144: =$K110 -> 2000 | H144: =VLOOKUP(B144,$B$6:$F$51,5,FALSE) -> 2000 | I144: =IF(L110>D144,0,L110) -> 1521.6 | J144: =VLOOKUP(C144,$C$9:$K$10,9,FALSE) -> 1521.600218 | K144: =P110 -> 300 | L144: =+(G144-F144)/K144 -> 6.666666667 | M144: =I9 -> 300 | N144: =+(H144-0)/M144 -> 6.666666667 | O144: =IF(C110=1,Machinery!B18,IF(C110=2,Machinery!B19,IF(C110=3,Machinery!B20,IF(C110=4,Machinery!B21,FALSE)))) -> JD 6130D | P144: =IF(O144="No Tractor",0,VLOOKUP($O144,$C$100:$D$103,2,FALSE)) -> MFWD 130 | Q144: =IF(O144="No Tractor",0,VLOOKUP($O144,$C$100:$F$103,4,FALSE)) -> 130 | R144: =IF(O144="No Tractor",0,VLOOKUP($O144,$C$62:$H$65,6,FALSE)) -> 114000 | S144: =IF($O$144="No Tractor",0,VLOOKUP($O144,$AA$18:$AC$21,3,FALSE)) -> 114000 | T144: =IF(O144="No Tractor",0,VLOOKUP($O144,$C$100:$I$103,7,FALSE)) -> 0 | U144: =IF(O144="No Tractor",0,VLOOKUP($O144,$C$100:$K$103,9,FALSE)) -> 16000 | V144: =IF(O144="No Tractor",0,VLOOKUP(P144,$Y$6:$AE$15,7,FALSE)) -> 16000 | W144: =IF(O144="No Tractor",0,VLOOKUP($O144,$C$100:$L$103,10,FALSE)) -> 17996.22 | X144: =IF($O$144="No Tractor",0,VLOOKUP($O144,$AA$18:$AN$21,14,FALSE)) -> 17996.21702 | Y144: =IF(O144="No Tractor",0,VLOOKUP($O144,$C$62:$R$65,16,FALSE)) -> 600 | Z144: =IF(O144="No Tractor",0,(U144-T144)/Y144) -> 26.66666667 | AA144: =IF(O144="No Tractor",0,VLOOKUP($P144,$Y$6:$AK$15,13,FALSE)) -> 600 | AB144: =IF(O144="No Tractor",0,(V144-0)/AA144) -> 26.66666667 | AC144: =IF(O144="No Tractor",0,$S110) -> 5.72 | AD144: =VLOOKUP($B144,$B$6:$Q$51,15,FALSE) -> 0.85 | AE144: =VLOOKUP($B144,$B$6:$Q$51,16,FALSE) -> 6.5 | AF144: =1/((5280/43560)*AE144*C144*AD144) -> 0.1244343891 | AG144: =1/AF144 -> 8.036363636 | AH144: =IF(Switchgrass!T5="Cropland",IF(Switchgrass!J25=0,0,IF(Switchgrass!C25="Cultipacker",(Machinery!D12)*(AF144)*(1/Switchgrass!$H$114),0)),IF(Switchgrass!J23=0,0,IF(Switchgrass!C23="Cultipacker",(Machinery!D12)*(AF144)*(1/Switchgrass!$H$114),0))) -> 0.6221719457 | AI144: =IF(Miscanthus!J27=0,0,Machinery!E12*AF144*(1/Miscanthus!$H$82)) -> 0.4147812971 | AK144: 0.1244343891 | AL144: =((($D144-$I144)*(Inputs!$P$19/(1-((1+Inputs!$P$19)^(-$L144))))+(($I144*Inputs!$P$19)))/(K144)) -> 1.924951354 | AM144: =((($E144-$J144)*(Inputs!$P$19/(1-((1+Inputs!$P$19)^(-$N144))))+(($J144*Inputs!$P$19)))/($M144)) -> 1.924951262 | AN144: =O9*$D144/($G144-$F144) -> 0.826 | AO144: =IF(O144="No Tractor",0,AF144) -> 0.1244343891 | AP144: =IF(O144="No Tractor",0,((($R144-$W144)*(Inputs!$P$19/(1-((1+Inputs!$P$19)^(-$Z144))))+(($W144*Inputs!$P$19)))/(Y144))) -> 13.97411399 | AQ144: =IF(O144="No Tractor",0,((($S144-$X144)*(Inputs!$P$19/(1-((1+Inputs!$P$19)^(-$AB144))))+(($X144*Inputs!$P$19)))/(AA144))) -> 13.97411407 | AR144: =IF(O144="No Tractor",0,(VLOOKUP($P144,$AL$6:$AS$15,8,FALSE)*$R144)/($U144-$T144)) -> 5.7 | AS144: =AK144*W110/100 -> 0.06221719457 | AT144: =AC144*W110/100 -> 2.86 | AU144: =(AN144+AR144)*W110/100 -> 3.263 | AV144: =(AM144+AQ144)*W110/100 -> 7.949532664 | AW144: =AK144*W110/100 -> 0.06221719457 | AX144: =AC144*W110/100 -> 2.86 | AY144: =(AN144+AR144)*W110/100 -> 3.263 | AZ144: =(AM144+AQ144)*W110/100 -> 7.949532664 | BE144: =$AK144*W110/100 -> 0.06221719457 | BF144: =$AC144*W110/100 -> 2.86 | BG144: =($AN144+$AR144)*W110/100 -> 3.263 | BH144: =($AL144+$AP144)*W110/100 -> 7.94953267 | BI144: =$AK144*W110/100 -> 0.06221719457 | BJ144: =$AC144*W110/100 -> 2.86 | BK144: =($AN144+$AR144)*W110/100 -> 3.263 | BL144: =($AL144+$AP144)*W110/100 -> 7.94953267 | BQ144: =AK144*Inputs!$G$15 -> 1.1510181 | BR144: =AC144*Inputs!$G$11 -> 14.1856 | BS144: 3.263 | BT144: 7.94953267 | BU144: 0 | BV144: 13.97411399 | BW144: 0 | BX144: 0 | BY144: =IF($O144=BY$137,SUM(($AO144*Inputs!$G$15)+$AR144+($AC144*Inputs!$G$11)),0) -> 0 | BZ144: =IF($O144=BZ$137,SUM(($AO144*Inputs!$G$15)+$AR144+($AC144*Inputs!$G$11)),0) -> 21.0366181 | CA144: =IF($O144=CA$137,SUM(($AO144*Inputs!$G$15)+$AR144+($AC144*Inputs!$G$11)),0) -> 0 | CB144: =IF($O144=CB$137,SUM(($AO144*Inputs!$G$15)+$AR144+($AC144*Inputs!$G$11)),0) -> 0 | CC144: =IF($O144=$CC$137,$AH144,0) -> 0 | CD144: =IF($O144=$CD$137,$AH144,0) -> 0.6221719457 | CE144: =IF($O144=CE137,$AH144,0) -> 0 | CF144: =IF($O144=$CF$137,$AH144,0) -> 0 | CG144: =IF($O144=$CG$137,$AI144,0) -> 0 | CH144: =IF($O144=$CH$137,$AI144,0) -> 0.4147812971 | CI144: =IF($O144=$CI$137,$AI144,0) -> 0 | CJ144: =IF($O144=$CJ$137,$AI144,0) -> 0
B145: Cultipacker | C145: =IF(E110=2,F111,0) -> 20 | D145: =IF($E110=2,$H111,0) -> 16200 | E145: =IF(E110=2,VLOOKUP(C145,$C$9:$D$10,2,FALSE),0) -> 16200 | F145: =IF(E110=2,I111,0) -> 0 | G145: =IF($E110=2,$K111,0) -> 2000 | H145: =IF(E110=2,VLOOKUP(B145,$B$6:$F$51,5,FALSE),0) -> 2000 | I145: =IF(E110=2,IF(L111>D145,0,L111),0) -> 5968.5 | J145: =IF(E110=2,VLOOKUP(C145,$C$9:$K$10,9,FALSE),0) -> 5968.504488 | K145: =IF(E110=2,P111,0) -> 300 | L145: =IF($E$110=2,+(G145-F145)/K145,0) -> 6.666666667 | M145: =IF(E110=2,I9,0) -> 300 | N145: =IF(E110=2,(H145-0)/M145) -> 6.666666667 | O145: =IF(E110=2,IF(C111=1,Machinery!B18,IF(C111=2,Machinery!B19,IF(C111=3,Machinery!B20,IF(C111=4,Machinery!B21,FALSE)))),0) -> JD 6150M | P145: =IF(O145="No Tractor",0,IF($E$110=2,VLOOKUP($O145,$C$100:$D$103,2,FALSE),0)) -> MFWD 150 | Q145: =IF(O145="No Tractor",0,IF($E$110=2,VLOOKUP($O145,$C$100:$F$103,4,FALSE),0)) -> 150 | R145: =IF(O145="No Tractor",0,IF($E$110=2,VLOOKUP($O145,$C$62:$H$65,6,FALSE),0)) -> 143000 | S145: =IF($O$145="No Tractor",0,IF($E$110=2,VLOOKUP($O145,$AA$18:$AC$21,3,FALSE),0)) -> 143000 | T145: =IF(O145="No Tractor",0,IF($E$110=2,VLOOKUP($O145,$C$100:$I$103,7,FALSE),0)) -> 0 | U145: =IF(O145="No Tractor",0,IF($E$110=2,VLOOKUP($O145,$C$100:$K$103,9,FALSE),0)) -> 16000 | V145: =IF(O145="No Tractor",0,IF(E110=2,VLOOKUP(P145,$Y$6:$AE$15,7,FALSE),0)) -> 16000 | W145: =IF(O145="No Tractor",0,IF($E110=2,VLOOKUP($O145,$C$100:$L$103,10,FALSE),0)) -> 14451.43 | X145: =IF($O$145="No Tractor",0,IF($E$110=2,VLOOKUP($O145,$AA$18:$AN$21,14,FALSE),0)) -> 14451.42524 | Y145: =IF(O145="No Tractor",0,IF($E110=2,VLOOKUP($O145,$C$62:$R$65,16,FALSE),0)) -> 600 | Z145: =IF(O145="No Tractor",0,IF($E110=2,(U145-T145)/Y145,0)) -> 26.66666667 | AA145: =IF(O145="No Tractor",0,IF(E110=2,VLOOKUP($P145,$Y$6:$AK$15,13,FALSE),0)) -> 600 | AB145: =IF(O145="No Tractor",0,IF(E110=2,(V145-0)/AA145,0)) -> 26.66666667 | AC145: =IF(O145="No Tractor",0,IF($E110=2,$S111,0)) -> 6.6 | AD145: =IF(E110=2,VLOOKUP($B145,$B$6:$Q$51,15,FALSE),0) -> 0.85 | AE145: =IF(E110=2,VLOOKUP($B145,$B$6:$Q$51,16,FALSE),0) -> 6.5 | AF145: =IF(E110=2,1/((5280/43560)*AE145*C145*AD145),0) -> 0.07466063348 | AG145: =IF($E$110=2,1/AF145,0) -> 13.39393939 | AH145: =IF(Switchgrass!T5="Cropland",IF(Switchgrass!J25=0,0,IF(Switchgrass!C25="Cultipacker",IF(E110=2,((Machinery!D12)*(AF145)*(1/Switchgrass!$H$114)),0),0)),IF(Switchgrass!J23=0,0,IF(Switchgrass!C23="Cultipacker",IF(E110=2,((Machinery!D12)*(AF145)*(1/Switchgrass!$H$114)),0),0))) -> 0.3733031674 | AI145: =IF(Miscanthus!J27=0,0,IF(E110=2,(Machinery!E12)*AF145*(1/Miscanthus!$H$82),0)) -> 0.2488687783 | AK145: 0.07466063348 | AL145: =IF($E$110=2,((($D145-$I145)*(Inputs!$P$19/(1-((1+Inputs!$P$19)^(-$L145))))+(($I145*Inputs!$P$19)))/($K145)),0) -> 7.550658172 | AM145: =IF($E$110=2,((($E145-$J145)*(Inputs!$P$19/(1-((1+Inputs!$P$19)^(-$N145))))+(($J145*Inputs!$P$19)))/($M145)),0) -> 7.550656281 | AN145: =IF($E$110=2,O9*$D145/($G145-$F145),0) -> 3.24 | AO145: =IF(O145="No Tractor",0,IF(E110=2,AF145,0)) -> 0.07466063348 | AP145: =IF(O145="No Tractor",0,IF($E110=2,((($R145-$W145)*(Inputs!$P$19/(1-((1+Inputs!$P$19)^(-$Z145))))+(($W145*Inputs!$P$19)))/(Y145)),0)) -> 17.74672545 | AQ145: =IF(O145="No Tractor",0,IF($E110=2,((($S145-$X145)*(Inputs!$P$19/(1-((1+Inputs!$P$19)^(-$AB145))))+(($X145*Inputs!$P$19)))/(AA145)),0)) -> 17.74672558 | AR145: =IF(O145="No Tractor",0,IF(E110=2,(VLOOKUP($P145,$AL$6:$AS$15,8,FALSE)*$R145)/($U145-$T145),0)) -> 7.15 | AS145: =AK145*W111/100 -> 0.03733031674 | AT145: =AC145*W111/100 -> 3.3 | AU145: =(AN145+AR145)*W111/100 -> 5.195 | AV145: =(AM145+AQ145)*W111/100 -> 12.64869093 | AW145: =AK145*W111/100 -> 0.03733031674 | AX145: =AC145*W111/100 -> 3.3 | AY145: =(AN145+AR145)*W111/100 -> 5.195 | AZ145: =(AM145+AQ145)*W111/100 -> 12.64869093 | BE145: =AK145*W111/100 -> 0.03733031674 | BF145: =$AC145*W111/100 -> 3.3 | BG145: =($AN145+$AR145)*W111/100 -> 5.195 | BH145: =($AL145+$AP145)*W111/100 -> 12.64869181 | BI145: =$AK145*W111/100 -> 0.03733031674 | BJ145: =$AC145*W111/100 -> 3.3 | BK145: =($AN145+$AR145)*W111/100 -> 5.195 | BL145: =($AL145+$AP145)*W111/100 -> 12.64869181 | BQ145: =AK145*Inputs!$G$15 -> 0.6906108597 | BR145: =AC145*Inputs!$G$11 -> 16.368 | BS145: 5.195 | BT145: 12.64869181 | BU145: 0 | BV145: 0 | BW145: 17.74672545 | BX145: 0 | BY145: =IF($O145=BY$137,SUM(($AO145*Inputs!$G$15)+$AR145+($AC145*Inputs!$G$11)),0) -> 0 | BZ145: =IF($O145=BZ$137,SUM(($AO145*Inputs!$G$15)+$AR145+($AC145*Inputs!$G$11)),0) -> 0 | CA145: =IF($O145=CA$137,SUM(($AO145*Inputs!$G$15)+$AR145+($AC145*Inputs!$G$11)),0) -> 24.20861086 | CB145: =IF($O145=CB$137,SUM(($AO145*Inputs!$G$15)+$AR145+($AC145*Inputs!$G$11)),0) -> 0 | CC145: =IF($O145=$CC$137,$AH145,0) -> 0 | CD145: =IF($O145=$CD$137,$AH145,0) -> 0 | CE145: =IF($O145=CE137,$AH145,0) -> 0.3733031674 | CF145: =IF($O145=$CF$137,$AH145,0) -> 0 | CG145: =IF($O145=$CG$137,$AI145,0) -> 0 | CH145: =IF($O145=$CH$137,$AI145,0) -> 0 | CI145: =IF($O145=$CI$137,$AI145,0) -> 0.2488687783 | CJ145: =IF($O145=$CJ$137,$AI145,0) -> 0
B146: Field Cultivator | C146: =F112 -> 12 | D146: =$H112 -> 11500 | E146: =VLOOKUP(C146,$C$23:$D$24,2,FALSE) -> 11500 | F146: =I112 -> 0 | G146: =$K112 -> 2000 | H146: =VLOOKUP(B146,$B$6:$F$51,5,FALSE) -> 2000 | I146: =IF(L112>D146,0,L112) -> 1831.41 | J146: =VLOOKUP(C146,$C$23:$K$24,9,FALSE) -> 1831.408466 | K146: =P112 -> 100 | L146: =+(G146-F146)/K146 -> 20 | M146: =I23 -> 100 | N146: =+(H146-0)/M146 -> 20 | O146: =IF(C112=1,Machinery!B18,IF(C112=2,Machinery!B19,IF(C112=3,Machinery!B20,IF(C112=4,Machinery!B21,FALSE)))) -> JD 6150M | P146: =IF(O146="No Tractor",0,VLOOKUP($O146,$C$100:$D$103,2,FALSE)) -> MFWD 150 | Q146: =IF(O146="No Tractor",0,VLOOKUP($O146,$C$100:$F$103,4,FALSE)) -> 150 | R146: =IF(O146="No Tractor",0,VLOOKUP($O146,$C$62:$H$65,6,FALSE)) -> 143000 | S146: =IF($O$146="No Tractor",0,VLOOKUP($O146,$AA$18:$AC$21,3,FALSE)) -> 143000 | T146: =IF(O146="No Tractor",0,VLOOKUP($O146,$C$100:$I$103,7,FALSE)) -> 0 | U146: =IF(O146="No Tractor",0,VLOOKUP($O146,$C$100:$K$103,9,FALSE)) -> 16000 | V146: =IF(O146="No Tractor",0,VLOOKUP(P146,$Y$6:$AE$15,7,FALSE)) -> 16000 | W146: =IF(O146="No Tractor",0,VLOOKUP($O146,$C$100:$L$103,10,FALSE)) -> 14451.43 | X146: =IF($O$146="No Tractor",0,VLOOKUP($O146,$AA$18:$AN$21,14,FALSE)) -> 14451.42524 | Y146: =IF(O146="No Tractor",0,VLOOKUP($O146,$C$62:$R$65,16,FALSE)) -> 600 | Z146: =IF(O146="No Tractor",0,(U146-T146)/Y146) -> 26.66666667 | AA146: =IF(O146="No Tractor",0,VLOOKUP($P146,$Y$6:$AK$15,13,FALSE)) -> 600 | AB146: =IF(O146="No Tractor",0,(V146-0)/AA146) -> 26.66666667 | AC146: =IF(O146="No Tractor",0,$S112) -> 6.6 | AD146: =VLOOKUP($B146,$B$6:$Q$51,15,FALSE) -> 0.85 | AE146: =VLOOKUP($B146,$B$6:$Q$51,16,FALSE) -> 7 | AF146: =1/((5280/43560)*AE146*C146*AD146) -> 0.1155462185 | AG146: =1/AF146 -> 8.654545455 | AJ146: =IF('Energy Sorghum'!J20=0,0,(Machinery!F12)*AF146) -> 5.777310924 | AK146: 0.1155462185 | AL146: =((($D146-$I146)*(Inputs!$P$19/(1-((1+Inputs!$P$19)^(-$L146))))+(($I146*Inputs!$P$19)))/($K146)) -> 9.528363357 | AM146: =((($E146-$J146)*(Inputs!$P$19/(1-((1+Inputs!$P$19)^(-$N146))))+(($J146*Inputs!$P$19)))/($M146)) -> 9.528363774 | AN146: =O23*$D146/($G146-$F146) -> 4.025 | AO146: =IF(O146="No Tractor",0,AF146) -> 0.1155462185 | AP146: =IF(O146="No Tractor",0,((($R146-$W146)*(Inputs!$P$19/(1-((1+Inputs!$P$19)^(-$Z146))))+(($W146*Inputs!$P$19)))/(Y146))) -> 17.74672545 | AQ146: =IF(O146="No Tractor",0,((($S146-$X146)*(Inputs!$P$19/(1-((1+Inputs!$P$19)^(-$AB146))))+(($X146*Inputs!$P$19)))/(AA146))) -> 17.74672558 | AR146: =IF(O146="No Tractor",0,(VLOOKUP($P146,$AL$6:$AS$15,8,FALSE)*$R146)/($U146-$T146)) -> 7.15 | BA146: =AK146*W112/100 -> 0.05777310924 | BB146: =AC146*W112/100 -> 3.3 | BC146: =(AN146+AR146)*W112/100 -> 5.5875 | BD146: =(AM146+AQ146)*W112/100 -> 13.63754468 | BM146: =$AK146*W112/100 -> 0.05777310924 | BN146: =$AC146*W112/100 -> 3.3 | BO146: =($AN146+$AR146)*W112/100 -> 5.5875 | BP146: =($AL146+$AP146)*W112/100 -> 13.6375444 | BQ146: =AK146*Inputs!$G$15 -> 1.068802521 | BR146: =AC146*Inputs!$G$11 -> 16.368 | BS146: =BC146 -> 5.5875 | BT146: =BP146 -> 13.6375444 | BU146: 0 | BV146: 0 | BW146: 17.74672545 | BX146: 0 | BY146: =IF($O146=BY$137,SUM(($AO146*Inputs!$G$15)+$AR146+($AC146*Inputs!$G$11)),0) -> 0 | BZ146: =IF($O146=BZ$137,SUM(($AO146*Inputs!$G$15)+$AR146+($AC146*Inputs!$G$11)),0) -> 0 | CA146: =IF($O146=CA$137,SUM(($AO146*Inputs!$G$15)+$AR146+($AC146*Inputs!$G$11)),0) -> 24.58680252 | CB146: =IF($O146=CB$137,SUM(($AO146*Inputs!$G$15)+$AR146+($AC146*Inputs!$G$11)),0) -> 0 | CK146: =IF($O146=$CK$137,$AJ146,0) -> 0 | CL146: =IF($O146=$CL$137,$AJ146,0) -> 0 | CM146: =IF($O146=$CM$137,$AJ146,0) -> 5.777310924 | CN146: =IF($O146=$CN$137,$AJ146,0) -> 0
B147: Field Cultivator | C147: =IF(E112=2,F113,0) -> 24 | D147: =IF($E112=2,$H113,0) -> 31958 | E147: =IF(E112=2,VLOOKUP(C147,$C$23:$D$24,2,FALSE),0) -> 31958 | F147: =IF(E112=2,I113,0) -> 0 | G147: =IF($E112=2,$K113,0) -> 2000 | H147: =IF(E112=2,VLOOKUP(B147,$B$6:$F$51,5,FALSE),0) -> 2000 | I147: =IF(E112=2,IF(L113>D147,0,L113),0) -> 5089.4 | J147: =IF(E112=2,VLOOKUP(C147,$C$23:$K$24,9,FALSE),0) -> 5089.404501 | K147: =IF(E112=2,P113,0) -> 100 | L147: =IF($E$112=2,+(G147-F147)/K147,0) -> 20 | M147: =IF(E112=2,I23,0) -> 100 | N147: =IF(E112=2,(H147-0)/M147) -> 20 | O147: =IF(E112=2,IF(C113=1,Machinery!B18,IF(C113=2,Machinery!B19,IF(C113=3,Machinery!B20,IF(C113=4,Machinery!B21,FALSE)))),0) -> JD 6190R | P147: =IF(O147="No Tractor",0,IF($E$112=2,VLOOKUP($O147,$C$100:$D$103,2,FALSE),0)) -> MFWD 190 | Q147: =IF(O147="No Tractor",0,IF($E$112=2,VLOOKUP($O147,$C$100:$F$103,4,FALSE),0)) -> 190 | R147: =IF(O147="No Tractor",0,IF($E$112=2,VLOOKUP($O147,$C$62:$H$65,6,FALSE),0)) -> 167000 | S147: =IF($O$147="No Tractor",0,IF($E$112=2,VLOOKUP($O147,$AA$18:$AC$21,3,FALSE),0)) -> 167000 | T147: =IF(O147="No Tractor",0,IF($E$112=2,VLOOKUP($O147,$C$100:$I$103,7,FALSE),0)) -> 0 | U147: =IF(O147="No Tractor",0,IF($E$112=2,VLOOKUP($O147,$C$100:$K$103,9,FALSE),0)) -> 16000 | V147: =IF(O147="No Tractor",0,IF(E112=2,VLOOKUP(P147,$Y$6:$AE$15,7,FALSE),0)) -> 16000 | W147: =IF(O147="No Tractor",0,IF($E112=2,VLOOKUP($O147,$C$100:$L$103,10,FALSE),0)) -> 16876.84 | X147: =IF($O$147="No Tractor",0,IF($E$112=2,VLOOKUP($O147,$AA$18:$AN$21,14,FALSE),0)) -> 16876.83927 | Y147: =IF(O147="No Tractor",0,IF($E112=2,VLOOKUP($O147,$C$62:$R$65,16,FALSE),0)) -> 600 | Z147: =IF(O147="No Tractor",0,IF($E112=2,(U147-T147)/Y147,0)) -> 26.66666667 | AA147: =IF(O147="No Tractor",0,IF(E112=2,VLOOKUP($P147,$Y$6:$AK$15,13,FALSE),0)) -> 600 | AB147: =IF(O147="No Tractor",0,IF(E112=2,(V147-0)/AA147,0)) -> 26.66666667 | AC147: =IF(O147="No Tractor",0,IF($E112=2,$S113,0)) -> 8.36 | AD147: =IF(E112=2,VLOOKUP($B147,$B$6:$Q$51,15,FALSE),0) -> 0.85 | AE147: =IF(E112=2,VLOOKUP($B147,$B$6:$Q$51,16,FALSE),0) -> 7 | AF147: =IF(E112=2,1/((5280/43560)*AE147*C147*AD147),0) -> 0.05777310924 | AG147: =IF($E$112=2,1/AF147,0) -> 17.30909091 | AJ147: =IF('Energy Sorghum'!J20=0,0,IF(E112=2,(Machinery!F12)*AF147,0)) -> 2.888655462 | AK147: 0.05777310924 | AL147: =IF($E$112=2,((($D147-$I147)*(Inputs!$P$19/(1-((1+Inputs!$P$19)^(-$L147))))+(($I147*Inputs!$P$19)))/($K147)),0) -> 26.47890988 | AM147: =IF($E$112=2,((($E147-$J147)*(Inputs!$P$19/(1-((1+Inputs!$P$19)^(-$N147))))+(($J147*Inputs!$P$19)))/($M147)),0) -> 26.47890865 | AN147: =IF($E$112=2,O23*$D147/($G147-$F147),0) -> 11.1853 | AO147: =IF(O147="No Tractor",0,IF(E112=2,AF147,0)) -> 0.05777310924 | AP147: =IF(O147="No Tractor",0,IF($E112=2,((($R147-$W147)*(Inputs!$P$19/(1-((1+Inputs!$P$19)^(-$Z147))))+(($W147*Inputs!$P$19)))/(Y147)),0)) -> 20.72519699 | AQ147: =IF(O147="No Tractor",0,IF($E112=2,((($S147-$X147)*(Inputs!$P$19/(1-((1+Inputs!$P$19)^(-$AB147))))+(($X147*Inputs!$P$19)))/(AA147)),0)) -> 20.72519701 | AR147: =IF(O147="No Tractor",0,IF(E112=2,(VLOOKUP($P147,$AL$6:$AS$15,8,FALSE)*$R147)/($U147-$T147),0)) -> 8.35 | BA147: 0.02888655462 | BB147: 4.18 | BC147: 9.76765 | BD147: 23.60205283 | BM147: 0.02888655462 | BN147: 4.18 | BO147: 9.76765 | BP147: 23.60205343 | BQ147: =AK147*Inputs!$G$15 -> 0.5344012605 | BR147: =AC147*Inputs!$G$11 -> 20.7328 | BS147: 9.76765 | BT147: 23.60205343 | BU147: 0 | BV147: 0 | BW147: 0 | BX147: 20.72519699 | BY147: =IF($O147=BY$137,SUM(($AO147*Inputs!$G$15)+$AR147+($AC147*Inputs!$G$11)),0) -> 0 | BZ147: =IF($O147=BZ$137,SUM(($AO147*Inputs!$G$15)+$AR147+($AC147*Inputs!$G$11)),0) -> 0 | CA147: =IF($O147=CA$137,SUM(($AO147*Inputs!$G$15)+$AR147+($AC147*Inputs!$G$11)),0) -> 0 | CB147: =IF($O147=CB$137,SUM(($AO147*Inputs!$G$15)+$AR147+($AC147*Inputs!$G$11)),0) -> 29.61720126 | CK147: 0 | CL147: 0 | CM147: 0 | CN147: 2.888655462
B148: Chisel Plow | C148: =F114 -> 10 | D148: =$H114 -> 6000 | E148: =VLOOKUP(C148,$C$20:$D$22,2,FALSE) -> 6000 | F148: =I114 -> 0 | G148: =$K114 -> 2000 | H148: =VLOOKUP(B148,$B$6:$F$51,5,FALSE) -> 2000 | I148: =IF(L114>D148,0,L114) -> 1826.73 | J148: =VLOOKUP(C148,$C$20:$K$22,9,FALSE) -> 1826.72947 | K148: =P114 -> 150 | L148: =+(G148-F148)/K148 -> 13.33333333 | M148: =I20 -> 150 | N148: =+(H148-0)/M148 -> 13.33333333 | O148: =IF(C114=1,Machinery!B18,IF(C114=2,Machinery!B19,IF(C114=3,Machinery!B20,IF(C114=4,Machinery!B21,FALSE)))) -> JD 6190R | P148: =IF(O148="No Tractor",0,VLOOKUP($O148,$C$100:$D$103,2,FALSE)) -> MFWD 190 | Q148: =IF(O148="No Tractor",0,VLOOKUP($O148,$C$100:$F$103,4,FALSE)) -> 190 | R148: =IF(O148="No Tractor",0,VLOOKUP($O148,$C$62:$H$65,6,FALSE)) -> 167000 | S148: =IF($O$148="No Tractor",0,VLOOKUP($O148,$AA$18:$AC$21,3,FALSE)) -> 167000 | T148: =IF(O148="No Tractor",0,VLOOKUP($O148,$C$100:$I$103,7,FALSE)) -> 0 | U148: =IF(O148="No Tractor",0,VLOOKUP($O148,$C$100:$K$103,9,FALSE)) -> 16000 | V148: =IF(O148="No Tractor",0,VLOOKUP(P148,$Y$6:$AE$15,7,FALSE)) -> 16000 | W148: =IF(O148="No Tractor",0,VLOOKUP($O148,$C$100:$L$103,10,FALSE)) -> 16876.84 | X148: =IF($O$148="No Tractor",0,VLOOKUP($O148,$AA$18:$AN$21,14,FALSE)) -> 16876.83927 | Y148: =IF(O148="No Tractor",0,VLOOKUP($O148,$C$62:$R$65,16,FALSE)) -> 600 | Z148: =IF(O148="No Tractor",0,(U148-T148)/Y148) -> 26.66666667 | AA148: =IF(O148="No Tractor",0,VLOOKUP($P148,$Y$6:$AK$15,13,FALSE)) -> 600 | AB148: =IF(O148="No Tractor",0,(V148-0)/AA148) -> 26.66666667 | AC148: =IF(O148="No Tractor",0,$S114) -> 8.36 | AD148: =VLOOKUP($B148,$B$6:$Q$51,15,FALSE) -> 0.85 | AE148: =VLOOKUP($B148,$B$6:$Q$51,16,FALSE) -> 5 | AF148: =1/((5280/43560)*AE148*C148*AD148) -> 0.1941176471 | AG148: =1/AF148 -> 5.151515152 | AH148: =IF(Switchgrass!$T$5="Cropland",IF(Switchgrass!J11=0,0,Machinery!D12*AF148),0) -> 9.705882353 | AI148: =IF(Miscanthus!J12=0,0,Machinery!E12*AF148*(1/Miscanthus!$H$82)) -> 0.6470588235 | AJ148: =IF('Energy Sorghum'!J12=0,0,Machinery!F12*AF148) -> 9.705882353 | AK148: 0.1941176471 | AL148: =((($D148-$I148)*(Inputs!$P$19/(1-((1+Inputs!$P$19)^(-$L148))))+(($I148*Inputs!$P$19)))/($K148)) -> 3.820976688 | AM148: =((($E148-$J148)*(Inputs!$P$19/(1-((1+Inputs!$P$19)^(-$N148))))+(($J148*Inputs!$P$19)))/($M148)) -> 3.820976869 | AN148: =O20*$D148/($G148-$F148) -> 2.25 | AO148: =IF(O148="No Tractor",0,AF148) -> 0.1941176471 | AP148: =IF(O148="No Tractor",0,((($R148-$W148)*(Inputs!$P$19/(1-((1+Inputs!$P$19)^(-$Z148))))+(($W148*Inputs!$P$19)))/(Y148))) -> 20.72519699 | AQ148: =IF(O148="No Tractor",0,((($S148-$X148)*(Inputs!$P$19/(1-((1+Inputs!$P$19)^(-$AB148))))+(($X148*Inputs!$P$19)))/(AA148))) -> 20.72519701 | AR148: =IF(O148="No Tractor",0,(VLOOKUP($P148,$AL$6:$AS$15,8,FALSE)*$R148)/($U148-$T148)) -> 8.35 | AS148: =AK148*W114/100 -> 0.09705882353 | AT148: =AC148*W114/100 -> 4.18 | AU148: =(AN148+AR148)*W114/100 -> 5.3 | AV148: =(AM148+AQ148)*W114/100 -> 12.27308694 | AW148: =AK148*W114/100 -> 0.09705882353 | AX148: =AC148*W114/100 -> 4.18 | AY148: =(AN148+AR148)*W114/100 -> 5.3 | AZ148: =(AM148+AQ148)*W114/100 -> 12.27308694 | BA148: 0.09705882353 | BB148: 4.18 | BC148: 5.3 | BD148: 12.27308694 | BE148: =$AK148*W114/100 -> 0.09705882353 | BF148: =$AC148*W114/100 -> 4.18 | BG148: =($AN148+$AR148)*W114/100 -> 5.3 | BH148: =($AL148+$AP148)*W114/100 -> 12.27308684 | BI148: =$AK148*W114/100 -> 0.09705882353 | BJ148: =$AC148*W114/100 -> 4.18 | BK148: =($AN148+$AR148)*W114/100 -> 5.3 | BL148: =($AL148+$AP148)*W114/100 -> 12.27308684 | BM148: 0.09705882353 | BN148: 4.18 | BO148: 5.3 | BP148: 12.27308684 | BQ148: =AK148*Inputs!$G$15 -> 1.795588235 | BR148: =AC148*Inputs!$G$11 -> 20.7328 | BS148: 5.3 | BT148: 12.27308684 | BU148: 0 | BV148: 0 | BW148: 0 | BX148: 20.72519699 | BY148: =IF($O148=BY$137,SUM(($AO148*Inputs!$G$15)+$AR148+($AC148*Inputs!$G$11)),0) -> 0 | BZ148: =IF($O148=BZ$137,SUM(($AO148*Inputs!$G$15)+$AR148+($AC148*Inputs!$G$11)),0) -> 0 | CA148: =IF($O148=CA$137,SUM(($AO148*Inputs!$G$15)+$AR148+($AC148*Inputs!$G$11)),0) -> 0 | CB148: =IF($O148=CB$137,SUM(($AO148*Inputs!$G$15)+$AR148+($AC148*Inputs!$G$11)),0) -> 30.87838824 | CC148: =IF($O148=$CC$137,$AH148,0) -> 0 | CD148: =IF($O148=$CD$137,$AH148,0) -> 0 | CE148: =IF($O148=CE141,$AH148,0) -> 0 | CF148: =IF($O148=$CF$137,$AH148,0) -> 9.705882353 | CG148: =IF($O148=$CG$137,$AI148,0) -> 0 | CH148: =IF($O148=$CH$137,$AI148,0) -> 0 | CI148: =IF($O148=$CI$137,$AI148,0) -> 0 | CJ148: =IF($O148=$CJ$137,$AI148,0) -> 0.6470588235 | CK148: 0 | CL148: 0 | CM148: 0 | CN148: 9.705882353
B149: Chisel Plow | C149: =IF(E114=2,F115,0) -> 16 | D149: =IF($E114=2,$H115,0) -> 22500 | E149: =IF(E114=2,VLOOKUP(C149,$C$20:$D$22,2,FALSE),0) -> 22500 | F149: =IF(E114=2,I115,0) -> 0 | G149: =IF($E114=2,$K115,0) -> 2000 | H149: =IF(E114=2,VLOOKUP(B149,$B$6:$F$51,5,FALSE),0) -> 2000 | I149: =IF(E114=2,IF(L115>D149,0,L115),0) -> 6850.24 | J149: =IF(E114=2,VLOOKUP(C149,$C$20:$K$22,9,FALSE),0) -> 6850.235514 | K149: =IF(E114=2,P115,0) -> 150 | L149: =IF($E$114=2,+(G149-F149)/K149,0) -> 13.33333333 | M149: =IF(E114=2,I20,0) -> 150 | N149: =IF(E114=2,(H149-0)/M149) -> 13.33333333 | O149: =IF($E$114=2,IF(C115=1,Machinery!B18,IF(C115=2,Machinery!B19,IF(C115=3,Machinery!B20,IF(C115=4,Machinery!B21,FALSE)))),0) -> JD 6130D | P149: =IF(O149="No Tractor",0,IF($E$114=2,VLOOKUP($O149,$C$100:$D$103,2,FALSE),0)) -> MFWD 130 | Q149: =IF(O149="No Tractor",0,IF($E$114=2,VLOOKUP($O149,$C$100:$F$103,4,FALSE),0)) -> 130 | R149: =IF(O149="No Tractor",0,IF($E$114=2,VLOOKUP($O149,$C$62:$H$65,6,FALSE),0)) -> 114000 | S149: =IF($O$149="No Tractor",0,IF($E$114=2,VLOOKUP($O149,$AA$18:$AC$21,3,FALSE),0)) -> 114000 | T149: =IF(O149="No Tractor",0,IF($E$114=2,VLOOKUP($O149,$C$100:$I$103,7,FALSE),0)) -> 0 | U149: =IF(O149="No Tractor",0,IF($E$114=2,VLOOKUP($O149,$C$100:$K$103,9,FALSE),0)) -> 16000 | V149: =IF(O149="No Tractor",0,IF(E114=2,VLOOKUP(P149,$Y$6:$AE$15,7,FALSE),0)) -> 16000 | W149: =IF(O149="No Tractor",0,IF($E114=2,VLOOKUP($O149,$C$100:$L$103,10,FALSE),0)) -> 17996.22 | X149: =IF($O$149="No Tractor",0,IF($E$114=2,VLOOKUP($O149,$AA$18:$AN$21,14,FALSE),0)) -> 17996.21702 | Y149: =IF(O149="No Tractor",0,IF($E114=2,VLOOKUP($O149,$C$62:$R$65,16,FALSE),0)) -> 600 | Z149: =IF(O149="No Tractor",0,IF($E114=2,(U149-T149)/Y149,0)) -> 26.66666667 | AA149: =IF(O149="No Tractor",0,IF(E114=2,VLOOKUP($P149,$Y$6:$AK$15,13,FALSE),0)) -> 600 | AB149: =IF(O149="No Tractor",0,IF(E114=2,(V149-0)/AA149,0)) -> 26.66666667 | AC149: =IF(O149="No Tractor",0,IF($E114=2,$S115,0)) -> 5.72 | AD149: =IF(E114=2,VLOOKUP($B149,$B$6:$Q$51,15,FALSE),0) -> 0.85 | AE149: =IF(E114=2,VLOOKUP($B149,$B$6:$Q$51,16,FALSE),0) -> 5 | AF149: =IF(E114=2,1/((5280/43560)*AE149*C149*AD149),0) -> 0.1213235294 | AG149: =IF($E$114=2,1/AF149,0) -> 8.242424242 | AH149: =IF(Switchgrass!$T$5="Cropland",IF(Switchgrass!J11=0,0,Machinery!D12*AF149),0) -> 6.066176471 | AI149: =IF(Miscanthus!J12=0,0,Machinery!E12*AF149*(1/Miscanthus!$H$82)) -> 0.4044117647 | AJ149: =IF('Energy Sorghum'!J12=0,0,IF(E114=2,(Machinery!F12)*AF149,0)) -> 6.066176471 | AK149: 0.1213235294 | AL149: =IF($E$114=2,((($D149-$I149)*(Inputs!$P$19/(1-((1+Inputs!$P$19)^(-$L149))))+(($I149*Inputs!$P$19)))/($K149)),0) -> 14.32866173 | AM149: =IF($E$114=2,((($E149-$J149)*(Inputs!$P$19/(1-((1+Inputs!$P$19)^(-$N149))))+(($J149*Inputs!$P$19)))/($M149)),0) -> 14.32866326 | AN149: =IF($E$114=2,O20*$D149/($G149-$F149),0) -> 8.4375 | AO149: =IF(O149="No Tractor",0,IF(E114=2,AF149,0)) -> 0.1213235294 | AP149: =IF(O149="No Tractor",0,IF($E114=2,((($R149-$W149)*(Inputs!$P$19/(1-((1+Inputs!$P$19)^(-$Z149))))+(($W149*Inputs!$P$19)))/(Y149)),0)) -> 13.97411399 | AQ149: =IF(O149="No Tractor",0,IF($E114=2,((($S149-$X149)*(Inputs!$P$19/(1-((1+Inputs!$P$19)^(-$AB149))))+(($X149*Inputs!$P$19)))/(AA149)),0)) -> 13.97411407 | AR149: =IF(O149="No Tractor",0,IF(E114=2,(VLOOKUP($P149,$AL$6:$AS$15,8,FALSE)*$R149)/($U149-$T149),0)) -> 5.7 | AS149: =AK149*W115/100 -> 0.06066176471 | AT149: =AC149*W115/100 -> 2.86 | AU149: =(AN149+AR149)*W115/100 -> 7.06875 | AV149: =(AM149+AQ149)*W115/100 -> 14.15138866 | AW149: =AK149*W115/100 -> 0.06066176471 | AX149: =AC149*W115/100 -> 2.86 | AY149: =(AN149+AR149)*W115/100 -> 7.06875 | AZ149: =(AM149+AQ149)*W115/100 -> 14.15138866 | BA149: 0.06066176471 | BB149: 2.86 | BC149: 7.06875 | BD149: 14.15138866 | BE149: =AK149*W115/100 -> 0.06066176471 | BF149: =$AC149*W115/100 -> 2.86 | BG149: =($AN149+$AR149)*W115/100 -> 7.06875 | BH149: =($AL149+$AP149)*W115/100 -> 14.15138786 | BI149: =$AK149*W115/100 -> 0.06066176471 | BJ149: =$AC149*W115/100 -> 2.86 | BK149: =($AN149+$AR149)*W115/100 -> 7.06875 | BL149: =($AL149+$AP149)*W115/100 -> 14.15138786 | BM149: 0.06066176471 | BN149: 2.86 | BO149: 7.06875 | BP149: 14.15138786 | BQ149: =AK149*Inputs!$G$15 -> 1.122242647 | BR149: =AC149*Inputs!$G$11 -> 14.1856 | BS149: 7.06875 | BT149: 14.15138786 | BU149: 0 | BV149: 13.97411399 | BW149: 0 | BX149: 0 | BY149: =IF($O149=BY$137,SUM(($AO149*Inputs!$G$15)+$AR149+($AC149*Inputs!$G$11)),0) -> 0 | BZ149: =IF($O149=BZ$137,SUM(($AO149*Inputs!$G$15)+$AR149+($AC149*Inputs!$G$11)),0) -> 21.00784265 | CA149: =IF($O149=CA$137,SUM(($AO149*Inputs!$G$15)+$AR149+($AC149*Inputs!$G$11)),0) -> 0 | CB149: =IF($O149=CB$137,SUM(($AO149*Inputs!$G$15)+$AR149+($AC149*Inputs!$G$11)),0) -> 0 | CC149: =IF($O149=$CC$137,$AH149,0) -> 0 | CD149: =IF($O149=$CD$137,$AH149,0) -> 6.066176471 | CE149: =IF($O149=CE141,$AH149,0) -> 0 | CF149: =IF($O149=$CF$137,$AH149,0) -> 0 | CG149: =IF($O149=$CG$137,$AI149,0) -> 0 | CH149: =IF($O149=$CH$137,$AI149,0) -> 0.4044117647 | CI149: =IF($O149=$CI$137,$AI149,0) -> 0 | CJ149: =IF($O149=$CJ$137,$AI149,0) -> 0 | CK149: 0 | CL149: 6.066176471 | CM149: 0 | CN149: 0
B150: Row Conditioner | C150: =F116 -> 13 | D150: =$H116 -> 7300 | E150: =VLOOKUP(C150,$C$28:$D$30,2,FALSE) -> 7300 | F150: =I116 -> 0 | G150: =$K116 -> 2000 | H150: =VLOOKUP(B150,$B$6:$F$51,5,FALSE) -> 2000 | I150: =IF(L116>D150,0,L116) -> 1162.55 | J150: =VLOOKUP(C150,$C$28:$K$30,9,FALSE) -> 1162.546244 | K150: =P116 -> 100 | L150: =+(G150-F150)/K150 -> 20 | M150: =I28 -> 100 | N150: =+(H150-0)/M150 -> 20 | O150: =IF(C116=1,Machinery!B18,IF(C116=2,Machinery!B19,IF(C116=3,Machinery!B20,IF(C116=4,Machinery!B21,FALSE)))) -> JD 6130D | P150: =IF(O150="No Tractor",0,VLOOKUP($O150,$C$100:$D$103,2,FALSE)) -> MFWD 130 | Q150: =IF(O150="No Tractor",0,VLOOKUP($O150,$C$100:$F$103,4,FALSE)) -> 130 | R150: =IF(O150="No Tractor",0,VLOOKUP($O150,$C$62:$H$65,6,FALSE)) -> 114000 | S150: =IF($O$150="No Tractor",0,VLOOKUP($O150,$AA$18:$AC$21,3,FALSE)) -> 114000 | T150: =IF(O150="No Tractor",0,VLOOKUP($O150,$C$100:$I$103,7,FALSE)) -> 0 | U150: =IF(O150="No Tractor",0,VLOOKUP($O150,$C$100:$K$103,9,FALSE)) -> 16000 | V150: =IF(O150="No Tractor",0,VLOOKUP(P150,$Y$6:$AE$15,7,FALSE)) -> 16000 | W150: =IF(O150="No Tractor",0,VLOOKUP($O150,$C$100:$L$103,10,FALSE)) -> 17996.22 | X150: =IF($O$150="No Tractor",0,VLOOKUP($O150,$AA$18:$AN$21,14,FALSE)) -> 17996.21702 | Y150: =IF(O150="No Tractor",0,VLOOKUP($O150,$C$62:$R$65,16,FALSE)) -> 600 | Z150: =IF(O150="No Tractor",0,(U150-T150)/Y150) -> 26.66666667 | AA150: =IF(O150="No Tractor",0,VLOOKUP($P150,$Y$6:$AK$15,13,FALSE)) -> 600 | AB150: =IF(O150="No Tractor",0,(V150-0)/AA150) -> 26.66666667 | AC150: =IF(O150="No Tractor",0,$S116) -> 5.72 | AD150: =VLOOKUP($B150,$B$6:$Q$51,15,FALSE) -> 0.8 | AE150: =VLOOKUP($B150,$B$6:$Q$51,16,FALSE) -> 4.5 | AF150: =1/((5280/43560)*AE150*C150*AD150) -> 0.1762820513 | AG150: =1/AF150 -> 5.672727273 | AJ150: =IF('Energy Sorghum'!J22=0,0,Machinery!F12*AF150) -> 8.814102564 | AK150: 0.1762820513 | AL150: =((($D150-$I150)*(Inputs!$P$19/(1-((1+Inputs!$P$19)^(-$L150))))+(($I150*Inputs!$P$19)))/($K150)) -> 6.048438592 | AM150: =((($E150-$J150)*(Inputs!$P$19/(1-((1+Inputs!$P$19)^(-$N150))))+(($J150*Inputs!$P$19)))/($M150)) -> 6.048439613 | AN150: =O28*$D150/($G150-$F150) -> 0.9125 | AO150: =IF(O150="No Tractor",0,AF150) -> 0.1762820513 | AP150: =IF(O150="No Tractor",0,((($R150-$W150)*(Inputs!$P$19/(1-((1+Inputs!$P$19)^(-$Z150))))+(($W150*Inputs!$P$19)))/(Y150))) -> 13.97411399 | AQ150: =IF(O150="No Tractor",0,((($S150-$X150)*(Inputs!$P$19/(1-((1+Inputs!$P$19)^(-$AB150))))+(($X150*Inputs!$P$19)))/(AA150))) -> 13.97411407 | AR150: =IF(O150="No Tractor",0,(VLOOKUP($P150,$AL$6:$AS$15,8,FALSE)*$R150)/($U150-$T150)) -> 5.7 | BA150: 0.08814102564 | BB150: 2.86 | BC150: 3.30625 | BD150: 10.01127684 | BM150: 0.08814102564 | BN150: 2.86 | BO150: 3.30625 | BP150: 10.01127629 | BQ150: =AK150*Inputs!$G$15 -> 1.630608974 | BR150: =AC150*Inputs!$G$11 -> 14.1856 | BS150: 3.30625 | BT150: 10.01127629 | BU150: 0 | BV150: 13.97411399 | BW150: 0 | BX150: 0 | BY150: =IF($O150=BY$137,SUM(($AO150*Inputs!$G$15)+$AR150+($AC150*Inputs!$G$11)),0) -> 0 | BZ150: =IF($O150=BZ$137,SUM(($AO150*Inputs!$G$15)+$AR150+($AC150*Inputs!$G$11)),0) -> 21.51620897 | CA150: =IF($O150=CA$137,SUM(($AO150*Inputs!$G$15)+$AR150+($AC150*Inputs!$G$11)),0) -> 0 | CB150: =IF($O150=CB$137,SUM(($AO150*Inputs!$G$15)+$AR150+($AC150*Inputs!$G$11)),0) -> 0 | CK150: 0 | CL150: 8.814102564 | CM150: 0 | CN150: 0
B151: Row Conditioner | C151: =IF(E116=2,F117,0) -> 21 | D151: =IF($E116=2,$H117,0) -> 12000 | E151: =IF(E116=2,VLOOKUP(C151,$C$28:$D$30,2,FALSE),0) -> 12000 | F151: =IF(E116=2,I117,0) -> 0 | G151: =IF($E116=2,$K117,0) -> 2000 | H151: =IF(E116=2,VLOOKUP(B151,$B$6:$F$51,5,FALSE),0) -> 2000 | I151: =IF(E116=2,IF(L117>D151,0,L117),0) -> 1911.03 | J151: =IF(E116=2,VLOOKUP(C151,$C$28:$K$30,9,FALSE),0) -> 1911.034921 | K151: =IF(E116=2,P117,0) -> 100 | L151: =IF($E$116=2,+(G151-F151)/K151,0) -> 20 | M151: =IF(E116=2,I28,0) -> 100 | N151: =IF(E116=2,(H151-0)/M151) -> 20 | O151: =IF($E$116=2,IF(C117=1,Machinery!B18,IF(C117=2,Machinery!B19,IF(C117=3,Machinery!B20,IF(C117=4,Machinery!B21,FALSE)))),0) -> JD 6190R | P151: =IF(O151="No Tractor",0,IF($E$116=2,VLOOKUP($O151,$C$100:$D$103,2,FALSE),0)) -> MFWD 190 | Q151: =IF(O151="No Tractor",0,IF($E$116=2,VLOOKUP($O151,$C$100:$F$103,4,FALSE),0)) -> 190 | R151: =IF(O151="No Tractor",0,IF($E$116=2,VLOOKUP($O151,$C$62:$H$65,6,FALSE),0)) -> 167000 | S151: =IF($O$151="No Tractor",0,IF($E$116=2,VLOOKUP($O151,$AA$18:$AC$21,3,FALSE),0)) -> 167000 | T151: =IF(O151="No Tractor",0,IF($E$116=2,VLOOKUP($O151,$C$100:$I$103,7,FALSE),0)) -> 0 | U151: =IF(O151="No Tractor",0,IF($E$116=2,VLOOKUP($O151,$C$100:$K$103,9,FALSE),0)) -> 16000 | V151: =IF(O151="No Tractor",0,IF(E116=2,VLOOKUP(P151,$Y$6:$AE$15,7,FALSE),0)) -> 16000 | W151: =IF(O151="No Tractor",0,IF($E116=2,VLOOKUP($O151,$C$100:$L$103,10,FALSE),0)) -> 16876.84 | X151: =IF($O$151="No Tractor",0,IF($E$116=2,VLOOKUP($O151,$AA$18:$AN$21,14,FALSE),0)) -> 16876.83927 | Y151: =IF(O151="No Tractor",0,IF($E116=2,VLOOKUP($O151,$C$62:$R$65,16,FALSE),0)) -> 600 | Z151: =IF(O151="No Tractor",0,IF($E116=2,(U151-T151)/Y151,0)) -> 26.66666667 | AA151: =IF(O151="No Tractor",0,IF(E116=2,VLOOKUP($P151,$Y$6:$AK$15,13,FALSE),0)) -> 600 | AB151: =IF(O151="No Tractor",0,IF(E116=2,(V151-0)/AA151,0)) -> 26.66666667 | AC151: =IF(O151="No Tractor",0,IF($E116=2,$S117,0)) -> 8.36 | AD151: =IF(E116=2,VLOOKUP($B151,$B$6:$Q$51,15,FALSE),0) -> 0.8 | AE151: =IF(E116=2,VLOOKUP($B151,$B$6:$Q$51,16,FALSE),0) -> 4.5 | AF151: =IF(E116=2,1/((5280/43560)*AE151*C151*AD151),0) -> 0.1091269841 | AG151: =IF($E$116=2,1/AF151,0) -> 9.163636364 | AJ151: =IF('Energy Sorghum'!J22=0,0,IF(E116=2,(Machinery!F12)*AF151,0)) -> 5.456349206 | AK151: 0.1091269841 | AL151: =IF($E$116=2,((($D151-$I151)*(Inputs!$P$19/(1-((1+Inputs!$P$19)^(-$L151))))+(($I151*Inputs!$P$19)))/($K151)),0) -> 9.942641798 | AM151: =IF($E$116=2,((($E151-$J51)*(Inputs!$P$19/(1-((1+Inputs!$P$19)^(-$N151))))+(($J151*Inputs!$P$19)))/($M151)),0) -> 11.60819993 | AN151: =IF($E$116=2,O28*$D151/($G151-$F151),0) -> 1.5 | AO151: =IF(O151="No Tractor",0,IF(E116=2,AF151,0)) -> 0.1091269841 | AP151: =IF(O151="No Tractor",0,IF($E116=2,((($R151-$W151)*(Inputs!$P$19/(1-((1+Inputs!$P$19)^(-$Z151))))+(($W151*Inputs!$P$19)))/(Y151)),0)) -> 20.72519699 | AQ151: =IF(O151="No Tractor",0,IF($E116=2,((($S151-$X151)*(Inputs!$P$19/(1-((1+Inputs!$P$19)^(-$AB151))))+(($X151*Inputs!$P$19)))/(AA151)),0)) -> 20.72519701 | AR151: =IF(O151="No Tractor",0,IF(E116=2,(VLOOKUP($P151,$AL$6:$AS$15,8,FALSE)*$R151)/($U151-$T151),0)) -> 8.35 | BA151: 0.05456349206 | BB151: 4.18 | BC151: 4.925 | BD151: 16.16669847 | BM151: 0.05456349206 | BN151: 4.18 | BO151: 4.925 | BP151: 15.33391939 | BQ151: =AK151*Inputs!$G$15 -> 1.009424603 | BR151: =AC151*Inputs!$G$11 -> 20.7328 | BS151: 4.925 | BT151: 15.33391939 | BU151: 0 | BV151: 0 | BW151: 0 | BX151: 20.72519699 | BY151: =IF($O151=BY$137,SUM(($AO151*Inputs!$G$15)+$AR151+($AC151*Inputs!$G$11)),0) -> 0 | BZ151: =IF($O151=BZ$137,SUM(($AO151*Inputs!$G$15)+$AR151+($AC151*Inputs!$G$11)),0) -> 0 | CA151: =IF($O151=CA$137,SUM(($AO151*Inputs!$G$15)+$AR151+($AC151*Inputs!$G$11)),0) -> 0 | CB151: =IF($O151=CB$137,SUM(($AO151*Inputs!$G$15)+$AR151+($AC151*Inputs!$G$11)),0) -> 30.0922246 | CK151: 0 | CL151: 0 | CM151: 0 | CN151: 5.456349206
A152: =F118 -> 4R-38 | B152: Disk Bedder | C152: =IF(A152="4R-38",12.7,IF(A152="6R-30",15,IF(A152="8R-30",20,0))) -> 12.7 | D152: =$H118 -> 7820 | E152: =VLOOKUP(A152,$C$25:$D$27,2,FALSE) -> 7820 | F152: =I118 -> 0 | G152: =$K118 -> 2000 | H152: =VLOOKUP(B152,$B$6:$F$51,5,FALSE) -> 2000 | I152: =IF(L118>D152,0,L118) -> 1971.39 | J152: =VLOOKUP(A152,$C$25:$K$27,9,FALSE) -> 1971.387934 | K152: =P118 -> 160 | L152: =+(G152-F152)/K152 -> 12.5 | M152: =I25 -> 160 | N152: =+(H152-0)/M152 -> 12.5 | O152: =IF(C118=1,Machinery!B18,IF(C118=2,Machinery!B19,IF(C118=3,Machinery!B20,IF(C118=4,Machinery!B21,FALSE)))) -> JD 6150M | P152: =IF(O152="No Tractor",0,VLOOKUP($O152,$C$100:$D$103,2,FALSE)) -> MFWD 150 | Q152: =IF(O152="No Tractor",0,VLOOKUP($O152,$C$100:$F$103,4,FALSE)) -> 150 | R152: =IF(O152="No Tractor",0,VLOOKUP($O152,$C$62:$H$65,6,FALSE)) -> 143000 | S152: =IF($O$152="No Tractor",0,VLOOKUP($O152,$AA$18:$AC$21,3,FALSE)) -> 143000 | T152: =IF(O152="No Tractor",0,VLOOKUP($O152,$C$100:$I$103,7,FALSE)) -> 0 | U152: =IF(O152="No Tractor",0,VLOOKUP($O152,$C$100:$K$103,9,FALSE)) -> 16000 | V152: =IF(O152="No Tractor",0,VLOOKUP(P152,$Y$6:$AE$15,7,FALSE)) -> 16000 | W152: =IF(O152="No Tractor",0,VLOOKUP($O152,$C$100:$L$103,10,FALSE)) -> 14451.43 | X152: =IF($O$152="No Tractor",0,VLOOKUP($O152,$AA$18:$AN$21,14,FALSE)) -> 14451.42524 | Y152: =IF(O152="No Tractor",0,VLOOKUP($O152,$C$62:$R$65,16,FALSE)) -> 600 | Z152: =IF(O152="No Tractor",0,(U152-T152)/Y152) -> 26.66666667 | AA152: =IF(O152="No Tractor",0,VLOOKUP($P152,$Y$6:$AK$15,13,FALSE)) -> 600 | AB152: =IF(O152="No Tractor",0,(V152-0)/AA152) -> 26.66666667 | AC152: =IF(O152="No Tractor",0,$S118) -> 6.6 | AD152: =VLOOKUP($B152,$B$6:$Q$51,15,FALSE) -> 0.8 | AE152: =VLOOKUP($B152,$B$6:$Q$51,16,FALSE) -> 5.5 | AF152: =1/((5280/43560)*AE152*C152*AD152) -> 0.1476377953 | AG152: =1/AF152 -> 6.773333333 | AJ152: =IF('Energy Sorghum'!J21=0,0,Machinery!F12*AF152) -> 7.381889764 | AK152: 0.1476377953 | AL152: =((($D152-$I152)*(Inputs!$P$19/(1-((1+Inputs!$P$19)^(-$L152))))+(($I152*Inputs!$P$19)))/($K152)) -> 4.979027395 | AM152: =((($E152-$J152)*(Inputs!$P$19/(1-((1+Inputs!$P$19)^(-$N152))))+(($J152*Inputs!$P$19)))/($M152)) -> 4.979028118 | AN152: =O25*$D152/($G152-$F152) -> 1.564 | AO152: =IF(O152="No Tractor",0,AF152) -> 0.1476377953 | AP152: =IF(O152="No Tractor",0,((($R152-$W152)*(Inputs!$P$19/(1-((1+Inputs!$P$19)^(-$Z152))))+(($W152*Inputs!$P$19)))/(Y152))) -> 17.74672545 | AQ152: =IF(O152="No Tractor",0,((($S152-$X152)*(Inputs!$P$19/(1-((1+Inputs!$P$19)^(-$AB152))))+(($X152*Inputs!$P$19)))/(AA152))) -> 17.74672558 | AR152: =IF(O152="No Tractor",0,(VLOOKUP($P152,$AL$6:$AS$15,8,FALSE)*$R152)/($U152-$T152)) -> 7.15 | BA152: 0.07381889764 | BB152: 3.3 | BC152: 4.357 | BD152: 11.36287685 | BM152: 0.07381889764 | BN152: 3.3 | BO152: 4.357 | BP152: 11.36287642 | BQ152: =AK152*Inputs!$G$15 -> 1.365649606 | BR152: =AC152*Inputs!$G$11 -> 16.368 | BS152: 4.357 | BT152: 11.36287642 | BU152: 0 | BV152: 0 | BW152: 17.74672545 | BX152: 0 | BY152: =IF($O152=BY$137,SUM(($AO152*Inputs!$G$15)+$AR152+($AC152*Inputs!$G$11)),0) -> 0 | BZ152: =IF($O152=BZ$137,SUM(($AO152*Inputs!$G$15)+$AR152+($AC152*Inputs!$G$11)),0) -> 0 | CA152: =IF($O152=CA$137,SUM(($AO152*Inputs!$G$15)+$AR152+($AC152*Inputs!$G$11)),0) -> 24.88364961 | CB152: =IF($O152=CB$137,SUM(($AO152*Inputs!$G$15)+$AR152+($AC152*Inputs!$G$11)),0) -> 0 | CK152: 0 | CL152: 0 | CM152: 7.381889764 | CN152: 0
A153: 6R-30 | B153: Disk Bedder | C153: =IF(E118=2,IF(A153="4R-38",12.7,IF(A153="6R-30",15,IF(A153="8R-30",20,0))),0) -> 15 | D153: =IF($E118=2,$H119,0) -> 12800 | E153: =IF(E118=2,VLOOKUP(A153,$C$25:$D$27,2,FALSE),0) -> 12800 | F153: =IF(E118=2,I131,0) -> 0 | G153: =IF($E118=2,$K119,0) -> 2000 | H153: =IF(E118=2,VLOOKUP(B153,$B$6:$F$51,5,FALSE),0) -> 2000 | I153: =IF(E118=2,IF(L119>D153,0,L119),0) -> 3226.82 | J153: =IF(E118=2,VLOOKUP(A153,$C$25:$K$27,9,FALSE),0) -> 3226.82424 | K153: =IF(E118=2,P119,0) -> 160 | L153: =IF($E$118=2,+(G153-F153)/K153,0) -> 12.5 | M153: =IF(E118=2,I25,0) -> 160 | N153: =IF(E118=2,(H153-0)/M153) -> 12.5 | O153: =IF($E$118=2,IF(C119=1,Machinery!B18,IF(C119=2,Machinery!B19,IF(C119=3,Machinery!B20,IF(C119=4,Machinery!B21,FALSE)))),0) -> JD 6190R | P153: =IF(O153="No Tractor",0,IF($E$118=2,VLOOKUP($O153,$C$100:$D$103,2,FALSE),0)) -> MFWD 190 | Q153: =IF(O153="No Tractor",0,IF($E$118=2,VLOOKUP($O153,$C$100:$F$103,4,FALSE),0)) -> 190 | R153: =IF(O153="No Tractor",0,IF($E$118=2,VLOOKUP($O153,$C$62:$H$65,6,FALSE),0)) -> 167000 | S153: =IF($O$153="No Tractor",0,IF($E$118=2,VLOOKUP($O153,$AA$18:$AC$21,3,FALSE),0)) -> 167000 | T153: =IF(O153="No Tractor",0,IF($E$118=2,VLOOKUP($O153,$C$100:$I$103,7,FALSE),0)) -> 0 | U153: =IF(O153="No Tractor",0,IF($E$118=2,VLOOKUP($O153,$C$100:$K$103,9,FALSE),0)) -> 16000 | V153: =IF(O153="No Tractor",0,IF(E118=2,VLOOKUP(P153,$Y$6:$AE$15,7,FALSE),0)) -> 16000 | W153: =IF(O153="No Tractor",0,IF($E118=2,VLOOKUP($O153,$C$100:$L$103,10,FALSE),0)) -> 16876.84 | X153: =IF($O$153="No Tractor",0,IF($E$118=2,VLOOKUP($O153,$AA$18:$AN$21,14,FALSE),0)) -> 16876.83927 | Y153: =IF(O153="No Tractor",0,IF($E118=2,VLOOKUP($O153,$C$62:$R$65,16,FALSE),0)) -> 600 | Z153: =IF(O153="No Tractor",0,IF($E118=2,(U153-T153)/Y153,0)) -> 26.66666667 | AA153: =IF(O153="No Tractor",0,IF(E118=2,VLOOKUP($P153,$Y$6:$AK$15,13,FALSE),0)) -> 600 | AB153: =IF(O153="No Tractor",0,IF(E118=2,(V153-0)/AA153,0)) -> 26.66666667 | AC153: =IF(O153="No Tractor",0,IF($E118=2,$S119,0)) -> 8.36 | AD153: =IF(E118=2,VLOOKUP($B153,$B$6:$Q$51,15,FALSE),0) -> 0.8 | AE153: =IF(E118=2,VLOOKUP($B153,$B$6:$Q$51,16,FALSE),0) -> 5.5 | AF153: =IF(E118=2,1/((5280/43560)*AE153*C153*AD153),0) -> 0.125 | AG153: =IF($E$118=2,1/AF153,0) -> 8 | AJ153: =IF('Energy Sorghum'!J21=0,0,IF(E118=2,Machinery!F12*AF153,0)) -> 6.25 | AK153: 0.125 | AL153: =IF($E$118=2,((($D153-$I153)*(Inputs!$P$19/(1-((1+Inputs!$P$19)^(-$L153))))+(($I153*Inputs!$P$19)))/($K153)),0) -> 8.149817328 | AM153: =IF($E$118=2,((($E153-$J153)*(Inputs!$P$19/(1-((1+Inputs!$P$19)^(-$N153))))+(($J153*Inputs!$P$19)))/($M153)),0) -> 8.149815845 | AN153: =IF($E$118=2,O25*$D153/($G153-$F153),0) -> 2.56 | AO153: =IF(O153="No Tractor",0,IF(E118=2,AF153,0)) -> 0.125 | AP153: =IF(O153="No Tractor",0,IF($E118=2,((($R153-$W153)*(Inputs!$P$19/(1-((1+Inputs!$P$19)^(-$Z153))))+(($W153*Inputs!$P$19)))/(Y153)),0)) -> 20.72519699 | AQ153: =IF(O153="No Tractor",0,IF($E118=2,((($S153-$X153)*(Inputs!$P$19/(1-((1+Inputs!$P$19)^(-$AB153))))+(($X153*Inputs!$P$19)))/(AA153)),0)) -> 20.72519701 | AR153: =IF(O153="No Tractor",0,IF(E118=2,(VLOOKUP($P153,$AL$6:$AS$15,8,FALSE)*$R153)/($U153-$T153),0)) -> 8.35 | BA153: 0.0625 | BB153: 4.18 | BC153: 5.455 | BD153: 14.43750643 | BM153: 0.0625 | BN153: 4.18 | BO153: 5.455 | BP153: 14.43750716 | BQ153: =AK153*Inputs!$G$15 -> 1.15625 | BR153: =AC153*Inputs!$G$11 -> 20.7328 | BS153: 5.455 | BT153: 14.43750716 | BU153: 0 | BV153: 0 | BW153: 0 | BX153: 20.72519699 | BY153: =IF($O153=BY$137,SUM(($AO153*Inputs!$G$15)+$AR153+($AC153*Inputs!$G$11)),0) -> 0 | BZ153: =IF($O153=BZ$137,SUM(($AO153*Inputs!$G$15)+$AR153+($AC153*Inputs!$G$11)),0) -> 0 | CA153: =IF($O153=CA$137,SUM(($AO153*Inputs!$G$15)+$AR153+($AC153*Inputs!$G$11)),0) -> 0 | CB153: =IF($O153=CB$137,SUM(($AO153*Inputs!$G$15)+$AR153+($AC153*Inputs!$G$11)),0) -> 30.23905 | CK153: 0 | CL153: 0 | CM153: 0 | CN153: 6.25
A154: 2 Shank | B154: Para-Till | C154: =IF(A154="2 Shank",8,IF(A154="3 Shank",10,0)) -> 8 | D154: =$H120 -> 1670 | E154: =VLOOKUP(A154,$C$31:$D$32,2,FALSE) -> 1670 | F154: =I120 -> 0 | G154: =$K120 -> 2000 | H154: =VLOOKUP(B154,$B$6:$F$51,5,FALSE) -> 2000 | I154: =IF(L120>D154,0,L120) -> 265.95 | J154: =VLOOKUP(A154,$C$31:$K$32,9,FALSE) -> 265.9523599 | K154: =P120 -> 100 | L154: =+(G154-F154)/K154 -> 20 | M154: =I31 -> 100 | N154: =+(H154-0)/M154 -> 20 | O154: =IF(C120=1,Machinery!B18,IF(C120=2,Machinery!B19,IF(C120=3,Machinery!B20,IF(C120=4,Machinery!B21,FALSE)))) -> JD 5075E | P154: =IF(O154="No Tractor",0,VLOOKUP($O154,$C$100:$D$103,2,FALSE)) -> MFWD 75 | Q154: =IF(O154="No Tractor",0,VLOOKUP($O154,$C$100:$F$103,4,FALSE)) -> 75 | R154: =IF(O154="No Tractor",0,VLOOKUP($O154,$C$62:$H$65,6,FALSE)) -> 47900 | S154: =IF($O$154="No Tractor",0,VLOOKUP($O154,$AA$18:$AC$21,3,FALSE)) -> 47900 | T154: =IF(O154="No Tractor",0,VLOOKUP($O154,$C$100:$I$103,7,FALSE)) -> 0 | U154: =IF(O154="No Tractor",0,VLOOKUP($O154,$C$100:$K$103,9,FALSE)) -> 16000 | V154: =IF(O154="No Tractor",0,VLOOKUP(P154,$Y$6:$AE$15,7,FALSE)) -> 16000 | W154: =IF(O154="No Tractor",0,VLOOKUP($O154,$C$100:$L$103,10,FALSE)) -> 8635.35 | X154: =IF($O$154="No Tractor",0,VLOOKUP($O154,$AA$18:$AN$21,14,FALSE)) -> 8635.34734 | Y154: =IF(O154="No Tractor",0,VLOOKUP($O154,$C$62:$R$65,16,FALSE)) -> 600 | Z154: =IF(O154="No Tractor",0,(U154-T154)/Y154) -> 26.66666667 | AA154: =IF(O154="No Tractor",0,VLOOKUP($P154,$Y$6:$AK$15,13,FALSE)) -> 600 | AB154: =IF(O154="No Tractor",0,(V154-0)/AA154) -> 26.66666667 | AC154: =IF(O154="No Tractor",0,$S120) -> 3.3 | AD154: =VLOOKUP($B154,$B$6:$Q$51,15,FALSE) -> 0.85 | AE154: =VLOOKUP($B154,$B$6:$Q$51,16,FALSE) -> 3 | AF154: =1/((5280/43560)*AE154*C154*AD154) -> 0.4044117647 | AG154: =1/AF154 -> 2.472727273 | AH154: =IF(Switchgrass!$T$5="Cropland",IF(Switchgrass!J11=0,0,Machinery!D12*AF154),0) -> 20.22058824 | AI154: =IF(Miscanthus!J12=0,0,IF(Miscanthus!C12="Para-Till",(Machinery!E12)*AF154*(1/Miscanthus!$H$82),0)) -> 0 | AK154: 0.4044117647 | AL154: =((($D154-$I154)*(Inputs!$P$19/(1-((1+Inputs!$P$19)^(-$L154))))+(($I154*Inputs!$P$19)))/($K154)) -> 1.383684772 | AM154: =((($E154-$J154)*(Inputs!$P$19/(1-((1+Inputs!$P$19)^(-$N154))))+(($J154*Inputs!$P$19)))/($M154)) -> 1.383684131 | AN154: =O31*$D154/($G154-$F154) -> 0.57615 | AO154: =IF(O154="No Tractor",0,AF154) -> 0.4044117647 | AP154: =IF(O154="No Tractor",0,((($R154-$W154)*(Inputs!$P$19/(1-((1+Inputs!$P$19)^(-$Z154))))+(($W154*Inputs!$P$19)))/(Y154))) -> 5.842788596 | AQ154: =IF(O154="No Tractor",0,((($S154-$X154)*(Inputs!$P$19/(1-((1+Inputs!$P$19)^(-$AB154))))+(($X154*Inputs!$P$19)))/(AA154))) -> 5.842788667 | AR154: =IF(O154="No Tractor",0,(VLOOKUP($P154,$AL$6:$AS$15,8,FALSE)*$R154)/($U154-$T154)) -> 2.395 | AS154: =AK154*W120/100 -> 0.2022058824 | AT154: =AC154*W120/100 -> 1.65 | AU154: =(AN154+AR154)*W120/100 -> 1.485575 | AV154: =(AM154+AQ154)*W120/100 -> 3.613236399 | AW154: =AK154*W120/100 -> 0.2022058824 | AX154: =AC154*W120/100 -> 1.65 | AY154: =(AN154+AR154)*W120/100 -> 1.485575 | AZ154: =(AM154+AQ154)*W120/100 -> 3.613236399 | BE154: =$AK154*W120/100 -> 0.2022058824 | BF154: =$AC154*W120/100 -> 1.65 | BG154: =($AN154+$AR154)*W120/100 -> 1.485575 | BH154: =($AL154+$AP154)*W120/100 -> 3.613236684 | BI154: =$AK154*W120/100 -> 0.2022058824 | BJ154: =$AC154*W120/100 -> 1.65 | BK154: =($AN154+$AR154)*W120/100 -> 1.485575 | BL154: =($AL154+$AP154)*W120/100 -> 3.613236684 | BQ154: =AK154*Inputs!$G$15 -> 3.740808824 | BR154: =AC154*Inputs!$G$11 -> 8.184 | BS154: =BK154 -> 1.485575 | BT154: =BL154 -> 3.613236684 | BU154: 5.842788596 | BV154: 0 | BW154: 0 | BX154: 0 | BY154: =IF($O154=BY$137,SUM(($AO154*Inputs!$G$15)+$AR154+($AC154*Inputs!$G$11)),0) -> 14.31980882 | BZ154: =IF($O154=BZ$137,SUM(($AO154*Inputs!$G$15)+$AR154+($AC154*Inputs!$G$11)),0) -> 0 | CA154: =IF($O154=CA$137,SUM(($AO154*Inputs!$G$15)+$AR154+($AC154*Inputs!$G$11)),0) -> 0 | CB154: =IF($O154=CB$137,SUM(($AO154*Inputs!$G$15)+$AR154+($AC154*Inputs!$G$11)),0) -> 0 | CC154: =IF($O154=$CC$137,$AH154,0) -> 20.22058824 | CD154: =IF($O154=$CD$137,$AH154,0) -> 0 | CE154: =IF($O154=CE147,$AH154,0) -> 0 | CF154: =IF($O154=$CF$137,$AH154,0) -> 0 | CG154: =IF($O154=$CG$137,$AI154,0) -> 0 | CH154: =IF($O154=$CH$137,$AI154,0) -> 0 | CI154: =IF($O154=$CI$137,$AI154,0) -> 0 | CJ154: =IF($O154=$CJ$137,$AI154,0) -> 0
A155: 3 Shank | B155: Para-Till | C155: =IF(E120=2,IF(A155="2 Shank",8,IF(A155="3 Shank",10,0)),0) -> 10 | D155: =IF($E120=2,$H121,0) -> 3550 | E155: =IF(E120=2,VLOOKUP(A155,$C$31:$D$32,2,FALSE),0) -> 3550 | F155: =IF(E120=2,I121,0) -> 0 | G155: =IF($E120=2,$K121,0) -> 2000 | H155: =IF(E120=2,VLOOKUP(B155,$B$6:$F$51,5,FALSE),0) -> 2000 | I155: =IF(E120=2,IF(L121>D155,0,L121),0) -> 565.35 | J155: =IF(E120=2,VLOOKUP(A155,$C$31:$K$32,9,FALSE),0) -> 565.3478309 | K155: =IF(E120=2,P121,0) -> 100 | L155: =IF($E$120=2,+(G155-F155)/K155,0) -> 20 | M155: =IF(E120=2,I31,0) -> 100 | N155: =IF(E120=2,(H155-0)/M155) -> 20 | O155: =IF($E$120=2,IF(C121=1,Machinery!B18,IF(C121=2,Machinery!B19,IF(C121=3,Machinery!B20,IF(C121=4,Machinery!B21,FALSE)))),0) -> JD 6190R | P155: =IF(O155="No Tractor",0,IF($E$120=2,VLOOKUP($O155,$C$100:$D$103,2,FALSE),0)) -> MFWD 190 | Q155: =IF(O155="No Tractor",0,IF($E$120=2,VLOOKUP($O155,$C$100:$F$103,4,FALSE),0)) -> 190 | R155: =IF(O155="No Tractor",0,IF($E$120=2,VLOOKUP($O155,$C$62:$H$65,6,FALSE),0)) -> 167000 | S155: =IF($O$155="No Tractor",0,IF($E$120=2,VLOOKUP($O155,$AA$18:$AC$21,3,FALSE),0)) -> 167000 | T155: =IF(O155="No Tractor",0,IF($E$120=2,VLOOKUP($O155,$C$100:$I$103,7,FALSE),0)) -> 0 | U155: =IF(O155="No Tractor",0,IF($E$120=2,VLOOKUP($O155,$C$100:$K$103,9,FALSE),0)) -> 16000 | V155: =IF(O155="No Tractor",0,IF(E120=2,VLOOKUP(P155,$Y$6:$AE$15,7,FALSE),0)) -> 16000 | W155: =IF(O155="No Tractor",0,IF($E120=2,VLOOKUP($O155,$C$100:$L$103,10,FALSE),0)) -> 16876.84 | X155: =IF($O$155="No Tractor",0,IF($E$120=2,VLOOKUP($O155,$AA$18:$AN$21,14,FALSE),0)) -> 16876.83927 | Y155: =IF(O155="No Tractor",0,IF($E120=2,VLOOKUP($O155,$C$62:$R$65,16,FALSE),0)) -> 600 | Z155: =IF(O155="No Tractor",0,IF($E120=2,(U155-T155)/Y155,0)) -> 26.66666667 | AA155: =IF(O155="No Tractor",0,IF(E120=2,VLOOKUP($P155,$Y$6:$AK$15,13,FALSE),0)) -> 600 | AB155: =IF(O155="No Tractor",0,IF(E120=2,(V155-0)/AA155,0)) -> 26.66666667 | AC155: =IF(O155="No Tractor",0,IF($E120=2,$S121,0)) -> 8.36 | AD155: =IF(E120=2,VLOOKUP($B155,$B$6:$Q$51,15,FALSE),0) -> 0.85 | AE155: =IF(E120=2,VLOOKUP($B155,$B$6:$Q$51,16,FALSE),0) -> 3 | AF155: =IF(E120=2,1/((5280/43560)*AE155*C155*AD155),0) -> 0.3235294118 | AG155: =IF($E$120=2,1/AF155,0) -> 3.090909091 | AH155: =IF(Switchgrass!$T$5="Cropland",IF(Switchgrass!J11=0,0,Machinery!D12*AF155),0) -> 16.17647059 | AI155: =IF(Miscanthus!J12=0,0,IF(Miscanthus!C12="Para-Till",IF(E120=2,(Machinery!E12)*AF155*(1/Miscanthus!$H$82),0),0)) -> 0 | AK155: 0.3235294118 | AL155: =IF($E$120=2,((($D155-$I155)*(Inputs!$P$19/(1-((1+Inputs!$P$19)^(-$L155))))+(($I155*Inputs!$P$19)))/($K155)),0) -> 2.94136388 | AM155: =IF($E$120=2,((($E155-$J155)*(Inputs!$P$19/(1-((1+Inputs!$P$19)^(-$N155))))+(($J155*Inputs!$P$19)))/($M155)),0) -> 2.941364469 | AN155: =IF($E$120=2,O31*$D155/($G155-$F155),0) -> 1.22475 | AO155: =IF(O155="No Tractor",0,IF(E120=2,AF155,0)) -> 0.3235294118 | AP155: =IF(O155="No Tractor",0,IF($E120=2,((($R155-$W155)*(Inputs!$P$19/(1-((1+Inputs!$P$19)^(-$Z155))))+(($W155*Inputs!$P$19)))/(Y155)),0)) -> 20.72519699 | AQ155: =IF(O155="No Tractor",0,IF($E120=2,((($S155-$X155)*(Inputs!$P$19/(1-((1+Inputs!$P$19)^(-$AB155))))+(($X155*Inputs!$P$19)))/(AA155)),0)) -> 20.72519701 | AR155: =IF(O155="No Tractor",0,IF(E120=2,(VLOOKUP($P155,$AL$6:$AS$15,8,FALSE)*$R155)/($U155-$T155),0)) -> 8.35 | AS155: =AK155*W121/100 -> 0.1617647059 | AT155: =AC155*W121/100 -> 4.18 | AU155: =(AN155+AR155)*W121/100 -> 4.787375 | AV155: =(AM155+AQ155)*W121/100 -> 11.83328074 | AW155: =AK155*W121/100 -> 0.1617647059 | AX155: =AC155*W121/100 -> 4.18 | AY155: =(AN155+AR155)*W121/100 -> 4.787375 | AZ155: =(AM155+AQ155)*W121/100 -> 11.83328074 | BE155: =AK155*W121/100 -> 0.1617647059 | BF155: =$AC155*W121/100 -> 4.18 | BG155: =($AN155+$AR155)*W121/100 -> 4.787375 | BH155: =($AL155+$AP155)*W121/100 -> 11.83328043 | BI155: =$AK155*W121/100 -> 0.1617647059 | BJ155: =$AC155*W121/100 -> 4.18 | BK155: =($AN155+$AR155)*W121/100 -> 4.787375 | BL155: =($AL155+$AP155)*W121/100 -> 11.83328043 | BQ155: =AK155*Inputs!$G$15 -> 2.992647059 | BR155: =AC155*Inputs!$G$11 -> 20.7328 | BS155: =BK155 -> 4.787375 | BT155: =BL155 -> 11.83328043 | BU155: 0 | BV155: 0 | BW155: 0 | BX155: 20.72519699 | BY155: =IF($O155=BY$137,SUM(($AO155*Inputs!$G$15)+$AR155+($AC155*Inputs!$G$11)),0) -> 0 | BZ155: =IF($O155=BZ$137,SUM(($AO155*Inputs!$G$15)+$AR155+($AC155*Inputs!$G$11)),0) -> 0 | CA155: =IF($O155=CA$137,SUM(($AO155*Inputs!$G$15)+$AR155+($AC155*Inputs!$G$11)),0) -> 0 | CB155: =IF($O155=CB$137,SUM(($AO155*Inputs!$G$15)+$AR155+($AC155*Inputs!$G$11)),0) -> 32.07544706 | CC155: =IF($O155=$CC$137,$AH155,0) -> 0 | CD155: =IF($O155=$CD$137,$AH155,0) -> 0 | CE155: =IF($O155=CE147,$AH155,0) -> 0 | CF155: =IF($O155=$CF$137,$AH155,0) -> 16.17647059 | CG155: =IF($O155=$CG$137,$AI155,0) -> 0 | CH155: =IF($O155=$CH$137,$AI155,0) -> 0 | CI155: =IF($O155=$CI$137,$AI155,0) -> 0 | CJ155: =IF($O155=$CJ$137,$AI155,0) -> 0
A156: 4R-30 | B156: Row Planter | C156: =IF(A156="4R-30",10,IF(A156="6R-30",15,IF(A156="8R-30",18))) -> 10 | D156: =$H122 -> 2580 | E156: =VLOOKUP(A156,$C$41:$D$43,2,FALSE) -> 2580 | F156: =I122 -> 0 | G156: =$K122 -> 900 | H156: =VLOOKUP(B156,$B$6:$F$51,5,FALSE) -> 900 | I156: =IF(L122>D156,0,L122) -> 1235.25 | J156: =VLOOKUP(A156,$C$41:$K$43,9,FALSE) -> 1235.254172 | K156: =P122 -> 150 | L156: =+(G156-F156)/K156 -> 6 | M156: =I41 -> 150 | N156: =+(H156-0)/M156 -> 6 | O156: =IF(C122=1,Machinery!B18,IF(C122=2,Machinery!B19,IF(C122=3,Machinery!B20,IF(C122=4,Machinery!B21,FALSE)))) -> JD 6130D | P156: =IF(O156="No Tractor",0,VLOOKUP($O156,$C$100:$D$103,2,FALSE)) -> MFWD 130 | Q156: =IF(O156="No Tractor",0,VLOOKUP($O156,$C$100:$F$103,4,FALSE)) -> 130 | R156: =IF(O156="No Tractor",0,VLOOKUP($O156,$C$62:$H$65,6,FALSE)) -> 114000 | S156: =IF($O$156="No Tractor",0,VLOOKUP($O156,$AA$18:$AC$21,3,FALSE)) -> 114000 | T156: =IF(O156="No Tractor",0,VLOOKUP($O156,$C$100:$I$103,7,FALSE)) -> 0 | U156: =IF(O156="No Tractor",0,VLOOKUP($O156,$C$100:$K$103,9,FALSE)) -> 16000 | V156: =IF(O156="No Tractor",0,VLOOKUP(P156,$Y$6:$AE$15,7,FALSE)) -> 16000 | W156: =IF(O156="No Tractor",0,VLOOKUP($O156,$C$100:$L$103,10,FALSE)) -> 17996.22 | X156: =IF($O$156="No Tractor",0,VLOOKUP($O156,$AA$18:$AN$21,14,FALSE)) -> 17996.21702 | Y156: =IF(O156="No Tractor",0,VLOOKUP($O156,$C$62:$R$65,16,FALSE)) -> 600 | Z156: =IF(O156="No Tractor",0,(U156-T156)/Y156) -> 26.66666667 | AA156: =IF(O156="No Tractor",0,VLOOKUP($P156,$Y$6:$AK$15,13,FALSE)) -> 600 | AB156: =IF(O156="No Tractor",0,(V156-0)/AA156) -> 26.66666667 | AC156: =IF(O156="No Tractor",0,$S122) -> 5.72 | AD156: =VLOOKUP($B156,$B$6:$Q$51,15,FALSE) -> 0.65 | AE156: =VLOOKUP($B156,$B$6:$Q$51,16,FALSE) -> 5.5 | AF156: =1/((5280/43560)*AE156*C156*AD156) -> 0.2307692308 | AG156: =1/AF156 -> 4.333333333 | AJ156: =IF('Energy Sorghum'!J23=0,0,(Machinery!F12)*AF156) -> 11.53846154 | AK156: 0.2307692308 | AL156: =((($D156-$I156)*(Inputs!$P$19/(1-((1+Inputs!$P$19)^(-$L156))))+(($I156*Inputs!$P$19)))/($K156)) -> 2.317245964 | AM156: =((($E156-$J156)*(Inputs!$P$19/(1-((1+Inputs!$P$19)^(-$N156))))+(($J156*Inputs!$P$19)))/($M156)) -> 2.317241977 | AN156: =O41*$D156/($G156-$F156) -> 2.15 | AO156: =IF(O156="No Tractor",0,AF156) -> 0.2307692308 | AP156: =IF(O156="No Tractor",0,((($R156-$W156)*(Inputs!$P$19/(1-((1+Inputs!$P$19)^(-$Z156))))+(($W156*Inputs!$P$19)))/(Y156))) -> 13.97411399 | AQ156: =IF(O156="No Tractor",0,((($S156-$X156)*(Inputs!$P$19/(1-((1+Inputs!$P$19)^(-$AB156))))+(($X156*Inputs!$P$19)))/(AA156))) -> 13.97411407 | AR156: =IF(O156="No Tractor",0,(VLOOKUP($P156,$AL$6:$AS$15,8,FALSE)*$R156)/($U156-$T156)) -> 5.7 | BA156: =AK156*W122/100 -> 0.1153846154 | BB156: =AC156*W122/100 -> 2.86 | BC156: =(AN156+AR156)*W122/100 -> 3.925 | BD156: =(AM156+AQ156)*W122/100 -> 8.145678022 | BM156: =$AK156*W122/100 -> 0.1153846154 | BN156: =$AC156*W122/100 -> 2.86 | BO156: =($AN156+$AR156)*W122/100 -> 3.925 | BP156: =($AL156+$AP156)*W122/100 -> 8.145679976 | BQ156: =AK156*Inputs!$G$15 -> 2.134615385 | BR156: =AC156*Inputs!$G$11 -> 14.1856 | BS156: =BO156 -> 3.925 | BT156: =BP156 -> 8.145679976 | BU156: 0 | BV156: 13.97411399 | BW156: 0 | BX156: 0 | BY156: =IF($O156=BY$137,SUM(($AO156*Inputs!$G$15)+$AR156+($AC156*Inputs!$G$11)),0) -> 0 | BZ156: =IF($O156=BZ$137,SUM(($AO156*Inputs!$G$15)+$AR156+($AC156*Inputs!$G$11)),0) -> 22.02021538 | CA156: =IF($O156=CA$137,SUM(($AO156*Inputs!$G$15)+$AR156+($AC156*Inputs!$G$11)),0) -> 0 | CB156: =IF($O156=CB$137,SUM(($AO156*Inputs!$G$15)+$AR156+($AC156*Inputs!$G$11)),0) -> 0 | CK156: =IF($O156=$CK$137,$AJ156,0) -> 0 | CL156: =IF($O156=$CL$137,$AJ156,0) -> 11.53846154 | CM156: =IF($O156=$CM$137,$AJ156,0) -> 0 | CN156: =IF($O156=$CN$137,$AJ156,0) -> 0
A157: 6R-30 | B157: Row Planter | C157: =IF(E122=2,IF(A157="4R-30",10,IF(A157="6R-30",15,IF(A157="8R-30",18))),0) -> 15 | D157: =IF($E122=2,$H123,0) -> 16290 | E157: =IF(E122=2,VLOOKUP(A157,$C$41:$D$43,2,FALSE),0) -> 16290 | F157: =IF(E122=2,I123,0) -> 0 | G157: =IF($E122=2,$K123,0) -> 900 | H157: =IF(E122=2,VLOOKUP(B157,$B$6:$F$51,5,FALSE),0) -> 900 | I157: =IF(E122=2,IF(L123>D157,0,L123),0) -> 7799.34 | J157: =IF(E122=2,VLOOKUP(A157,$C$41:$K$43,9,FALSE),0) -> 7799.33739 | K157: =IF(E122=2,P123,0) -> 150 | L157: =IF($E$122=2,+(G157-F157)/K157,0) -> 6 | M157: =IF(E122=2,I41,0) -> 150 | N157: =IF(E122=2,(H157-0)/M157) -> 6 | O157: =IF($E$122=2,IF(C123=1,Machinery!B18,IF(C123=2,Machinery!B19,IF(C123=3,Machinery!B20,IF(C123=4,Machinery!B21,FALSE)))),0) -> JD 6150M | P157: =IF(O157="No Tractor",0,IF($E$122=2,VLOOKUP($O157,$C$100:$D$103,2,FALSE),0)) -> MFWD 150 | Q157: =IF(O157="No Tractor",0,IF($E$122=2,VLOOKUP($O157,$C$100:$F$103,4,FALSE),0)) -> 150 | R157: =IF(O157="No Tractor",0,IF($E$122=2,VLOOKUP($O157,$C$62:$H$65,6,FALSE),0)) -> 143000 | S157: =IF($O$157="No Tractor",0,IF($E$122=2,VLOOKUP($O157,$AA$18:$AC$21,3,FALSE),0)) -> 143000 | T157: =IF(O157="No Tractor",0,IF($E$122=2,VLOOKUP($O157,$C$100:$I$103,7,FALSE),0)) -> 0 | U157: =IF(O157="No Tractor",0,IF($E$122=2,VLOOKUP($O157,$C$100:$K$103,9,FALSE),0)) -> 16000 | V157: =IF(O157="No Tractor",0,IF(E122=2,VLOOKUP(P157,$Y$6:$AE$15,7,FALSE),0)) -> 16000 | W157: =IF(O157="No Tractor",0,IF($E122=2,VLOOKUP($O157,$C$100:$L$103,10,FALSE),0)) -> 14451.43 | X157: =IF($O$157="No Tractor",0,IF($E$122=2,VLOOKUP($O157,$AA$18:$AN$21,14,FALSE),0)) -> 14451.42524 | Y157: =IF(O157="No Tractor",0,IF($E122=2,VLOOKUP($O157,$C$62:$R$65,16,FALSE),0)) -> 600 | Z157: =IF(O157="No Tractor",0,IF($E122=2,(U157-T157)/Y157,0)) -> 26.66666667 | AA157: =IF(O157="No Tractor",0,IF(E122=2,VLOOKUP($P157,$Y$6:$AK$15,13,FALSE),0)) -> 600 | AB157: =IF(O157="No Tractor",0,IF(E122=2,(V157-0)/AA157,0)) -> 26.66666667 | AC157: =IF(O157="No Tractor",0,IF($E122=2,$S123,0)) -> 6.6 | AD157: =IF(E122=2,VLOOKUP($B157,$B$6:$Q$51,15,FALSE),0) -> 0.65 | AE157: =IF(E122=2,VLOOKUP($B157,$B$6:$Q$51,16,FALSE),0) -> 5.5 | AF157: =IF(E122=2,1/((5280/43560)*AE157*C157*AD157),0) -> 0.1538461538 | AG157: =IF($E$122=2,1/AF157,0) -> 6.5 | AJ157: =IF('Energy Sorghum'!J23=0,0,IF(E122=2,(Machinery!F12)*AF157)) -> 7.692307692 | AK157: 0.1538461538 | AL157: =IF($E$122=2,((($D157-$I157)*(Inputs!$P$19/(1-((1+Inputs!$P$19)^(-$L157))))+(($I157*Inputs!$P$19)))/($K157)),0) -> 14.63095557 | AM157: =IF($E$122=2,((($E157-$J157)*(Inputs!$P$19/(1-((1+Inputs!$P$19)^(-$N157))))+(($J157*Inputs!$P$19)))/($M157)),0) -> 14.63095806 | AN157: =IF($E$122=2,O41*$D157/($G157-$F157),0) -> 13.575 | AO157: =IF(O157="No Tractor",0,IF(E122=2,AF157,0)) -> 0.1538461538 | AP157: =IF(O157="No Tractor",0,IF($E122=2,((($R157-$W157)*(Inputs!$P$19/(1-((1+Inputs!$P$19)^(-$Z157))))+(($W157*Inputs!$P$19)))/(Y157)),0)) -> 17.74672545 | AQ157: =IF(O157="No Tractor",0,IF($E122=2,((($S157-$X157)*(Inputs!$P$19/(1-((1+Inputs!$P$19)^(-$AB157))))+(($X157*Inputs!$P$19)))/(AA157)),0)) -> 17.74672558 | AR157: =IF(O157="No Tractor",0,IF(E122=2,(VLOOKUP($P157,$AL$6:$AS$15,8,FALSE)*$R157)/($U157-$T157),0)) -> 7.15 | BA157: =AK157*W123/100 -> 0.07692307692 | BB157: =AC157*W123/100 -> 3.3 | BC157: =(AN157+AR157)*W123/100 -> 10.3625 | BD157: =(AM157+AQ157)*W123/100 -> 16.18884182 | BM157: =$AK157*W123/100 -> 0.07692307692 | BN157: =$AC157*W123/100 -> 3.3 | BO157: =($AN157+$AR157)*W123/100 -> 10.3625 | BP157: =($AL157+$AP157)*W123/100 -> 16.18884051 | BQ157: =AK157*Inputs!$G$15 -> 1.423076923 | BR157: =AC157*Inputs!$G$11 -> 16.368 | BS157: =BO157 -> 10.3625 | BT157: =BP157 -> 16.18884051 | BU157: 0 | BV157: 0 | BW157: 17.74672545 | BX157: 0 | BY157: =IF($O157=BY$137,SUM(($AO157*Inputs!$G$15)+$AR157+($AC157*Inputs!$G$11)),0) -> 0 | BZ157: =IF($O157=BZ$137,SUM(($AO157*Inputs!$G$15)+$AR157+($AC157*Inputs!$G$11)),0) -> 0 | CA157: =IF($O157=CA$137,SUM(($AO157*Inputs!$G$15)+$AR157+($AC157*Inputs!$G$11)),0) -> 24.94107692 | CB157: =IF($O157=CB$137,SUM(($AO157*Inputs!$G$15)+$AR157+($AC157*Inputs!$G$11)),0) -> 0 | CK157: =IF($O157=$CK$137,$AJ157,0) -> 0 | CL157: =IF($O157=$CL$137,$AJ157,0) -> 0 | CM157: =IF($O157=$CM$137,$AJ157,0) -> 7.692307692 | CN157: =IF($O157=$CN$137,$AJ157,0) -> 0
B158: Spreader | C158: =F134 -> 40 | D158: =H134 -> 11300 | E158: =D51 -> 11300 | F158: =I134 -> 0 | G158: =K134 -> 1200 | H158: =VLOOKUP(B158,$B$6:$F$51,5,FALSE) -> 1200 | I158: =L134 -> 7360.09 | J158: =K51 -> 7360.08618 | K158: =P134 -> 800 | L158: =+(G158-F158)/K158 -> 1.5 | M158: =I51 -> 800 | N158: =+(H158-0)/M158 -> 1.5 | O158: =IF(C134=1,Machinery!B18,IF(C134=2,Machinery!B19,IF(C134=3,Machinery!B20,IF(C134=4,Machinery!B21,FALSE)))) -> JD 5075E | P158: =IF(O158="No Tractor",0,VLOOKUP($O158,$C$100:$D$103,2,FALSE)) -> MFWD 75 | Q158: =IF(O158="No Tractor",0,VLOOKUP($O158,$C$100:$F$103,4,FALSE)) -> 75 | R158: =IF(O158="No Tractor",0,VLOOKUP($O158,$C$62:$H$65,6,FALSE)) -> 47900 | S158: =IF($O$158="No Tractor",0,VLOOKUP($O158,$AA$18:$AC$21,3,FALSE)) -> 47900 | T158: =IF(O158="No Tractor",0,VLOOKUP($O158,$C$100:$I$103,7,FALSE)) -> 0 | U158: =IF(O158="No Tractor",0,VLOOKUP($O158,$C$100:$K$103,9,FALSE)) -> 16000 | V158: =IF(O158="No Tractor",0,VLOOKUP(P158,$Y$6:$AE$15,7,FALSE)) -> 16000 | W158: =IF(O158="No Tractor",0,VLOOKUP($O158,$C$100:$L$103,10,FALSE)) -> 8635.35 | X158: =IF($O$158="No Tractor",0,VLOOKUP($O158,$AA$18:$AN$21,14,FALSE)) -> 8635.34734 | Y158: =IF(O158="No Tractor",0,VLOOKUP($O158,$C$62:$R$65,16,FALSE)) -> 600 | Z158: =IF(O158="No Tractor",0,(U158-T158)/Y158) -> 26.66666667 | AA158: =IF(O158="No Tractor",0,VLOOKUP($P158,$Y$6:$AK$15,13,FALSE)) -> 600 | AB158: =IF(O158="No Tractor",0,(V158-0)/AA158) -> 26.66666667 | AC158: =IF(O158="No Tractor",0,$S124) -> 3.3 | AD158: =VLOOKUP($B158,$B$6:$Q$51,15,FALSE) -> 0.7 | AE158: =VLOOKUP($B158,$B$6:$Q$51,16,FALSE) -> 7 | AF158: =1/((5280/43560)*AE158*C158*AD158) -> 0.04209183673 | AG158: =1/AF158 -> 23.75757576 | AH158: =(Machinery!D12)*(AF158)*(1/Switchgrass!$H$114) -> 0.2104591837 | AI158: =Machinery!E12*AF158*(1/Miscanthus!$H$82) -> 0.1403061224 | AJ158: =Machinery!F12*AF158 -> 2.104591837 | AK158: 0.04209183673 | AL158: =((($D158-$I158)*(Inputs!$P$19/(1-((1+Inputs!$P$19)^(-$L158))))+(($I158*Inputs!$P$19)))/($K158)) -> 4.082704938 | AM158: =((($E158-$J158)*(Inputs!$P$19/(1-((1+Inputs!$P$19)^(-$N158))))+(($J158*Inputs!$P$19)))/($M158)) -> 4.082708075 | AN158: =O51*$D158/($G158-$F158) -> 7.533333333 | AO158: =IF(O158="No Tractor",0,AF158) -> 0.04209183673 | AP158: =IF(O158="No Tractor",0,((($R158-$W158)*(Inputs!$P$19/(1-((1+Inputs!$P$19)^(-$Z158))))+(($W158*Inputs!$P$19)))/(Y158))) -> 5.842788596 | AQ158: =IF(O158="No Tractor",0,((($S158-$X158)*(Inputs!$P$19/(1-((1+Inputs!$P$19)^(-$AB158))))+(($X158*Inputs!$P$19)))/(AA158))) -> 5.842788667 | AR158: =IF(O158="No Tractor",0,(VLOOKUP($P158,$AL$6:$AS$15,8,FALSE)*$R158)/($U158-$T158)) -> 2.395 | AS158: =AK158 -> 0.04209183673 | AT158: =AC158 -> 3.3 | AU158: =AN158+AR158 -> 9.928333333 | AV158: =AM158+AQ158 -> 9.925496742 | AW158: =AK158 -> 0.04209183673 | AX158: =AC158 -> 3.3 | AY158: =AN158+AR158 -> 9.928333333 | AZ158: =AM158+AQ158 -> 9.925496742 | BA158: =AK158 -> 0.04209183673 | BB158: =AC158 -> 3.3 | BC158: =AN158+AR158 -> 9.928333333 | BD158: =AM158+AQ158 -> 9.925496742 | BE158: =$AK158 -> 0.04209183673 | BF158: =$AC158 -> 3.3 | BG158: =($AR158+AN158) -> 9.928333333 | BH158: =($AL158+$AP158) -> 9.925493534 | BI158: =$AK158 -> 0.04209183673 | BJ158: =$AC158 -> 3.3 | BK158: =($AR158+AN158) -> 9.928333333 | BL158: =($AL158+$AP158) -> 9.925493534 | BM158: =$AK158 -> 0.04209183673 | BN158: =$AC158 -> 3.3 | BO158: =($AR158+$AN158) -> 9.928333333 | BP158: =($AL158+$AP158) -> 9.925493534 | BQ158: =AK158*Inputs!$G$15 -> 0.3893494898 | BR158: =AC158*Inputs!$G$11 -> 8.184 | BS158: =BG158 -> 9.928333333 | BT158: =BH158 -> 9.925493534 | BU158: 5.842788596 | BV158: 0 | BW158: 0 | BX158: 0 | BY158: =IF($O158=BY$137,SUM(($AO158*Inputs!$G$15)+$AR158+($AC158*Inputs!$G$11)),0) -> 10.96834949 | BZ158: =IF($O158=BZ$137,SUM(($AO158*Inputs!$G$15)+$AR158+($AC158*Inputs!$G$11)),0) -> 0 | CA158: =IF($O158=CA$137,SUM(($AO158*Inputs!$G$15)+$AR158+($AC158*Inputs!$G$11)),0) -> 0 | CB158: =IF($O158=CB$137,SUM(($AO158*Inputs!$G$15)+$AR158+($AC158*Inputs!$G$11)),0) -> 0 | CC158: =IF($O158=$CC$137,$AH158,0) -> 0.2104591837 | CD158: =IF($O158=$CD$137,$AH158,0) -> 0 | CE158: =IF($O158=CE137,$AH158,0) -> 0 | CF158: =IF($O158=$CF$137,$AH158,0) -> 0 | CG158: =IF($O158=$CG$137,$AI158,0) -> 0.1403061224 | CH158: =IF($O158=$CH$137,$AI158,0) -> 0 | CI158: =IF($O158=$CI$137,$AI158,0) -> 0 | CJ158: =IF($O158=$CJ$137,$AI158,0) -> 0 | CK158: =IF($O158=$CK$137,$AJ158,0) -> 2.104591837 | CL158: =IF($O158=$CL$137,$AJ158,0) -> 0 | CM158: =IF($O158=$CM$137,$AJ158,0) -> 0 | CN158: =IF($O158=$CN$137,$AJ158,0) -> 0
BS159: =IFERROR(AVERAGEIF(BU138:BU158,">0"),0) -> 5.842788596 | BT159: 13.97411399 | BU159: 17.74672545 | BV159: 20.72519699 | BW159: 14.0755111 | BX159: 21.39301196 | BY159: 24.65503498 | BZ159: 30.75800143 | CA159: =SUM(CC138:CC158)*(1/Switchgrass!$H$114) -> 2.043104742 | CB159: =SUM(CD138:CD158)*(1/Switchgrass!$H$114) -> 0.9422942254 | CC159: =SUM(CE138:CE158)*(1/Switchgrass!$H$114) -> 0.03733031674 | CD159: =SUM(CF138:CF158)*(1/Switchgrass!$H$114) -> 2.633169935 | CE159: =SUM(CG138:CG158)*(1/Miscanthus!$H$82) -> 0.009353741497 | CF159: =SUM(CH138:CH158)*(1/Miscanthus!$H$82) -> 0.08884878738 | CG159: =SUM(CI138:CI158)*(1/Miscanthus!$H$82) -> 0.01659125189 | CH159: =SUM(CJ138:CJ158)*(1/Miscanthus!$H$82) -> 0.06310820625 | CI159: =SUM(CK138:CK158) -> 2.104591837 | CJ159: =SUM(CL138:CL158) -> 34.12182181 | CK159: =SUM(CM138:CM158) -> 20.85150838 | CL159: =SUM(CN138:CN158) -> 28.79435107
B160: Table 7 | G160: Max Acres, Bales or Loads per Hour | K160: Table 8 | M160: User | N160: Benchmark
B161: Implement | C161: Size | D161: Price | E161: hpft or hphton | F161: RF | H161: Acres per Mile | I161: Size in dry ton | K161: Switchgrass | L161: Yield in dry tons (2) | M161: =Switchgrass!M112 -> 4 | N161: =Switchgrass!T112 -> 4
B162: Disk Mower Conditioner | C162: =C12 -> 9 | D162: =$D$12 -> 23535 | E162: 3.3 | F162: 0.8 | G162: 12 | L162: Yield in dry tons (3-10) | M162: =Switchgrass!M113 -> 6 | N162: =Switchgrass!T113 -> 6
C163: 12 | D163: =$D$13 -> 28156 | E163: 3.3 | F163: 0.8 | G163: 12 | K163: Forage Sorghum | L163: Yield in dry tons | M163: ='Energy Sorghum'!L51 -> 12 | N163: ='Energy Sorghum'!R51 -> 12
A164: =C38 -> 14 — 5 x 6 ft (Lrg Rd) | B164: Baler | C164: =C14 -> 1250 lbs — 5 x 6 ft | D164: =$D$14 -> 31207 | E164: 2.2 | F164: 0.9 | G164: See Userform Inputs (Table 5) | H164: =5280*10/43560 -> 1.212121212 | I164: =(1250*M167)/2000 -> 0.5125 | J164: =C38 -> 14 — 5 x 6 ft (Lrg Rd)
A165: =C39 -> 10 — 4 x 5 ft (Med Rd) | C165: =C15 -> 800 lbs — 4 x 5 ft | D165: =$D$15 -> 23213 | E165: 2.2 | F165: 0.9 | G165: See Userform Inputs (Table 5) | H165: =5280*10/43560 -> 1.212121212 | I165: =(800*M167)/2000 -> 0.328 | J165: =C39 -> 10 — 4 x 5 ft (Med Rd) | K165: Miscanthus | L165: Yield in dry tons (2) | M165: =Miscanthus!M80 -> 5 | N165: =Miscanthus!AG80 -> 5
A166: =C40 -> 16 — 3 x 4 x 9 ft (Lrg Sq) | C166: 2100 lbs — 3 x 4 x 9.5 ft | D166: =$D$16 -> 136907.1 | F166: 0.75 | G166: See Userform Inputs (Table 5) | H166: =5280*10/43560 -> 1.212121212 | I166: =(2100*M167)/2000 -> 0.861 | J166: =C40 -> 16 — 3 x 4 x 9 ft (Lrg Sq) | L166: Yield in dry tons (3-15) | M166: =Miscanthus!M81 -> 10 | N166: =Miscanthus!AG81 -> 10
B167: Hay Rake | C167: 8.5 | D167: =$D$17 -> 5312 | E167: 0.8 | F167: 0.6 | G167: =$H167*$P$17*$Q$17 -> 4.945454545 | H167: =5280*C167/43560 -> 1.03030303 | L167: Safe MC %: | M167: 0.82
C168: 17 | D168: =$D$18 -> 4738 | E168: 0.8 | F168: 0.6 | G168: =$H168*$P$17*$Q$17 -> 9.890909091 | H168: =5280*C168/43560 -> 2.060606061
B169: Disk Mower | C169: =C36 -> 8 | D169: =$D$36 -> 10272 | E169: 2 | F169: 1.75 | G169: 12
C170: =C37 -> 10 | D170: =$D$37 -> 11359 | E170: 2 | F170: 1.75 | G170: 12
B171: Bale Hauler | C171: =C38 -> 14 — 5 x 6 ft (Lrg Rd) | D171: =$D$38 -> 25587 | F171: 0.5 | G171: See Userform Inputs (Table 5)
C172: =C39 -> 10 — 4 x 5 ft (Med Rd) | D172: =$D$39 -> 18342 | F172: 0.5 | G172: See Userform Inputs (Table 5)
C173: =C40 -> 16 — 3 x 4 x 9 ft (Lrg Sq) | D173: =$D$40 -> 40500 | F173: 0.5 | G173: See Userform Inputs (Table 5)
B174: Forage Harvester | E174: =ROUND(AVERAGE(6.9,6.9),1) -> 6.9 | F174: 0.5 | AK174: For Mowers, the field speed and machine width drive hrs/acre
B175: SP Mower Conditioner — 235 hp | C175: =F124 -> 9 | E175: 3.3 | F175: 0.55 | G175: 12 | AK175: Max Speed (before FEP) | AM175: 10 | AN175: at | AO175: 3 | AP175: tons or less
AE176: Hours/Acre is the main driver of costs | AL176: Max Speed (before FEP) | AM176: 3 | AN176: at | AO176: 15 | AP176: tons or more
A177: Table 9 | C177: UserForm Data | AE177: Implement Calculations | BB177: Tractor Calculations | BG177: User Budget Totals | BO177: Standard Budget Totals | BW177: (S) Totals For Machinery Tab | CI177: Tractor Capital Recovery ($/hr) | CM177: Tractor Total Cost ($/hr) | CQ177: (S) Annual Use | CU177: (M) Annual Use | CY177: (FS) Annual Use | DC177: Min hrs/acre
